Workbook

Sheet PANEL
E106: SUB_REGION | F106: CLAS | G106: EJECUTORA | H106: CALICHE | I106: PROVINCIA | J106: RED | K106: DISTRITO | L106: NIVEL
D107: =VLOOKUP(INFORME!$D$4,$C$109:$D$127,2,0) -> 14 | E107: LUCIANO CASTILLO COLONNA | F107: (Todas) | G107: (Todas) | H107: (Todas) | I107: (Todas) | J107: (Todas) | K107: (Todas)
C108: MESES | E108: MORROPON HUANCABAMBA | F108: CLAS ALGARROBOS | G108: HOSPITAL DE APOYO I CHULUCANAS | H108: AMBASAL | I108: AYABACA | J108: NINGUNA RED | K108: AMOTAPE | L108: SUB_REGION
C109: Enero | D109: 3 | E109: PIURA SECHURA | F109: CLAS BATANES | G109: HOSPITAL DE APOYO I NUESTRA SEÑORA DE LAS MERCEDES DE PAITA | H109: AMOTAPE | I109: HUANCABAMBA | J109: RED AYABACA | K109: ARENAL | L109: EJECUTORA
B110: VAL. CLINICA_FCAT_RIESGO_18-29 (5001502) | C110: Febrero | D110: 4 | F110: CLAS BELLAVISTA | G110: HOSPITAL DE APOYO I SANTA ROSA | H110: ANCHALAY | I110: MORROPON | J110: RED BAJO PIURA | K110: AYABACA | L110: RED
B111: VAL. CLINICA_FACT_RIESGO_30-39 (5001503) | C111: Marzo | D111: 5 | F111: CLAS BERNAL | G111: HOSPITAL DE APOYO III SULLANA | H111: ANDURCO | I111: PAITA | J111: RED HUANCABAMBA | K111: BELLAVISTA | L111: PROVINCIA
B112: VAL. CLINICA_FACT_RIESGO_(5001507) | C112: Abril | D112: 6 | F112: CLAS BUENOS AIRES | G112: REGION PIURA-SALUD MORROPON-CHULUCANAS | H112: ANIA | I112: PIURA | J112: RED HUARMACA | K112: BELLAVISTA DE LA UNION | L112: CLAS
B113: VAL. CLINICA_FCAT_RIESGO_60ymás (5001507) | C113: Mayo | D113: 7 | F113: CLAS CANCHAQUE | G113: SALUD LUCIANO CASTILLO COLONNA | H113: ARAGOTO | I113: SECHURA | J113: RED MORROPON CHULUCANAS | K113: BERNAL | L113: DISTRITO
B114: EMERGENCIAS_URGENCIAS HIPERTENS_(5001601) | C114: Junio | D114: 8 | F114: CLAS CASA GRANDE | G114: SALUD PIURA | H114: ARREYPITE - PINGOLA | I114: SULLANA | J114: RED PIURA-CASTILLA | K114: BUENOS AIRES | L114: IPRESS
B115: TTO_CONT_PERS_DISLIPIDEMIAS_(5001602) | C115: Julio | D115: 9 | F115: CLAS CATACAOS | H115: AYABACA | I115: TALARA | J115: RED SULLANA | K115: CANCHAQUE
B116: HIPERTENSO_NO ALTO RIESGO NO PC_(5001603) | C116: Agosto | D116: 10 | F116: CLAS CAYETANO HEREDIA | H116: BELLAVISTA | K116: CASTILLA
B117: HIPERTENSO_NO ALTO RIESGO PC_(5001604) | C117: Septiembre | D117: 11 | F117: CLAS CHALACO | H117: BLAS | K117: CATACAOS
B118: PACIENTES_ENF. CARDIOMET_RECIBEN EDUC_(5001605) | C118: Octubre | D118: 12 | F118: CLAS CHATITO | H118: C. S. MARIA GORETTI | K118: CHALACO
B119: HIPERTENSOS_TTO. ESPECIALIZADO_(5001606) | C119: Noviembre | D119: 13 | F119: CLAS CURA MORI | H119: C.S BELLAVISTA | K119: CHULUCANAS
B120: HIPERTENSOS_ESTRATIF_RIESGO_CARDIOVAS_(5001608) | C120: Diciembre | D120: 14 | F120: CLAS FRIAS | H120: C.S CANCHAQUE | K120: COLAN
B121: MANEJO BASICO_CRISIS HIPOGLU_HIPERGLU_(5001701) | C121: Total | D121: 15 | F121: CLAS HIGUERON | H121: C.S CHICLAYITO | K121: CRISTO NOS VALGA
B122: DIABETICO NO COMPLIC_NO PC_(5001702) | C122: I-Trim | D122: 16 | F122: CLAS HOSPITALES PIURA | H122: C.S EL FAIQUE | K122: CURA MORI
B123: VAL. CLINICA_FACT_RIESGO_5-11 (5001504) | C123: II-Trim | D123: 17 | F123: CLAS HOSPITALES SULLANA | H123: C.S EL TUNAL | K123: EL ALTO
B124: VAL. CLINICA_FACT_RIESGO_12-17 (5001501) | C124: III-Trim | D124: 18 | F124: CLAS IGNACIO MERINO | H124: C.S I -4 MORROPON | K124: EL CARMEN DE LA FRONTERA
B125: DIABETICOS_NO_COMPLIC_PC_(5001703) | C125: IV-Trim | D125: 19 | F125: CLAS KM 50 | H125: C.S I-4 SANTO DOMINGO | K125: EL TALLAN
B126: DIABETICOS_TTO_ESPECIALIZADO_(5001704) | C126: I-Sem | D126: 20 | F126: CLAS LA ARENA | H126: C.S LA ARENA | K126: FRIAS
B127: VALORACION_COMPLICACIONES_PERS_DIABET_(5001705) | C127: II-Sem | D127: 21 | F127: CLAS LA LEGUA | H127: C.S LA UNION | K127: HUANCABAMBA
F128: CLAS LA MATANZA | H128: C.S LIMON DE PORCUYA | K128: HUARMACA
F129: CLAS LA UNION | H129: C.S MICAELA BASTIDAS | K129: IGNACIO ESCUDERO
F130: CLAS LAGRIMAS DE CURUMUY | H130: C.S NUEVA ESPERANZA | K130: JILILI
F131: CLAS LALAQUIZ | H131: C.S PACAIPAMPA | K131: LA ARENA
F132: CLAS LETIRA-BECARA | H132: C.S PACHITEA | K132: LA BREA
F133: CLAS MEDIO PIURA | H133: C.S SALITRAL | K133: LA HUACA
F134: CLAS MONTE SULLON- NARIHUALA-PEDRE | H134: C.S SAN JOSE | K134: LA MATANZA
F135: CLAS MORROPON | H135: C.S SAN PEDRO | K135: LA UNION
F136: CLAS NANGAY DE MATALACAS | H136: C.S SONDOR | K136: LAGUNAS
F137: CLAS PACAIPAMPA | H137: C.S SONDORILLO | K137: LALAQUIZ
F138: CLAS PACHITEA | H138: C.S TACALA | K138: LANCONES
F139: CLAS PARACHIQUE | H139: C.S VICE | K139: LAS LOMAS
F140: CLAS RINCONADA LICUAR | H140: C.S. EL INDIO | K140: LOBITOS
F141: CLAS SALITRAL | H141: CABO BLANCO | K141: LOS ORGANOS
F142: CLAS SALUD PARA TODOS | H142: CALVAS DE SAMANGA | K142: MANCORA
F143: CLAS SAN JUAN DE BIGOTE | H143: CANAL MOCHO-CIENEG.SUR | K143: MARCAVELICA
F144: CLAS SAN MIGUEL DE PIURA | H144: CASAS QUEMADAS | K144: MIGUEL CHECA
F145: CLAS SAN MIGUEL DEL FAIQUE | H145: Centro de .Salud I-4 BUENOS AIRES | K145: MONTERO
F146: CLAS SANTA CATALINA DE MOSSA | H146: CENTRO DE SALUD FRÍAS | K146: MORROPON
F147: CLAS SANTA ROSA | H147: CENTRO DE SALUD HUARMACA | K147: PACAIPAMPA
F148: CLAS SANTA ROSA - NUEVO TALLAN | H148: CENTRO DE SALUD MATERNO INFANTIL-CATACAOS | K148: PAIMAS
F149: CLAS SANTO CRISTO DE CRISTO NOS VA | H149: CENTRO DE SALUD MENTAL COMUNITARIO "JESÚS REDENTOR" | K149: PAITA
F150: CLAS SANTO DOMINGO | H150: CENTRO DE SALUD MENTAL COMUNITARIO "MADRE DEL PERPETUO SOCORRO" | K150: PARIÑAS
F151: CLAS SECHURA | H151: CENTRO DE SALUD MENTAL COMUNITARIO CATACAOS | K151: PIURA
F152: CLAS SILAHUA | H152: CENTRO DE SALUD MENTAL COMUNITARIO "SAN ALFONSO" | K152: QUERECOTILLO
F153: CLAS SIN CLAS PIURA | H153: CENTRO DE SALUD MENTAL COMUNITARIO SECHURA | K153: RINCONADA-LLICUAR
F154: CLAS SIN CLAS SULLANA | H154: CHALACALA | K154: SALITRAL MORROPON
F155: CLAS SINCHAO GRANDE - EL TALLAN | H155: CHALACALA ALTA | K155: SALITRAL SULLANA
F156: CLAS TAMBOYA | H156: CHARAN | K156: SAN JUAN DE BIGOTE
F157: CLAS VICE | H157: CHICA ALTA | K157: SAN MIGUEL DE EL FAIQUE
F158: CLAS VILLA LOS RANCHOS | H158: CHILACO PELADOS | K158: SANTA CATALINA DE MOSSA
F159: CLAS YAMANGO | H159: CHINCHIN | K159: SANTO DOMINGO
F160: CLAS YAPATERA | H160: CHIPILLICO | K160: SAPILLICA
F161: CLAS EL OBRERO | H161: CHIRINOS | K161: SECHURA
F162: CLAS IGNACIO ESCUDERO | H162: CHOCAN | K162: SICCHEZ
F163: CLAS JILILI | H163: CHORRERA DE PULGUERAS | K163: SONDOR
F164: CLAS LA HUACA | H164: CIENEGUILLO CENTRO | K164: SONDORILLO
F165: CLAS LA PEÐA-LA HORCA | H165: CIENEGUILLO SUR ALTO | K165: SULLANA
F166: CLAS LA TORTUGA | H166: CLAS QUERECOTILLO | K166: SUYO
F167: CLAS MALLARES | H167: COLETAS-CHACHACOMAL | K167: TAMARINDO
F168: CLAS NEGRITOS | H168: COMUNIDAD SALUDABLE | K168: TAMBO GRANDE
F169: CLAS NUEVE DE OCTUBRE | H169: CP3-SAN MARTIN | K169: VEINTISEIS DE OCTUBRE
F170: CLAS PUEBLO NUEVO COLAN | H170: CP4 | K170: VICE
F171: CLAS QUERECOTILLO | H171: CP5 | K171: VICHAYAL
F172: CLAS SAN FRANCISCO DE CHOCAN | H172: CRUCETA | K172: YAMANGO
F173: CLAS SANTA CRUZ | H173: CS I-2 EL TALLAN
F174: CLAS SANTA TERESITA | H174: CUCUYAS
F175: CLAS SICCHEZ | H175: E. S. I - 1 LACCHAN
F176: CLAS TAMBOGRANDE | H176: E.S I-1 GERALDO
F177: CLAS VICHAYAL | H177: E.S II-1 HOSPITAL CHULUCANAS
H178: E.S SANTA JULIA
H179: E.S FRANCO
H180: E.S I.2 MANCUCUR
H181: E.S I-1 CHUSIS
H182: E.S I-1 CAJAS SHAPAYA
H183: E.S I-1 CULEBREROS
H184: E.S I-1 HUAYLAS
H185: E.S I-1 PIEDRA DEL TORO
H186: E.S I-1 SIMIRIS
H187: E.S I-1 TAJAMAR
H188: E.S I-2 CASCAMACHE
H189: E.S I-2 HORMIGUEROS
H190: E.S I-2 ROSARIOS BAJO
H191: E.S I-2 UCHUPATA
H192: E.S I-3 SAPALACHE
H193: E.S I-4 CONSUELO DE VELASCO
H194: E.S I-4 SECHURA
H195: E.S MONTE SULLON
H196: E.S QUINCHAYO GRANDE
H197: E.S. CHATITO
H198: E.S. CILIA
H199: E.S. I -1 CASHACOTO
H200: E.S. LA RINCONADA
H201: E.S. PEDREGAL GRANDE
H202: E.S. I - 2 TULUCE
H203: E.S. I 4 BERNAL
H204: E.S. I-1 LA HUAQUILLA
H205: E.S. I-1 CONSTANTE
H206: E.S. I-1 JACANACAS
H207: E.S. I-1 PORTACHUELO
H208: E.S. I-1 PUEBLO NUEVO DE BUENOS AIRES
H209: E.S. I-1 TRIGAL
H210: E.S. I-3 CURA MORI
H211: E.S. I-4 CASTILLA
H212: E.S. I-4 JESUS GUERRERO CRUZ
H213: EE.SS I-2 JUZGARA
H214: EE.SS I-3 LA MATANZA
H215: EE.SS. I-3 YAMANGO
H216: EL ALAMOR
H217: EL ALTO
H218: EL ARENAL
H219: EL CUCHO
H220: EL LUCUMO
H221: EL ÑURO
H222: EL OBRERO
H223: EL PARTIDOR
H224: EL PITAYO
H225: EL PORVENIR
H226: EL SAUCE-LAS LOMAS
H227: EL SAUCE-SAPILLICA
H228: EL TAMBO
H229: EL TOLDO
H230: ENCUENTRO DE PILARES
H231: ENCUENTRO DE ROMEROS
H232: ESPINDOLA
H233: ESTABLECIMIENTO DE SALUD CHANRRO
H234: ESTABLECIMIENTO DE SALUD I-1 COYONA
H235: FELIPE SANTIAGO SALAVERRY
H236: GARABATOS
H237: GICLAS
H238: GIGANTE
H239: GUARAGUAOS
H240: HOSPITAL DE APOYO II - 2, SULLANA
H241: HOSPITAL DE LA AMISTAD PERU - COREA SANTA ROSA II-2
H242: HOSPITAL NUESTRA SEÑORA DE LAS MERCEDES - PAITA
H243: HUACHUMA
H244: HUACHUMA ALTA
H245: HUANGALA
H246: HUASIMAL DE LA SOLANA
H247: HUIRIQUINGUE
H248: i-2 SILAHUA
H249: IGNACIO ESCUDERO
H250: JAHUAY NEGRO
H251: JAMBUR
H252: JIBITO
H253: JILILI
H254: JOSE ABELARDO QUINONES
H255: JOSE OLAYA
H256: JUAN VALER SANDOVAL
H257: LA GOLONDRINA
H258: LA GREDA
H259: LA HUACA
H260: LA ISLA SAN LORENZO
H261: LA ISLILLA
H262: LA LAGUNA
H263: LA MARGARITA
H264: LA MENTA
H265: LA NORIA
H266: LA PEÑA - LA HORCA
H267: LA PEÑITA
H268: LA QUINTA
H269: LA RITA
H270: LA SAUCHA
H271: LA TIENDA
H272: LA TINA
H273: LAGUNAS
H274: LAGUNAS DE CANGLY
H275: LANCONES
H276: LAS CUEVAS
H277: LAS LOMAS
H278: LAS MONICAS
H279: LLOQUE YUPANQUI
H280: LOBITOS
H281: LOS ALGARROBOS
H282: LOS ORGANOS
H283: MACACARA
H284: MALINGAS
H285: MALINGUITAS
H286: MALLARES
H287: MALLARITOS
H288: MANCORA
H289: MARCAVELICA
H290: MARMAS ALTO
H291: MIGUEL CHECA
H292: MIRAFLORES
H293: MIRAMAR
H294: MONTELIMA
H295: MONTERO
H296: MONTERON
H297: NEGRITOS
H298: NOMARA
H299: NUEVE DE OCTUBRE
H300: NUEVO SULLANA
H301: OCOTO ALTO
H302: OLLEROS
H303: OXAHUAY
H304: P.S I-1 PIURA LA VIEJA
H305: P.S I - 2 LA ENCANTADA
... 211 more rows

Sheet TABLA
B2: EJECUTORA | C2: SALUD PIURA
A3: 1 | B3: 2 | C3: 3 | D3: 4 | E3: 5 | F3: 6 | G3: 7 | H3: 8 | I3: 9 | J3: 10 | K3: 11 | L3: 12 | M3: 13 | N3: 14 | O3: 15 | P3: 16 | Q3: 17 | R3: 18 | S3: 19 | T3: 20 | U3: 21
C4: Etiquetas de columna
B5: Valores | C5: 1 | D5: 2 | E5: 3 | F5: 4 | G5: 5 | H5: 6 | I5: 7 | J5: 8 | K5: 9 | L5: 10 | M5: 11 | N5: 12 | O5: Total | P5: I-Trim | Q5: II-Trim | R5: III-Trim | S5: IV-Trim | T5: I-Sem | U5: II-Sem
A6: =MID(B6,9,15) -> A1 | B6: Suma de A1 | C6: 1 | D6: 0 | E6: 2 | F6: 16 | G6: 14 | H6: 15 | I6: 6 | J6: 3 | K6: 0 | L6: 4 | M6: 2 | N6: 2 | O6: =SUM(C6:N6) -> 65 | P6: =SUM(C6:E6) -> 3 | Q6: =SUM(F6:H6) -> 45 | R6: =SUM(I6:K6) -> 9 | S6: =SUM(L6:N6) -> 8 | T6: =SUM(P6:Q6) -> 48 | U6: =SUM(R6:S6) -> 17
A7: =MID(B7,9,15) -> A2 | B7: Suma de A2 | C7: 0 | D7: 2 | E7: 0 | F7: 1 | G7: 0 | H7: 0 | I7: 0 | J7: 2 | K7: 2 | L7: 0 | M7: 0 | N7: 1 | O7: =SUM(C7:N7) -> 8 | P7: =SUM(C7:E7) -> 2 | Q7: =SUM(F7:H7) -> 1 | R7: =SUM(I7:K7) -> 4 | S7: =SUM(L7:N7) -> 1 | T7: =SUM(P7:Q7) -> 3 | U7: =SUM(R7:S7) -> 5
A8: A3 | B8: Suma de A3 | C8: 258 | D8: 324 | E8: 267 | F8: 241 | G8: 303 | H8: 386 | I8: 303 | J8: 367 | K8: 372 | L8: 299 | M8: 295 | N8: 143 | O8: 3558 | P8: 849 | Q8: 930 | R8: 1042 | S8: 737 | T8: 1779 | U8: 1779
A9: A4 | B9: Suma de A4 | C9: 1426 | D9: 1445 | E9: 1200 | F9: 1241 | G9: 1267 | H9: 1429 | I9: 1492 | J9: 1419 | K9: 1411 | L9: 1218 | M9: 1355 | N9: 742 | O9: 15645 | P9: 4071 | Q9: 3937 | R9: 4322 | S9: 3315 | T9: 8008 | U9: 7637
A10: A5 | B10: Suma de A5 | C10: 87 | D10: 74 | E10: 58 | F10: 54 | G10: 57 | H10: 80 | I10: 84 | J10: 74 | K10: 99 | L10: 80 | M10: 85 | N10: 68 | O10: 900 | P10: 219 | Q10: 191 | R10: 257 | S10: 233 | T10: 410 | U10: 490
A11: A6 | B11: Suma de A6 | C11: 283 | D11: 188 | E11: 208 | F11: 240 | G11: 306 | H11: 283 | I11: 336 | J11: 295 | K11: 415 | L11: 372 | M11: 424 | N11: 295 | O11: 3645 | P11: 679 | Q11: 829 | R11: 1046 | S11: 1091 | T11: 1508 | U11: 2137
A12: A7 | B12: Suma de A7 | C12: 114 | D12: 53 | E12: 72 | F12: 77 | G12: 84 | H12: 90 | I12: 106 | J12: 120 | K12: 139 | L12: 148 | M12: 169 | N12: 135 | O12: 1307 | P12: 239 | Q12: 251 | R12: 365 | S12: 452 | T12: 490 | U12: 817
A13: A8 | B13: Suma de A8 | C13: 281 | D13: 184 | E13: 262 | F13: 284 | G13: 306 | H13: 367 | I13: 437 | J13: 414 | K13: 473 | L13: 498 | M13: 578 | N13: 451 | O13: 4535 | P13: 727 | Q13: 957 | R13: 1324 | S13: 1527 | T13: 1684 | U13: 2851
A14: A9 | B14: Suma de A9 | C14: 13 | D14: 3 | E14: 0 | F14: 9 | G14: 20 | H14: 19 | I14: 15 | J14: 17 | K14: 20 | L14: 26 | M14: 24 | N14: 17 | O14: 183 | P14: 16 | Q14: 48 | R14: 52 | S14: 67 | T14: 64 | U14: 119
A15: A10 | B15: Suma de A10 | C15: 54 | D15: 22 | E15: 36 | F15: 50 | G15: 56 | H15: 65 | I15: 86 | J15: 68 | K15: 73 | L15: 99 | M15: 60 | N15: 59 | O15: 728 | P15: 112 | Q15: 171 | R15: 227 | S15: 218 | T15: 283 | U15: 445
A16: A11 | B16: Suma de A11 | C16: 185 | D16: 176 | E16: 155 | F16: 205 | G16: 190 | H16: 200 | I16: 193 | J16: 173 | K16: 191 | L16: 154 | M16: 148 | N16: 102 | O16: 2072 | P16: 516 | Q16: 595 | R16: 557 | S16: 404 | T16: 1111 | U16: 961
A17: A12 | B17: Suma de A12 | C17: 815 | D17: 830 | E17: 685 | F17: 798 | G17: 744 | H17: 825 | I17: 716 | J17: 707 | K17: 647 | L17: 565 | M17: 600 | N17: 405 | O17: 8337 | P17: 2330 | Q17: 2367 | R17: 2070 | S17: 1570 | T17: 4697 | U17: 3640
A18: A13 | B18: Suma de A13 | C18: 147 | D18: 130 | E18: 152 | F18: 160 | G18: 160 | H18: 163 | I18: 186 | J18: 183 | K18: 156 | L18: 149 | M18: 145 | N18: 109 | O18: 1840 | P18: 429 | Q18: 483 | R18: 525 | S18: 403 | T18: 912 | U18: 928
A19: A14 | B19: Suma de A14 | C19: 482 | D19: 510 | E19: 427 | F19: 567 | G19: 470 | H19: 455 | I19: 512 | J19: 495 | K19: 496 | L19: 448 | M19: 418 | N19: 279 | O19: 5559 | P19: 1419 | Q19: 1492 | R19: 1503 | S19: 1145 | T19: 2911 | U19: 2648
A20: A15 | B20: Suma de A15 | C20: 82 | D20: 66 | E20: 73 | F20: 97 | G20: 89 | H20: 88 | I20: 108 | J20: 132 | K20: 80 | L20: 85 | M20: 86 | N20: 75 | O20: 1061 | P20: 221 | Q20: 274 | R20: 320 | S20: 246 | T20: 495 | U20: 566
A21: A16 | B21: Suma de A16 | C21: 285 | D21: 260 | E21: 265 | F21: 325 | G21: 331 | H21: 299 | I21: 355 | J21: 362 | K21: 304 | L21: 290 | M21: 297 | N21: 257 | O21: 3630 | P21: 810 | Q21: 955 | R21: 1021 | S21: 844 | T21: 1765 | U21: 1865
A22: A17 | B22: Suma de A17 | C22: 157 | D22: 165 | E22: 174 | F22: 184 | G22: 183 | H22: 174 | I22: 193 | J22: 225 | K22: 226 | L22: 209 | M22: 174 | N22: 164 | O22: 2228 | P22: 496 | Q22: 541 | R22: 644 | S22: 547 | T22: 1037 | U22: 1191
A23: A18 | B23: Suma de A18 | C23: 582 | D23: 626 | E23: 545 | F23: 675 | G23: 617 | H23: 559 | I23: 614 | J23: 743 | K23: 661 | L23: 698 | M23: 638 | N23: 483 | O23: 7441 | P23: 1753 | Q23: 1851 | R23: 2018 | S23: 1819 | T23: 3604 | U23: 3837
A24: A19 | B24: Suma de A19 | C24: 91 | D24: 133 | E24: 115 | F24: 136 | G24: 103 | H24: 83 | I24: 72 | J24: 98 | K24: 105 | L24: 96 | M24: 89 | N24: 83 | O24: 1204 | P24: 339 | Q24: 322 | R24: 275 | S24: 268 | T24: 661 | U24: 543
A25: A20 | B25: Suma de A20 | C25: 935 | D25: 940 | E25: 903 | F25: 1066 | G25: 861 | H25: 789 | I25: 827 | J25: 768 | K25: 779 | L25: 757 | M25: 676 | N25: 660 | O25: 9961 | P25: 2778 | Q25: 2716 | R25: 2374 | S25: 2093 | T25: 5494 | U25: 4467
A26: A21 | B26: Suma de A21 | C26: 116 | D26: 175 | E26: 158 | F26: 153 | G26: 174 | H26: 195 | I26: 164 | J26: 214 | K26: 231 | L26: 202 | M26: 193 | N26: 99 | O26: 2074 | P26: 449 | Q26: 522 | R26: 609 | S26: 494 | T26: 971 | U26: 1103
A27: A22 | B27: Suma de A22 | C27: 428 | D27: 433 | E27: 398 | F27: 382 | G27: 575 | H27: 682 | I27: 729 | J27: 652 | K27: 661 | L27: 594 | M27: 657 | N27: 281 | O27: 6472 | P27: 1259 | Q27: 1639 | R27: 2042 | S27: 1532 | T27: 2898 | U27: 3574
A28: A23 | B28: Suma de A23 | C28: 50 | D28: 113 | E28: 42 | F28: 71 | G28: 152 | H28: 166 | I28: 172 | J28: 168 | K28: 178 | L28: 208 | M28: 161 | N28: 86 | O28: 1567 | P28: 205 | Q28: 389 | R28: 518 | S28: 455 | T28: 594 | U28: 973
A29: A24 | B29: Suma de A24 | C29: 229 | D29: 278 | E29: 182 | F29: 190 | G29: 511 | H29: 580 | I29: 628 | J29: 664 | K29: 724 | L29: 785 | M29: 714 | N29: 356 | O29: 5841 | P29: 689 | Q29: 1281 | R29: 2016 | S29: 1855 | T29: 1970 | U29: 3871
A30: A25 | B30: Suma de A25 | C30: 0 | D30: 0 | E30: 1 | F30: 0 | G30: 0 | H30: 0 | I30: 0 | J30: 0 | K30: 0 | L30: 0 | M30: 0 | N30: 0 | O30: 1 | P30: 1 | Q30: 0 | R30: 0 | S30: 0 | T30: 1 | U30: 0
A31: A26 | B31: Suma de A26 | C31: 0 | D31: 0 | E31: 0 | F31: 0 | G31: 0 | H31: 0 | I31: 0 | J31: 0 | K31: 0 | L31: 0 | M31: 0 | N31: 0 | O31: 0 | P31: 0 | Q31: 0 | R31: 0 | S31: 0 | T31: 0 | U31: 0
A32: A27 | B32: Suma de A27 | C32: 0 | D32: 0 | E32: 0 | F32: 0 | G32: 0 | H32: 0 | I32: 0 | J32: 1 | K32: 0 | L32: 0 | M32: 0 | N32: 0 | O32: 1 | P32: 0 | Q32: 0 | R32: 1 | S32: 0 | T32: 0 | U32: 1
A33: A28 | B33: Suma de A28 | C33: 0 | D33: 0 | E33: 0 | F33: 0 | G33: 0 | H33: 0 | I33: 0 | J33: 0 | K33: 0 | L33: 0 | M33: 0 | N33: 0 | O33: 0 | P33: 0 | Q33: 0 | R33: 0 | S33: 0 | T33: 0 | U33: 0
A34: A29 | B34: Suma de A29 | C34: 0 | D34: 1 | E34: 1 | F34: 0 | G34: 1 | H34: 0 | I34: 1 | J34: 1 | K34: 0 | L34: 0 | M34: 0 | N34: 0 | O34: 5 | P34: 2 | Q34: 1 | R34: 2 | S34: 0 | T34: 3 | U34: 2
A35: A30 | B35: Suma de A30 | C35: 1 | D35: 1 | E35: 1 | F35: 1 | G35: 0 | H35: 0 | I35: 1 | J35: 0 | K35: 0 | L35: 0 | M35: 0 | N35: 0 | O35: 5 | P35: 3 | Q35: 1 | R35: 1 | S35: 0 | T35: 4 | U35: 1
A36: A31 | B36: Suma de A31 | C36: 45 | D36: 61 | E36: 61 | F36: 49 | G36: 53 | H36: 57 | I36: 62 | J36: 63 | K36: 43 | L36: 31 | M36: 41 | N36: 26 | O36: 592 | P36: 167 | Q36: 159 | R36: 168 | S36: 98 | T36: 326 | U36: 266
A37: A32 | B37: Suma de A32 | C37: 241 | D37: 248 | E37: 211 | F37: 214 | G37: 238 | H37: 271 | I37: 231 | J37: 229 | K37: 210 | L37: 185 | M37: 189 | N37: 112 | O37: 2579 | P37: 700 | Q37: 723 | R37: 670 | S37: 486 | T37: 1423 | U37: 1156
A38: A33 | B38: Suma de A33 | C38: 44 | D38: 73 | E38: 55 | F38: 38 | G38: 48 | H38: 75 | I38: 65 | J38: 83 | K38: 54 | L38: 37 | M38: 56 | N38: 18 | O38: 646 | P38: 172 | Q38: 161 | R38: 202 | S38: 111 | T38: 333 | U38: 313
A39: A34 | B39: Suma de A34 | C39: 260 | D39: 229 | E39: 229 | F39: 220 | G39: 217 | H39: 246 | I39: 272 | J39: 274 | K39: 242 | L39: 208 | M39: 257 | N39: 139 | O39: 2793 | P39: 718 | Q39: 683 | R39: 788 | S39: 604 | T39: 1401 | U39: 1392
A40: A35 | B40: Suma de A35 | C40: 8 | D40: 13 | E40: 6 | F40: 9 | G40: 18 | H40: 12 | I40: 13 | J40: 12 | K40: 9 | L40: 12 | M40: 20 | N40: 4 | O40: 136 | P40: 27 | Q40: 39 | R40: 34 | S40: 36 | T40: 66 | U40: 70
A41: A36 | B41: Suma de A36 | C41: 38 | D41: 57 | E41: 43 | F41: 40 | G41: 49 | H41: 48 | I41: 63 | J41: 37 | K41: 39 | L41: 35 | M41: 70 | N41: 21 | O41: 540 | P41: 138 | Q41: 137 | R41: 139 | S41: 126 | T41: 275 | U41: 265
A42: A37 | B42: Suma de A37 | C42: 6 | D42: 8 | E42: 1 | F42: 11 | G42: 7 | H42: 9 | I42: 7 | J42: 4 | K42: 3 | L42: 8 | M42: 4 | N42: 6 | O42: 74 | P42: 15 | Q42: 27 | R42: 14 | S42: 18 | T42: 42 | U42: 32
A43: A38 | B43: Suma de A38 | C43: 27 | D43: 21 | E43: 29 | F43: 20 | G43: 19 | H43: 21 | I43: 22 | J43: 20 | K43: 21 | L43: 14 | M43: 33 | N43: 14 | O43: 261 | P43: 77 | Q43: 60 | R43: 63 | S43: 61 | T43: 137 | U43: 124
A44: A39 | B44: Suma de A39 | C44: 2 | D44: 1 | E44: 3 | F44: 2 | G44: 2 | H44: 4 | I44: 0 | J44: 4 | K44: 0 | L44: 2 | M44: 2 | N44: 0 | O44: 22 | P44: 6 | Q44: 8 | R44: 4 | S44: 4 | T44: 14 | U44: 8
A45: A40 | B45: Suma de A40 | C45: 10 | D45: 15 | E45: 20 | F45: 12 | G45: 9 | H45: 11 | I45: 14 | J45: 13 | K45: 13 | L45: 7 | M45: 15 | N45: 6 | O45: 145 | P45: 45 | Q45: 32 | R45: 40 | S45: 28 | T45: 77 | U45: 68
A46: A41 | B46: Suma de A41 | C46: 326 | D46: 355 | E46: 353 | F46: 340 | G46: 369 | H46: 428 | I46: 372 | J46: 375 | K46: 336 | L46: 293 | M46: 265 | N46: 156 | O46: 3968 | P46: 1034 | Q46: 1137 | R46: 1083 | S46: 714 | T46: 2171 | U46: 1797
A47: A42 | B47: Suma de A42 | C47: 1272 | D47: 1245 | E47: 1077 | F47: 1041 | G47: 1185 | H47: 1180 | I47: 1169 | J47: 1063 | K47: 1046 | L47: 845 | M47: 907 | N47: 399 | O47: 12429 | P47: 3594 | Q47: 3406 | R47: 3278 | S47: 2151 | T47: 7000 | U47: 5429
A48: A43 | B48: Suma de A43 | C48: 17 | D48: 17 | E48: 16 | F48: 8 | G48: 13 | H48: 11 | I48: 6 | J48: 15 | K48: 22 | L48: 11 | M48: 10 | N48: 4 | O48: 150 | P48: 50 | Q48: 32 | R48: 43 | S48: 25 | T48: 82 | U48: 68
A49: A44 | B49: Suma de A44 | C49: 133 | D49: 126 | E49: 138 | F49: 101 | G49: 95 | H49: 158 | I49: 141 | J49: 91 | K49: 185 | L49: 70 | M49: 135 | N49: 72 | O49: 1445 | P49: 397 | Q49: 354 | R49: 417 | S49: 277 | T49: 751 | U49: 694
A50: A45 | B50: Suma de A45 | C50: 143 | D50: 195 | E50: 197 | F50: 204 | G50: 192 | H50: 210 | I50: 198 | J50: 201 | K50: 177 | L50: 145 | M50: 128 | N50: 89 | O50: 2079 | P50: 535 | Q50: 606 | R50: 576 | S50: 362 | T50: 1141 | U50: 938
A51: A46 | B51: Suma de A46 | C51: 508 | D51: 559 | E51: 527 | F51: 580 | G51: 585 | H51: 563 | I51: 533 | J51: 537 | K51: 527 | L51: 451 | M51: 460 | N51: 215 | O51: 6045 | P51: 1594 | Q51: 1728 | R51: 1597 | S51: 1126 | T51: 3322 | U51: 2723
A52: A47 | B52: Suma de A47 | C52: 164 | D52: 150 | E52: 149 | F52: 128 | G52: 153 | H52: 197 | I52: 159 | J52: 158 | K52: 127 | L52: 128 | M52: 111 | N52: 50 | O52: 1674 | P52: 463 | Q52: 478 | R52: 444 | S52: 289 | T52: 941 | U52: 733
A53: A48 | B53: Suma de A48 | C53: 766 | D53: 681 | E53: 617 | F53: 495 | G53: 574 | H53: 686 | I53: 654 | J53: 484 | K53: 506 | L53: 391 | M53: 422 | N53: 191 | O53: 6467 | P53: 2064 | Q53: 1755 | R53: 1644 | S53: 1004 | T53: 3819 | U53: 2648
A54: A49 | B54: Suma de A49 | C54: 0 | D54: 4 | E54: 0 | F54: 0 | G54: 0 | H54: 0 | I54: 0 | J54: 1 | K54: 0 | L54: 1 | M54: 0 | N54: 0 | O54: 6 | P54: 4 | Q54: 0 | R54: 1 | S54: 1 | T54: 4 | U54: 2
A55: A50 | B55: Suma de A50 | C55: 3 | D55: 10 | E55: 0 | F55: 0 | G55: 0 | H55: 0 | I55: 1 | J55: 2 | K55: 2 | L55: 3 | M55: 0 | N55: 0 | O55: 21 | P55: 13 | Q55: 0 | R55: 5 | S55: 3 | T55: 13 | U55: 8
A56: A51 | B56: Suma de A51 | C56: 57 | D56: 70 | E56: 44 | F56: 69 | G56: 63 | H56: 76 | I56: 64 | J56: 52 | K56: 54 | L56: 61 | M56: 46 | N56: 38 | O56: 694 | P56: 171 | Q56: 208 | R56: 170 | S56: 145 | T56: 379 | U56: 315
A57: A52 | B57: Suma de A52 | C57: 96 | D57: 125 | E57: 77 | F57: 125 | G57: 136 | H57: 138 | I57: 138 | J57: 113 | K57: 92 | L57: 110 | M57: 79 | N57: 72 | O57: 1301 | P57: 298 | Q57: 399 | R57: 343 | S57: 261 | T57: 697 | U57: 604
A58: A53 | B58: Suma de A53 | C58: 1 | D58: 0 | E58: 0 | F58: 0 | G58: 0 | H58: 0 | I58: 0 | J58: 0 | K58: 0 | L58: 0 | M58: 0 | N58: 0 | O58: 1 | P58: 1 | Q58: 0 | R58: 0 | S58: 0 | T58: 1 | U58: 0
A59: A54 | B59: Suma de A54 | C59: 2 | D59: 1 | E59: 0 | F59: 0 | G59: 7 | H59: 1 | I59: 0 | J59: 0 | K59: 0 | L59: 0 | M59: 1 | N59: 0 | O59: 12 | P59: 3 | Q59: 8 | R59: 0 | S59: 1 | T59: 11 | U59: 1
A60: A55 | B60: Suma de A55 | C60: 0 | D60: 0 | E60: 0 | F60: 0 | G60: 0 | H60: 0 | I60: 1 | J60: 0 | K60: 0 | L60: 0 | M60: 0 | N60: 1 | O60: 2 | P60: 0 | Q60: 0 | R60: 1 | S60: 1 | T60: 0 | U60: 2
A61: A56 | B61: Suma de A56 | C61: 0 | D61: 0 | E61: 0 | F61: 0 | G61: 3 | H61: 0 | I61: 0 | J61: 1 | K61: 0 | L61: 0 | M61: 0 | N61: 2 | O61: 6 | P61: 0 | Q61: 3 | R61: 1 | S61: 2 | T61: 3 | U61: 3
A62: A57 | B62: Suma de A57 | C62: 7 | D62: 7 | E62: 10 | F62: 5 | G62: 4 | H62: 2 | I62: 4 | J62: 4 | K62: 4 | L62: 3 | M62: 6 | N62: 4 | O62: 60 | P62: 24 | Q62: 11 | R62: 12 | S62: 13 | T62: 35 | U62: 25
A63: A58 | B63: Suma de A58 | C63: 9 | D63: 12 | E63: 9 | F63: 10 | G63: 3 | H63: 9 | I63: 2 | J63: 6 | K63: 6 | L63: 8 | M63: 1 | N63: 8 | O63: 83 | P63: 30 | Q63: 22 | R63: 14 | S63: 17 | T63: 52 | U63: 31
A64: A59 | B64: Suma de A59 | C64: 58 | D64: 57 | E64: 44 | F64: 60 | G64: 73 | H64: 54 | I64: 54 | J64: 66 | K64: 55 | L64: 71 | M64: 57 | N64: 57 | O64: 706 | P64: 159 | Q64: 187 | R64: 175 | S64: 185 | T64: 346 | U64: 360
A65: A60 | B65: Suma de A60 | C65: 91 | D65: 99 | E65: 78 | F65: 105 | G65: 91 | H65: 117 | I65: 106 | J65: 114 | K65: 86 | L65: 107 | M65: 97 | N65: 68 | O65: 1159 | P65: 268 | Q65: 313 | R65: 306 | S65: 272 | T65: 581 | U65: 578
A66: A62 | B66: Suma de A62 | C66: 4 | D66: 2 | E66: 4 | F66: 1 | G66: 1 | H66: 2 | I66: 0 | J66: 2 | K66: 1 | L66: 4 | M66: 3 | N66: 4 | O66: 28 | P66: 10 | Q66: 4 | R66: 3 | S66: 11 | T66: 14 | U66: 14
A67: A63 | B67: Suma de A63 | C67: 20 | D67: 20 | E67: 13 | F67: 23 | G67: 19 | H67: 15 | I67: 17 | J67: 19 | K67: 11 | L67: 17 | M67: 9 | N67: 12 | O67: 195 | P67: 53 | Q67: 57 | R67: 47 | S67: 38 | T67: 110 | U67: 85
A68: A64 | B68: Suma de A64 | C68: 34 | D68: 52 | E68: 38 | F68: 45 | G68: 41 | H68: 21 | I68: 31 | J68: 23 | K68: 26 | L68: 30 | M68: 26 | N68: 21 | O68: 388 | P68: 124 | Q68: 107 | R68: 80 | S68: 77 | T68: 231 | U68: 157
A69: A65 | B69: Suma de A65 | C69: 1 | D69: 0 | E69: 0 | F69: 2 | G69: 7 | H69: 0 | I69: 0 | J69: 0 | K69: 2 | L69: 0 | M69: 2 | N69: 1 | O69: 15 | P69: 1 | Q69: 9 | R69: 2 | S69: 3 | T69: 10 | U69: 5
A70: A66 | B70: Suma de A66 | C70: 2 | D70: 1 | E70: 1 | F70: 5 | G70: 7 | H70: 6 | I70: 4 | J70: 3 | K70: 0 | L70: 6 | M70: 4 | N70: 1 | O70: 40 | P70: 4 | Q70: 18 | R70: 7 | S70: 11 | T70: 22 | U70: 18
A71: =MID(B71,9,15) -> A67 | B71: Suma de A67 | C71: 0 | D71: 1 | E71: 1 | F71: 2 | G71: 0 | H71: 1 | I71: 0 | J71: 1 | K71: 0 | L71: 1 | M71: 0 | N71: 2 | O71: =SUM(C71:N71) -> 9 | P71: =SUM(C71:E71) -> 2 | Q71: =SUM(F71:H71) -> 3 | R71: =SUM(I71:K71) -> 1 | S71: =SUM(L71:N71) -> 3 | T71: =SUM(P71:Q71) -> 5 | U71: =SUM(R71:S71) -> 4
A72: A68 | B72: Suma de A68 | C72: 1 | D72: 0 | E72: 1 | F72: 1 | G72: 1 | H72: 2 | I72: 0 | J72: 1 | K72: 0 | L72: 0 | M72: 0 | N72: 1 | O72: 8 | P72: 2 | Q72: 4 | R72: 1 | S72: 1 | T72: 6 | U72: 2
A73: A69 | B73: Suma de A69 | C73: 401 | D73: 382 | E73: 332 | F73: 364 | G73: 342 | H73: 278 | I73: 233 | J73: 331 | K73: 308 | L73: 354 | M73: 500 | N73: 178 | O73: 4003 | P73: 1115 | Q73: 984 | R73: 872 | S73: 1032 | T73: 2099 | U73: 1904
A74: A70 | B74: Suma de A70 | C74: 2564 | D74: 2317 | E74: 2023 | F74: 1795 | G74: 1619 | H74: 1567 | I74: 1708 | J74: 1740 | K74: 1787 | L74: 2121 | M74: 1846 | N74: 1407 | O74: 22494 | P74: 6904 | Q74: 4981 | R74: 5235 | S74: 5374 | T74: 11885 | U74: 10609
A75: A71 | B75: Suma de A71 | C75: 0 | D75: 13 | E75: 3 | F75: 1 | G75: 11 | H75: 5 | I75: 3 | J75: 3 | K75: 9 | L75: 21 | M75: 16 | N75: 5 | O75: 90 | P75: 16 | Q75: 17 | R75: 15 | S75: 42 | T75: 33 | U75: 57
A76: A72 | B76: Suma de A72 | C76: 130 | D76: 229 | E76: 201 | F76: 306 | G76: 311 | H76: 242 | I76: 214 | J76: 227 | K76: 188 | L76: 282 | M76: 232 | N76: 170 | O76: 2732 | P76: 560 | Q76: 859 | R76: 629 | S76: 684 | T76: 1419 | U76: 1313
A77: A73 | B77: Suma de A73 | C77: 117 | D77: 132 | E77: 68 | F77: 40 | G77: 55 | H77: 93 | I77: 69 | J77: 132 | K77: 80 | L77: 57 | M77: 106 | N77: 71 | O77: 1020 | P77: 317 | Q77: 188 | R77: 281 | S77: 234 | T77: 505 | U77: 515
A78: A74 | B78: Suma de A74 | C78: 1190 | D78: 947 | E78: 959 | F78: 894 | G78: 778 | H78: 745 | I78: 967 | J78: 807 | K78: 865 | L78: 895 | M78: 840 | N78: 677 | O78: 10564 | P78: 3096 | Q78: 2417 | R78: 2639 | S78: 2412 | T78: 5513 | U78: 5051
A79: A75 | B79: Suma de A75 | C79: 0 | D79: 1 | E79: 0 | F79: 0 | G79: 0 | H79: 0 | I79: 1 | J79: 0 | K79: 2 | L79: 26 | M79: 45 | N79: 19 | O79: 94 | P79: 1 | Q79: 0 | R79: 3 | S79: 90 | T79: 1 | U79: 93
A80: A76 | B80: Suma de A76 | C80: 22 | D80: 101 | E80: 51 | F80: 111 | G80: 125 | H80: 70 | I80: 111 | J80: 75 | K80: 54 | L80: 124 | M80: 76 | N80: 52 | O80: 972 | P80: 174 | Q80: 306 | R80: 240 | S80: 252 | T80: 480 | U80: 492
A81: A77 | B81: Suma de A77 | C81: 5 | D81: 15 | E81: 0 | F81: 1 | G81: 0 | H81: 0 | I81: 10 | J81: 1 | K81: 3 | L81: 4 | M81: 5 | N81: 4 | O81: 48 | P81: 20 | Q81: 1 | R81: 14 | S81: 13 | T81: 21 | U81: 27
A82: A78 | B82: Suma de A78 | C82: 15 | D82: 21 | E82: 11 | F82: 9 | G82: 1 | H82: 1 | I82: 24 | J82: 22 | K82: 14 | L82: 12 | M82: 12 | N82: 13 | O82: 155 | P82: 47 | Q82: 11 | R82: 60 | S82: 37 | T82: 58 | U82: 97
A83: A79 | B83: Suma de A79 | C83: 0 | D83: 0 | E83: 0 | F83: 0 | G83: 0 | H83: 0 | I83: 1 | J83: 0 | K83: 0 | L83: 0 | M83: 0 | N83: 0 | O83: 1 | P83: 0 | Q83: 0 | R83: 1 | S83: 0 | T83: 0 | U83: 1
A84: A80 | B84: Suma de A80 | C84: 0 | D84: 0 | E84: 0 | F84: 0 | G84: 0 | H84: 0 | I84: 0 | J84: 2 | K84: 0 | L84: 1 | M84: 0 | N84: 0 | O84: 3 | P84: 0 | Q84: 0 | R84: 2 | S84: 1 | T84: 0 | U84: 3
A85: A81 | B85: Suma de A81 | C85: 34 | D85: 34 | E85: 40 | F85: 21 | G85: 27 | H85: 22 | I85: 19 | J85: 31 | K85: 35 | L85: 34 | M85: 15 | N85: 13 | O85: 325 | P85: 108 | Q85: 70 | R85: 85 | S85: 62 | T85: 178 | U85: 147
A86: A82 | B86: Suma de A82 | C86: 30 | D86: 40 | E86: 26 | F86: 35 | G86: 34 | H86: 40 | I86: 30 | J86: 26 | K86: 25 | L86: 39 | M86: 31 | N86: 19 | O86: 375 | P86: 96 | Q86: 109 | R86: 81 | S86: 89 | T86: 205 | U86: 170
A87: A83 | B87: Suma de A83 | C87: 31 | D87: 28 | E87: 32 | F87: 16 | G87: 24 | H87: 20 | I87: 16 | J87: 18 | K87: 28 | L87: 30 | M87: 13 | N87: 10 | O87: 266 | P87: 91 | Q87: 60 | R87: 62 | S87: 53 | T87: 151 | U87: 115
A88: A84 | B88: Suma de A84 | C88: 1 | D88: 6 | E88: 1 | F88: 4 | G88: 2 | H88: 4 | I88: 3 | J88: 2 | K88: 0 | L88: 3 | M88: 3 | N88: 0 | O88: 29 | P88: 8 | Q88: 10 | R88: 5 | S88: 6 | T88: 18 | U88: 11
A89: A85 | B89: Suma de A85 | C89: 130 | D89: 182 | E89: 169 | F89: 176 | G89: 174 | H89: 180 | I89: 187 | J89: 166 | K89: 205 | L89: 199 | M89: 158 | N89: 134 | O89: 2060 | P89: 481 | Q89: 530 | R89: 558 | S89: 491 | T89: 1011 | U89: 1049
A90: A86 | B90: Suma de A86 | C90: 322 | D90: 312 | E90: 342 | F90: 337 | G90: 323 | H90: 348 | I90: 376 | J90: 401 | K90: 357 | L90: 416 | M90: 306 | N90: 324 | O90: 4164 | P90: 976 | Q90: 1008 | R90: 1134 | S90: 1046 | T90: 1984 | U90: 2180
A91: A87 | B91: Suma de A87 | C91: 128 | D91: 178 | E91: 163 | F91: 173 | G91: 164 | H91: 175 | I91: 176 | J91: 159 | K91: 199 | L91: 193 | M91: 148 | N91: 131 | O91: 1987 | P91: 469 | Q91: 512 | R91: 534 | S91: 472 | T91: 981 | U91: 1006
A92: A88 | B92: Suma de A88 | C92: 318 | D92: 309 | E92: 342 | F92: 335 | G92: 321 | H92: 345 | I92: 374 | J92: 399 | K92: 357 | L92: 413 | M92: 303 | N92: 321 | O92: 4137 | P92: 969 | Q92: 1001 | R92: 1130 | S92: 1037 | T92: 1970 | U92: 2167
A93: A89 | B93: Suma de A89 | C93: 541 | D93: 461 | E93: 420 | F93: 508 | G93: 423 | H93: 394 | I93: 473 | J93: 453 | K93: 452 | L93: 511 | M93: 371 | N93: 283 | O93: 5290 | P93: 1422 | Q93: 1325 | R93: 1378 | S93: 1165 | T93: 2747 | U93: 2543
A94: A90 | B94: Suma de A90 | C94: 1288 | D94: 958 | E94: 762 | F94: 1315 | G94: 1047 | H94: 896 | I94: 1366 | J94: 1070 | K94: 944 | L94: 1313 | M94: 1054 | N94: 955 | O94: 12968 | P94: 3008 | Q94: 3258 | R94: 3380 | S94: 3322 | T94: 6266 | U94: 6702
A95: A91 | B95: Suma de A91 | C95: 528 | D95: 455 | E95: 411 | F95: 489 | G95: 404 | H95: 385 | I95: 452 | J95: 443 | K95: 435 | L95: 493 | M95: 365 | N95: 273 | O95: 5133 | P95: 1394 | Q95: 1278 | R95: 1330 | S95: 1131 | T95: 2672 | U95: 2461
A96: A92 | B96: Suma de A92 | C96: 1269 | D96: 937 | E96: 757 | F96: 1302 | G96: 1035 | H96: 887 | I96: 1357 | J96: 1052 | K96: 925 | L96: 1295 | M96: 1020 | N96: 938 | O96: 12774 | P96: 2963 | Q96: 3224 | R96: 3334 | S96: 3253 | T96: 6187 | U96: 6587
A97: A93 | B97: Suma de A93 | C97: 497 | D97: 461 | E97: 437 | F97: 433 | G97: 441 | H97: 378 | I97: 434 | J97: 440 | K97: 474 | L97: 547 | M97: 393 | N97: 338 | O97: 5273 | P97: 1395 | Q97: 1252 | R97: 1348 | S97: 1278 | T97: 2647 | U97: 2626
A98: A94 | B98: Suma de A94 | C98: 1005 | D98: 1050 | E98: 1105 | F98: 1177 | G98: 1132 | H98: 1182 | I98: 1274 | J98: 1289 | K98: 1292 | L98: 1323 | M98: 1244 | N98: 1216 | O98: 14289 | P98: 3160 | Q98: 3491 | R98: 3855 | S98: 3783 | T98: 6651 | U98: 7638
A99: A95 | B99: Suma de A95 | C99: 483 | D99: 445 | E99: 423 | F99: 411 | G99: 417 | H99: 360 | I99: 406 | J99: 426 | K99: 459 | L99: 532 | M99: 379 | N99: 329 | O99: 5070 | P99: 1351 | Q99: 1188 | R99: 1291 | S99: 1240 | T99: 2539 | U99: 2531
A100: A96 | B100: Suma de A96 | C100: 993 | D100: 1037 | E100: 1089 | F100: 1164 | G100: 1121 | H100: 1171 | I100: 1258 | J100: 1270 | K100: 1286 | L100: 1305 | M100: 1221 | N100: 1191 | O100: 14106 | P100: 3119 | Q100: 3456 | R100: 3814 | S100: 3717 | T100: 6575 | U100: 7531
A101: A97 | B101: Suma de A97 | C101: 193 | D101: 191 | E101: 163 | F101: 198 | G101: 162 | H101: 171 | I101: 169 | J101: 237 | K101: 168 | L101: 191 | M101: 151 | N101: 98 | O101: 2092 | P101: 547 | Q101: 531 | R101: 574 | S101: 440 | T101: 1078 | U101: 1014
A102: A98 | B102: Suma de A98 | C102: 168 | D102: 187 | E102: 194 | F102: 189 | G102: 171 | H102: 189 | I102: 220 | J102: 231 | K102: 223 | L102: 230 | M102: 176 | N102: 156 | O102: 2334 | P102: 549 | Q102: 549 | R102: 674 | S102: 562 | T102: 1098 | U102: 1236
A103: A99 | B103: Suma de A99 | C103: 175 | D103: 172 | E103: 138 | F103: 172 | G103: 136 | H103: 146 | I103: 150 | J103: 198 | K103: 143 | L103: 165 | M103: 122 | N103: 85 | O103: 1802 | P103: 485 | Q103: 454 | R103: 491 | S103: 372 | T103: 939 | U103: 863
A104: A100 | B104: Suma de A100 | C104: 25 | D104: 32 | E104: 37 | F104: 30 | G104: 20 | H104: 33 | I104: 30 | J104: 47 | K104: 33 | L104: 40 | M104: 32 | N104: 23 | O104: 382 | P104: 94 | Q104: 83 | R104: 110 | S104: 95 | T104: 177 | U104: 205
A105: A101 | B105: Suma de A101 | C105: 1340 | D105: 1222 | E105: 1113 | F105: 1094 | G105: 1007 | H105: 758 | I105: 751 | J105: 896 | K105: 1134 | L105: 915 | M105: 1004 | N105: 693 | O105: 11927 | P105: 3675 | Q105: 2859 | R105: 2781 | S105: 2612 | T105: 6534 | U105: 5393
A106: A102 | B106: Suma de A102 | C106: 618 | D106: 675 | E106: 626 | F106: 653 | G106: 486 | H106: 719 | I106: 612 | J106: 533 | K106: 576 | L106: 851 | M106: 732 | N106: 345 | O106: 7426 | P106: 1919 | Q106: 1858 | R106: 1721 | S106: 1928 | T106: 3777 | U106: 3649
A107: A103 | B107: Suma de A103 | C107: 1282 | D107: 1176 | E107: 1083 | F107: 1068 | G107: 956 | H107: 736 | I107: 707 | J107: 873 | K107: 1124 | L107: 867 | M107: 974 | N107: 666 | O107: 11512 | P107: 3541 | Q107: 2760 | R107: 2704 | S107: 2507 | T107: 6301 | U107: 5211
A108: A104 | B108: Suma de A104 | C108: 611 | D108: 675 | E108: 624 | F108: 650 | G108: 484 | H108: 717 | I108: 609 | J108: 530 | K108: 575 | L108: 850 | M108: 726 | N108: 344 | O108: 7395 | P108: 1910 | Q108: 1851 | R108: 1714 | S108: 1920 | T108: 3761 | U108: 3634
A109: A105 | B109: Suma de A105 | C109: 11 | D109: 23 | E109: 8 | F109: 8 | G109: 8 | H109: 8 | I109: 25 | J109: 40 | K109: 51 | L109: 67 | M109: 5 | N109: 2 | O109: 256 | P109: 42 | Q109: 24 | R109: 116 | S109: 74 | T109: 66 | U109: 190
A110: A106 | B110: Suma de A106 | C110: 0 | D110: 3 | E110: 2 | F110: 4 | G110: 2 | H110: 4 | I110: 1 | J110: 1 | K110: 1 | L110: 8 | M110: 3 | N110: 2 | O110: 31 | P110: 5 | Q110: 10 | R110: 3 | S110: 13 | T110: 15 | U110: 16
A111: A107 | B111: Suma de A107 | C111: 10 | D111: 21 | E111: 8 | F111: 8 | G111: 8 | H111: 8 | I111: 22 | J111: 39 | K111: 51 | L111: 66 | M111: 5 | N111: 2 | O111: 248 | P111: 39 | Q111: 24 | R111: 112 | S111: 73 | T111: 63 | U111: 185
A112: A108 | B112: Suma de A108 | C112: 0 | D112: 3 | E112: 2 | F112: 4 | G112: 2 | H112: 4 | I112: 1 | J112: 1 | K112: 1 | L112: 8 | M112: 3 | N112: 2 | O112: 31 | P112: 5 | Q112: 10 | R112: 3 | S112: 13 | T112: 15 | U112: 16
A113: A109 | B113: Suma de A109 | C113: 8 | D113: 2 | E113: 10 | F113: 17 | G113: 9 | H113: 8 | I113: 12 | J113: 13 | K113: 13 | L113: 8 | M113: 8 | N113: 5 | O113: 113 | P113: 20 | Q113: 34 | R113: 38 | S113: 21 | T113: 54 | U113: 59
A114: A110 | B114: Suma de A110 | C114: 9 | D114: 7 | E114: 10 | F114: 27 | G114: 25 | H114: 16 | I114: 52 | J114: 31 | K114: 32 | L114: 17 | M114: 20 | N114: 7 | O114: 253 | P114: 26 | Q114: 68 | R114: 115 | S114: 44 | T114: 94 | U114: 159
A115: A111 | B115: Suma de A111 | C115: 0 | D115: 1 | E115: 0 | F115: 0 | G115: 0 | H115: 0 | I115: 0 | J115: 0 | K115: 1 | L115: 0 | M115: 0 | N115: 0 | O115: 2 | P115: 1 | Q115: 0 | R115: 1 | S115: 0 | T115: 1 | U115: 1
A116: A112 | B116: Suma de A112 | C116: 0 | D116: 0 | E116: 0 | F116: 0 | G116: 0 | H116: 0 | I116: 0 | J116: 0 | K116: 0 | L116: 0 | M116: 1 | N116: 1 | O116: 2 | P116: 0 | Q116: 0 | R116: 0 | S116: 2 | T116: 0 | U116: 2
A117: A113 | B117: Suma de A113 | C117: 18 | D117: 30 | E117: 31 | F117: 26 | G117: 29 | H117: 29 | I117: 23 | J117: 41 | K117: 21 | L117: 9 | M117: 11 | N117: 8 | O117: 276 | P117: 79 | Q117: 84 | R117: 85 | S117: 28 | T117: 163 | U117: 113
A118: A114 | B118: Suma de A114 | C118: 1 | D118: 1 | E118: 5 | F118: 3 | G118: 0 | H118: 1 | I118: 1 | J118: 1 | K118: 1 | L118: 0 | M118: 0 | N118: 1 | O118: 15 | P118: 7 | Q118: 4 | R118: 3 | S118: 1 | T118: 11 | U118: 4
A119: A115 | B119: Suma de A115 | C119: 0 | D119: 0 | E119: 2 | F119: 1 | G119: 0 | H119: 5 | I119: 3 | J119: 1 | K119: 1 | L119: 4 | M119: 1 | N119: 1 | O119: 19 | P119: 2 | Q119: 6 | R119: 5 | S119: 6 | T119: 8 | U119: 11
A120: A116 | B120: Suma de A116 | C120: 0 | D120: 0 | E120: 0 | F120: 0 | G120: 0 | H120: 0 | I120: 0 | J120: 0 | K120: 0 | L120: 0 | M120: 2 | N120: 0 | O120: 2 | P120: 0 | Q120: 0 | R120: 0 | S120: 2 | T120: 0 | U120: 2
A121: A117 | B121: Suma de A117 | C121: 25 | D121: 6 | E121: 11 | F121: 18 | G121: 13 | H121: 1 | I121: 13 | J121: 9 | K121: 10 | L121: 7 | M121: 9 | N121: 8 | O121: 130 | P121: 42 | Q121: 32 | R121: 32 | S121: 24 | T121: 74 | U121: 56
A122: A118 | B122: Suma de A118 | C122: 0 | D122: 0 | E122: 0 | F122: 0 | G122: 0 | H122: 1 | I122: 3 | J122: 1 | K122: 2 | L122: 3 | M122: 1 | N122: 1 | O122: 12 | P122: 0 | Q122: 1 | R122: 6 | S122: 5 | T122: 1 | U122: 11
A123: A119 | B123: Suma de A119 | C123: 0 | D123: 0 | E123: 0 | F123: 0 | G123: 0 | H123: 1 | I123: 3 | J123: 0 | K123: 0 | L123: 0 | M123: 0 | N123: 0 | O123: 4 | P123: 0 | Q123: 1 | R123: 3 | S123: 0 | T123: 1 | U123: 3
A124: A120 | B124: Suma de A120 | C124: 0 | D124: 0 | E124: 0 | F124: 0 | G124: 0 | H124: 0 | I124: 0 | J124: 0 | K124: 0 | L124: 0 | M124: 0 | N124: 0 | O124: 0 | P124: 0 | Q124: 0 | R124: 0 | S124: 0 | T124: 0 | U124: 0
A125: A121 | B125: Suma de A121 | C125: 1 | D125: 0 | E125: 1 | F125: 2 | G125: 1 | H125: 3 | I125: 6 | J125: 1 | K125: 3 | L125: 2 | M125: 0 | N125: 1 | O125: 21 | P125: 2 | Q125: 6 | R125: 10 | S125: 3 | T125: 8 | U125: 13
A126: A122 | B126: Suma de A122 | C126: 0 | D126: 0 | E126: 0 | F126: 2 | G126: 0 | H126: 1 | I126: 5 | J126: 0 | K126: 0 | L126: 0 | M126: 0 | N126: 1 | O126: 9 | P126: 0 | Q126: 3 | R126: 5 | S126: 1 | T126: 3 | U126: 6
A127: A123 | B127: Suma de A123 | C127: 4 | D127: 6 | E127: 11 | F127: 20 | G127: 34 | H127: 45 | I127: 73 | J127: 18 | K127: 23 | L127: 11 | M127: 4 | N127: 7 | O127: 256 | P127: 21 | Q127: 99 | R127: 114 | S127: 22 | T127: 120 | U127: 136
A128: A124 | B128: Suma de A124 | C128: 4 | D128: 5 | E128: 11 | F128: 19 | G128: 33 | H128: 40 | I128: 54 | J128: 18 | K128: 22 | L128: 9 | M128: 4 | N128: 7 | O128: 226 | P128: 20 | Q128: 92 | R128: 94 | S128: 20 | T128: 112 | U128: 114
A129: A125 | B129: Suma de A125 | C129: 144 | D129: 136 | E129: 109 | F129: 90 | G129: 102 | H129: 155 | I129: 166 | J129: 229 | K129: 158 | L129: 121 | M129: 109 | N129: 57 | O129: 1576 | P129: 389 | Q129: 347 | R129: 553 | S129: 287 | T129: 736 | U129: 840
A130: A126 | B130: Suma de A126 | C130: 3032 | D130: 3168 | E130: 2831 | F130: 2400 | G130: 2817 | H130: 3251 | I130: 2996 | J130: 2162 | K130: 1510 | L130: 1539 | M130: 1341 | N130: 917 | O130: 27964 | P130: 9031 | Q130: 8468 | R130: 6668 | S130: 3797 | T130: 17499 | U130: 10465
A131: A127 | B131: Suma de A127 | C131: 8 | D131: 5 | E131: 5 | F131: 5 | G131: 12 | H131: 27 | I131: 61 | J131: 59 | K131: 33 | L131: 26 | M131: 36 | N131: 30 | O131: 307 | P131: 18 | Q131: 44 | R131: 153 | S131: 92 | T131: 62 | U131: 245
A132: A128 | B132: Suma de A128 | C132: 1609 | D132: 1098 | E132: 1204 | F132: 1346 | G132: 1667 | H132: 1733 | I132: 1449 | J132: 1835 | K132: 1286 | L132: 1124 | M132: 1220 | N132: 631 | O132: 16202 | P132: 3911 | Q132: 4746 | R132: 4570 | S132: 2975 | T132: 8657 | U132: 7545
A133: A129 | B133: Suma de A129 | C133: 257 | D133: 218 | E133: 223 | F133: 252 | G133: 229 | H133: 224 | I133: 237 | J133: 223 | K133: 223 | L133: 149 | M133: 174 | N133: 103 | O133: 2512 | P133: 698 | Q133: 705 | R133: 683 | S133: 426 | T133: 1403 | U133: 1109
A134: A130 | B134: Suma de A130 | C134: 1126 | D134: 950 | E134: 801 | F134: 914 | G134: 803 | H134: 811 | I134: 818 | J134: 761 | K134: 651 | L134: 494 | M134: 558 | N134: 330 | O134: 9017 | P134: 2877 | Q134: 2528 | R134: 2230 | S134: 1382 | T134: 5405 | U134: 3612
A135: =MID(B135,9,15) -> A131 | B135: Suma de A131 | C135: 257 | D135: 218 | E135: 223 | F135: 252 | G135: 229 | H135: 224 | I135: 237 | J135: 223 | K135: 223 | L135: 149 | M135: 174 | N135: 103 | O135: =SUM(C135:N135) -> 2512 | P135: =SUM(C135:E135) -> 698 | Q135: =SUM(F135:H135) -> 705 | R135: =SUM(I135:K135) -> 683 | S135: =SUM(L135:N135) -> 426 | T135: =SUM(P135:Q135) -> 1403 | U135: =SUM(R135:S135) -> 1109
A136: A132 | B136: Suma de A132 | C136: 1126 | D136: 950 | E136: 801 | F136: 914 | G136: 803 | H136: 811 | I136: 818 | J136: 761 | K136: 651 | L136: 494 | M136: 558 | N136: 330 | O136: 9017 | P136: 2877 | Q136: 2528 | R136: 2230 | S136: 1382 | T136: 5405 | U136: 3612
A137: A134 | B137: Suma de A134 | C137: 104 | D137: 99 | E137: 60 | F137: 74 | G137: 61 | H137: 59 | I137: 64 | J137: 62 | K137: 65 | L137: 52 | M137: 66 | N137: 50 | O137: 816 | P137: 263 | Q137: 194 | R137: 191 | S137: 168 | T137: 457 | U137: 359
A138: A136 | B138: Suma de A136 | C138: 104 | D138: 99 | E138: 60 | F138: 74 | G138: 61 | H138: 59 | I138: 64 | J138: 62 | K138: 65 | L138: 52 | M138: 66 | N138: 50 | O138: 816 | P138: 263 | Q138: 194 | R138: 191 | S138: 168 | T138: 457 | U138: 359
A139: A142 | B139: Suma de A142 | C139: 95 | D139: 99 | E139: 63 | F139: 76 | G139: 67 | H139: 62 | I139: 73 | J139: 70 | K139: 75 | L139: 65 | M139: 77 | N139: 55 | O139: 877 | P139: 257 | Q139: 205 | R139: 218 | S139: 197 | T139: 462 | U139: 415
A140: A144 | B140: Suma de A144 | C140: 18 | D140: 25 | E140: 28 | F140: 28 | G140: 22 | H140: 39 | I140: 45 | J140: 20 | K140: 34 | L140: 30 | M140: 34 | N140: 37 | O140: 360 | P140: 71 | Q140: 89 | R140: 99 | S140: 101 | T140: 160 | U140: 200
A141: A150 | B141: Suma de A150 | C141: 95 | D141: 99 | E141: 66 | F141: 78 | G141: 65 | H141: 61 | I141: 74 | J141: 69 | K141: 75 | L141: 65 | M141: 74 | N141: 56 | O141: 877 | P141: 260 | Q141: 204 | R141: 218 | S141: 195 | T141: 464 | U141: 413
A142: A152 | B142: Suma de A152 | C142: 20 | D142: 26 | E142: 29 | F142: 29 | G142: 22 | H142: 38 | I142: 45 | J142: 19 | K142: 33 | L142: 30 | M142: 35 | N142: 38 | O142: 364 | P142: 75 | Q142: 89 | R142: 97 | S142: 103 | T142: 164 | U142: 200
A143: A158 | B143: Suma de A158 | C143: 63 | D143: 68 | E143: 42 | F143: 49 | G143: 54 | H143: 46 | I143: 46 | J143: 42 | K143: 46 | L143: 50 | M143: 49 | N143: 45 | O143: 600 | P143: 173 | Q143: 149 | R143: 134 | S143: 144 | T143: 322 | U143: 278
A144: A160 | B144: Suma de A160 | C144: 18 | D144: 22 | E144: 20 | F144: 21 | G144: 21 | H144: 35 | I144: 37 | J144: 19 | K144: 23 | L144: 23 | M144: 32 | N144: 37 | O144: 308 | P144: 60 | Q144: 77 | R144: 79 | S144: 92 | T144: 137 | U144: 171
A145: A166 | B145: Suma de A166 | C145: 20 | D145: 10 | E145: 13 | F145: 11 | G145: 13 | H145: 8 | I145: 10 | J145: 8 | K145: 11 | L145: 10 | M145: 12 | N145: 5 | O145: 131 | P145: 43 | Q145: 32 | R145: 29 | S145: 27 | T145: 75 | U145: 56
A146: A168 | B146: Suma de A168 | C146: 20 | D146: 10 | E146: 13 | F146: 11 | G146: 13 | H146: 8 | I146: 10 | J146: 8 | K146: 11 | L146: 10 | M146: 12 | N146: 5 | O146: 131 | P146: 43 | Q146: 32 | R146: 29 | S146: 27 | T146: 75 | U146: 56
A147: A174 | B147: Suma de A174 | C147: 20 | D147: 10 | E147: 13 | F147: 11 | G147: 13 | H147: 8 | I147: 10 | J147: 8 | K147: 11 | L147: 10 | M147: 12 | N147: 5 | O147: 131 | P147: 43 | Q147: 32 | R147: 29 | S147: 27 | T147: 75 | U147: 56
A148: A176 | B148: Suma de A176 | C148: 20 | D148: 10 | E148: 13 | F148: 11 | G148: 13 | H148: 8 | I148: 10 | J148: 8 | K148: 11 | L148: 10 | M148: 12 | N148: 5 | O148: 131 | P148: 43 | Q148: 32 | R148: 29 | S148: 27 | T148: 75 | U148: 56
A149: A182 | B149: Suma de A182 | C149: 1 | D149: 0 | E149: 6 | F149: 1 | G149: 2 | H149: 3 | I149: 1 | J149: 2 | K149: 1 | L149: 3 | M149: 1 | N149: 4 | O149: 25 | P149: 7 | Q149: 6 | R149: 4 | S149: 8 | T149: 13 | U149: 12
A150: A184 | B150: Suma de A184 | C150: 0 | D150: 0 | E150: 0 | F150: 0 | G150: 0 | H150: 0 | I150: 0 | J150: 0 | K150: 0 | L150: 1 | M150: 2 | N150: 0 | O150: 3 | P150: 0 | Q150: 0 | R150: 0 | S150: 3 | T150: 0 | U150: 3
A151: A185 | B151: Suma de A185 | C151: 341 | D151: 358 | E151: 363 | F151: 284 | G151: 235 | H151: 368 | I151: 305 | J151: 282 | K151: 259 | L151: 251 | M151: 399 | N151: 190 | O151: 3635 | P151: 1062 | Q151: 887 | R151: 846 | S151: 840 | T151: 1949 | U151: 1686
A152: A186 | B152: Suma de A186 | C152: 117 | D152: 34 | E152: 20 | F152: 34 | G152: 13 | H152: 11 | I152: 10 | J152: 11 | K152: 15 | L152: 7 | M152: 8 | N152: 4 | O152: 284 | P152: 171 | Q152: 58 | R152: 36 | S152: 19 | T152: 229 | U152: 55
A153: A187 | B153: Suma de A187 | C153: 0 | D153: 0 | E153: 0 | F153: 0 | G153: 0 | H153: 0 | I153: 0 | J153: 0 | K153: 0 | L153: 0 | M153: 0 | N153: 0 | O153: 0 | P153: 0 | Q153: 0 | R153: 0 | S153: 0 | T153: 0 | U153: 0
A154: A188 | B154: Suma de A188 | C154: 0 | D154: 0 | E154: 0 | F154: 0 | G154: 0 | H154: 0 | I154: 0 | J154: 0 | K154: 0 | L154: 0 | M154: 0 | N154: 0 | O154: 0 | P154: 0 | Q154: 0 | R154: 0 | S154: 0 | T154: 0 | U154: 0
A155: A189 | B155: Suma de A189 | C155: 0 | D155: 0 | E155: 0 | F155: 0 | G155: 0 | H155: 0 | I155: 0 | J155: 0 | K155: 0 | L155: 0 | M155: 0 | N155: 0 | O155: 0 | P155: 0 | Q155: 0 | R155: 0 | S155: 0 | T155: 0 | U155: 0
A156: A190 | B156: Suma de A190 | C156: 0 | D156: 0 | E156: 0 | F156: 0 | G156: 0 | H156: 0 | I156: 0 | J156: 0 | K156: 0 | L156: 0 | M156: 0 | N156: 0 | O156: 0 | P156: 0 | Q156: 0 | R156: 0 | S156: 0 | T156: 0 | U156: 0
A157: A191 | B157: Suma de A191 | C157: 112 | D157: 130 | E157: 111 | F157: 118 | G157: 93 | H157: 158 | I157: 130 | J157: 127 | K157: 143 | L157: 108 | M157: 139 | N157: 93 | O157: 1462 | P157: 353 | Q157: 369 | R157: 400 | S157: 340 | T157: 722 | U157: 740
A158: A192 | B158: Suma de A192 | C158: 283 | D158: 333 | E158: 264 | F158: 247 | G158: 299 | H158: 380 | I158: 474 | J158: 401 | K158: 427 | L158: 313 | M158: 315 | N158: 256 | O158: 3992 | P158: 880 | Q158: 926 | R158: 1302 | S158: 884 | T158: 1806 | U158: 2186
A159: A193 | B159: Suma de A193 | C159: 138 | D159: 128 | E159: 123 | F159: 108 | G159: 104 | H159: 114 | I159: 152 | J159: 118 | K159: 127 | L159: 117 | M159: 97 | N159: 103 | O159: 1429 | P159: 389 | Q159: 326 | R159: 397 | S159: 317 | T159: 715 | U159: 714
A160: A194 | B160: Suma de A194 | C160: 639 | D160: 703 | E160: 515 | F160: 544 | G160: 538 | H160: 581 | I160: 784 | J160: 604 | K160: 594 | L160: 507 | M160: 461 | N160: 523 | O160: 6993 | P160: 1857 | Q160: 1663 | R160: 1982 | S160: 1491 | T160: 3520 | U160: 3473
A161: A195 | B161: Suma de A195 | C161: 22 | D161: 16 | E161: 19 | F161: 35 | G161: 16 | H161: 20 | I161: 19 | J161: 27 | K161: 31 | L161: 30 | M161: 35 | N161: 31 | O161: 301 | P161: 57 | Q161: 71 | R161: 77 | S161: 96 | T161: 128 | U161: 173
A162: A196 | B162: Suma de A196 | C162: 120 | D162: 126 | E162: 130 | F162: 113 | G162: 98 | H162: 97 | I162: 131 | J162: 120 | K162: 93 | L162: 88 | M162: 94 | N162: 75 | O162: 1285 | P162: 376 | Q162: 308 | R162: 344 | S162: 257 | T162: 684 | U162: 601
A163: A197 | B163: Suma de A197 | C163: 0 | D163: 0 | E163: 1 | F163: 0 | G163: 1 | H163: 1 | I163: 1 | J163: 0 | K163: 0 | L163: 0 | M163: 0 | N163: 1 | O163: 5 | P163: 1 | Q163: 2 | R163: 1 | S163: 1 | T163: 3 | U163: 2
A164: A198 | B164: Suma de A198 | C164: 0 | D164: 0 | E164: 0 | F164: 0 | G164: 0 | H164: 0 | I164: 0 | J164: 0 | K164: 0 | L164: 0 | M164: 0 | N164: 0 | O164: 0 | P164: 0 | Q164: 0 | R164: 0 | S164: 0 | T164: 0 | U164: 0
A165: A199 | B165: Suma de A199 | C165: 13 | D165: 15 | E165: 6 | F165: 9 | G165: 19 | H165: 22 | I165: 24 | J165: 6 | K165: 11 | L165: 5 | M165: 6 | N165: 2 | O165: 138 | P165: 34 | Q165: 50 | R165: 41 | S165: 13 | T165: 84 | U165: 54
A166: A200 | B166: Suma de A200 | C166: 8 | D166: 5 | E166: 4 | F166: 4 | G166: 8 | H166: 7 | I166: 19 | J166: 37 | K166: 7 | L166: 6 | M166: 1 | N166: 2 | O166: 108 | P166: 17 | Q166: 19 | R166: 63 | S166: 9 | T166: 36 | U166: 72
A167: A201 | B167: Suma de A201 | C167: 0 | D167: 0 | E167: 0 | F167: 0 | G167: 0 | H167: 0 | I167: 1 | J167: 3 | K167: 2 | L167: 1 | M167: 1 | N167: 1 | O167: 9 | P167: 0 | Q167: 0 | R167: 6 | S167: 3 | T167: 0 | U167: 9
A168: A202 | B168: Suma de A202 | C168: 0 | D168: 0 | E168: 1 | F168: 0 | G168: 0 | H168: 0 | I168: 0 | J168: 0 | K168: 0 | L168: 0 | M168: 2 | N168: 0 | O168: 3 | P168: 1 | Q168: 0 | R168: 0 | S168: 2 | T168: 1 | U168: 2
A169: A203 | B169: Suma de A203 | C169: 73 | D169: 71 | E169: 63 | F169: 49 | G169: 58 | H169: 64 | I169: 42 | J169: 66 | K169: 43 | L169: 58 | M169: 62 | N169: 41 | O169: 690 | P169: 207 | Q169: 171 | R169: 151 | S169: 161 | T169: 378 | U169: 312
A170: A204 | B170: Suma de A204 | C170: 287 | D170: 309 | E170: 255 | F170: 294 | G170: 253 | H170: 311 | I170: 287 | J170: 231 | K170: 176 | L170: 263 | M170: 264 | N170: 191 | O170: 3121 | P170: 851 | Q170: 858 | R170: 694 | S170: 718 | T170: 1709 | U170: 1412
A171: A205 | B171: Suma de A205 | C171: 40 | D171: 42 | E171: 36 | F171: 26 | G171: 40 | H171: 37 | I171: 23 | J171: 32 | K171: 26 | L171: 32 | M171: 48 | N171: 25 | O171: 407 | P171: 118 | Q171: 103 | R171: 81 | S171: 105 | T171: 221 | U171: 186
A172: A206 | B172: Suma de A206 | C172: 128 | D172: 118 | E172: 127 | F172: 136 | G172: 118 | H172: 182 | I172: 126 | J172: 84 | K172: 51 | L172: 146 | M172: 167 | N172: 117 | O172: 1500 | P172: 373 | Q172: 436 | R172: 261 | S172: 430 | T172: 809 | U172: 691
A173: A207 | B173: Suma de A207 | C173: 0 | D173: 0 | E173: 0 | F173: 0 | G173: 0 | H173: 0 | I173: 0 | J173: 0 | K173: 0 | L173: 0 | M173: 0 | N173: 0 | O173: 0 | P173: 0 | Q173: 0 | R173: 0 | S173: 0 | T173: 0 | U173: 0
A174: A208 | B174: Suma de A208 | C174: 0 | D174: 0 | E174: 0 | F174: 0 | G174: 0 | H174: 0 | I174: 0 | J174: 0 | K174: 0 | L174: 0 | M174: 0 | N174: 0 | O174: 0 | P174: 0 | Q174: 0 | R174: 0 | S174: 0 | T174: 0 | U174: 0
A175: A209 | B175: Suma de A209 | C175: 325 | D175: 502 | E175: 373 | F175: 361 | G175: 372 | H175: 388 | I175: 319 | J175: 221 | K175: 154 | L175: 157 | M175: 135 | N175: 107 | O175: 3414 | P175: 1200 | Q175: 1121 | R175: 694 | S175: 399 | T175: 2321 | U175: 1093
A176: A210 | B176: Suma de A210 | C176: 705 | D176: 985 | E176: 862 | F176: 767 | G176: 852 | H176: 849 | I176: 784 | J176: 585 | K176: 469 | L176: 355 | M176: 400 | N176: 246 | O176: 7859 | P176: 2552 | Q176: 2468 | R176: 1838 | S176: 1001 | T176: 5020 | U176: 2839
A177: A211 | B177: Suma de A211 | C177: 442 | D177: 565 | E177: 480 | F177: 470 | G177: 400 | H177: 367 | I177: 276 | J177: 214 | K177: 209 | L177: 251 | M177: 167 | N177: 107 | O177: 3948 | P177: 1487 | Q177: 1237 | R177: 699 | S177: 525 | T177: 2724 | U177: 1224
A178: A212 | B178: Suma de A212 | C178: 373 | D178: 296 | E178: 284 | F178: 206 | G178: 197 | H178: 187 | I178: 221 | J178: 177 | K178: 165 | L178: 165 | M178: 142 | N178: 98 | O178: 2511 | P178: 953 | Q178: 590 | R178: 563 | S178: 405 | T178: 1543 | U178: 968
A179: A213 | B179: Suma de A213 | C179: 0 | D179: 0 | E179: 0 | F179: 0 | G179: 0 | H179: 1 | I179: 0 | J179: 1 | K179: 0 | L179: 4 | M179: 0 | N179: 0 | O179: 6 | P179: 0 | Q179: 1 | R179: 1 | S179: 4 | T179: 1 | U179: 5
A180: A214 | B180: Suma de A214 | C180: 0 | D180: 0 | E180: 0 | F180: 0 | G180: 0 | H180: 0 | I180: 0 | J180: 0 | K180: 0 | L180: 1 | M180: 0 | N180: 0 | O180: 1 | P180: 0 | Q180: 0 | R180: 0 | S180: 1 | T180: 0 | U180: 1
A181: A215 | B181: Suma de A215 | C181: 231 | D181: 185 | E181: 158 | F181: 149 | G181: 150 | H181: 156 | I181: 164 | J181: 205 | K181: 197 | L181: 167 | M181: 147 | N181: 98 | O181: 2007 | P181: 574 | Q181: 455 | R181: 566 | S181: 412 | T181: 1029 | U181: 978
A182: A216 | B182: Suma de A216 | C182: 76 | D182: 66 | E182: 46 | F182: 47 | G182: 37 | H182: 57 | I182: 40 | J182: 51 | K182: 43 | L182: 50 | M182: 59 | N182: 43 | O182: 615 | P182: 188 | Q182: 141 | R182: 134 | S182: 152 | T182: 329 | U182: 286
A183: A217 | B183: Suma de A217 | C183: 33 | D183: 13 | E183: 14 | F183: 18 | G183: 20 | H183: 22 | I183: 14 | J183: 16 | K183: 15 | L183: 11 | M183: 13 | N183: 9 | O183: 198 | P183: 60 | Q183: 60 | R183: 45 | S183: 33 | T183: 120 | U183: 78
A184: A218 | B184: Suma de A218 | C184: 163 | D184: 195 | E184: 213 | F184: 165 | G184: 185 | H184: 221 | I184: 222 | J184: 204 | K184: 142 | L184: 156 | M184: 160 | N184: 165 | O184: 2191 | P184: 571 | Q184: 571 | R184: 568 | S184: 481 | T184: 1142 | U184: 1049
A185: A219 | B185: Suma de A219 | C185: 0 | D185: 0 | E185: 0 | F185: 0 | G185: 0 | H185: 0 | I185: 0 | J185: 0 | K185: 0 | L185: 0 | M185: 0 | N185: 0 | O185: 0 | P185: 0 | Q185: 0 | R185: 0 | S185: 0 | T185: 0 | U185: 0
A186: A220 | B186: Suma de A220 | C186: 16 | D186: 10 | E186: 2 | F186: 9 | G186: 8 | H186: 8 | I186: 6 | J186: 5 | K186: 11 | L186: 17 | M186: 9 | N186: 14 | O186: 115 | P186: 28 | Q186: 25 | R186: 22 | S186: 40 | T186: 53 | U186: 62
A187: A221 | B187: Suma de A221 | C187: 20 | D187: 21 | E187: 19 | F187: 10 | G187: 14 | H187: 22 | I187: 15 | J187: 26 | K187: 13 | L187: 24 | M187: 7 | N187: 16 | O187: 207 | P187: 60 | Q187: 46 | R187: 54 | S187: 47 | T187: 106 | U187: 101
A188: A222 | B188: Suma de A222 | C188: 9 | D188: 9 | E188: 19 | F188: 21 | G188: 7 | H188: 11 | I188: 11 | J188: 12 | K188: 11 | L188: 12 | M188: 1 | N188: 8 | O188: 131 | P188: 37 | Q188: 39 | R188: 34 | S188: 21 | T188: 76 | U188: 55
A189: A223 | B189: Suma de A223 | C189: 0 | D189: 0 | E189: 0 | F189: 0 | G189: 1 | H189: 0 | I189: 1 | J189: 0 | K189: 0 | L189: 0 | M189: 0 | N189: 0 | O189: 2 | P189: 0 | Q189: 1 | R189: 1 | S189: 0 | T189: 1 | U189: 1
A190: A224 | B190: Suma de A224 | C190: 8 | D190: 0 | E190: 0 | F190: 0 | G190: 0 | H190: 0 | I190: 12 | J190: 3 | K190: 5 | L190: 0 | M190: 1 | N190: 1 | O190: 30 | P190: 8 | Q190: 0 | R190: 20 | S190: 2 | T190: 8 | U190: 22
A191: A225 | B191: Suma de A225 | C191: 0 | D191: 0 | E191: 0 | F191: 0 | G191: 0 | H191: 0 | I191: 0 | J191: 0 | K191: 0 | L191: 0 | M191: 0 | N191: 0 | O191: 0 | P191: 0 | Q191: 0 | R191: 0 | S191: 0 | T191: 0 | U191: 0
A192: A226 | B192: Suma de A226 | C192: 229 | D192: 205 | E192: 181 | F192: 159 | G192: 131 | H192: 143 | I192: 192 | J192: 119 | K192: 91 | L192: 196 | M192: 139 | N192: 46 | O192: 1831 | P192: 615 | Q192: 433 | R192: 402 | S192: 381 | T192: 1048 | U192: 783
A193: A227 | B193: Suma de A227 | C193: 635 | D193: 603 | E193: 455 | F193: 497 | G193: 502 | H193: 509 | I193: 528 | J193: 517 | K193: 580 | L193: 605 | M193: 430 | N193: 319 | O193: 6180 | P193: 1693 | Q193: 1508 | R193: 1625 | S193: 1354 | T193: 3201 | U193: 2979
A194: A228 | B194: Suma de A228 | C194: 109 | D194: 165 | E194: 167 | F194: 157 | G194: 112 | H194: 107 | I194: 181 | J194: 204 | K194: 243 | L194: 194 | M194: 162 | N194: 177 | O194: 1978 | P194: 441 | Q194: 376 | R194: 628 | S194: 533 | T194: 817 | U194: 1161
A195: A229 | B195: Suma de A229 | C195: 296 | D195: 297 | E195: 296 | F195: 325 | G195: 302 | H195: 302 | I195: 303 | J195: 301 | K195: 239 | L195: 235 | M195: 227 | N195: 229 | O195: 3352 | P195: 889 | Q195: 929 | R195: 843 | S195: 691 | T195: 1818 | U195: 1534
A196: A230 | B196: Suma de A230 | C196: 1457 | D196: 1810 | E196: 1477 | F196: 1507 | G196: 1260 | H196: 1090 | I196: 1158 | J196: 1067 | K196: 1133 | L196: 1098 | M196: 888 | N196: 690 | O196: 14635 | P196: 4744 | Q196: 3857 | R196: 3358 | S196: 2676 | T196: 8601 | U196: 6034
A197: A231 | B197: Suma de A231 | C197: 1548 | D197: 1225 | E197: 1118 | F197: 1086 | G197: 1054 | H197: 1037 | I197: 1162 | J197: 1074 | K197: 990 | L197: 1062 | M197: 867 | N197: 701 | O197: 12924 | P197: 3891 | Q197: 3177 | R197: 3226 | S197: 2630 | T197: 7068 | U197: 5856
A198: A232 | B198: Suma de A232 | C198: 6 | D198: 13 | E198: 7 | F198: 5 | G198: 7 | H198: 5 | I198: 8 | J198: 6 | K198: 4 | L198: 3 | M198: 7 | N198: 2 | O198: 73 | P198: 26 | Q198: 17 | R198: 18 | S198: 12 | T198: 43 | U198: 30
A199: =MID(B199,9,15) -> A233 | B199: Suma de A233 | C199: 31 | D199: 47 | E199: 43 | F199: 40 | G199: 54 | H199: 61 | I199: 53 | J199: 52 | K199: 40 | L199: 46 | M199: 37 | N199: 32 | O199: =SUM(C199:N199) -> 536 | P199: =SUM(C199:E199) -> 121 | Q199: =SUM(F199:H199) -> 155 | R199: =SUM(I199:K199) -> 145 | S199: =SUM(L199:N199) -> 115 | T199: =SUM(P199:Q199) -> 276 | U199: =SUM(R199:S199) -> 260
A200: A234 | B200: Suma de A234 | C200: 1403 | D200: 1764 | E200: 1405 | F200: 1452 | G200: 1198 | H200: 1024 | I200: 1101 | J200: 995 | K200: 1045 | L200: 1027 | M200: 824 | N200: 614 | O200: 13852 | P200: 4572 | Q200: 3674 | R200: 3141 | S200: 2465 | T200: 8246 | U200: 5606
A201: A235 | B201: Suma de A235 | C201: 1515 | D201: 1216 | E201: 1113 | F201: 1079 | G201: 1041 | H201: 1025 | I201: 1147 | J201: 1048 | K201: 980 | L201: 1055 | M201: 841 | N201: 680 | O201: 12740 | P201: 3844 | Q201: 3145 | R201: 3175 | S201: 2576 | T201: 6989 | U201: 5751
... 90 more rows

Sheet DATA2019
A1: SUBREGION | B1: PROVINCIA | C1: UBIGUEO_ESTABLECIMIENTO | D1: RENAES | E1: IPRESS | F1: DISTRITO | G1: CLAS | H1: MICRORED | I1: RED | J1: EJECUTORA | K1: Mes | L1: A1 | M1: A2 | N1: A3 | O1: A4 | P1: A5 | Q1: A6 | R1: A7 | S1: A8 | T1: A9 | U1: A10 | V1: A11 | W1: A12 | X1: A13 | Y1: A14 | Z1: A15 | AA1: A16 | AB1: A17 | AC1: A18 | AD1: A19 | AE1: A20 | AF1: A21 | AG1: A22 | AH1: A23 | AI1: A24 | AJ1: A25 | AK1: A26 | AL1: A27 | AM1: A28 | AN1: A29 | AO1: A30 | AP1: A31 | AQ1: A32 | AR1: A33 | AS1: A34 | AT1: A35 | AU1: A36 | AV1: A37 | AW1: A38 | AX1: A39 | AY1: A40 | AZ1: A41 | BA1: A42 | BB1: A43 | BC1: A44 | BD1: A45 | BE1: A46 | BF1: A47 | BG1: A48 | BH1: A49 | BI1: A50 | BJ1: A51 | BK1: A52 | BL1: A53 | BM1: A54 | BN1: A55 | BO1: A56 | BP1: A57 | BQ1: A58 | BR1: A59 | BS1: A60 | BT1: A62 | BU1: A63 | BV1: A64 | BW1: A65 | BX1: A66 | BY1: A67 | BZ1: A68 | CA1: A69 | CB1: A70 | CC1: A71 | CD1: A72 | CE1: A73 | CF1: A74 | CG1: A75 | CH1: A76 | CI1: A77 | CJ1: A78 | CK1: A79 | CL1: A80 | CM1: A81 | CN1: A82 | CO1: A83 | CP1: A84 | CQ1: A85 | CR1: A86 | CS1: A87 | CT1: A88 | CU1: A89 | CV1: A90 | CW1: A91 | CX1: A92 | CY1: A93 | CZ1: A94 | DA1: A95 | DB1: A96 | DC1: A97 | DD1: A98 | DE1: A99 | DF1: A100 | DG1: A101 | DH1: A102 | DI1: A103 | DJ1: A104 | DK1: A105 | DL1: A106 | DM1: A107 | DN1: A108 | DO1: A109 | DP1: A110 | DQ1: A111 | DR1: A112 | DS1: A113 | DT1: A114 | DU1: A115 | DV1: A116 | DW1: A117 | DX1: A118 | DY1: A119 | DZ1: A120 | EA1: A121 | EB1: A122 | EC1: A123 | ED1: A124 | EE1: A125 | EF1: A126 | EG1: A127 | EH1: A128 | EI1: A129 | EJ1: A130 | EK1: A131 | EL1: A132 | EM1: A134 | EN1: A136 | EO1: A137 | EP1: A138 | EQ1: A139 | ER1: A140 | ES1: A142 | ET1: A144 | EU1: A145 | EV1: A146 | EW1: A147 | EX1: A148 | EY1: A150 | EZ1: A152 | FA1: A153 | FB1: A154 | FC1: A155 | FD1: A156 | FE1: A158 | FF1: A160 | FG1: A161 | FH1: A162 | FI1: A163 | FJ1: A164 | FK1: A166 | FL1: A168 | FM1: A169 | FN1: A170 | FO1: A171 | FP1: A172 | FQ1: A174 | FR1: A176 | FS1: A177 | FT1: A178 | FU1: A179 | FV1: A180 | FW1: A182 | FX1: A184 | FY1: A185 | FZ1: A186 | GA1: A187 | GB1: A188 | GC1: A189 | GD1: A190 | GE1: A191 | GF1: A192 | GG1: A193 | GH1: A194 | GI1: A195 | GJ1: A196 | GK1: A197 | GL1: A198 | GM1: A199 | GN1: A200 | GO1: A201 | GP1: A202 | GQ1: A203 | GR1: A204 | GS1: A205 | GT1: A206 | GU1: A207 | GV1: A208 | GW1: A209 | GX1: A210 | GY1: A211 | GZ1: A212 | HA1: A213 | HB1: A214 | HC1: A215 | HD1: A216 | HE1: A217 | HF1: A218 | HG1: A219 | HH1: A220 | HI1: A221 | HJ1: A222 | HK1: A223 | HL1: A224 | HM1: A225 | HN1: A226 | HO1: A227 | HP1: A228 | HQ1: A229 | HR1: A230 | HS1: A231 | HT1: A232 | HU1: A233 | HV1: A234 | HW1: A235 | HX1: A236 | HY1: A237 | HZ1: A238 | IA1: A239 | IB1: A240 | IC1: A241 | ID1: A242 | IE1: A243 | IF1: A244 | IG1: A245 | IH1: A246 | II1: A247 | IJ1: A248 | IK1: A249 | IL1: A250 | IM1: A251 | IN1: A252 | IO1: A253 | IP1: A254 | IQ1: A255 | IR1: A256 | IS1: A257 | IT1: A258 | IU1: A259 | IV1: A260 | IW1: A261 | IX1: A262 | IY1: A263 | IZ1: A264 | JA1: A265 | JB1: A266 | JC1: A267 | JD1: A268 | JE1: A269 | JF1: A271 | JG1: A273 | JH1: A275 | JI1: A276 | JJ1: A277 | JK1: A278 | JL1: A279 | JM1: A280 | JN1: A281 | JO1: A282 | JP1: A283 | JQ1: A284 | JR1: A285 | JS1: A286 | JT1: A287 | JU1: A288 | JV1: A289 | JW1: A290 | JX1: A291 | JY1: A292 | JZ1: A293 | KA1: A294 | KB1: A295 | KC1: A296 | KD1: A297
A2: LUCIANO CASTILLO COLONNA | B2: SULLANA | C2: 200601 | D2: 1910 | E2: HOSPITAL DE APOYO II - 2, SULLANA | F2: SULLANA | G2: NINGUN CLAS | H2: NO PERTENECE A NINGUNA MICRORED | I2: NO PERTENECE A NINGUNA RED | J2: HOSPITAL DE APOYO III SULLANA | K2: 1 | L2: 0 | M2: 0 | N2: 19 | O2: 45 | P2: 0 | Q2: 1 | R2: 0 | S2: 2 | T2: 0 | U2: 0 | V2: 5 | W2: 36 | X2: 2 | Y2: 12 | Z2: 1 | AA2: 5 | AB2: 15 | AC2: 26 | AD2: 8 | AE2: 44 | AF2: 0 | AG2: 0 | AH2: 0 | AI2: 0 | AJ2: 0 | AK2: 0 | AL2: 0 | AM2: 0 | AN2: 0 | AO2: 0 | AP2: 0 | AQ2: 0 | AR2: 2 | AS2: 0 | AT2: 0 | AU2: 0 | AV2: 0 | AW2: 0 | AX2: 0 | AY2: 2 | AZ2: 16 | BA2: 17 | BB2: 0 | BC2: 0 | BD2: 4 | BE2: 4 | BF2: 12 | BG2: 12 | BH2: 0 | BI2: 0 | BJ2: 8 | BK2: 15 | BL2: 0 | BM2: 0 | BN2: 0 | BO2: 0 | BP2: 2 | BQ2: 1 | BR2: 23 | BS2: 49 | BT2: 8 | BU2: 16 | BV2: 13 | BW2: 1 | BX2: 2 | BY2: 0 | BZ2: 0 | CA2: 1 | CB2: 71 | CC2: 0 | CD2: 0 | CE2: 0 | CF2: 0 | CG2: 0 | CH2: 0 | CI2: 0 | CJ2: 0 | CK2: 0 | CL2: 0 | CM2: 2 | CN2: 1 | CO2: 2 | CP2: 0 | CQ2: 8 | CR2: 4 | CS2: 8 | CT2: 4 | CU2: 21 | CV2: 5 | CW2: 21 | CX2: 5 | CY2: 26 | CZ2: 14 | DA2: 26 | DB2: 14 | DC2: 13 | DD2: 1 | DE2: 13 | DF2: 0 | DG2: 15 | DH2: 1 | DI2: 15 | DJ2: 1 | DK2: 0 | DL2: 0 | DM2: 0 | DN2: 0 | DO2: 21 | DP2: 0 | DQ2: 0 | DR2: 0 | DS2: 0 | DT2: 0 | DU2: 0 | DV2: 0 | DW2: 0 | DX2: 0 | DY2: 0 | DZ2: 0 | EA2: 0 | EB2: 0 | EC2: 0 | ED2: 0 | EE2: 2 | EF2: 7 | EG2: 1 | EH2: 4 | EI2: 7 | EJ2: 48 | EK2: 7 | EL2: 48 | EM2: 34 | EN2: 34 | EO2: 5 | EP2: 37 | EQ2: 0 | ER2: 1 | ES2: 33 | ET2: 0 | EU2: 5 | EV2: 37 | EW2: 0 | EX2: 1 | EY2: 33 | EZ2: 0 | FA2: 7 | FB2: 47 | FC2: 2 | FD2: 3 | FE2: 33 | FF2: 0 | FG2: 0 | FH2: 0 | FI2: 0 | FJ2: 0 | FK2: 0 | FL2: 0 | FM2: 0 | FN2: 0 | FO2: 0 | FP2: 0 | FQ2: 0 | FR2: 0 | FS2: 0 | FT2: 0 | FU2: 0 | FV2: 0 | FW2: 0 | FX2: 0 | FY2: 0 | FZ2: 0 | GA2: 0 | GB2: 0 | GC2: 0 | GD2: 0 | GE2: 2 | GF2: 0 | GG2: 22 | GH2: 50 | GI2: 0 | GJ2: 1 | GK2: 0 | GL2: 0 | GM2: 4 | GN2: 0 | GO2: 0 | GP2: 0 | GQ2: 19 | GR2: 29 | GS2: 0 | GT2: 1 | GU2: 0 | GV2: 0 | GW2: 18 | GX2: 52 | GY2: 0 | GZ2: 0 | HA2: 0 | HB2: 0 | HC2: 2 | HD2: 2 | HE2: 5 | HF2: 17 | HG2: 0 | HH2: 0 | HI2: 0 | HJ2: 2 | HK2: 0 | HL2: 0 | HM2: 0 | HN2: 0 | HO2: 36 | HP2: 2 | HQ2: 0 | HR2: 30 | HS2: 79 | HT2: 0 | HU2: 0 | HV2: 29 | HW2: 79 | HX2: 0 | HY2: 1 | HZ2: 49 | IA2: 87 | IB2: 60 | IC2: 103 | ID2: 53 | IE2: 98 | IF2: 0 | IG2: 0 | IH2: 3 | II2: 7 | IJ2: 52 | IK2: 94 | IL2: 0 | IM2: 0 | IN2: 0 | IO2: 0 | IP2: 0 | IQ2: 0 | IR2: 0 | IS2: 0 | IT2: 0 | IU2: 0 | IV2: 0 | IW2: 0 | IX2: 0 | IY2: 0 | IZ2: 2 | JA2: 1 | JB2: 0 | JC2: 3 | JD2: 1 | JE2: 1 | JF2: 0 | JG2: 0 | JH2: 0 | JI2: 4 | JJ2: 5 | JK2: 0 | JL2: 1 | JM2: 1 | JN2: 2 | JO2: 1 | JP2: 4 | JQ2: 0 | JR2: 0 | JS2: 0 | JT2: 0 | JU2: 0 | JV2: 0 | JW2: 0 | JX2: 0 | JY2: 0 | JZ2: 14 | KA2: 0 | KB2: 0 | KC2: 151 | KD2: 0
A3: LUCIANO CASTILLO COLONNA | B3: SULLANA | C3: 200601 | D3: 1910 | E3: HOSPITAL DE APOYO II - 2, SULLANA | F3: SULLANA | G3: NINGUN CLAS | H3: NO PERTENECE A NINGUNA MICRORED | I3: NO PERTENECE A NINGUNA RED | J3: HOSPITAL DE APOYO III SULLANA | K3: 2 | L3: 0 | M3: 0 | N3: 14 | O3: 45 | P3: 1 | Q3: 1 | R3: 0 | S3: 1 | T3: 0 | U3: 0 | V3: 4 | W3: 46 | X3: 0 | Y3: 5 | Z3: 2 | AA3: 6 | AB3: 18 | AC3: 41 | AD3: 10 | AE3: 53 | AF3: 0 | AG3: 0 | AH3: 0 | AI3: 0 | AJ3: 0 | AK3: 0 | AL3: 0 | AM3: 0 | AN3: 0 | AO3: 0 | AP3: 1 | AQ3: 1 | AR3: 0 | AS3: 1 | AT3: 0 | AU3: 0 | AV3: 0 | AW3: 0 | AX3: 0 | AY3: 1 | AZ3: 1 | BA3: 9 | BB3: 0 | BC3: 0 | BD3: 0 | BE3: 0 | BF3: 1 | BG3: 7 | BH3: 0 | BI3: 0 | BJ3: 2 | BK3: 12 | BL3: 0 | BM3: 0 | BN3: 0 | BO3: 0 | BP3: 2 | BQ3: 0 | BR3: 17 | BS3: 61 | BT3: 5 | BU3: 9 | BV3: 29 | BW3: 1 | BX3: 5 | BY3: 1 | BZ3: 0 | CA3: 0 | CB3: 69 | CC3: 0 | CD3: 0 | CE3: 0 | CF3: 0 | CG3: 0 | CH3: 0 | CI3: 0 | CJ3: 0 | CK3: 0 | CL3: 0 | CM3: 4 | CN3: 4 | CO3: 4 | CP3: 1 | CQ3: 5 | CR3: 3 | CS3: 5 | CT3: 3 | CU3: 19 | CV3: 4 | CW3: 19 | CX3: 4 | CY3: 14 | CZ3: 29 | DA3: 14 | DB3: 29 | DC3: 11 | DD3: 7 | DE3: 11 | DF3: 3 | DG3: 9 | DH3: 3 | DI3: 9 | DJ3: 3 | DK3: 3 | DL3: 1 | DM3: 3 | DN3: 1 | DO3: 27 | DP3: 0 | DQ3: 0 | DR3: 0 | DS3: 0 | DT3: 0 | DU3: 0 | DV3: 0 | DW3: 0 | DX3: 0 | DY3: 0 | DZ3: 0 | EA3: 0 | EB3: 0 | EC3: 1 | ED3: 1 | EE3: 3 | EF3: 10 | EG3: 0 | EH3: 6 | EI3: 4 | EJ3: 46 | EK3: 4 | EL3: 46 | EM3: 48 | EN3: 48 | EO3: 4 | EP3: 47 | EQ3: 0 | ER3: 1 | ES3: 48 | ET3: 0 | EU3: 4 | EV3: 46 | EW3: 0 | EX3: 1 | EY3: 47 | EZ3: 0 | FA3: 1 | FB3: 42 | FC3: 0 | FD3: 1 | FE3: 40 | FF3: 0 | FG3: 0 | FH3: 0 | FI3: 0 | FJ3: 0 | FK3: 0 | FL3: 0 | FM3: 0 | FN3: 0 | FO3: 0 | FP3: 0 | FQ3: 0 | FR3: 0 | FS3: 0 | FT3: 0 | FU3: 0 | FV3: 0 | FW3: 0 | FX3: 0 | FY3: 0 | FZ3: 0 | GA3: 0 | GB3: 0 | GC3: 0 | GD3: 0 | GE3: 2 | GF3: 0 | GG3: 12 | GH3: 51 | GI3: 0 | GJ3: 2 | GK3: 0 | GL3: 0 | GM3: 2 | GN3: 0 | GO3: 0 | GP3: 0 | GQ3: 6 | GR3: 33 | GS3: 1 | GT3: 0 | GU3: 0 | GV3: 0 | GW3: 31 | GX3: 53 | GY3: 0 | GZ3: 0 | HA3: 0 | HB3: 0 | HC3: 0 | HD3: 0 | HE3: 3 | HF3: 14 | HG3: 0 | HH3: 0 | HI3: 0 | HJ3: 0 | HK3: 0 | HL3: 0 | HM3: 0 | HN3: 0 | HO3: 42 | HP3: 0 | HQ3: 0 | HR3: 27 | HS3: 62 | HT3: 0 | HU3: 0 | HV3: 26 | HW3: 61 | HX3: 0 | HY3: 0 | HZ3: 47 | IA3: 64 | IB3: 56 | IC3: 101 | ID3: 53 | IE3: 98 | IF3: 0 | IG3: 0 | IH3: 5 | II3: 4 | IJ3: 51 | IK3: 96 | IL3: 0 | IM3: 0 | IN3: 0 | IO3: 0 | IP3: 0 | IQ3: 0 | IR3: 0 | IS3: 0 | IT3: 0 | IU3: 0 | IV3: 0 | IW3: 0 | IX3: 0 | IY3: 0 | IZ3: 4 | JA3: 2 | JB3: 0 | JC3: 0 | JD3: 0 | JE3: 1 | JF3: 0 | JG3: 0 | JH3: 0 | JI3: 3 | JJ3: 1 | JK3: 0 | JL3: 3 | JM3: 1 | JN3: 2 | JO3: 0 | JP3: 0 | JQ3: 0 | JR3: 0 | JS3: 0 | JT3: 0 | JU3: 0 | JV3: 0 | JW3: 0 | JX3: 0 | JY3: 0 | JZ3: 20 | KA3: 0 | KB3: 0 | KC3: 151 | KD3: 0
A4: LUCIANO CASTILLO COLONNA | B4: SULLANA | C4: 200601 | D4: 1910 | E4: HOSPITAL DE APOYO II - 2, SULLANA | F4: SULLANA | G4: NINGUN CLAS | H4: NO PERTENECE A NINGUNA MICRORED | I4: NO PERTENECE A NINGUNA RED | J4: HOSPITAL DE APOYO III SULLANA | K4: 3 | L4: 0 | M4: 0 | N4: 15 | O4: 55 | P4: 0 | Q4: 0 | R4: 1 | S4: 0 | T4: 0 | U4: 0 | V4: 3 | W4: 73 | X4: 1 | Y4: 9 | Z4: 5 | AA4: 10 | AB4: 18 | AC4: 40 | AD4: 8 | AE4: 43 | AF4: 0 | AG4: 0 | AH4: 0 | AI4: 0 | AJ4: 0 | AK4: 0 | AL4: 0 | AM4: 0 | AN4: 0 | AO4: 0 | AP4: 0 | AQ4: 0 | AR4: 0 | AS4: 2 | AT4: 0 | AU4: 0 | AV4: 0 | AW4: 0 | AX4: 0 | AY4: 0 | AZ4: 5 | BA4: 11 | BB4: 0 | BC4: 0 | BD4: 1 | BE4: 2 | BF4: 3 | BG4: 7 | BH4: 0 | BI4: 0 | BJ4: 9 | BK4: 9 | BL4: 0 | BM4: 0 | BN4: 0 | BO4: 0 | BP4: 1 | BQ4: 1 | BR4: 23 | BS4: 42 | BT4: 9 | BU4: 5 | BV4: 13 | BW4: 0 | BX4: 1 | BY4: 0 | BZ4: 0 | CA4: 0 | CB4: 54 | CC4: 0 | CD4: 1 | CE4: 0 | CF4: 0 | CG4: 0 | CH4: 0 | CI4: 0 | CJ4: 3 | CK4: 0 | CL4: 0 | CM4: 3 | CN4: 2 | CO4: 3 | CP4: 0 | CQ4: 3 | CR4: 2 | CS4: 3 | CT4: 2 | CU4: 26 | CV4: 3 | CW4: 26 | CX4: 3 | CY4: 9 | CZ4: 27 | DA4: 9 | DB4: 27 | DC4: 10 | DD4: 4 | DE4: 10 | DF4: 2 | DG4: 5 | DH4: 1 | DI4: 5 | DJ4: 1 | DK4: 0 | DL4: 0 | DM4: 0 | DN4: 0 | DO4: 16 | DP4: 15 | DQ4: 0 | DR4: 0 | DS4: 0 | DT4: 0 | DU4: 0 | DV4: 0 | DW4: 0 | DX4: 0 | DY4: 0 | DZ4: 0 | EA4: 0 | EB4: 0 | EC4: 0 | ED4: 0 | EE4: 0 | EF4: 22 | EG4: 0 | EH4: 10 | EI4: 2 | EJ4: 74 | EK4: 2 | EL4: 74 | EM4: 68 | EN4: 68 | EO4: 2 | EP4: 74 | EQ4: 0 | ER4: 1 | ES4: 68 | ET4: 0 | EU4: 2 | EV4: 74 | EW4: 0 | EX4: 1 | EY4: 68 | EZ4: 0 | FA4: 1 | FB4: 72 | FC4: 0 | FD4: 1 | FE4: 68 | FF4: 0 | FG4: 0 | FH4: 0 | FI4: 0 | FJ4: 0 | FK4: 0 | FL4: 0 | FM4: 0 | FN4: 0 | FO4: 0 | FP4: 0 | FQ4: 0 | FR4: 0 | FS4: 0 | FT4: 0 | FU4: 0 | FV4: 0 | FW4: 0 | FX4: 0 | FY4: 0 | FZ4: 0 | GA4: 0 | GB4: 0 | GC4: 0 | GD4: 0 | GE4: 0 | GF4: 0 | GG4: 19 | GH4: 46 | GI4: 0 | GJ4: 0 | GK4: 0 | GL4: 0 | GM4: 1 | GN4: 0 | GO4: 0 | GP4: 0 | GQ4: 12 | GR4: 37 | GS4: 2 | GT4: 6 | GU4: 0 | GV4: 0 | GW4: 22 | GX4: 9 | GY4: 0 | GZ4: 0 | HA4: 0 | HB4: 0 | HC4: 1 | HD4: 0 | HE4: 0 | HF4: 18 | HG4: 0 | HH4: 0 | HI4: 0 | HJ4: 0 | HK4: 0 | HL4: 0 | HM4: 0 | HN4: 0 | HO4: 42 | HP4: 0 | HQ4: 0 | HR4: 26 | HS4: 58 | HT4: 0 | HU4: 0 | HV4: 25 | HW4: 58 | HX4: 0 | HY4: 0 | HZ4: 68 | IA4: 83 | IB4: 41 | IC4: 69 | ID4: 33 | IE4: 67 | IF4: 0 | IG4: 0 | IH4: 1 | II4: 2 | IJ4: 33 | IK4: 67 | IL4: 0 | IM4: 0 | IN4: 0 | IO4: 0 | IP4: 0 | IQ4: 0 | IR4: 0 | IS4: 0 | IT4: 0 | IU4: 0 | IV4: 0 | IW4: 0 | IX4: 0 | IY4: 0 | IZ4: 1 | JA4: 0 | JB4: 2 | JC4: 0 | JD4: 1 | JE4: 0 | JF4: 0 | JG4: 0 | JH4: 0 | JI4: 1 | JJ4: 0 | JK4: 0 | JL4: 1 | JM4: 0 | JN4: 0 | JO4: 0 | JP4: 0 | JQ4: 0 | JR4: 0 | JS4: 0 | JT4: 0 | JU4: 0 | JV4: 0 | JW4: 0 | JX4: 0 | JY4: 0 | JZ4: 32 | KA4: 0 | KB4: 0 | KC4: 100 | KD4: 0
A5: LUCIANO CASTILLO COLONNA | B5: SULLANA | C5: 200601 | D5: 1910 | E5: HOSPITAL DE APOYO II - 2, SULLANA | F5: SULLANA | G5: NINGUN CLAS | H5: NO PERTENECE A NINGUNA MICRORED | I5: NO PERTENECE A NINGUNA RED | J5: HOSPITAL DE APOYO III SULLANA | K5: 4 | L5: 2 | M5: 0 | N5: 19 | O5: 66 | P5: 0 | Q5: 0 | R5: 0 | S5: 1 | T5: 0 | U5: 0 | V5: 3 | W5: 84 | X5: 1 | Y5: 8 | Z5: 7 | AA5: 5 | AB5: 23 | AC5: 46 | AD5: 8 | AE5: 47 | AF5: 0 | AG5: 0 | AH5: 0 | AI5: 0 | AJ5: 0 | AK5: 0 | AL5: 0 | AM5: 0 | AN5: 0 | AO5: 0 | AP5: 0 | AQ5: 1 | AR5: 1 | AS5: 6 | AT5: 0 | AU5: 1 | AV5: 0 | AW5: 1 | AX5: 0 | AY5: 0 | AZ5: 5 | BA5: 23 | BB5: 0 | BC5: 0 | BD5: 1 | BE5: 5 | BF5: 4 | BG5: 10 | BH5: 0 | BI5: 0 | BJ5: 5 | BK5: 8 | BL5: 0 | BM5: 1 | BN5: 0 | BO5: 0 | BP5: 2 | BQ5: 0 | BR5: 38 | BS5: 71 | BT5: 5 | BU5: 11 | BV5: 18 | BW5: 2 | BX5: 5 | BY5: 0 | BZ5: 0 | CA5: 0 | CB5: 69 | CC5: 0 | CD5: 0 | CE5: 0 | CF5: 0 | CG5: 0 | CH5: 0 | CI5: 0 | CJ5: 0 | CK5: 0 | CL5: 0 | CM5: 2 | CN5: 2 | CO5: 2 | CP5: 1 | CQ5: 0 | CR5: 1 | CS5: 0 | CT5: 1 | CU5: 24 | CV5: 2 | CW5: 24 | CX5: 2 | CY5: 17 | CZ5: 22 | DA5: 17 | DB5: 22 | DC5: 10 | DD5: 2 | DE5: 10 | DF5: 2 | DG5: 16 | DH5: 1 | DI5: 16 | DJ5: 1 | DK5: 0 | DL5: 0 | DM5: 0 | DN5: 0 | DO5: 19 | DP5: 0 | DQ5: 0 | DR5: 0 | DS5: 0 | DT5: 0 | DU5: 0 | DV5: 0 | DW5: 0 | DX5: 0 | DY5: 0 | DZ5: 0 | EA5: 0 | EB5: 0 | EC5: 0 | ED5: 0 | EE5: 0 | EF5: 15 | EG5: 0 | EH5: 1 | EI5: 3 | EJ5: 87 | EK5: 3 | EL5: 87 | EM5: 80 | EN5: 80 | EO5: 3 | EP5: 87 | EQ5: 0 | ER5: 1 | ES5: 80 | ET5: 0 | EU5: 3 | EV5: 87 | EW5: 0 | EX5: 1 | EY5: 80 | EZ5: 0 | FA5: 0 | FB5: 83 | FC5: 0 | FD5: 1 | FE5: 78 | FF5: 0 | FG5: 0 | FH5: 0 | FI5: 0 | FJ5: 0 | FK5: 0 | FL5: 0 | FM5: 0 | FN5: 0 | FO5: 0 | FP5: 0 | FQ5: 0 | FR5: 0 | FS5: 0 | FT5: 0 | FU5: 0 | FV5: 0 | FW5: 0 | FX5: 0 | FY5: 0 | FZ5: 0 | GA5: 0 | GB5: 0 | GC5: 0 | GD5: 0 | GE5: 0 | GF5: 0 | GG5: 0 | GH5: 1 | GI5: 0 | GJ5: 0 | GK5: 0 | GL5: 0 | GM5: 0 | GN5: 0 | GO5: 0 | GP5: 0 | GQ5: 1 | GR5: 1 | GS5: 1 | GT5: 1 | GU5: 0 | GV5: 0 | GW5: 34 | GX5: 34 | GY5: 0 | GZ5: 0 | HA5: 0 | HB5: 0 | HC5: 0 | HD5: 0 | HE5: 2 | HF5: 15 | HG5: 0 | HH5: 0 | HI5: 0 | HJ5: 0 | HK5: 0 | HL5: 0 | HM5: 0 | HN5: 0 | HO5: 12 | HP5: 1 | HQ5: 1 | HR5: 127 | HS5: 79 | HT5: 0 | HU5: 0 | HV5: 127 | HW5: 78 | HX5: 0 | HY5: 0 | HZ5: 157 | IA5: 94 | IB5: 41 | IC5: 90 | ID5: 35 | IE5: 84 | IF5: 0 | IG5: 0 | IH5: 1 | II5: 2 | IJ5: 37 | IK5: 88 | IL5: 0 | IM5: 0 | IN5: 0 | IO5: 0 | IP5: 0 | IQ5: 0 | IR5: 0 | IS5: 0 | IT5: 0 | IU5: 0 | IV5: 0 | IW5: 0 | IX5: 0 | IY5: 0 | IZ5: 1 | JA5: 2 | JB5: 1 | JC5: 1 | JD5: 0 | JE5: 0 | JF5: 0 | JG5: 0 | JH5: 0 | JI5: 4 | JJ5: 2 | JK5: 0 | JL5: 1 | JM5: 0 | JN5: 0 | JO5: 0 | JP5: 0 | JQ5: 0 | JR5: 0 | JS5: 0 | JT5: 0 | JU5: 0 | JV5: 0 | JW5: 0 | JX5: 0 | JY5: 0 | JZ5: 17 | KA5: 0 | KB5: 0 | KC5: 119 | KD5: 0
A6: LUCIANO CASTILLO COLONNA | B6: SULLANA | C6: 200601 | D6: 1910 | E6: HOSPITAL DE APOYO II - 2, SULLANA | F6: SULLANA | G6: NINGUN CLAS | H6: NO PERTENECE A NINGUNA MICRORED | I6: NO PERTENECE A NINGUNA RED | J6: HOSPITAL DE APOYO III SULLANA | K6: 5 | L6: 0 | M6: 0 | N6: 11 | O6: 85 | P6: 0 | Q6: 0 | R6: 0 | S6: 0 | T6: 0 | U6: 0 | V6: 2 | W6: 76 | X6: 1 | Y6: 11 | Z6: 12 | AA6: 8 | AB6: 16 | AC6: 37 | AD6: 8 | AE6: 37 | AF6: 0 | AG6: 0 | AH6: 0 | AI6: 0 | AJ6: 0 | AK6: 0 | AL6: 0 | AM6: 0 | AN6: 0 | AO6: 0 | AP6: 0 | AQ6: 1 | AR6: 0 | AS6: 3 | AT6: 0 | AU6: 0 | AV6: 0 | AW6: 0 | AX6: 0 | AY6: 0 | AZ6: 7 | BA6: 28 | BB6: 0 | BC6: 0 | BD6: 1 | BE6: 2 | BF6: 6 | BG6: 23 | BH6: 0 | BI6: 0 | BJ6: 5 | BK6: 11 | BL6: 0 | BM6: 1 | BN6: 0 | BO6: 0 | BP6: 0 | BQ6: 0 | BR6: 28 | BS6: 68 | BT6: 5 | BU6: 7 | BV6: 18 | BW6: 0 | BX6: 6 | BY6: 0 | BZ6: 0 | CA6: 0 | CB6: 65 | CC6: 0 | CD6: 0 | CE6: 0 | CF6: 0 | CG6: 0 | CH6: 0 | CI6: 0 | CJ6: 0 | CK6: 0 | CL6: 0 | CM6: 0 | CN6: 2 | CO6: 0 | CP6: 0 | CQ6: 2 | CR6: 3 | CS6: 2 | CT6: 3 | CU6: 19 | CV6: 2 | CW6: 19 | CX6: 2 | CY6: 11 | CZ6: 30 | DA6: 11 | DB6: 30 | DC6: 18 | DD6: 2 | DE6: 18 | DF6: 0 | DG6: 13 | DH6: 2 | DI6: 13 | DJ6: 2 | DK6: 1 | DL6: 0 | DM6: 1 | DN6: 0 | DO6: 41 | DP6: 0 | DQ6: 0 | DR6: 0 | DS6: 0 | DT6: 0 | DU6: 0 | DV6: 0 | DW6: 0 | DX6: 0 | DY6: 0 | DZ6: 0 | EA6: 0 | EB6: 0 | EC6: 0 | ED6: 0 | EE6: 2 | EF6: 29 | EG6: 0 | EH6: 2 | EI6: 3 | EJ6: 76 | EK6: 3 | EL6: 76 | EM6: 64 | EN6: 64 | EO6: 3 | EP6: 77 | EQ6: 0 | ER6: 0 | ES6: 65 | ET6: 0 | EU6: 3 | EV6: 77 | EW6: 0 | EX6: 0 | EY6: 65 | EZ6: 0 | FA6: 0 | FB6: 73 | FC6: 0 | FD6: 0 | FE6: 64 | FF6: 0 | FG6: 0 | FH6: 0 | FI6: 0 | FJ6: 0 | FK6: 0 | FL6: 0 | FM6: 0 | FN6: 0 | FO6: 0 | FP6: 0 | FQ6: 0 | FR6: 0 | FS6: 0 | FT6: 0 | FU6: 0 | FV6: 0 | FW6: 0 | FX6: 0 | FY6: 0 | FZ6: 0 | GA6: 0 | GB6: 0 | GC6: 0 | GD6: 0 | GE6: 0 | GF6: 0 | GG6: 0 | GH6: 0 | GI6: 0 | GJ6: 0 | GK6: 0 | GL6: 0 | GM6: 1 | GN6: 0 | GO6: 2 | GP6: 0 | GQ6: 3 | GR6: 2 | GS6: 3 | GT6: 2 | GU6: 0 | GV6: 0 | GW6: 45 | GX6: 96 | GY6: 0 | GZ6: 0 | HA6: 0 | HB6: 0 | HC6: 0 | HD6: 0 | HE6: 1 | HF6: 23 | HG6: 0 | HH6: 0 | HI6: 0 | HJ6: 0 | HK6: 0 | HL6: 0 | HM6: 0 | HN6: 0 | HO6: 25 | HP6: 17 | HQ6: 1 | HR6: 53 | HS6: 69 | HT6: 0 | HU6: 0 | HV6: 49 | HW6: 69 | HX6: 0 | HY6: 0 | HZ6: 107 | IA6: 77 | IB6: 51 | IC6: 109 | ID6: 50 | IE6: 104 | IF6: 0 | IG6: 0 | IH6: 4 | II6: 6 | IJ6: 52 | IK6: 108 | IL6: 0 | IM6: 0 | IN6: 0 | IO6: 0 | IP6: 0 | IQ6: 0 | IR6: 0 | IS6: 0 | IT6: 0 | IU6: 0 | IV6: 0 | IW6: 0 | IX6: 0 | IY6: 0 | IZ6: 2 | JA6: 0 | JB6: 2 | JC6: 0 | JD6: 0 | JE6: 1 | JF6: 0 | JG6: 0 | JH6: 0 | JI6: 1 | JJ6: 1 | JK6: 1 | JL6: 1 | JM6: 0 | JN6: 3 | JO6: 0 | JP6: 0 | JQ6: 0 | JR6: 0 | JS6: 0 | JT6: 0 | JU6: 0 | JV6: 0 | JW6: 0 | JX6: 0 | JY6: 0 | JZ6: 33 | KA6: 0 | KB6: 0 | KC6: 154 | KD6: 0
A7: LUCIANO CASTILLO COLONNA | B7: SULLANA | C7: 200601 | D7: 1910 | E7: HOSPITAL DE APOYO II - 2, SULLANA | F7: SULLANA | G7: NINGUN CLAS | H7: NO PERTENECE A NINGUNA MICRORED | I7: NO PERTENECE A NINGUNA RED | J7: HOSPITAL DE APOYO III SULLANA | K7: 6 | L7: 0 | M7: 0 | N7: 28 | O7: 92 | P7: 0 | Q7: 0 | R7: 0 | S7: 0 | T7: 0 | U7: 0 | V7: 11 | W7: 59 | X7: 2 | Y7: 16 | Z7: 3 | AA7: 10 | AB7: 10 | AC7: 44 | AD7: 7 | AE7: 26 | AF7: 0 | AG7: 0 | AH7: 0 | AI7: 0 | AJ7: 0 | AK7: 0 | AL7: 0 | AM7: 0 | AN7: 0 | AO7: 0 | AP7: 1 | AQ7: 3 | AR7: 1 | AS7: 4 | AT7: 0 | AU7: 0 | AV7: 0 | AW7: 1 | AX7: 0 | AY7: 0 | AZ7: 12 | BA7: 42 | BB7: 0 | BC7: 0 | BD7: 3 | BE7: 12 | BF7: 8 | BG7: 28 | BH7: 0 | BI7: 0 | BJ7: 4 | BK7: 15 | BL7: 0 | BM7: 1 | BN7: 0 | BO7: 0 | BP7: 0 | BQ7: 0 | BR7: 27 | BS7: 69 | BT7: 8 | BU7: 9 | BV7: 10 | BW7: 0 | BX7: 2 | BY7: 0 | BZ7: 0 | CA7: 3 | CB7: 193 | CC7: 0 | CD7: 0 | CE7: 0 | CF7: 0 | CG7: 0 | CH7: 0 | CI7: 0 | CJ7: 0 | CK7: 0 | CL7: 0 | CM7: 1 | CN7: 2 | CO7: 1 | CP7: 0 | CQ7: 5 | CR7: 1 | CS7: 5 | CT7: 1 | CU7: 39 | CV7: 6 | CW7: 39 | CX7: 6 | CY7: 15 | CZ7: 23 | DA7: 15 | DB7: 23 | DC7: 16 | DD7: 0 | DE7: 16 | DF7: 0 | DG7: 12 | DH7: 2 | DI7: 12 | DJ7: 2 | DK7: 2 | DL7: 0 | DM7: 2 | DN7: 0 | DO7: 35 | DP7: 0 | DQ7: 0 | DR7: 0 | DS7: 0 | DT7: 0 | DU7: 0 | DV7: 0 | DW7: 0 | DX7: 0 | DY7: 0 | DZ7: 0 | EA7: 0 | EB7: 0 | EC7: 0 | ED7: 0 | EE7: 0 | EF7: 2 | EG7: 0 | EH7: 0 | EI7: 11 | EJ7: 57 | EK7: 11 | EL7: 57 | EM7: 45 | EN7: 45 | EO7: 8 | EP7: 58 | EQ7: 1 | ER7: 0 | ES7: 46 | ET7: 0 | EU7: 8 | EV7: 58 | EW7: 1 | EX7: 0 | EY7: 46 | EZ7: 0 | FA7: 7 | FB7: 55 | FC7: 0 | FD7: 1 | FE7: 44 | FF7: 1 | FG7: 0 | FH7: 0 | FI7: 0 | FJ7: 0 | FK7: 0 | FL7: 0 | FM7: 0 | FN7: 0 | FO7: 0 | FP7: 0 | FQ7: 0 | FR7: 0 | FS7: 0 | FT7: 1 | FU7: 0 | FV7: 0 | FW7: 0 | FX7: 0 | FY7: 0 | FZ7: 0 | GA7: 0 | GB7: 0 | GC7: 0 | GD7: 0 | GE7: 0 | GF7: 0 | GG7: 0 | GH7: 0 | GI7: 0 | GJ7: 0 | GK7: 0 | GL7: 0 | GM7: 0 | GN7: 0 | GO7: 1 | GP7: 0 | GQ7: 1 | GR7: 1 | GS7: 1 | GT7: 1 | GU7: 0 | GV7: 0 | GW7: 73 | GX7: 53 | GY7: 0 | GZ7: 0 | HA7: 0 | HB7: 0 | HC7: 0 | HD7: 0 | HE7: 0 | HF7: 13 | HG7: 0 | HH7: 0 | HI7: 0 | HJ7: 0 | HK7: 0 | HL7: 0 | HM7: 0 | HN7: 0 | HO7: 11 | HP7: 6 | HQ7: 0 | HR7: 42 | HS7: 51 | HT7: 0 | HU7: 0 | HV7: 42 | HW7: 50 | HX7: 0 | HY7: 1 | HZ7: 84 | IA7: 62 | IB7: 53 | IC7: 99 | ID7: 49 | IE7: 95 | IF7: 0 | IG7: 0 | IH7: 5 | II7: 5 | IJ7: 50 | IK7: 96 | IL7: 0 | IM7: 0 | IN7: 0 | IO7: 0 | IP7: 0 | IQ7: 0 | IR7: 0 | IS7: 0 | IT7: 0 | IU7: 0 | IV7: 0 | IW7: 0 | IX7: 0 | IY7: 0 | IZ7: 2 | JA7: 1 | JB7: 1 | JC7: 2 | JD7: 0 | JE7: 0 | JF7: 0 | JG7: 0 | JH7: 0 | JI7: 4 | JJ7: 3 | JK7: 1 | JL7: 3 | JM7: 1 | JN7: 0 | JO7: 0 | JP7: 0 | JQ7: 0 | JR7: 0 | JS7: 0 | JT7: 0 | JU7: 0 | JV7: 0 | JW7: 0 | JX7: 0 | JY7: 0 | JZ7: 2 | KA7: 0 | KB7: 1 | KC7: 144 | KD7: 0
A8: LUCIANO CASTILLO COLONNA | B8: SULLANA | C8: 200601 | D8: 1910 | E8: HOSPITAL DE APOYO II - 2, SULLANA | F8: SULLANA | G8: NINGUN CLAS | H8: NO PERTENECE A NINGUNA MICRORED | I8: NO PERTENECE A NINGUNA RED | J8: HOSPITAL DE APOYO III SULLANA | K8: 7 | L8: 1 | M8: 0 | N8: 15 | O8: 65 | P8: 0 | Q8: 2 | R8: 1 | S8: 2 | T8: 0 | U8: 1 | V8: 5 | W8: 35 | X8: 1 | Y8: 8 | Z8: 1 | AA8: 10 | AB8: 18 | AC8: 45 | AD8: 8 | AE8: 32 | AF8: 0 | AG8: 0 | AH8: 0 | AI8: 0 | AJ8: 0 | AK8: 0 | AL8: 0 | AM8: 0 | AN8: 0 | AO8: 0 | AP8: 0 | AQ8: 0 | AR8: 7 | AS8: 7 | AT8: 0 | AU8: 0 | AV8: 0 | AW8: 0 | AX8: 0 | AY8: 1 | AZ8: 6 | BA8: 25 | BB8: 0 | BC8: 0 | BD8: 2 | BE8: 10 | BF8: 2 | BG8: 9 | BH8: 0 | BI8: 0 | BJ8: 7 | BK8: 10 | BL8: 0 | BM8: 0 | BN8: 0 | BO8: 0 | BP8: 4 | BQ8: 3 | BR8: 29 | BS8: 52 | BT8: 5 | BU8: 5 | BV8: 8 | BW8: 0 | BX8: 0 | BY8: 0 | BZ8: 0 | CA8: 4 | CB8: 144 | CC8: 0 | CD8: 0 | CE8: 0 | CF8: 0 | CG8: 0 | CH8: 0 | CI8: 0 | CJ8: 0 | CK8: 0 | CL8: 0 | CM8: 3 | CN8: 0 | CO8: 3 | CP8: 0 | CQ8: 6 | CR8: 2 | CS8: 6 | CT8: 2 | CU8: 30 | CV8: 1 | CW8: 30 | CX8: 1 | CY8: 19 | CZ8: 12 | DA8: 19 | DB8: 12 | DC8: 19 | DD8: 0 | DE8: 19 | DF8: 0 | DG8: 14 | DH8: 0 | DI8: 14 | DJ8: 0 | DK8: 0 | DL8: 0 | DM8: 0 | DN8: 0 | DO8: 38 | DP8: 0 | DQ8: 0 | DR8: 0 | DS8: 0 | DT8: 0 | DU8: 0 | DV8: 0 | DW8: 0 | DX8: 0 | DY8: 0 | DZ8: 0 | EA8: 0 | EB8: 0 | EC8: 0 | ED8: 0 | EE8: 0 | EF8: 1 | EG8: 0 | EH8: 0 | EI8: 5 | EJ8: 35 | EK8: 5 | EL8: 35 | EM8: 27 | EN8: 27 | EO8: 4 | EP8: 36 | EQ8: 1 | ER8: 0 | ES8: 27 | ET8: 0 | EU8: 4 | EV8: 36 | EW8: 1 | EX8: 0 | EY8: 27 | EZ8: 0 | FA8: 5 | FB8: 34 | FC8: 1 | FD8: 0 | FE8: 27 | FF8: 0 | FG8: 0 | FH8: 0 | FI8: 0 | FJ8: 0 | FK8: 0 | FL8: 0 | FM8: 0 | FN8: 0 | FO8: 0 | FP8: 0 | FQ8: 0 | FR8: 0 | FS8: 0 | FT8: 0 | FU8: 0 | FV8: 0 | FW8: 0 | FX8: 0 | FY8: 0 | FZ8: 0 | GA8: 0 | GB8: 0 | GC8: 0 | GD8: 0 | GE8: 0 | GF8: 0 | GG8: 0 | GH8: 0 | GI8: 0 | GJ8: 0 | GK8: 0 | GL8: 0 | GM8: 1 | GN8: 0 | GO8: 1 | GP8: 0 | GQ8: 3 | GR8: 2 | GS8: 3 | GT8: 2 | GU8: 0 | GV8: 0 | GW8: 19 | GX8: 26 | GY8: 0 | GZ8: 0 | HA8: 0 | HB8: 0 | HC8: 0 | HD8: 0 | HE8: 0 | HF8: 14 | HG8: 0 | HH8: 0 | HI8: 0 | HJ8: 0 | HK8: 0 | HL8: 0 | HM8: 0 | HN8: 0 | HO8: 10 | HP8: 9 | HQ8: 1 | HR8: 28 | HS8: 40 | HT8: 0 | HU8: 0 | HV8: 27 | HW8: 40 | HX8: 0 | HY8: 0 | HZ8: 52 | IA8: 44 | IB8: 41 | IC8: 85 | ID8: 39 | IE8: 85 | IF8: 0 | IG8: 0 | IH8: 5 | II8: 7 | IJ8: 34 | IK8: 81 | IL8: 0 | IM8: 0 | IN8: 0 | IO8: 0 | IP8: 0 | IQ8: 0 | IR8: 0 | IS8: 0 | IT8: 0 | IU8: 0 | IV8: 0 | IW8: 0 | IX8: 0 | IY8: 0 | IZ8: 4 | JA8: 2 | JB8: 1 | JC8: 4 | JD8: 0 | JE8: 1 | JF8: 0 | JG8: 0 | JH8: 1 | JI8: 4 | JJ8: 1 | JK8: 2 | JL8: 1 | JM8: 1 | JN8: 1 | JO8: 0 | JP8: 0 | JQ8: 0 | JR8: 0 | JS8: 0 | JT8: 0 | JU8: 0 | JV8: 0 | JW8: 0 | JX8: 0 | JY8: 0 | JZ8: 1 | KA8: 0 | KB8: 0 | KC8: 124 | KD8: 0
A9: LUCIANO CASTILLO COLONNA | B9: SULLANA | C9: 200601 | D9: 1910 | E9: HOSPITAL DE APOYO II - 2, SULLANA | F9: SULLANA | G9: NINGUN CLAS | H9: NO PERTENECE A NINGUNA MICRORED | I9: NO PERTENECE A NINGUNA RED | J9: HOSPITAL DE APOYO III SULLANA | K9: 8 | L9: 0 | M9: 0 | N9: 19 | O9: 51 | P9: 0 | Q9: 1 | R9: 2 | S9: 0 | T9: 0 | U9: 0 | V9: 2 | W9: 30 | X9: 1 | Y9: 4 | Z9: 2 | AA9: 13 | AB9: 19 | AC9: 32 | AD9: 7 | AE9: 33 | AF9: 0 | AG9: 0 | AH9: 0 | AI9: 0 | AJ9: 0 | AK9: 0 | AL9: 0 | AM9: 0 | AN9: 0 | AO9: 0 | AP9: 4 | AQ9: 2 | AR9: 0 | AS9: 4 | AT9: 0 | AU9: 0 | AV9: 0 | AW9: 0 | AX9: 0 | AY9: 0 | AZ9: 12 | BA9: 27 | BB9: 0 | BC9: 0 | BD9: 4 | BE9: 8 | BF9: 5 | BG9: 14 | BH9: 0 | BI9: 0 | BJ9: 9 | BK9: 13 | BL9: 1 | BM9: 2 | BN9: 0 | BO9: 0 | BP9: 4 | BQ9: 1 | BR9: 34 | BS9: 47 | BT9: 3 | BU9: 3 | BV9: 6 | BW9: 1 | BX9: 1 | BY9: 0 | BZ9: 0 | CA9: 2 | CB9: 127 | CC9: 0 | CD9: 1 | CE9: 0 | CF9: 0 | CG9: 0 | CH9: 0 | CI9: 0 | CJ9: 0 | CK9: 0 | CL9: 0 | CM9: 2 | CN9: 3 | CO9: 2 | CP9: 0 | CQ9: 2 | CR9: 14 | CS9: 2 | CT9: 14 | CU9: 36 | CV9: 1 | CW9: 36 | CX9: 1 | CY9: 21 | CZ9: 14 | DA9: 21 | DB9: 14 | DC9: 25 | DD9: 2 | DE9: 25 | DF9: 1 | DG9: 15 | DH9: 25 | DI9: 15 | DJ9: 25 | DK9: 0 | DL9: 13 | DM9: 0 | DN9: 13 | DO9: 21 | DP9: 0 | DQ9: 0 | DR9: 0 | DS9: 1 | DT9: 0 | DU9: 0 | DV9: 0 | DW9: 0 | DX9: 0 | DY9: 0 | DZ9: 0 | EA9: 0 | EB9: 0 | EC9: 10 | ED9: 10 | EE9: 0 | EF9: 1 | EG9: 0 | EH9: 0 | EI9: 2 | EJ9: 34 | EK9: 2 | EL9: 34 | EM9: 25 | EN9: 25 | EO9: 2 | EP9: 33 | EQ9: 0 | ER9: 0 | ES9: 25 | ET9: 0 | EU9: 2 | EV9: 33 | EW9: 0 | EX9: 0 | EY9: 25 | EZ9: 0 | FA9: 1 | FB9: 29 | FC9: 0 | FD9: 0 | FE9: 24 | FF9: 0 | FG9: 0 | FH9: 0 | FI9: 0 | FJ9: 0 | FK9: 0 | FL9: 0 | FM9: 0 | FN9: 0 | FO9: 0 | FP9: 0 | FQ9: 0 | FR9: 0 | FS9: 0 | FT9: 0 | FU9: 0 | FV9: 0 | FW9: 0 | FX9: 0 | FY9: 0 | FZ9: 0 | GA9: 0 | GB9: 0 | GC9: 0 | GD9: 0 | GE9: 0 | GF9: 0 | GG9: 0 | GH9: 0 | GI9: 0 | GJ9: 0 | GK9: 0 | GL9: 0 | GM9: 2 | GN9: 0 | GO9: 0 | GP9: 0 | GQ9: 0 | GR9: 0 | GS9: 0 | GT9: 0 | GU9: 0 | GV9: 0 | GW9: 0 | GX9: 0 | GY9: 0 | GZ9: 0 | HA9: 0 | HB9: 0 | HC9: 1 | HD9: 0 | HE9: 0 | HF9: 13 | HG9: 0 | HH9: 0 | HI9: 0 | HJ9: 0 | HK9: 0 | HL9: 0 | HM9: 0 | HN9: 0 | HO9: 9 | HP9: 1 | HQ9: 0 | HR9: 8 | HS9: 40 | HT9: 0 | HU9: 0 | HV9: 8 | HW9: 39 | HX9: 0 | HY9: 0 | HZ9: 27 | IA9: 46 | IB9: 52 | IC9: 129 | ID9: 51 | IE9: 120 | IF9: 0 | IG9: 0 | IH9: 4 | II9: 7 | IJ9: 47 | IK9: 119 | IL9: 0 | IM9: 0 | IN9: 0 | IO9: 0 | IP9: 0 | IQ9: 0 | IR9: 0 | IS9: 0 | IT9: 0 | IU9: 0 | IV9: 0 | IW9: 0 | IX9: 0 | IY9: 0 | IZ9: 3 | JA9: 2 | JB9: 0 | JC9: 1 | JD9: 2 | JE9: 2 | JF9: 1 | JG9: 0 | JH9: 1 | JI9: 0 | JJ9: 5 | JK9: 2 | JL9: 1 | JM9: 1 | JN9: 2 | JO9: 0 | JP9: 0 | JQ9: 0 | JR9: 0 | JS9: 0 | JT9: 0 | JU9: 0 | JV9: 0 | JW9: 0 | JX9: 0 | JY9: 0 | JZ9: 1 | KA9: 0 | KB9: 0 | KC9: 171 | KD9: 0
A10: LUCIANO CASTILLO COLONNA | B10: SULLANA | C10: 200601 | D10: 1910 | E10: HOSPITAL DE APOYO II - 2, SULLANA | F10: SULLANA | G10: NINGUN CLAS | H10: NO PERTENECE A NINGUNA MICRORED | I10: NO PERTENECE A NINGUNA RED | J10: HOSPITAL DE APOYO III SULLANA | K10: 9 | L10: 1 | M10: 0 | N10: 27 | O10: 66 | P10: 1 | Q10: 1 | R10: 0 | S10: 1 | T10: 0 | U10: 0 | V10: 8 | W10: 35 | X10: 1 | Y10: 6 | Z10: 3 | AA10: 17 | AB10: 21 | AC10: 39 | AD10: 13 | AE10: 41 | AF10: 0 | AG10: 0 | AH10: 0 | AI10: 0 | AJ10: 0 | AK10: 0 | AL10: 0 | AM10: 0 | AN10: 0 | AO10: 0 | AP10: 0 | AQ10: 3 | AR10: 2 | AS10: 4 | AT10: 0 | AU10: 0 | AV10: 0 | AW10: 0 | AX10: 0 | AY10: 0 | AZ10: 12 | BA10: 21 | BB10: 0 | BC10: 0 | BD10: 2 | BE10: 2 | BF10: 10 | BG10: 17 | BH10: 0 | BI10: 0 | BJ10: 12 | BK10: 16 | BL10: 0 | BM10: 0 | BN10: 0 | BO10: 0 | BP10: 2 | BQ10: 7 | BR10: 52 | BS10: 79 | BT10: 6 | BU10: 6 | BV10: 11 | BW10: 3 | BX10: 1 | BY10: 0 | BZ10: 1 | CA10: 1 | CB10: 91 | CC10: 0 | CD10: 0 | CE10: 0 | CF10: 6 | CG10: 0 | CH10: 0 | CI10: 0 | CJ10: 0 | CK10: 0 | CL10: 0 | CM10: 3 | CN10: 0 | CO10: 3 | CP10: 0 | CQ10: 11 | CR10: 5 | CS10: 11 | CT10: 5 | CU10: 37 | CV10: 4 | CW10: 37 | CX10: 4 | CY10: 15 | CZ10: 20 | DA10: 15 | DB10: 20 | DC10: 7 | DD10: 1 | DE10: 7 | DF10: 1 | DG10: 10 | DH10: 9 | DI10: 10 | DJ10: 9 | DK10: 0 | DL10: 0 | DM10: 0 | DN10: 0 | DO10: 37 | DP10: 0 | DQ10: 0 | DR10: 0 | DS10: 0 | DT10: 0 | DU10: 0 | DV10: 0 | DW10: 0 | DX10: 0 | DY10: 0 | DZ10: 0 | EA10: 0 | EB10: 0 | EC10: 7 | ED10: 6 | EE10: 0 | EF10: 0 | EG10: 0 | EH10: 0 | EI10: 10 | EJ10: 30 | EK10: 10 | EL10: 30 | EM10: 19 | EN10: 19 | EO10: 8 | EP10: 31 | EQ10: 0 | ER10: 0 | ES10: 20 | ET10: 0 | EU10: 8 | EV10: 31 | EW10: 0 | EX10: 0 | EY10: 20 | EZ10: 0 | FA10: 7 | FB10: 27 | FC10: 0 | FD10: 0 | FE10: 18 | FF10: 0 | FG10: 0 | FH10: 0 | FI10: 0 | FJ10: 0 | FK10: 0 | FL10: 0 | FM10: 0 | FN10: 0 | FO10: 0 | FP10: 0 | FQ10: 0 | FR10: 0 | FS10: 0 | FT10: 0 | FU10: 0 | FV10: 0 | FW10: 0 | FX10: 0 | FY10: 0 | FZ10: 0 | GA10: 0 | GB10: 0 | GC10: 0 | GD10: 0 | GE10: 0 | GF10: 0 | GG10: 1 | GH10: 4 | GI10: 0 | GJ10: 0 | GK10: 0 | GL10: 0 | GM10: 0 | GN10: 0 | GO10: 0 | GP10: 0 | GQ10: 2 | GR10: 4 | GS10: 1 | GT10: 0 | GU10: 0 | GV10: 0 | GW10: 0 | GX10: 0 | GY10: 0 | GZ10: 0 | HA10: 0 | HB10: 0 | HC10: 1 | HD10: 0 | HE10: 0 | HF10: 15 | HG10: 0 | HH10: 0 | HI10: 0 | HJ10: 0 | HK10: 0 | HL10: 0 | HM10: 0 | HN10: 0 | HO10: 14 | HP10: 1 | HQ10: 0 | HR10: 32 | HS10: 59 | HT10: 1 | HU10: 4 | HV10: 31 | HW10: 63 | HX10: 0 | HY10: 0 | HZ10: 42 | IA10: 67 | IB10: 58 | IC10: 133 | ID10: 52 | IE10: 125 | IF10: 0 | IG10: 0 | IH10: 3 | II10: 3 | IJ10: 56 | IK10: 130 | IL10: 0 | IM10: 0 | IN10: 0 | IO10: 0 | IP10: 0 | IQ10: 0 | IR10: 0 | IS10: 0 | IT10: 0 | IU10: 0 | IV10: 0 | IW10: 0 | IX10: 0 | IY10: 0 | IZ10: 2 | JA10: 0 | JB10: 1 | JC10: 2 | JD10: 1 | JE10: 1 | JF10: 0 | JG10: 0 | JH10: 0 | JI10: 1 | JJ10: 2 | JK10: 1 | JL10: 5 | JM10: 0 | JN10: 1 | JO10: 0 | JP10: 0 | JQ10: 0 | JR10: 0 | JS10: 0 | JT10: 0 | JU10: 0 | JV10: 0 | JW10: 0 | JX10: 0 | JY10: 0 | JZ10: 0 | KA10: 0 | KB10: 0 | KC10: 177 | KD10: 0
A11: LUCIANO CASTILLO COLONNA | B11: SULLANA | C11: 200601 | D11: 1910 | E11: HOSPITAL DE APOYO II - 2, SULLANA | F11: SULLANA | G11: NINGUN CLAS | H11: NO PERTENECE A NINGUNA MICRORED | I11: NO PERTENECE A NINGUNA RED | J11: HOSPITAL DE APOYO III SULLANA | K11: 10 | L11: 0 | M11: 0 | N11: 23 | O11: 87 | P11: 0 | Q11: 2 | R11: 0 | S11: 1 | T11: 0 | U11: 0 | V11: 8 | W11: 64 | X11: 0 | Y11: 14 | Z11: 9 | AA11: 13 | AB11: 17 | AC11: 54 | AD11: 6 | AE11: 36 | AF11: 0 | AG11: 0 | AH11: 0 | AI11: 0 | AJ11: 0 | AK11: 0 | AL11: 0 | AM11: 0 | AN11: 0 | AO11: 0 | AP11: 1 | AQ11: 1 | AR11: 1 | AS11: 5 | AT11: 0 | AU11: 1 | AV11: 1 | AW11: 0 | AX11: 0 | AY11: 1 | AZ11: 6 | BA11: 30 | BB11: 0 | BC11: 0 | BD11: 1 | BE11: 5 | BF11: 5 | BG11: 20 | BH11: 0 | BI11: 0 | BJ11: 6 | BK11: 14 | BL11: 0 | BM11: 0 | BN11: 0 | BO11: 0 | BP11: 1 | BQ11: 2 | BR11: 51 | BS11: 80 | BT11: 5 | BU11: 6 | BV11: 10 | BW11: 0 | BX11: 3 | BY11: 3 | BZ11: 6 | CA11: 0 | CB11: 65 | CC11: 0 | CD11: 0 | CE11: 0 | CF11: 1 | CG11: 0 | CH11: 0 | CI11: 0 | CJ11: 0 | CK11: 0 | CL11: 0 | CM11: 3 | CN11: 2 | CO11: 3 | CP11: 0 | CQ11: 3 | CR11: 5 | CS11: 3 | CT11: 5 | CU11: 28 | CV11: 2 | CW11: 28 | CX11: 2 | CY11: 14 | CZ11: 21 | DA11: 14 | DB11: 21 | DC11: 4 | DD11: 1 | DE11: 4 | DF11: 1 | DG11: 11 | DH11: 0 | DI11: 11 | DJ11: 0 | DK11: 0 | DL11: 0 | DM11: 0 | DN11: 0 | DO11: 30 | DP11: 0 | DQ11: 0 | DR11: 0 | DS11: 0 | DT11: 0 | DU11: 0 | DV11: 0 | DW11: 0 | DX11: 0 | DY11: 0 | DZ11: 0 | EA11: 0 | EB11: 0 | EC11: 0 | ED11: 0 | EE11: 0 | EF11: 0 | EG11: 0 | EH11: 0 | EI11: 6 | EJ11: 63 | EK11: 6 | EL11: 63 | EM11: 36 | EN11: 36 | EO11: 6 | EP11: 61 | EQ11: 0 | ER11: 0 | ES11: 36 | ET11: 0 | EU11: 6 | EV11: 60 | EW11: 0 | EX11: 0 | EY11: 36 | EZ11: 0 | FA11: 5 | FB11: 32 | FC11: 0 | FD11: 1 | FE11: 22 | FF11: 0 | FG11: 0 | FH11: 0 | FI11: 0 | FJ11: 0 | FK11: 0 | FL11: 0 | FM11: 0 | FN11: 0 | FO11: 0 | FP11: 0 | FQ11: 0 | FR11: 0 | FS11: 0 | FT11: 0 | FU11: 0 | FV11: 0 | FW11: 0 | FX11: 0 | FY11: 0 | FZ11: 0 | GA11: 0 | GB11: 0 | GC11: 0 | GD11: 0 | GE11: 0 | GF11: 0 | GG11: 0 | GH11: 0 | GI11: 0 | GJ11: 0 | GK11: 0 | GL11: 1 | GM11: 0 | GN11: 0 | GO11: 0 | GP11: 0 | GQ11: 0 | GR11: 0 | GS11: 0 | GT11: 0 | GU11: 0 | GV11: 0 | GW11: 0 | GX11: 0 | GY11: 0 | GZ11: 0 | HA11: 0 | HB11: 0 | HC11: 0 | HD11: 0 | HE11: 1 | HF11: 13 | HG11: 0 | HH11: 0 | HI11: 0 | HJ11: 0 | HK11: 0 | HL11: 0 | HM11: 0 | HN11: 0 | HO11: 16 | HP11: 2 | HQ11: 0 | HR11: 10 | HS11: 39 | HT11: 0 | HU11: 0 | HV11: 10 | HW11: 39 | HX11: 0 | HY11: 1 | HZ11: 26 | IA11: 43 | IB11: 35 | IC11: 103 | ID11: 34 | IE11: 101 | IF11: 0 | IG11: 0 | IH11: 2 | II11: 3 | IJ11: 34 | IK11: 102 | IL11: 0 | IM11: 0 | IN11: 0 | IO11: 0 | IP11: 0 | IQ11: 0 | IR11: 0 | IS11: 0 | IT11: 0 | IU11: 0 | IV11: 0 | IW11: 0 | IX11: 0 | IY11: 0 | IZ11: 1 | JA11: 3 | JB11: 2 | JC11: 1 | JD11: 1 | JE11: 0 | JF11: 1 | JG11: 0 | JH11: 0 | JI11: 4 | JJ11: 2 | JK11: 1 | JL11: 1 | JM11: 0 | JN11: 0 | JO11: 0 | JP11: 0 | JQ11: 0 | JR11: 0 | JS11: 0 | JT11: 0 | JU11: 0 | JV11: 0 | JW11: 0 | JX11: 0 | JY11: 0 | JZ11: 0 | KA11: 0 | KB11: 0 | KC11: 135 | KD11: 0
A12: LUCIANO CASTILLO COLONNA | B12: SULLANA | C12: 200601 | D12: 1910 | E12: HOSPITAL DE APOYO II - 2, SULLANA | F12: SULLANA | G12: NINGUN CLAS | H12: NO PERTENECE A NINGUNA MICRORED | I12: NO PERTENECE A NINGUNA RED | J12: HOSPITAL DE APOYO III SULLANA | K12: 11 | L12: 0 | M12: 0 | N12: 20 | O12: 63 | P12: 0 | Q12: 0 | R12: 0 | S12: 0 | T12: 0 | U12: 0 | V12: 3 | W12: 40 | X12: 0 | Y12: 14 | Z12: 3 | AA12: 15 | AB12: 11 | AC12: 29 | AD12: 4 | AE12: 27 | AF12: 0 | AG12: 0 | AH12: 0 | AI12: 0 | AJ12: 0 | AK12: 0 | AL12: 0 | AM12: 0 | AN12: 0 | AO12: 0 | AP12: 2 | AQ12: 1 | AR12: 0 | AS12: 5 | AT12: 0 | AU12: 1 | AV12: 0 | AW12: 0 | AX12: 0 | AY12: 0 | AZ12: 9 | BA12: 22 | BB12: 0 | BC12: 0 | BD12: 2 | BE12: 3 | BF12: 7 | BG12: 13 | BH12: 0 | BI12: 0 | BJ12: 4 | BK12: 11 | BL12: 0 | BM12: 0 | BN12: 0 | BO12: 0 | BP12: 1 | BQ12: 3 | BR12: 33 | BS12: 48 | BT12: 9 | BU12: 4 | BV12: 5 | BW12: 1 | BX12: 1 | BY12: 0 | BZ12: 0 | CA12: 0 | CB12: 69 | CC12: 0 | CD12: 0 | CE12: 0 | CF12: 0 | CG12: 0 | CH12: 0 | CI12: 0 | CJ12: 0 | CK12: 0 | CL12: 0 | CM12: 0 | CN12: 0 | CO12: 0 | CP12: 0 | CQ12: 5 | CR12: 4 | CS12: 5 | CT12: 4 | CU12: 26 | CV12: 3 | CW12: 26 | CX12: 3 | CY12: 8 | CZ12: 29 | DA12: 8 | DB12: 29 | DC12: 17 | DD12: 1 | DE12: 17 | DF12: 1 | DG12: 16 | DH12: 0 | DI12: 16 | DJ12: 0 | DK12: 0 | DL12: 0 | DM12: 0 | DN12: 0 | DO12: 25 | DP12: 0 | DQ12: 11 | DR12: 0 | DS12: 0 | DT12: 0 | DU12: 0 | DV12: 0 | DW12: 0 | DX12: 0 | DY12: 0 | DZ12: 0 | EA12: 0 | EB12: 0 | EC12: 1 | ED12: 1 | EE12: 0 | EF12: 9 | EG12: 1 | EH12: 25 | EI12: 5 | EJ12: 39 | EK12: 5 | EL12: 39 | EM12: 25 | EN12: 25 | EO12: 4 | EP12: 36 | EQ12: 0 | ER12: 0 | ES12: 24 | ET12: 0 | EU12: 4 | EV12: 37 | EW12: 0 | EX12: 0 | EY12: 25 | EZ12: 0 | FA12: 3 | FB12: 23 | FC12: 0 | FD12: 0 | FE12: 19 | FF12: 0 | FG12: 0 | FH12: 0 | FI12: 0 | FJ12: 0 | FK12: 0 | FL12: 0 | FM12: 0 | FN12: 0 | FO12: 0 | FP12: 0 | FQ12: 0 | FR12: 0 | FS12: 0 | FT12: 0 | FU12: 0 | FV12: 0 | FW12: 0 | FX12: 0 | FY12: 0 | FZ12: 0 | GA12: 0 | GB12: 0 | GC12: 0 | GD12: 0 | GE12: 0 | GF12: 0 | GG12: 0 | GH12: 2 | GI12: 0 | GJ12: 0 | GK12: 0 | GL12: 0 | GM12: 0 | GN12: 0 | GO12: 3 | GP12: 0 | GQ12: 0 | GR12: 2 | GS12: 0 | GT12: 0 | GU12: 0 | GV12: 0 | GW12: 0 | GX12: 0 | GY12: 0 | GZ12: 0 | HA12: 0 | HB12: 0 | HC12: 0 | HD12: 0 | HE12: 0 | HF12: 16 | HG12: 0 | HH12: 0 | HI12: 0 | HJ12: 0 | HK12: 0 | HL12: 0 | HM12: 0 | HN12: 0 | HO12: 15 | HP12: 3 | HQ12: 0 | HR12: 16 | HS12: 61 | HT12: 0 | HU12: 0 | HV12: 17 | HW12: 60 | HX12: 0 | HY12: 0 | HZ12: 32 | IA12: 68 | IB12: 49 | IC12: 93 | ID12: 42 | IE12: 89 | IF12: 0 | IG12: 0 | IH12: 5 | II12: 2 | IJ12: 43 | IK12: 89 | IL12: 0 | IM12: 0 | IN12: 0 | IO12: 0 | IP12: 0 | IQ12: 0 | IR12: 0 | IS12: 0 | IT12: 0 | IU12: 0 | IV12: 0 | IW12: 0 | IX12: 0 | IY12: 0 | IZ12: 0 | JA12: 1 | JB12: 0 | JC12: 0 | JD12: 0 | JE12: 2 | JF12: 0 | JG12: 0 | JH12: 0 | JI12: 1 | JJ12: 1 | JK12: 1 | JL12: 2 | JM12: 0 | JN12: 2 | JO12: 0 | JP12: 0 | JQ12: 0 | JR12: 0 | JS12: 0 | JT12: 0 | JU12: 0 | JV12: 0 | JW12: 0 | JX12: 0 | JY12: 0 | JZ12: 35 | KA12: 0 | KB12: 0 | KC12: 131 | KD12: 0
A13: LUCIANO CASTILLO COLONNA | B13: SULLANA | C13: 200601 | D13: 1910 | E13: HOSPITAL DE APOYO II - 2, SULLANA | F13: SULLANA | G13: NINGUN CLAS | H13: NO PERTENECE A NINGUNA MICRORED | I13: NO PERTENECE A NINGUNA RED | J13: HOSPITAL DE APOYO III SULLANA | K13: 12 | L13: 1 | M13: 0 | N13: 18 | O13: 53 | P13: 1 | Q13: 0 | R13: 0 | S13: 4 | T13: 1 | U13: 0 | V13: 4 | W13: 54 | X13: 2 | Y13: 16 | Z13: 4 | AA13: 10 | AB13: 13 | AC13: 43 | AD13: 8 | AE13: 21 | AF13: 0 | AG13: 0 | AH13: 0 | AI13: 0 | AJ13: 0 | AK13: 0 | AL13: 0 | AM13: 0 | AN13: 0 | AO13: 0 | AP13: 3 | AQ13: 2 | AR13: 2 | AS13: 7 | AT13: 0 | AU13: 1 | AV13: 0 | AW13: 2 | AX13: 1 | AY13: 0 | AZ13: 8 | BA13: 24 | BB13: 0 | BC13: 0 | BD13: 2 | BE13: 7 | BF13: 5 | BG13: 15 | BH13: 0 | BI13: 0 | BJ13: 7 | BK13: 8 | BL13: 0 | BM13: 1 | BN13: 0 | BO13: 0 | BP13: 1 | BQ13: 6 | BR13: 26 | BS13: 49 | BT13: 9 | BU13: 0 | BV13: 7 | BW13: 1 | BX13: 0 | BY13: 0 | BZ13: 1 | CA13: 0 | CB13: 63 | CC13: 0 | CD13: 0 | CE13: 0 | CF13: 0 | CG13: 0 | CH13: 0 | CI13: 0 | CJ13: 0 | CK13: 0 | CL13: 0 | CM13: 0 | CN13: 1 | CO13: 0 | CP13: 0 | CQ13: 5 | CR13: 4 | CS13: 5 | CT13: 4 | CU13: 28 | CV13: 10 | CW13: 28 | CX13: 10 | CY13: 7 | CZ13: 31 | DA13: 7 | DB13: 31 | DC13: 10 | DD13: 2 | DE13: 10 | DF13: 1 | DG13: 9 | DH13: 0 | DI13: 9 | DJ13: 0 | DK13: 0 | DL13: 0 | DM13: 0 | DN13: 0 | DO13: 30 | DP13: 0 | DQ13: 0 | DR13: 0 | DS13: 0 | DT13: 0 | DU13: 0 | DV13: 0 | DW13: 0 | DX13: 0 | DY13: 0 | DZ13: 0 | EA13: 0 | EB13: 0 | EC13: 0 | ED13: 0 | EE13: 0 | EF13: 11 | EG13: 0 | EH13: 2 | EI13: 5 | EJ13: 58 | EK13: 5 | EL13: 58 | EM13: 43 | EN13: 43 | EO13: 3 | EP13: 54 | EQ13: 0 | ER13: 0 | ES13: 41 | ET13: 0 | EU13: 3 | EV13: 56 | EW13: 0 | EX13: 0 | EY13: 42 | EZ13: 0 | FA13: 1 | FB13: 37 | FC13: 0 | FD13: 0 | FE13: 35 | FF13: 0 | FG13: 0 | FH13: 0 | FI13: 0 | FJ13: 0 | FK13: 0 | FL13: 0 | FM13: 0 | FN13: 0 | FO13: 0 | FP13: 0 | FQ13: 0 | FR13: 0 | FS13: 0 | FT13: 0 | FU13: 0 | FV13: 0 | FW13: 0 | FX13: 0 | FY13: 0 | FZ13: 0 | GA13: 0 | GB13: 0 | GC13: 0 | GD13: 0 | GE13: 0 | GF13: 0 | GG13: 0 | GH13: 2 | GI13: 0 | GJ13: 0 | GK13: 0 | GL13: 0 | GM13: 0 | GN13: 0 | GO13: 1 | GP13: 0 | GQ13: 0 | GR13: 1 | GS13: 0 | GT13: 0 | GU13: 0 | GV13: 0 | GW13: 0 | GX13: 0 | GY13: 0 | GZ13: 0 | HA13: 0 | HB13: 0 | HC13: 0 | HD13: 0 | HE13: 0 | HF13: 15 | HG13: 0 | HH13: 0 | HI13: 0 | HJ13: 0 | HK13: 0 | HL13: 0 | HM13: 0 | HN13: 0 | HO13: 14 | HP13: 28 | HQ13: 1 | HR13: 36 | HS13: 86 | HT13: 0 | HU13: 0 | HV13: 36 | HW13: 85 | HX13: 0 | HY13: 0 | HZ13: 54 | IA13: 80 | IB13: 44 | IC13: 107 | ID13: 39 | IE13: 98 | IF13: 0 | IG13: 0 | IH13: 3 | II13: 6 | IJ13: 41 | IK13: 103 | IL13: 0 | IM13: 0 | IN13: 0 | IO13: 0 | IP13: 0 | IQ13: 0 | IR13: 0 | IS13: 0 | IT13: 0 | IU13: 0 | IV13: 0 | IW13: 0 | IX13: 0 | IY13: 0 | IZ13: 1 | JA13: 2 | JB13: 2 | JC13: 0 | JD13: 0 | JE13: 1 | JF13: 0 | JG13: 0 | JH13: 0 | JI13: 2 | JJ13: 3 | JK13: 0 | JL13: 2 | JM13: 1 | JN13: 0 | JO13: 0 | JP13: 0 | JQ13: 0 | JR13: 0 | JS13: 0 | JT13: 0 | JU13: 0 | JV13: 0 | JW13: 0 | JX13: 0 | JY13: 0 | JZ13: 13 | KA13: 0 | KB13: 0 | KC13: 137 | KD13: 0
A14: LUCIANO CASTILLO COLONNA | B14: AYABACA | C14: 200201 | D14: 1911 | E14: AYABACA | F14: AYABACA | G14: NINGUN CLAS | H14: AYABACA | I14: AYABACA | J14: SALUD LUCIANO CASTILLO COLONNA | K14: 12 | L14: 0 | M14: 0 | N14: 0 | O14: 2 | P14: 5 | Q14: 3 | R14: 0 | S14: 1 | T14: 0 | U14: 0 | V14: 4 | W14: 11 | X14: 2 | Y14: 4 | Z14: 4 | AA14: 2 | AB14: 1 | AC14: 4 | AD14: 2 | AE14: 5 | AF14: 0 | AG14: 0 | AH14: 0 | AI14: 0 | AJ14: 0 | AK14: 0 | AL14: 0 | AM14: 0 | AN14: 0 | AO14: 0 | AP14: 0 | AQ14: 1 | AR14: 0 | AS14: 1 | AT14: 0 | AU14: 0 | AV14: 0 | AW14: 0 | AX14: 0 | AY14: 0 | AZ14: 0 | BA14: 0 | BB14: 0 | BC14: 0 | BD14: 0 | BE14: 0 | BF14: 0 | BG14: 0 | BH14: 0 | BI14: 0 | BJ14: 0 | BK14: 0 | BL14: 0 | BM14: 0 | BN14: 0 | BO14: 0 | BP14: 0 | BQ14: 0 | BR14: 0 | BS14: 0 | BT14: 0 | BU14: 0 | BV14: 0 | BW14: 0 | BX14: 0 | BY14: 0 | BZ14: 0 | CA14: 2 | CB14: 7 | CC14: 0 | CD14: 0 | CE14: 0 | CF14: 0 | CG14: 0 | CH14: 0 | CI14: 0 | CJ14: 0 | CK14: 0 | CL14: 0 | CM14: 0 | CN14: 0 | CO14: 0 | CP14: 0 | CQ14: 1 | CR14: 2 | CS14: 1 | CT14: 2 | CU14: 2 | CV14: 13 | CW14: 2 | CX14: 13 | CY14: 0 | CZ14: 25 | DA14: 0 | DB14: 25 | DC14: 1 | DD14: 3 | DE14: 1 | DF14: 2 | DG14: 2 | DH14: 0 | DI14: 2 | DJ14: 0 | DK14: 0 | DL14: 0 | DM14: 0 | DN14: 0 | DO14: 0 | DP14: 0 | DQ14: 0 | DR14: 0 | DS14: 0 | DT14: 0 | DU14: 0 | DV14: 0 | DW14: 0 | DX14: 0 | DY14: 0 | DZ14: 0 | EA14: 0 | EB14: 0 | EC14: 0 | ED14: 0 | EE14: 1 | EF14: 2 | EG14: 0 | EH14: 2 | EI14: 0 | EJ14: 5 | EK14: 0 | EL14: 5 | EM14: 0 | EN14: 0 | EO14: 1 | EP14: 8 | EQ14: 0 | ER14: 0 | ES14: 0 | ET14: 0 | EU14: 0 | EV14: 8 | EW14: 0 | EX14: 0 | EY14: 0 | EZ14: 0 | FA14: 0 | FB14: 1 | FC14: 0 | FD14: 0 | FE14: 0 | FF14: 0 | FG14: 0 | FH14: 2 | FI14: 0 | FJ14: 2 | FK14: 0 | FL14: 0 | FM14: 0 | FN14: 2 | FO14: 0 | FP14: 2 | FQ14: 0 | FR14: 0 | FS14: 0 | FT14: 0 | FU14: 0 | FV14: 0 | FW14: 0 | FX14: 0 | FY14: 5 | FZ14: 0 | GA14: 0 | GB14: 0 | GC14: 0 | GD14: 0 | GE14: 3 | GF14: 7 | GG14: 2 | GH14: 11 | GI14: 0 | GJ14: 1 | GK14: 0 | GL14: 0 | GM14: 0 | GN14: 0 | GO14: 0 | GP14: 0 | GQ14: 2 | GR14: 0 | GS14: 2 | GT14: 0 | GU14: 0 | GV14: 0 | GW14: 1 | GX14: 0 | GY14: 0 | GZ14: 0 | HA14: 0 | HB14: 0 | HC14: 0 | HD14: 2 | HE14: 0 | HF14: 0 | HG14: 0 | HH14: 0 | HI14: 0 | HJ14: 0 | HK14: 0 | HL14: 0 | HM14: 0 | HN14: 3 | HO14: 3 | HP14: 0 | HQ14: 1 | HR14: 4 | HS14: 4 | HT14: 0 | HU14: 0 | HV14: 4 | HW14: 4 | HX14: 0 | HY14: 0 | HZ14: 3 | IA14: 4 | IB14: 0 | IC14: 0 | ID14: 0 | IE14: 0 | IF14: 0 | IG14: 0 | IH14: 0 | II14: 0 | IJ14: 0 | IK14: 0 | IL14: 0 | IM14: 0 | IN14: 0 | IO14: 0 | IP14: 0 | IQ14: 0 | IR14: 0 | IS14: 0 | IT14: 0 | IU14: 0 | IV14: 0 | IW14: 0 | IX14: 0 | IY14: 0 | IZ14: 0 | JA14: 0 | JB14: 1 | JC14: 0 | JD14: 0 | JE14: 0 | JF14: 0 | JG14: 0 | JH14: 0 | JI14: 0 | JJ14: 0 | JK14: 0 | JL14: 0 | JM14: 0 | JN14: 0 | JO14: 0 | JP14: 0 | JQ14: 0 | JR14: 0 | JS14: 0 | JT14: 0 | JU14: 0 | JV14: 0 | JW14: 0 | JX14: 0 | JY14: 24 | JZ14: 7 | KA14: 0 | KB14: 0 | KC14: 0 | KD14: 0
A15: LUCIANO CASTILLO COLONNA | B15: AYABACA | C15: 200201 | D15: 1911 | E15: AYABACA | F15: AYABACA | G15: NINGUN CLAS | H15: AYABACA | I15: AYABACA | J15: SALUD LUCIANO CASTILLO COLONNA | K15: 11 | L15: 0 | M15: 0 | N15: 1 | O15: 0 | P15: 1 | Q15: 1 | R15: 3 | S15: 2 | T15: 0 | U15: 0 | V15: 10 | W15: 13 | X15: 6 | Y15: 2 | Z15: 1 | AA15: 4 | AB15: 0 | AC15: 3 | AD15: 2 | AE15: 6 | AF15: 0 | AG15: 0 | AH15: 0 | AI15: 0 | AJ15: 0 | AK15: 0 | AL15: 0 | AM15: 0 | AN15: 0 | AO15: 0 | AP15: 0 | AQ15: 1 | AR15: 0 | AS15: 0 | AT15: 0 | AU15: 0 | AV15: 0 | AW15: 0 | AX15: 0 | AY15: 0 | AZ15: 0 | BA15: 0 | BB15: 0 | BC15: 0 | BD15: 0 | BE15: 0 | BF15: 0 | BG15: 0 | BH15: 0 | BI15: 0 | BJ15: 0 | BK15: 1 | BL15: 0 | BM15: 0 | BN15: 0 | BO15: 0 | BP15: 0 | BQ15: 0 | BR15: 0 | BS15: 0 | BT15: 0 | BU15: 0 | BV15: 0 | BW15: 0 | BX15: 0 | BY15: 0 | BZ15: 0 | CA15: 1 | CB15: 27 | CC15: 0 | CD15: 0 | CE15: 0 | CF15: 0 | CG15: 0 | CH15: 0 | CI15: 0 | CJ15: 0 | CK15: 0 | CL15: 0 | CM15: 0 | CN15: 0 | CO15: 0 | CP15: 0 | CQ15: 1 | CR15: 2 | CS15: 1 | CT15: 2 | CU15: 3 | CV15: 18 | CW15: 3 | CX15: 18 | CY15: 8 | CZ15: 21 | DA15: 8 | DB15: 21 | DC15: 3 | DD15: 2 | DE15: 3 | DF15: 0 | DG15: 1 | DH15: 1 | DI15: 1 | DJ15: 1 | DK15: 0 | DL15: 0 | DM15: 0 | DN15: 0 | DO15: 0 | DP15: 0 | DQ15: 0 | DR15: 0 | DS15: 0 | DT15: 0 | DU15: 0 | DV15: 0 | DW15: 0 | DX15: 0 | DY15: 0 | DZ15: 0 | EA15: 0 | EB15: 0 | EC15: 0 | ED15: 0 | EE15: 2 | EF15: 6 | EG15: 0 | EH15: 7 | EI15: 1 | EJ15: 5 | EK15: 1 | EL15: 5 | EM15: 0 | EN15: 0 | EO15: 2 | EP15: 9 | EQ15: 0 | ER15: 0 | ES15: 0 | ET15: 0 | EU15: 2 | EV15: 8 | EW15: 0 | EX15: 0 | EY15: 0 | EZ15: 0 | FA15: 0 | FB15: 5 | FC15: 0 | FD15: 0 | FE15: 0 | FF15: 0 | FG15: 1 | FH15: 0 | FI15: 1 | FJ15: 0 | FK15: 0 | FL15: 0 | FM15: 1 | FN15: 0 | FO15: 1 | FP15: 0 | FQ15: 0 | FR15: 0 | FS15: 0 | FT15: 0 | FU15: 0 | FV15: 0 | FW15: 0 | FX15: 0 | FY15: 7 | FZ15: 0 | GA15: 0 | GB15: 0 | GC15: 0 | GD15: 0 | GE15: 4 | GF15: 6 | GG15: 5 | GH15: 20 | GI15: 0 | GJ15: 0 | GK15: 0 | GL15: 0 | GM15: 0 | GN15: 0 | GO15: 0 | GP15: 0 | GQ15: 2 | GR15: 11 | GS15: 0 | GT15: 7 | GU15: 0 | GV15: 0 | GW15: 0 | GX15: 0 | GY15: 0 | GZ15: 0 | HA15: 0 | HB15: 0 | HC15: 2 | HD15: 3 | HE15: 0 | HF15: 3 | HG15: 0 | HH15: 0 | HI15: 0 | HJ15: 0 | HK15: 0 | HL15: 0 | HM15: 0 | HN15: 2 | HO15: 10 | HP15: 0 | HQ15: 0 | HR15: 10 | HS15: 32 | HT15: 1 | HU15: 0 | HV15: 10 | HW15: 32 | HX15: 0 | HY15: 0 | HZ15: 6 | IA15: 7 | IB15: 0 | IC15: 0 | ID15: 0 | IE15: 0 | IF15: 0 | IG15: 0 | IH15: 0 | II15: 0 | IJ15: 0 | IK15: 0 | IL15: 0 | IM15: 0 | IN15: 0 | IO15: 0 | IP15: 0 | IQ15: 0 | IR15: 0 | IS15: 0 | IT15: 0 | IU15: 0 | IV15: 0 | IW15: 0 | IX15: 0 | IY15: 0 | IZ15: 2 | JA15: 0 | JB15: 1 | JC15: 0 | JD15: 0 | JE15: 0 | JF15: 0 | JG15: 0 | JH15: 0 | JI15: 0 | JJ15: 1 | JK15: 0 | JL15: 0 | JM15: 0 | JN15: 0 | JO15: 0 | JP15: 0 | JQ15: 0 | JR15: 0 | JS15: 0 | JT15: 0 | JU15: 0 | JV15: 0 | JW15: 0 | JX15: 0 | JY15: 39 | JZ15: 15 | KA15: 0 | KB15: 0 | KC15: 0 | KD15: 0
A16: LUCIANO CASTILLO COLONNA | B16: AYABACA | C16: 200201 | D16: 1911 | E16: AYABACA | F16: AYABACA | G16: NINGUN CLAS | H16: AYABACA | I16: AYABACA | J16: SALUD LUCIANO CASTILLO COLONNA | K16: 9 | L16: 0 | M16: 0 | N16: 0 | O16: 0 | P16: 0 | Q16: 2 | R16: 3 | S16: 0 | T16: 0 | U16: 0 | V16: 1 | W16: 7 | X16: 0 | Y16: 4 | Z16: 2 | AA16: 6 | AB16: 3 | AC16: 4 | AD16: 0 | AE16: 11 | AF16: 0 | AG16: 0 | AH16: 0 | AI16: 0 | AJ16: 0 | AK16: 0 | AL16: 0 | AM16: 0 | AN16: 0 | AO16: 0 | AP16: 0 | AQ16: 2 | AR16: 0 | AS16: 0 | AT16: 0 | AU16: 0 | AV16: 0 | AW16: 0 | AX16: 0 | AY16: 0 | AZ16: 0 | BA16: 0 | BB16: 0 | BC16: 0 | BD16: 0 | BE16: 0 | BF16: 0 | BG16: 0 | BH16: 0 | BI16: 0 | BJ16: 0 | BK16: 1 | BL16: 0 | BM16: 0 | BN16: 0 | BO16: 0 | BP16: 0 | BQ16: 0 | BR16: 0 | BS16: 0 | BT16: 0 | BU16: 0 | BV16: 0 | BW16: 0 | BX16: 0 | BY16: 0 | BZ16: 0 | CA16: 0 | CB16: 6 | CC16: 0 | CD16: 1 | CE16: 0 | CF16: 0 | CG16: 0 | CH16: 0 | CI16: 0 | CJ16: 0 | CK16: 0 | CL16: 0 | CM16: 0 | CN16: 0 | CO16: 0 | CP16: 0 | CQ16: 2 | CR16: 3 | CS16: 2 | CT16: 3 | CU16: 1 | CV16: 11 | CW16: 1 | CX16: 11 | CY16: 1 | CZ16: 21 | DA16: 1 | DB16: 21 | DC16: 1 | DD16: 3 | DE16: 1 | DF16: 2 | DG16: 1 | DH16: 0 | DI16: 1 | DJ16: 0 | DK16: 0 | DL16: 0 | DM16: 0 | DN16: 0 | DO16: 0 | DP16: 0 | DQ16: 0 | DR16: 0 | DS16: 0 | DT16: 0 | DU16: 0 | DV16: 0 | DW16: 0 | DX16: 0 | DY16: 0 | DZ16: 0 | EA16: 0 | EB16: 0 | EC16: 3 | ED16: 3 | EE16: 2 | EF16: 34 | EG16: 2 | EH16: 19 | EI16: 1 | EJ16: 9 | EK16: 1 | EL16: 9 | EM16: 4 | EN16: 4 | EO16: 1 | EP16: 10 | EQ16: 0 | ER16: 0 | ES16: 4 | ET16: 0 | EU16: 1 | EV16: 9 | EW16: 0 | EX16: 0 | EY16: 3 | EZ16: 0 | FA16: 0 | FB16: 0 | FC16: 0 | FD16: 0 | FE16: 0 | FF16: 0 | FG16: 0 | FH16: 7 | FI16: 0 | FJ16: 7 | FK16: 1 | FL16: 1 | FM16: 0 | FN16: 7 | FO16: 0 | FP16: 7 | FQ16: 1 | FR16: 1 | FS16: 0 | FT16: 0 | FU16: 0 | FV16: 0 | FW16: 0 | FX16: 0 | FY16: 9 | FZ16: 0 | GA16: 0 | GB16: 0 | GC16: 0 | GD16: 0 | GE16: 5 | GF16: 5 | GG16: 3 | GH16: 12 | GI16: 1 | GJ16: 2 | GK16: 0 | GL16: 0 | GM16: 0 | GN16: 0 | GO16: 0 | GP16: 0 | GQ16: 0 | GR16: 0 | GS16: 0 | GT16: 0 | GU16: 0 | GV16: 0 | GW16: 0 | GX16: 0 | GY16: 0 | GZ16: 0 | HA16: 0 | HB16: 0 | HC16: 1 | HD16: 0 | HE16: 0 | HF16: 3 | HG16: 0 | HH16: 0 | HI16: 0 | HJ16: 0 | HK16: 0 | HL16: 0 | HM16: 0 | HN16: 0 | HO16: 1 | HP16: 0 | HQ16: 2 | HR16: 11 | HS16: 5 | HT16: 0 | HU16: 0 | HV16: 11 | HW16: 5 | HX16: 0 | HY16: 0 | HZ16: 11 | IA16: 6 | IB16: 0 | IC16: 0 | ID16: 0 | IE16: 0 | IF16: 0 | IG16: 0 | IH16: 0 | II16: 0 | IJ16: 0 | IK16: 0 | IL16: 0 | IM16: 0 | IN16: 0 | IO16: 0 | IP16: 0 | IQ16: 0 | IR16: 0 | IS16: 0 | IT16: 0 | IU16: 0 | IV16: 0 | IW16: 0 | IX16: 0 | IY16: 0 | IZ16: 0 | JA16: 0 | JB16: 3 | JC16: 1 | JD16: 0 | JE16: 0 | JF16: 0 | JG16: 0 | JH16: 0 | JI16: 0 | JJ16: 0 | JK16: 0 | JL16: 0 | JM16: 0 | JN16: 0 | JO16: 0 | JP16: 0 | JQ16: 0 | JR16: 0 | JS16: 0 | JT16: 0 | JU16: 0 | JV16: 0 | JW16: 0 | JX16: 0 | JY16: 38 | JZ16: 58 | KA16: 0 | KB16: 0 | KC16: 0 | KD16: 0
A17: LUCIANO CASTILLO COLONNA | B17: AYABACA | C17: 200201 | D17: 1911 | E17: AYABACA | F17: AYABACA | G17: NINGUN CLAS | H17: AYABACA | I17: AYABACA | J17: SALUD LUCIANO CASTILLO COLONNA | K17: 10 | L17: 0 | M17: 0 | N17: 0 | O17: 2 | P17: 2 | Q17: 3 | R17: 6 | S17: 5 | T17: 0 | U17: 1 | V17: 0 | W17: 1 | X17: 0 | Y17: 0 | Z17: 4 | AA17: 5 | AB17: 7 | AC17: 12 | AD17: 7 | AE17: 18 | AF17: 0 | AG17: 0 | AH17: 0 | AI17: 0 | AJ17: 0 | AK17: 0 | AL17: 0 | AM17: 0 | AN17: 0 | AO17: 0 | AP17: 0 | AQ17: 1 | AR17: 0 | AS17: 1 | AT17: 0 | AU17: 0 | AV17: 0 | AW17: 0 | AX17: 0 | AY17: 0 | AZ17: 0 | BA17: 2 | BB17: 0 | BC17: 0 | BD17: 0 | BE17: 2 | BF17: 0 | BG17: 0 | BH17: 0 | BI17: 0 | BJ17: 0 | BK17: 2 | BL17: 0 | BM17: 0 | BN17: 0 | BO17: 0 | BP17: 0 | BQ17: 0 | BR17: 0 | BS17: 4 | BT17: 0 | BU17: 0 | BV17: 0 | BW17: 0 | BX17: 0 | BY17: 0 | BZ17: 0 | CA17: 1 | CB17: 7 | CC17: 0 | CD17: 0 | CE17: 0 | CF17: 0 | CG17: 0 | CH17: 0 | CI17: 0 | CJ17: 0 | CK17: 0 | CL17: 0 | CM17: 0 | CN17: 0 | CO17: 0 | CP17: 0 | CQ17: 0 | CR17: 12 | CS17: 0 | CT17: 12 | CU17: 3 | CV17: 30 | CW17: 3 | CX17: 29 | CY17: 3 | CZ17: 20 | DA17: 3 | DB17: 20 | DC17: 2 | DD17: 1 | DE17: 2 | DF17: 1 | DG17: 1 | DH17: 0 | DI17: 1 | DJ17: 0 | DK17: 0 | DL17: 0 | DM17: 0 | DN17: 0 | DO17: 0 | DP17: 0 | DQ17: 0 | DR17: 0 | DS17: 0 | DT17: 0 | DU17: 0 | DV17: 0 | DW17: 0 | DX17: 0 | DY17: 0 | DZ17: 0 | EA17: 0 | EB17: 0 | EC17: 0 | ED17: 0 | EE17: 1 | EF17: 8 | EG17: 0 | EH17: 12 | EI17: 0 | EJ17: 1 | EK17: 0 | EL17: 1 | EM17: 0 | EN17: 0 | EO17: 0 | EP17: 1 | EQ17: 0 | ER17: 0 | ES17: 0 | ET17: 0 | EU17: 0 | EV17: 1 | EW17: 0 | EX17: 0 | EY17: 0 | EZ17: 0 | FA17: 0 | FB17: 0 | FC17: 0 | FD17: 0 | FE17: 0 | FF17: 0 | FG17: 0 | FH17: 0 | FI17: 0 | FJ17: 0 | FK17: 0 | FL17: 0 | FM17: 0 | FN17: 0 | FO17: 0 | FP17: 0 | FQ17: 0 | FR17: 0 | FS17: 0 | FT17: 0 | FU17: 0 | FV17: 0 | FW17: 0 | FX17: 0 | FY17: 6 | FZ17: 0 | GA17: 0 | GB17: 0 | GC17: 0 | GD17: 0 | GE17: 0 | GF17: 0 | GG17: 4 | GH17: 11 | GI17: 0 | GJ17: 2 | GK17: 0 | GL17: 0 | GM17: 0 | GN17: 0 | GO17: 0 | GP17: 0 | GQ17: 0 | GR17: 0 | GS17: 0 | GT17: 0 | GU17: 0 | GV17: 0 | GW17: 0 | GX17: 0 | GY17: 0 | GZ17: 0 | HA17: 0 | HB17: 0 | HC17: 2 | HD17: 0 | HE17: 0 | HF17: 1 | HG17: 0 | HH17: 0 | HI17: 0 | HJ17: 0 | HK17: 0 | HL17: 0 | HM17: 0 | HN17: 0 | HO17: 4 | HP17: 0 | HQ17: 1 | HR17: 27 | HS17: 7 | HT17: 0 | HU17: 0 | HV17: 27 | HW17: 7 | HX17: 0 | HY17: 0 | HZ17: 27 | IA17: 7 | IB17: 0 | IC17: 0 | ID17: 0 | IE17: 0 | IF17: 0 | IG17: 0 | IH17: 0 | II17: 0 | IJ17: 0 | IK17: 0 | IL17: 0 | IM17: 0 | IN17: 0 | IO17: 0 | IP17: 0 | IQ17: 0 | IR17: 0 | IS17: 0 | IT17: 0 | IU17: 0 | IV17: 0 | IW17: 0 | IX17: 0 | IY17: 0 | IZ17: 0 | JA17: 0 | JB17: 0 | JC17: 2 | JD17: 0 | JE17: 0 | JF17: 0 | JG17: 0 | JH17: 0 | JI17: 0 | JJ17: 1 | JK17: 0 | JL17: 0 | JM17: 0 | JN17: 0 | JO17: 0 | JP17: 0 | JQ17: 0 | JR17: 0 | JS17: 0 | JT17: 0 | JU17: 0 | JV17: 0 | JW17: 0 | JX17: 0 | JY17: 45 | JZ17: 23 | KA17: 0 | KB17: 0 | KC17: 0 | KD17: 0
A18: LUCIANO CASTILLO COLONNA | B18: AYABACA | C18: 200201 | D18: 1911 | E18: AYABACA | F18: AYABACA | G18: NINGUN CLAS | H18: AYABACA | I18: AYABACA | J18: SALUD LUCIANO CASTILLO COLONNA | K18: 8 | L18: 0 | M18: 0 | N18: 0 | O18: 1 | P18: 2 | Q18: 3 | R18: 1 | S18: 4 | T18: 0 | U18: 0 | V18: 1 | W18: 9 | X18: 0 | Y18: 4 | Z18: 3 | AA18: 7 | AB18: 1 | AC18: 10 | AD18: 2 | AE18: 12 | AF18: 0 | AG18: 0 | AH18: 0 | AI18: 0 | AJ18: 0 | AK18: 0 | AL18: 0 | AM18: 0 | AN18: 0 | AO18: 0 | AP18: 0 | AQ18: 2 | AR18: 0 | AS18: 0 | AT18: 0 | AU18: 0 | AV18: 0 | AW18: 0 | AX18: 0 | AY18: 0 | AZ18: 0 | BA18: 0 | BB18: 0 | BC18: 0 | BD18: 0 | BE18: 0 | BF18: 0 | BG18: 0 | BH18: 0 | BI18: 0 | BJ18: 1 | BK18: 0 | BL18: 0 | BM18: 0 | BN18: 0 | BO18: 0 | BP18: 0 | BQ18: 0 | BR18: 0 | BS18: 2 | BT18: 0 | BU18: 0 | BV18: 0 | BW18: 0 | BX18: 0 | BY18: 0 | BZ18: 0 | CA18: 16 | CB18: 24 | CC18: 0 | CD18: 0 | CE18: 0 | CF18: 0 | CG18: 0 | CH18: 0 | CI18: 0 | CJ18: 0 | CK18: 0 | CL18: 0 | CM18: 0 | CN18: 1 | CO18: 0 | CP18: 0 | CQ18: 1 | CR18: 4 | CS18: 1 | CT18: 4 | CU18: 1 | CV18: 14 | CW18: 1 | CX18: 14 | CY18: 6 | CZ18: 21 | DA18: 6 | DB18: 20 | DC18: 2 | DD18: 1 | DE18: 2 | DF18: 1 | DG18: 2 | DH18: 1 | DI18: 2 | DJ18: 1 | DK18: 0 | DL18: 0 | DM18: 0 | DN18: 0 | DO18: 0 | DP18: 0 | DQ18: 0 | DR18: 0 | DS18: 0 | DT18: 0 | DU18: 0 | DV18: 0 | DW18: 0 | DX18: 0 | DY18: 0 | DZ18: 0 | EA18: 0 | EB18: 0 | EC18: 0 | ED18: 0 | EE18: 3 | EF18: 48 | EG18: 9 | EH18: 18 | EI18: 1 | EJ18: 11 | EK18: 1 | EL18: 11 | EM18: 3 | EN18: 3 | EO18: 1 | EP18: 14 | EQ18: 0 | ER18: 1 | ES18: 3 | ET18: 0 | EU18: 1 | EV18: 14 | EW18: 0 | EX18: 1 | EY18: 3 | EZ18: 0 | FA18: 0 | FB18: 0 | FC18: 0 | FD18: 0 | FE18: 0 | FF18: 0 | FG18: 0 | FH18: 2 | FI18: 0 | FJ18: 2 | FK18: 0 | FL18: 0 | FM18: 0 | FN18: 2 | FO18: 0 | FP18: 2 | FQ18: 0 | FR18: 0 | FS18: 0 | FT18: 0 | FU18: 0 | FV18: 0 | FW18: 0 | FX18: 0 | FY18: 8 | FZ18: 0 | GA18: 0 | GB18: 0 | GC18: 0 | GD18: 0 | GE18: 6 | GF18: 8 | GG18: 4 | GH18: 17 | GI18: 0 | GJ18: 4 | GK18: 0 | GL18: 0 | GM18: 0 | GN18: 0 | GO18: 0 | GP18: 0 | GQ18: 1 | GR18: 1 | GS18: 1 | GT18: 0 | GU18: 0 | GV18: 0 | GW18: 0 | GX18: 0 | GY18: 0 | GZ18: 0 | HA18: 0 | HB18: 0 | HC18: 3 | HD18: 2 | HE18: 0 | HF18: 4 | HG18: 0 | HH18: 0 | HI18: 0 | HJ18: 0 | HK18: 0 | HL18: 0 | HM18: 0 | HN18: 0 | HO18: 8 | HP18: 0 | HQ18: 0 | HR18: 9 | HS18: 9 | HT18: 0 | HU18: 0 | HV18: 9 | HW18: 8 | HX18: 0 | HY18: 0 | HZ18: 10 | IA18: 9 | IB18: 0 | IC18: 0 | ID18: 0 | IE18: 0 | IF18: 0 | IG18: 0 | IH18: 0 | II18: 0 | IJ18: 0 | IK18: 1 | IL18: 0 | IM18: 0 | IN18: 0 | IO18: 0 | IP18: 0 | IQ18: 0 | IR18: 0 | IS18: 0 | IT18: 0 | IU18: 0 | IV18: 0 | IW18: 0 | IX18: 0 | IY18: 0 | IZ18: 4 | JA18: 0 | JB18: 2 | JC18: 2 | JD18: 0 | JE18: 1 | JF18: 0 | JG18: 0 | JH18: 0 | JI18: 1 | JJ18: 0 | JK18: 0 | JL18: 0 | JM18: 0 | JN18: 0 | JO18: 0 | JP18: 0 | JQ18: 0 | JR18: 0 | JS18: 0 | JT18: 0 | JU18: 0 | JV18: 0 | JW18: 0 | JX18: 0 | JY18: 24 | JZ18: 83 | KA18: 0 | KB18: 0 | KC18: 0 | KD18: 0
A19: LUCIANO CASTILLO COLONNA | B19: AYABACA | C19: 200201 | D19: 1911 | E19: AYABACA | F19: AYABACA | G19: NINGUN CLAS | H19: AYABACA | I19: AYABACA | J19: SALUD LUCIANO CASTILLO COLONNA | K19: 7 | L19: 0 | M19: 0 | N19: 0 | O19: 1 | P19: 2 | Q19: 4 | R19: 4 | S19: 8 | T19: 0 | U19: 0 | V19: 2 | W19: 6 | X19: 0 | Y19: 2 | Z19: 2 | AA19: 5 | AB19: 1 | AC19: 7 | AD19: 4 | AE19: 16 | AF19: 0 | AG19: 0 | AH19: 0 | AI19: 0 | AJ19: 0 | AK19: 0 | AL19: 0 | AM19: 0 | AN19: 0 | AO19: 0 | AP19: 0 | AQ19: 2 | AR19: 0 | AS19: 0 | AT19: 0 | AU19: 0 | AV19: 0 | AW19: 0 | AX19: 0 | AY19: 0 | AZ19: 0 | BA19: 0 | BB19: 0 | BC19: 0 | BD19: 0 | BE19: 0 | BF19: 0 | BG19: 0 | BH19: 0 | BI19: 0 | BJ19: 0 | BK19: 2 | BL19: 0 | BM19: 0 | BN19: 0 | BO19: 0 | BP19: 0 | BQ19: 0 | BR19: 0 | BS19: 0 | BT19: 0 | BU19: 0 | BV19: 0 | BW19: 0 | BX19: 0 | BY19: 0 | BZ19: 0 | CA19: 16 | CB19: 37 | CC19: 2 | CD19: 0 | CE19: 0 | CF19: 0 | CG19: 0 | CH19: 0 | CI19: 0 | CJ19: 0 | CK19: 0 | CL19: 0 | CM19: 0 | CN19: 0 | CO19: 0 | CP19: 0 | CQ19: 0 | CR19: 5 | CS19: 0 | CT19: 5 | CU19: 7 | CV19: 18 | CW19: 7 | CX19: 18 | CY19: 6 | CZ19: 11 | DA19: 5 | DB19: 11 | DC19: 2 | DD19: 2 | DE19: 2 | DF19: 0 | DG19: 3 | DH19: 1 | DI19: 3 | DJ19: 1 | DK19: 0 | DL19: 0 | DM19: 0 | DN19: 0 | DO19: 0 | DP19: 0 | DQ19: 0 | DR19: 0 | DS19: 0 | DT19: 0 | DU19: 0 | DV19: 0 | DW19: 0 | DX19: 0 | DY19: 0 | DZ19: 0 | EA19: 0 | EB19: 0 | EC19: 0 | ED19: 0 | EE19: 6 | EF19: 27 | EG19: 7 | EH19: 39 | EI19: 2 | EJ19: 10 | EK19: 2 | EL19: 10 | EM19: 3 | EN19: 3 | EO19: 2 | EP19: 9 | EQ19: 0 | ER19: 1 | ES19: 4 | ET19: 0 | EU19: 2 | EV19: 9 | EW19: 0 | EX19: 1 | EY19: 4 | EZ19: 0 | FA19: 0 | FB19: 0 | FC19: 0 | FD19: 0 | FE19: 0 | FF19: 0 | FG19: 0 | FH19: 4 | FI19: 0 | FJ19: 4 | FK19: 0 | FL19: 0 | FM19: 0 | FN19: 4 | FO19: 0 | FP19: 4 | FQ19: 0 | FR19: 0 | FS19: 0 | FT19: 0 | FU19: 0 | FV19: 0 | FW19: 0 | FX19: 0 | FY19: 8 | FZ19: 0 | GA19: 0 | GB19: 0 | GC19: 0 | GD19: 0 | GE19: 9 | GF19: 6 | GG19: 9 | GH19: 34 | GI19: 0 | GJ19: 1 | GK19: 0 | GL19: 0 | GM19: 0 | GN19: 0 | GO19: 0 | GP19: 0 | GQ19: 1 | GR19: 7 | GS19: 1 | GT19: 1 | GU19: 0 | GV19: 0 | GW19: 0 | GX19: 2 | GY19: 0 | GZ19: 0 | HA19: 0 | HB19: 0 | HC19: 0 | HD19: 1 | HE19: 0 | HF19: 3 | HG19: 0 | HH19: 0 | HI19: 1 | HJ19: 1 | HK19: 0 | HL19: 0 | HM19: 0 | HN19: 0 | HO19: 2 | HP19: 0 | HQ19: 1 | HR19: 31 | HS19: 7 | HT19: 0 | HU19: 0 | HV19: 31 | HW19: 7 | HX19: 0 | HY19: 0 | HZ19: 6 | IA19: 4 | IB19: 0 | IC19: 0 | ID19: 0 | IE19: 0 | IF19: 0 | IG19: 0 | IH19: 0 | II19: 0 | IJ19: 0 | IK19: 0 | IL19: 0 | IM19: 0 | IN19: 0 | IO19: 0 | IP19: 0 | IQ19: 0 | IR19: 0 | IS19: 0 | IT19: 0 | IU19: 0 | IV19: 0 | IW19: 0 | IX19: 0 | IY19: 0 | IZ19: 4 | JA19: 8 | JB19: 2 | JC19: 5 | JD19: 1 | JE19: 5 | JF19: 0 | JG19: 0 | JH19: 0 | JI19: 3 | JJ19: 6 | JK19: 1 | JL19: 1 | JM19: 1 | JN19: 1 | JO19: 0 | JP19: 0 | JQ19: 0 | JR19: 0 | JS19: 0 | JT19: 0 | JU19: 0 | JV19: 0 | JW19: 0 | JX19: 0 | JY19: 17 | JZ19: 83 | KA19: 0 | KB19: 26 | KC19: 0 | KD19: 0
A20: LUCIANO CASTILLO COLONNA | B20: AYABACA | C20: 200201 | D20: 1911 | E20: AYABACA | F20: AYABACA | G20: NINGUN CLAS | H20: AYABACA | I20: AYABACA | J20: SALUD LUCIANO CASTILLO COLONNA | K20: 6 | L20: 0 | M20: 0 | N20: 0 | O20: 2 | P20: 0 | Q20: 0 | R20: 2 | S20: 7 | T20: 0 | U20: 0 | V20: 1 | W20: 7 | X20: 1 | Y20: 1 | Z20: 3 | AA20: 3 | AB20: 2 | AC20: 6 | AD20: 3 | AE20: 13 | AF20: 0 | AG20: 0 | AH20: 0 | AI20: 0 | AJ20: 0 | AK20: 0 | AL20: 0 | AM20: 0 | AN20: 0 | AO20: 0 | AP20: 2 | AQ20: 6 | AR20: 0 | AS20: 0 | AT20: 0 | AU20: 0 | AV20: 0 | AW20: 0 | AX20: 0 | AY20: 0 | AZ20: 2 | BA20: 2 | BB20: 0 | BC20: 0 | BD20: 2 | BE20: 2 | BF20: 0 | BG20: 0 | BH20: 0 | BI20: 0 | BJ20: 0 | BK20: 1 | BL20: 0 | BM20: 0 | BN20: 0 | BO20: 0 | BP20: 0 | BQ20: 0 | BR20: 2 | BS20: 1 | BT20: 0 | BU20: 0 | BV20: 0 | BW20: 0 | BX20: 0 | BY20: 0 | BZ20: 0 | CA20: 3 | CB20: 22 | CC20: 0 | CD20: 0 | CE20: 0 | CF20: 0 | CG20: 0 | CH20: 0 | CI20: 0 | CJ20: 0 | CK20: 0 | CL20: 0 | CM20: 0 | CN20: 0 | CO20: 0 | CP20: 0 | CQ20: 2 | CR20: 10 | CS20: 2 | CT20: 10 | CU20: 7 | CV20: 9 | CW20: 7 | CX20: 9 | CY20: 4 | CZ20: 6 | DA20: 4 | DB20: 6 | DC20: 0 | DD20: 1 | DE20: 0 | DF20: 0 | DG20: 1 | DH20: 1 | DI20: 1 | DJ20: 1 | DK20: 0 | DL20: 0 | DM20: 0 | DN20: 0 | DO20: 0 | DP20: 0 | DQ20: 0 | DR20: 0 | DS20: 0 | DT20: 0 | DU20: 0 | DV20: 0 | DW20: 0 | DX20: 0 | DY20: 0 | DZ20: 0 | EA20: 0 | EB20: 0 | EC20: 0 | ED20: 0 | EE20: 23 | EF20: 45 | EG20: 31 | EH20: 26 | EI20: 1 | EJ20: 8 | EK20: 1 | EL20: 8 | EM20: 5 | EN20: 5 | EO20: 0 | EP20: 7 | EQ20: 0 | ER20: 0 | ES20: 4 | ET20: 0 | EU20: 0 | EV20: 7 | EW20: 0 | EX20: 0 | EY20: 4 | EZ20: 0 | FA20: 0 | FB20: 0 | FC20: 0 | FD20: 0 | FE20: 0 | FF20: 0 | FG20: 1 | FH20: 3 | FI20: 1 | FJ20: 3 | FK20: 1 | FL20: 1 | FM20: 1 | FN20: 3 | FO20: 1 | FP20: 3 | FQ20: 1 | FR20: 1 | FS20: 0 | FT20: 0 | FU20: 0 | FV20: 0 | FW20: 0 | FX20: 0 | FY20: 8 | FZ20: 0 | GA20: 0 | GB20: 0 | GC20: 0 | GD20: 0 | GE20: 9 | GF20: 4 | GG20: 11 | GH20: 32 | GI20: 1 | GJ20: 4 | GK20: 0 | GL20: 0 | GM20: 0 | GN20: 0 | GO20: 0 | GP20: 0 | GQ20: 2 | GR20: 1 | GS20: 2 | GT20: 0 | GU20: 0 | GV20: 0 | GW20: 2 | GX20: 6 | GY20: 0 | GZ20: 0 | HA20: 0 | HB20: 0 | HC20: 2 | HD20: 1 | HE20: 0 | HF20: 2 | HG20: 0 | HH20: 0 | HI20: 0 | HJ20: 0 | HK20: 0 | HL20: 0 | HM20: 0 | HN20: 0 | HO20: 3 | HP20: 0 | HQ20: 1 | HR20: 41 | HS20: 10 | HT20: 0 | HU20: 0 | HV20: 41 | HW20: 6 | HX20: 0 | HY20: 0 | HZ20: 14 | IA20: 6 | IB20: 0 | IC20: 0 | ID20: 0 | IE20: 0 | IF20: 0 | IG20: 0 | IH20: 0 | II20: 0 | IJ20: 0 | IK20: 0 | IL20: 0 | IM20: 0 | IN20: 0 | IO20: 0 | IP20: 0 | IQ20: 0 | IR20: 0 | IS20: 0 | IT20: 0 | IU20: 0 | IV20: 0 | IW20: 0 | IX20: 0 | IY20: 0 | IZ20: 7 | JA20: 5 | JB20: 3 | JC20: 1 | JD20: 0 | JE20: 4 | JF20: 0 | JG20: 0 | JH20: 0 | JI20: 3 | JJ20: 6 | JK20: 1 | JL20: 2 | JM20: 0 | JN20: 0 | JO20: 0 | JP20: 0 | JQ20: 0 | JR20: 0 | JS20: 0 | JT20: 0 | JU20: 0 | JV20: 0 | JW20: 0 | JX20: 0 | JY20: 19 | JZ20: 131 | KA20: 0 | KB20: 57 | KC20: 0 | KD20: 0
A21: LUCIANO CASTILLO COLONNA | B21: AYABACA | C21: 200201 | D21: 1911 | E21: AYABACA | F21: AYABACA | G21: NINGUN CLAS | H21: AYABACA | I21: AYABACA | J21: SALUD LUCIANO CASTILLO COLONNA | K21: 5 | L21: 0 | M21: 0 | N21: 0 | O21: 6 | P21: 0 | Q21: 2 | R21: 0 | S21: 9 | T21: 0 | U21: 0 | V21: 4 | W21: 13 | X21: 0 | Y21: 6 | Z21: 5 | AA21: 7 | AB21: 6 | AC21: 8 | AD21: 1 | AE21: 17 | AF21: 0 | AG21: 0 | AH21: 0 | AI21: 0 | AJ21: 0 | AK21: 0 | AL21: 0 | AM21: 0 | AN21: 0 | AO21: 0 | AP21: 0 | AQ21: 3 | AR21: 0 | AS21: 3 | AT21: 0 | AU21: 0 | AV21: 0 | AW21: 0 | AX21: 0 | AY21: 0 | AZ21: 0 | BA21: 2 | BB21: 0 | BC21: 0 | BD21: 0 | BE21: 0 | BF21: 0 | BG21: 2 | BH21: 0 | BI21: 0 | BJ21: 0 | BK21: 0 | BL21: 0 | BM21: 0 | BN21: 0 | BO21: 0 | BP21: 0 | BQ21: 0 | BR21: 0 | BS21: 0 | BT21: 0 | BU21: 0 | BV21: 0 | BW21: 0 | BX21: 0 | BY21: 0 | BZ21: 0 | CA21: 0 | CB21: 11 | CC21: 0 | CD21: 5 | CE21: 0 | CF21: 0 | CG21: 0 | CH21: 0 | CI21: 0 | CJ21: 0 | CK21: 0 | CL21: 0 | CM21: 0 | CN21: 0 | CO21: 0 | CP21: 0 | CQ21: 6 | CR21: 4 | CS21: 6 | CT21: 4 | CU21: 9 | CV21: 16 | CW21: 9 | CX21: 16 | CY21: 1 | CZ21: 7 | DA21: 1 | DB21: 7 | DC21: 4 | DD21: 1 | DE21: 3 | DF21: 0 | DG21: 2 | DH21: 2 | DI21: 2 | DJ21: 2 | DK21: 0 | DL21: 0 | DM21: 0 | DN21: 0 | DO21: 0 | DP21: 0 | DQ21: 0 | DR21: 0 | DS21: 0 | DT21: 0 | DU21: 0 | DV21: 0 | DW21: 0 | DX21: 0 | DY21: 0 | DZ21: 0 | EA21: 0 | EB21: 0 | EC21: 1 | ED21: 1 | EE21: 31 | EF21: 22 | EG21: 42 | EH21: 62 | EI21: 4 | EJ21: 14 | EK21: 4 | EL21: 14 | EM21: 4 | EN21: 4 | EO21: 1 | EP21: 14 | EQ21: 0 | ER21: 0 | ES21: 3 | ET21: 0 | EU21: 1 | EV21: 13 | EW21: 0 | EX21: 0 | EY21: 3 | EZ21: 0 | FA21: 0 | FB21: 0 | FC21: 0 | FD21: 0 | FE21: 0 | FF21: 0 | FG21: 0 | FH21: 2 | FI21: 0 | FJ21: 2 | FK21: 0 | FL21: 0 | FM21: 0 | FN21: 2 | FO21: 0 | FP21: 2 | FQ21: 0 | FR21: 0 | FS21: 0 | FT21: 0 | FU21: 0 | FV21: 0 | FW21: 0 | FX21: 0 | FY21: 10 | FZ21: 0 | GA21: 0 | GB21: 0 | GC21: 0 | GD21: 0 | GE21: 11 | GF21: 32 | GG21: 11 | GH21: 67 | GI21: 0 | GJ21: 3 | GK21: 0 | GL21: 0 | GM21: 0 | GN21: 0 | GO21: 0 | GP21: 0 | GQ21: 1 | GR21: 6 | GS21: 0 | GT21: 2 | GU21: 0 | GV21: 0 | GW21: 12 | GX21: 38 | GY21: 0 | GZ21: 0 | HA21: 0 | HB21: 0 | HC21: 1 | HD21: 1 | HE21: 0 | HF21: 0 | HG21: 0 | HH21: 0 | HI21: 0 | HJ21: 0 | HK21: 0 | HL21: 0 | HM21: 0 | HN21: 0 | HO21: 3 | HP21: 0 | HQ21: 0 | HR21: 2 | HS21: 4 | HT21: 0 | HU21: 0 | HV21: 2 | HW21: 4 | HX21: 0 | HY21: 0 | HZ21: 2 | IA21: 4 | IB21: 0 | IC21: 0 | ID21: 0 | IE21: 0 | IF21: 0 | IG21: 1 | IH21: 0 | II21: 0 | IJ21: 0 | IK21: 0 | IL21: 0 | IM21: 0 | IN21: 0 | IO21: 0 | IP21: 0 | IQ21: 0 | IR21: 0 | IS21: 0 | IT21: 0 | IU21: 0 | IV21: 0 | IW21: 0 | IX21: 0 | IY21: 0 | IZ21: 3 | JA21: 3 | JB21: 5 | JC21: 2 | JD21: 1 | JE21: 0 | JF21: 0 | JG21: 0 | JH21: 0 | JI21: 5 | JJ21: 4 | JK21: 1 | JL21: 5 | JM21: 0 | JN21: 0 | JO21: 0 | JP21: 0 | JQ21: 0 | JR21: 0 | JS21: 0 | JT21: 0 | JU21: 0 | JV21: 0 | JW21: 0 | JX21: 0 | JY21: 17 | JZ21: 161 | KA21: 0 | KB21: 0 | KC21: 0 | KD21: 0
A22: LUCIANO CASTILLO COLONNA | B22: AYABACA | C22: 200201 | D22: 1911 | E22: AYABACA | F22: AYABACA | G22: NINGUN CLAS | H22: AYABACA | I22: AYABACA | J22: SALUD LUCIANO CASTILLO COLONNA | K22: 3 | L22: 0 | M22: 0 | N22: 3 | O22: 9 | P22: 0 | Q22: 1 | R22: 0 | S22: 4 | T22: 0 | U22: 0 | V22: 0 | W22: 12 | X22: 0 | Y22: 1 | Z22: 0 | AA22: 4 | AB22: 0 | AC22: 5 | AD22: 2 | AE22: 25 | AF22: 0 | AG22: 0 | AH22: 0 | AI22: 0 | AJ22: 0 | AK22: 0 | AL22: 0 | AM22: 0 | AN22: 0 | AO22: 0 | AP22: 1 | AQ22: 5 | AR22: 1 | AS22: 4 | AT22: 0 | AU22: 0 | AV22: 0 | AW22: 0 | AX22: 0 | AY22: 0 | AZ22: 2 | BA22: 12 | BB22: 0 | BC22: 0 | BD22: 1 | BE22: 4 | BF22: 1 | BG22: 8 | BH22: 0 | BI22: 0 | BJ22: 1 | BK22: 1 | BL22: 0 | BM22: 0 | BN22: 0 | BO22: 0 | BP22: 0 | BQ22: 0 | BR22: 0 | BS22: 0 | BT22: 0 | BU22: 0 | BV22: 0 | BW22: 0 | BX22: 0 | BY22: 0 | BZ22: 0 | CA22: 63 | CB22: 22 | CC22: 0 | CD22: 0 | CE22: 0 | CF22: 0 | CG22: 0 | CH22: 0 | CI22: 0 | CJ22: 0 | CK22: 0 | CL22: 0 | CM22: 0 | CN22: 0 | CO22: 0 | CP22: 0 | CQ22: 3 | CR22: 9 | CS22: 3 | CT22: 9 | CU22: 6 | CV22: 7 | CW22: 6 | CX22: 7 | CY22: 4 | CZ22: 22 | DA22: 3 | DB22: 22 | DC22: 2 | DD22: 0 | DE22: 2 | DF22: 0 | DG22: 5 | DH22: 3 | DI22: 5 | DJ22: 3 | DK22: 0 | DL22: 0 | DM22: 0 | DN22: 0 | DO22: 0 | DP22: 0 | DQ22: 0 | DR22: 0 | DS22: 0 | DT22: 0 | DU22: 0 | DV22: 0 | DW22: 1 | DX22: 0 | DY22: 0 | DZ22: 0 | EA22: 0 | EB22: 0 | EC22: 0 | ED22: 0 | EE22: 78 | EF22: 84 | EG22: 0 | EH22: 8 | EI22: 0 | EJ22: 13 | EK22: 0 | EL22: 13 | EM22: 5 | EN22: 5 | EO22: 1 | EP22: 8 | EQ22: 0 | ER22: 0 | ES22: 2 | ET22: 0 | EU22: 1 | EV22: 9 | EW22: 0 | EX22: 0 | EY22: 3 | EZ22: 0 | FA22: 0 | FB22: 0 | FC22: 0 | FD22: 0 | FE22: 0 | FF22: 0 | FG22: 0 | FH22: 1 | FI22: 0 | FJ22: 1 | FK22: 0 | FL22: 0 | FM22: 0 | FN22: 1 | FO22: 0 | FP22: 1 | FQ22: 0 | FR22: 0 | FS22: 0 | FT22: 0 | FU22: 0 | FV22: 0 | FW22: 0 | FX22: 0 | FY22: 2 | FZ22: 0 | GA22: 0 | GB22: 0 | GC22: 0 | GD22: 0 | GE22: 4 | GF22: 12 | GG22: 2 | GH22: 37 | GI22: 0 | GJ22: 1 | GK22: 0 | GL22: 0 | GM22: 0 | GN22: 0 | GO22: 0 | GP22: 0 | GQ22: 5 | GR22: 18 | GS22: 4 | GT22: 2 | GU22: 0 | GV22: 0 | GW22: 9 | GX22: 8 | GY22: 0 | GZ22: 0 | HA22: 0 | HB22: 0 | HC22: 3 | HD22: 0 | HE22: 0 | HF22: 1 | HG22: 0 | HH22: 0 | HI22: 0 | HJ22: 1 | HK22: 0 | HL22: 0 | HM22: 0 | HN22: 0 | HO22: 3 | HP22: 0 | HQ22: 0 | HR22: 87 | HS22: 8 | HT22: 0 | HU22: 0 | HV22: 88 | HW22: 11 | HX22: 0 | HY22: 0 | HZ22: 88 | IA22: 9 | IB22: 0 | IC22: 1 | ID22: 0 | IE22: 1 | IF22: 0 | IG22: 0 | IH22: 0 | II22: 0 | IJ22: 0 | IK22: 1 | IL22: 0 | IM22: 0 | IN22: 0 | IO22: 0 | IP22: 0 | IQ22: 0 | IR22: 0 | IS22: 0 | IT22: 0 | IU22: 0 | IV22: 0 | IW22: 0 | IX22: 0 | IY22: 0 | IZ22: 7 | JA22: 18 | JB22: 7 | JC22: 13 | JD22: 1 | JE22: 6 | JF22: 0 | JG22: 0 | JH22: 0 | JI22: 0 | JJ22: 1 | JK22: 0 | JL22: 0 | JM22: 0 | JN22: 0 | JO22: 0 | JP22: 0 | JQ22: 0 | JR22: 0 | JS22: 0 | JT22: 0 | JU22: 0 | JV22: 0 | JW22: 0 | JX22: 0 | JY22: 24 | JZ22: 174 | KA22: 0 | KB22: 0 | KC22: 1 | KD22: 0
A23: LUCIANO CASTILLO COLONNA | B23: AYABACA | C23: 200201 | D23: 1911 | E23: AYABACA | F23: AYABACA | G23: NINGUN CLAS | H23: AYABACA | I23: AYABACA | J23: SALUD LUCIANO CASTILLO COLONNA | K23: 4 | L23: 0 | M23: 0 | N23: 1 | O23: 7 | P23: 3 | Q23: 2 | R23: 1 | S23: 8 | T23: 0 | U23: 0 | V23: 0 | W23: 10 | X23: 0 | Y23: 1 | Z23: 2 | AA23: 4 | AB23: 2 | AC23: 7 | AD23: 1 | AE23: 18 | AF23: 0 | AG23: 0 | AH23: 0 | AI23: 0 | AJ23: 0 | AK23: 0 | AL23: 0 | AM23: 0 | AN23: 0 | AO23: 0 | AP23: 1 | AQ23: 5 | AR23: 1 | AS23: 5 | AT23: 0 | AU23: 0 | AV23: 0 | AW23: 0 | AX23: 0 | AY23: 0 | AZ23: 2 | BA23: 8 | BB23: 0 | BC23: 0 | BD23: 1 | BE23: 3 | BF23: 1 | BG23: 5 | BH23: 0 | BI23: 0 | BJ23: 0 | BK23: 1 | BL23: 0 | BM23: 0 | BN23: 0 | BO23: 0 | BP23: 0 | BQ23: 0 | BR23: 1 | BS23: 2 | BT23: 0 | BU23: 0 | BV23: 0 | BW23: 0 | BX23: 0 | BY23: 0 | BZ23: 0 | CA23: 2 | CB23: 20 | CC23: 72 | CD23: 4 | CE23: 0 | CF23: 0 | CG23: 0 | CH23: 0 | CI23: 0 | CJ23: 0 | CK23: 0 | CL23: 0 | CM23: 0 | CN23: 0 | CO23: 0 | CP23: 0 | CQ23: 0 | CR23: 3 | CS23: 0 | CT23: 3 | CU23: 13 | CV23: 20 | CW23: 13 | CX23: 20 | CY23: 3 | CZ23: 18 | DA23: 2 | DB23: 18 | DC23: 1 | DD23: 2 | DE23: 1 | DF23: 1 | DG23: 2 | DH23: 2 | DI23: 2 | DJ23: 2 | DK23: 0 | DL23: 0 | DM23: 0 | DN23: 0 | DO23: 0 | DP23: 0 | DQ23: 0 | DR23: 0 | DS23: 0 | DT23: 0 | DU23: 0 | DV23: 0 | DW23: 0 | DX23: 0 | DY23: 0 | DZ23: 0 | EA23: 0 | EB23: 0 | EC23: 1 | ED23: 1 | EE23: 48 | EF23: 111 | EG23: 72 | EH23: 48 | EI23: 0 | EJ23: 10 | EK23: 0 | EL23: 10 | EM23: 3 | EN23: 3 | EO23: 0 | EP23: 6 | EQ23: 1 | ER23: 0 | ES23: 2 | ET23: 0 | EU23: 0 | EV23: 6 | EW23: 1 | EX23: 0 | EY23: 2 | EZ23: 0 | FA23: 0 | FB23: 0 | FC23: 0 | FD23: 0 | FE23: 0 | FF23: 0 | FG23: 0 | FH23: 0 | FI23: 0 | FJ23: 0 | FK23: 0 | FL23: 0 | FM23: 0 | FN23: 0 | FO23: 0 | FP23: 0 | FQ23: 0 | FR23: 0 | FS23: 0 | FT23: 0 | FU23: 0 | FV23: 0 | FW23: 0 | FX23: 0 | FY23: 3 | FZ23: 0 | GA23: 0 | GB23: 0 | GC23: 0 | GD23: 0 | GE23: 6 | GF23: 15 | GG23: 4 | GH23: 37 | GI23: 0 | GJ23: 6 | GK23: 0 | GL23: 0 | GM23: 0 | GN23: 0 | GO23: 0 | GP23: 0 | GQ23: 3 | GR23: 18 | GS23: 2 | GT23: 1 | GU23: 0 | GV23: 0 | GW23: 10 | GX23: 8 | GY23: 0 | GZ23: 0 | HA23: 0 | HB23: 0 | HC23: 3 | HD23: 3 | HE23: 0 | HF23: 2 | HG23: 0 | HH23: 0 | HI23: 1 | HJ23: 4 | HK23: 0 | HL23: 0 | HM23: 0 | HN23: 0 | HO23: 8 | HP23: 0 | HQ23: 0 | HR23: 15 | HS23: 9 | HT23: 0 | HU23: 0 | HV23: 15 | HW23: 12 | HX23: 0 | HY23: 0 | HZ23: 15 | IA23: 12 | IB23: 1 | IC23: 0 | ID23: 2 | IE23: 1 | IF23: 0 | IG23: 0 | IH23: 0 | II23: 0 | IJ23: 1 | IK23: 1 | IL23: 0 | IM23: 0 | IN23: 0 | IO23: 0 | IP23: 0 | IQ23: 0 | IR23: 0 | IS23: 0 | IT23: 0 | IU23: 0 | IV23: 0 | IW23: 1 | IX23: 0 | IY23: 0 | IZ23: 5 | JA23: 3 | JB23: 1 | JC23: 2 | JD23: 1 | JE23: 3 | JF23: 0 | JG23: 0 | JH23: 0 | JI23: 2 | JJ23: 5 | JK23: 0 | JL23: 3 | JM23: 2 | JN23: 1 | JO23: 0 | JP23: 0 | JQ23: 0 | JR23: 0 | JS23: 0 | JT23: 0 | JU23: 0 | JV23: 0 | JW23: 0 | JX23: 0 | JY23: 22 | JZ23: 282 | KA23: 0 | KB23: 0 | KC23: 3 | KD23: 0
A24: LUCIANO CASTILLO COLONNA | B24: AYABACA | C24: 200201 | D24: 1911 | E24: AYABACA | F24: AYABACA | G24: NINGUN CLAS | H24: AYABACA | I24: AYABACA | J24: SALUD LUCIANO CASTILLO COLONNA | K24: 2 | L24: 0 | M24: 0 | N24: 5 | O24: 19 | P24: 1 | Q24: 0 | R24: 0 | S24: 1 | T24: 0 | U24: 0 | V24: 0 | W24: 9 | X24: 0 | Y24: 2 | Z24: 1 | AA24: 2 | AB24: 2 | AC24: 5 | AD24: 3 | AE24: 15 | AF24: 0 | AG24: 0 | AH24: 0 | AI24: 0 | AJ24: 0 | AK24: 0 | AL24: 0 | AM24: 0 | AN24: 0 | AO24: 0 | AP24: 3 | AQ24: 13 | AR24: 3 | AS24: 8 | AT24: 0 | AU24: 0 | AV24: 0 | AW24: 2 | AX24: 0 | AY24: 0 | AZ24: 10 | BA24: 38 | BB24: 0 | BC24: 1 | BD24: 4 | BE24: 20 | BF24: 6 | BG24: 15 | BH24: 0 | BI24: 0 | BJ24: 0 | BK24: 1 | BL24: 0 | BM24: 0 | BN24: 0 | BO24: 0 | BP24: 0 | BQ24: 1 | BR24: 0 | BS24: 2 | BT24: 0 | BU24: 0 | BV24: 1 | BW24: 0 | BX24: 0 | BY24: 0 | BZ24: 0 | CA24: 4 | CB24: 20 | CC24: 0 | CD24: 0 | CE24: 0 | CF24: 0 | CG24: 0 | CH24: 0 | CI24: 0 | CJ24: 0 | CK24: 0 | CL24: 0 | CM24: 0 | CN24: 0 | CO24: 0 | CP24: 0 | CQ24: 0 | CR24: 4 | CS24: 0 | CT24: 4 | CU24: 8 | CV24: 17 | CW24: 8 | CX24: 17 | CY24: 6 | CZ24: 17 | DA24: 6 | DB24: 17 | DC24: 0 | DD24: 0 | DE24: 0 | DF24: 0 | DG24: 5 | DH24: 4 | DI24: 5 | DJ24: 4 | DK24: 2 | DL24: 0 | DM24: 2 | DN24: 0 | DO24: 0 | DP24: 0 | DQ24: 0 | DR24: 0 | DS24: 0 | DT24: 0 | DU24: 0 | DV24: 0 | DW24: 0 | DX24: 0 | DY24: 0 | DZ24: 0 | EA24: 0 | EB24: 0 | EC24: 0 | ED24: 0 | EE24: 13 | EF24: 68 | EG24: 0 | EH24: 64 | EI24: 1 | EJ24: 9 | EK24: 1 | EL24: 9 | EM24: 2 | EN24: 2 | EO24: 0 | EP24: 14 | EQ24: 0 | ER24: 1 | ES24: 2 | ET24: 0 | EU24: 0 | EV24: 14 | EW24: 0 | EX24: 1 | EY24: 2 | EZ24: 0 | FA24: 0 | FB24: 0 | FC24: 0 | FD24: 0 | FE24: 0 | FF24: 0 | FG24: 0 | FH24: 3 | FI24: 0 | FJ24: 3 | FK24: 0 | FL24: 0 | FM24: 0 | FN24: 3 | FO24: 0 | FP24: 3 | FQ24: 0 | FR24: 0 | FS24: 0 | FT24: 0 | FU24: 0 | FV24: 0 | FW24: 0 | FX24: 0 | FY24: 10 | FZ24: 0 | GA24: 0 | GB24: 0 | GC24: 0 | GD24: 0 | GE24: 10 | GF24: 5 | GG24: 9 | GH24: 28 | GI24: 1 | GJ24: 2 | GK24: 0 | GL24: 0 | GM24: 1 | GN24: 0 | GO24: 0 | GP24: 0 | GQ24: 2 | GR24: 5 | GS24: 0 | GT24: 3 | GU24: 0 | GV24: 0 | GW24: 0 | GX24: 0 | GY24: 0 | GZ24: 0 | HA24: 0 | HB24: 0 | HC24: 1 | HD24: 0 | HE24: 0 | HF24: 6 | HG24: 0 | HH24: 0 | HI24: 0 | HJ24: 4 | HK24: 0 | HL24: 0 | HM24: 0 | HN24: 1 | HO24: 1 | HP24: 0 | HQ24: 0 | HR24: 7 | HS24: 4 | HT24: 0 | HU24: 2 | HV24: 7 | HW24: 4 | HX24: 0 | HY24: 0 | HZ24: 7 | IA24: 4 | IB24: 0 | IC24: 6 | ID24: 1 | IE24: 4 | IF24: 0 | IG24: 2 | IH24: 0 | II24: 0 | IJ24: 1 | IK24: 7 | IL24: 0 | IM24: 0 | IN24: 0 | IO24: 0 | IP24: 0 | IQ24: 0 | IR24: 0 | IS24: 0 | IT24: 0 | IU24: 0 | IV24: 0 | IW24: 0 | IX24: 0 | IY24: 0 | IZ24: 2 | JA24: 3 | JB24: 5 | JC24: 1 | JD24: 1 | JE24: 1 | JF24: 0 | JG24: 0 | JH24: 0 | JI24: 0 | JJ24: 1 | JK24: 0 | JL24: 0 | JM24: 0 | JN24: 0 | JO24: 0 | JP24: 0 | JQ24: 0 | JR24: 0 | JS24: 0 | JT24: 0 | JU24: 0 | JV24: 0 | JW24: 0 | JX24: 0 | JY24: 26 | JZ24: 157 | KA24: 0 | KB24: 0 | KC24: 5 | KD24: 0
A25: LUCIANO CASTILLO COLONNA | B25: AYABACA | C25: 200201 | D25: 1911 | E25: AYABACA | F25: AYABACA | G25: NINGUN CLAS | H25: AYABACA | I25: AYABACA | J25: SALUD LUCIANO CASTILLO COLONNA | K25: 1 | L25: 0 | M25: 0 | N25: 3 | O25: 12 | P25: 0 | Q25: 0 | R25: 0 | S25: 8 | T25: 0 | U25: 0 | V25: 3 | W25: 11 | X25: 1 | Y25: 1 | Z25: 0 | AA25: 6 | AB25: 3 | AC25: 4 | AD25: 2 | AE25: 9 | AF25: 0 | AG25: 0 | AH25: 0 | AI25: 0 | AJ25: 0 | AK25: 0 | AL25: 0 | AM25: 0 | AN25: 0 | AO25: 0 | AP25: 5 | AQ25: 12 | AR25: 1 | AS25: 3 | AT25: 0 | AU25: 0 | AV25: 0 | AW25: 0 | AX25: 0 | AY25: 0 | AZ25: 9 | BA25: 23 | BB25: 0 | BC25: 1 | BD25: 5 | BE25: 9 | BF25: 3 | BG25: 10 | BH25: 0 | BI25: 0 | BJ25: 1 | BK25: 1 | BL25: 0 | BM25: 0 | BN25: 0 | BO25: 0 | BP25: 0 | BQ25: 1 | BR25: 0 | BS25: 0 | BT25: 0 | BU25: 0 | BV25: 0 | BW25: 0 | BX25: 0 | BY25: 0 | BZ25: 0 | CA25: 2 | CB25: 37 | CC25: 0 | CD25: 0 | CE25: 0 | CF25: 0 | CG25: 0 | CH25: 0 | CI25: 0 | CJ25: 0 | CK25: 0 | CL25: 0 | CM25: 1 | CN25: 0 | CO25: 1 | CP25: 0 | CQ25: 1 | CR25: 6 | CS25: 1 | CT25: 6 | CU25: 9 | CV25: 20 | CW25: 9 | CX25: 20 | CY25: 5 | CZ25: 11 | DA25: 5 | DB25: 11 | DC25: 1 | DD25: 0 | DE25: 0 | DF25: 0 | DG25: 2 | DH25: 1 | DI25: 2 | DJ25: 1 | DK25: 0 | DL25: 0 | DM25: 0 | DN25: 0 | DO25: 0 | DP25: 0 | DQ25: 0 | DR25: 0 | DS25: 0 | DT25: 0 | DU25: 0 | DV25: 0 | DW25: 0 | DX25: 0 | DY25: 0 | DZ25: 0 | EA25: 0 | EB25: 0 | EC25: 0 | ED25: 0 | EE25: 1 | EF25: 64 | EG25: 0 | EH25: 2 | EI25: 3 | EJ25: 12 | EK25: 3 | EL25: 12 | EM25: 0 | EN25: 0 | EO25: 6 | EP25: 12 | EQ25: 0 | ER25: 0 | ES25: 0 | ET25: 0 | EU25: 6 | EV25: 12 | EW25: 0 | EX25: 0 | EY25: 0 | EZ25: 0 | FA25: 0 | FB25: 0 | FC25: 0 | FD25: 0 | FE25: 0 | FF25: 0 | FG25: 0 | FH25: 1 | FI25: 0 | FJ25: 1 | FK25: 0 | FL25: 0 | FM25: 0 | FN25: 1 | FO25: 0 | FP25: 1 | FQ25: 0 | FR25: 0 | FS25: 0 | FT25: 0 | FU25: 0 | FV25: 0 | FW25: 0 | FX25: 0 | FY25: 3 | FZ25: 0 | GA25: 0 | GB25: 0 | GC25: 0 | GD25: 0 | GE25: 8 | GF25: 0 | GG25: 1 | GH25: 0 | GI25: 0 | GJ25: 2 | GK25: 0 | GL25: 0 | GM25: 0 | GN25: 0 | GO25: 0 | GP25: 0 | GQ25: 1 | GR25: 4 | GS25: 0 | GT25: 4 | GU25: 0 | GV25: 0 | GW25: 0 | GX25: 0 | GY25: 0 | GZ25: 0 | HA25: 0 | HB25: 0 | HC25: 2 | HD25: 1 | HE25: 1 | HF25: 0 | HG25: 0 | HH25: 0 | HI25: 0 | HJ25: 0 | HK25: 0 | HL25: 0 | HM25: 0 | HN25: 0 | HO25: 3 | HP25: 0 | HQ25: 0 | HR25: 1 | HS25: 4 | HT25: 0 | HU25: 0 | HV25: 2 | HW25: 4 | HX25: 0 | HY25: 0 | HZ25: 1 | IA25: 4 | IB25: 0 | IC25: 0 | ID25: 0 | IE25: 4 | IF25: 0 | IG25: 1 | IH25: 0 | II25: 0 | IJ25: 0 | IK25: 4 | IL25: 0 | IM25: 0 | IN25: 0 | IO25: 0 | IP25: 0 | IQ25: 0 | IR25: 0 | IS25: 0 | IT25: 0 | IU25: 0 | IV25: 0 | IW25: 0 | IX25: 0 | IY25: 0 | IZ25: 1 | JA25: 2 | JB25: 2 | JC25: 0 | JD25: 0 | JE25: 0 | JF25: 0 | JG25: 0 | JH25: 0 | JI25: 0 | JJ25: 0 | JK25: 0 | JL25: 1 | JM25: 1 | JN25: 0 | JO25: 0 | JP25: 0 | JQ25: 0 | JR25: 0 | JS25: 0 | JT25: 0 | JU25: 0 | JV25: 0 | JW25: 0 | JX25: 0 | JY25: 17 | JZ25: 70 | KA25: 0 | KB25: 0 | KC25: 4 | KD25: 0
A26: LUCIANO CASTILLO COLONNA | B26: AYABACA | C26: 200201 | D26: 1912 | E26: TAPAL | F26: AYABACA | G26: NINGUN CLAS | H26: AYABACA | I26: AYABACA | J26: SALUD LUCIANO CASTILLO COLONNA | K26: 1 | L26: 0 | M26: 0 | N26: 0 | O26: 1 | P26: 0 | Q26: 0 | R26: 2 | S26: 1 | T26: 0 | U26: 0 | V26: 0 | W26: 0 | X26: 0 | Y26: 0 | Z26: 0 | AA26: 0 | AB26: 1 | AC26: 7 | AD26: 0 | AE26: 10 | AF26: 0 | AG26: 0 | AH26: 0 | AI26: 0 | AJ26: 0 | AK26: 0 | AL26: 0 | AM26: 0 | AN26: 0 | AO26: 0 | AP26: 0 | AQ26: 0 | AR26: 0 | AS26: 0 | AT26: 0 | AU26: 0 | AV26: 0 | AW26: 0 | AX26: 0 | AY26: 0 | AZ26: 0 | BA26: 2 | BB26: 0 | BC26: 0 | BD26: 0 | BE26: 2 | BF26: 0 | BG26: 0 | BH26: 0 | BI26: 0 | BJ26: 1 | BK26: 1 | BL26: 0 | BM26: 0 | BN26: 0 | BO26: 0 | BP26: 0 | BQ26: 0 | BR26: 0 | BS26: 0 | BT26: 0 | BU26: 0 | BV26: 0 | BW26: 0 | BX26: 0 | BY26: 0 | BZ26: 0 | CA26: 1 | CB26: 12 | CC26: 0 | CD26: 0 | CE26: 0 | CF26: 0 | CG26: 0 | CH26: 0 | CI26: 0 | CJ26: 0 | CK26: 0 | CL26: 0 | CM26: 0 | CN26: 0 | CO26: 0 | CP26: 0 | CQ26: 0 | CR26: 3 | CS26: 0 | CT26: 3 | CU26: 0 | CV26: 0 | CW26: 0 | CX26: 0 | CY26: 0 | CZ26: 23 | DA26: 0 | DB26: 23 | DC26: 2 | DD26: 1 | DE26: 2 | DF26: 1 | DG26: 2 | DH26: 1 | DI26: 2 | DJ26: 1 | DK26: 0 | DL26: 0 | DM26: 0 | DN26: 0 | DO26: 0 | DP26: 0 | DQ26: 0 | DR26: 0 | DS26: 0 | DT26: 0 | DU26: 0 | DV26: 0 | DW26: 0 | DX26: 0 | DY26: 0 | DZ26: 0 | EA26: 0 | EB26: 0 | EC26: 0 | ED26: 0 | EE26: 0 | EF26: 15 | EG26: 0 | EH26: 1 | EI26: 0 | EJ26: 0 | EK26: 0 | EL26: 0 | EM26: 0 | EN26: 0 | EO26: 0 | EP26: 0 | EQ26: 0 | ER26: 0 | ES26: 0 | ET26: 0 | EU26: 0 | EV26: 0 | EW26: 0 | EX26: 0 | EY26: 0 | EZ26: 0 | FA26: 0 | FB26: 0 | FC26: 0 | FD26: 0 | FE26: 0 | FF26: 0 | FG26: 0 | FH26: 0 | FI26: 0 | FJ26: 0 | FK26: 0 | FL26: 0 | FM26: 0 | FN26: 0 | FO26: 0 | FP26: 0 | FQ26: 0 | FR26: 0 | FS26: 0 | FT26: 0 | FU26: 0 | FV26: 0 | FW26: 0 | FX26: 0 | FY26: 0 | FZ26: 0 | GA26: 0 | GB26: 0 | GC26: 0 | GD26: 0 | GE26: 0 | GF26: 0 | GG26: 2 | GH26: 8 | GI26: 0 | GJ26: 0 | GK26: 0 | GL26: 0 | GM26: 0 | GN26: 0 | GO26: 0 | GP26: 0 | GQ26: 0 | GR26: 0 | GS26: 0 | GT26: 0 | GU26: 0 | GV26: 0 | GW26: 0 | GX26: 0 | GY26: 0 | GZ26: 0 | HA26: 0 | HB26: 0 | HC26: 1 | HD26: 0 | HE26: 0 | HF26: 0 | HG26: 0 | HH26: 0 | HI26: 0 | HJ26: 0 | HK26: 0 | HL26: 0 | HM26: 0 | HN26: 0 | HO26: 1 | HP26: 0 | HQ26: 1 | HR26: 0 | HS26: 2 | HT26: 0 | HU26: 0 | HV26: 0 | HW26: 2 | HX26: 0 | HY26: 0 | HZ26: 0 | IA26: 2 | IB26: 0 | IC26: 0 | ID26: 0 | IE26: 0 | IF26: 0 | IG26: 0 | IH26: 0 | II26: 0 | IJ26: 0 | IK26: 0 | IL26: 0 | IM26: 0 | IN26: 0 | IO26: 0 | IP26: 0 | IQ26: 0 | IR26: 0 | IS26: 0 | IT26: 0 | IU26: 0 | IV26: 0 | IW26: 0 | IX26: 0 | IY26: 0 | IZ26: 0 | JA26: 0 | JB26: 0 | JC26: 0 | JD26: 0 | JE26: 0 | JF26: 0 | JG26: 0 | JH26: 0 | JI26: 0 | JJ26: 0 | JK26: 0 | JL26: 0 | JM26: 0 | JN26: 0 | JO26: 0 | JP26: 0 | JQ26: 0 | JR26: 0 | JS26: 0 | JT26: 0 | JU26: 0 | JV26: 0 | JW26: 0 | JX26: 0 | JY26: 6 | JZ26: 16 | KA26: 0 | KB26: 0 | KC26: 0 | KD26: 0
A27: LUCIANO CASTILLO COLONNA | B27: AYABACA | C27: 200201 | D27: 1912 | E27: TAPAL | F27: AYABACA | G27: NINGUN CLAS | H27: AYABACA | I27: AYABACA | J27: SALUD LUCIANO CASTILLO COLONNA | K27: 2 | L27: 0 | M27: 0 | N27: 1 | O27: 3 | P27: 1 | Q27: 0 | R27: 0 | S27: 0 | T27: 0 | U27: 0 | V27: 0 | W27: 0 | X27: 0 | Y27: 0 | Z27: 0 | AA27: 0 | AB27: 0 | AC27: 2 | AD27: 0 | AE27: 3 | AF27: 0 | AG27: 0 | AH27: 0 | AI27: 0 | AJ27: 0 | AK27: 0 | AL27: 0 | AM27: 0 | AN27: 0 | AO27: 0 | AP27: 0 | AQ27: 0 | AR27: 0 | AS27: 2 | AT27: 0 | AU27: 0 | AV27: 0 | AW27: 0 | AX27: 0 | AY27: 0 | AZ27: 0 | BA27: 2 | BB27: 0 | BC27: 0 | BD27: 0 | BE27: 1 | BF27: 0 | BG27: 1 | BH27: 0 | BI27: 0 | BJ27: 0 | BK27: 0 | BL27: 0 | BM27: 0 | BN27: 0 | BO27: 0 | BP27: 0 | BQ27: 0 | BR27: 0 | BS27: 0 | BT27: 0 | BU27: 0 | BV27: 0 | BW27: 0 | BX27: 0 | BY27: 0 | BZ27: 0 | CA27: 1 | CB27: 9 | CC27: 0 | CD27: 0 | CE27: 0 | CF27: 0 | CG27: 0 | CH27: 0 | CI27: 0 | CJ27: 0 | CK27: 0 | CL27: 0 | CM27: 0 | CN27: 0 | CO27: 0 | CP27: 0 | CQ27: 1 | CR27: 5 | CS27: 1 | CT27: 5 | CU27: 0 | CV27: 24 | CW27: 0 | CX27: 24 | CY27: 0 | CZ27: 10 | DA27: 0 | DB27: 10 | DC27: 0 | DD27: 0 | DE27: 0 | DF27: 0 | DG27: 2 | DH27: 0 | DI27: 2 | DJ27: 0 | DK27: 0 | DL27: 0 | DM27: 0 | DN27: 0 | DO27: 0 | DP27: 0 | DQ27: 0 | DR27: 0 | DS27: 0 | DT27: 0 | DU27: 0 | DV27: 0 | DW27: 0 | DX27: 0 | DY27: 0 | DZ27: 0 | EA27: 0 | EB27: 0 | EC27: 0 | ED27: 0 | EE27: 0 | EF27: 12 | EG27: 0 | EH27: 0 | EI27: 0 | EJ27: 0 | EK27: 0 | EL27: 0 | EM27: 0 | EN27: 0 | EO27: 0 | EP27: 0 | EQ27: 0 | ER27: 0 | ES27: 0 | ET27: 0 | EU27: 0 | EV27: 0 | EW27: 0 | EX27: 0 | EY27: 0 | EZ27: 0 | FA27: 0 | FB27: 0 | FC27: 0 | FD27: 0 | FE27: 0 | FF27: 0 | FG27: 0 | FH27: 0 | FI27: 0 | FJ27: 0 | FK27: 0 | FL27: 0 | FM27: 0 | FN27: 0 | FO27: 0 | FP27: 0 | FQ27: 0 | FR27: 0 | FS27: 0 | FT27: 0 | FU27: 0 | FV27: 0 | FW27: 0 | FX27: 0 | FY27: 2 | FZ27: 0 | GA27: 0 | GB27: 0 | GC27: 0 | GD27: 0 | GE27: 0 | GF27: 0 | GG27: 0 | GH27: 3 | GI27: 0 | GJ27: 0 | GK27: 0 | GL27: 0 | GM27: 0 | GN27: 0 | GO27: 0 | GP27: 0 | GQ27: 0 | GR27: 0 | GS27: 0 | GT27: 0 | GU27: 0 | GV27: 0 | GW27: 0 | GX27: 0 | GY27: 0 | GZ27: 0 | HA27: 0 | HB27: 0 | HC27: 2 | HD27: 0 | HE27: 0 | HF27: 1 | HG27: 0 | HH27: 0 | HI27: 0 | HJ27: 1 | HK27: 0 | HL27: 0 | HM27: 0 | HN27: 0 | HO27: 2 | HP27: 0 | HQ27: 1 | HR27: 0 | HS27: 3 | HT27: 0 | HU27: 0 | HV27: 0 | HW27: 3 | HX27: 0 | HY27: 0 | HZ27: 0 | IA27: 3 | IB27: 0 | IC27: 0 | ID27: 0 | IE27: 0 | IF27: 0 | IG27: 0 | IH27: 0 | II27: 0 | IJ27: 0 | IK27: 0 | IL27: 0 | IM27: 0 | IN27: 0 | IO27: 0 | IP27: 0 | IQ27: 0 | IR27: 0 | IS27: 0 | IT27: 0 | IU27: 0 | IV27: 0 | IW27: 0 | IX27: 0 | IY27: 0 | IZ27: 1 | JA27: 0 | JB27: 0 | JC27: 0 | JD27: 0 | JE27: 0 | JF27: 0 | JG27: 0 | JH27: 0 | JI27: 2 | JJ27: 3 | JK27: 0 | JL27: 0 | JM27: 0 | JN27: 0 | JO27: 0 | JP27: 0 | JQ27: 0 | JR27: 0 | JS27: 0 | JT27: 0 | JU27: 0 | JV27: 0 | JW27: 0 | JX27: 0 | JY27: 6 | JZ27: 12 | KA27: 0 | KB27: 0 | KC27: 0 | KD27: 0
A28: LUCIANO CASTILLO COLONNA | B28: AYABACA | C28: 200201 | D28: 1912 | E28: TAPAL | F28: AYABACA | G28: NINGUN CLAS | H28: AYABACA | I28: AYABACA | J28: SALUD LUCIANO CASTILLO COLONNA | K28: 3 | L28: 0 | M28: 0 | N28: 0 | O28: 1 | P28: 0 | Q28: 0 | R28: 0 | S28: 1 | T28: 0 | U28: 0 | V28: 0 | W28: 0 | X28: 0 | Y28: 0 | Z28: 0 | AA28: 0 | AB28: 0 | AC28: 0 | AD28: 1 | AE28: 1 | AF28: 0 | AG28: 0 | AH28: 0 | AI28: 0 | AJ28: 0 | AK28: 0 | AL28: 0 | AM28: 0 | AN28: 0 | AO28: 0 | AP28: 0 | AQ28: 0 | AR28: 0 | AS28: 0 | AT28: 0 | AU28: 0 | AV28: 0 | AW28: 0 | AX28: 0 | AY28: 0 | AZ28: 0 | BA28: 0 | BB28: 0 | BC28: 0 | BD28: 0 | BE28: 0 | BF28: 0 | BG28: 0 | BH28: 0 | BI28: 0 | BJ28: 0 | BK28: 0 | BL28: 0 | BM28: 0 | BN28: 0 | BO28: 0 | BP28: 0 | BQ28: 0 | BR28: 0 | BS28: 0 | BT28: 0 | BU28: 0 | BV28: 0 | BW28: 0 | BX28: 0 | BY28: 0 | BZ28: 0 | CA28: 0 | CB28: 7 | CC28: 0 | CD28: 0 | CE28: 0 | CF28: 0 | CG28: 0 | CH28: 0 | CI28: 0 | CJ28: 0 | CK28: 0 | CL28: 0 | CM28: 0 | CN28: 0 | CO28: 0 | CP28: 0 | CQ28: 2 | CR28: 6 | CS28: 2 | CT28: 6 | CU28: 0 | CV28: 18 | CW28: 0 | CX28: 18 | CY28: 0 | CZ28: 4 | DA28: 0 | DB28: 4 | DC28: 0 | DD28: 0 | DE28: 0 | DF28: 0 | DG28: 1 | DH28: 0 | DI28: 1 | DJ28: 0 | DK28: 0 | DL28: 0 | DM28: 0 | DN28: 0 | DO28: 0 | DP28: 0 | DQ28: 0 | DR28: 0 | DS28: 0 | DT28: 0 | DU28: 0 | DV28: 0 | DW28: 0 | DX28: 0 | DY28: 0 | DZ28: 0 | EA28: 0 | EB28: 0 | EC28: 0 | ED28: 0 | EE28: 0 | EF28: 8 | EG28: 0 | EH28: 1 | EI28: 0 | EJ28: 0 | EK28: 0 | EL28: 0 | EM28: 0 | EN28: 0 | EO28: 0 | EP28: 0 | EQ28: 0 | ER28: 0 | ES28: 0 | ET28: 0 | EU28: 0 | EV28: 0 | EW28: 0 | EX28: 0 | EY28: 0 | EZ28: 0 | FA28: 0 | FB28: 0 | FC28: 0 | FD28: 0 | FE28: 0 | FF28: 0 | FG28: 0 | FH28: 0 | FI28: 0 | FJ28: 0 | FK28: 0 | FL28: 0 | FM28: 0 | FN28: 0 | FO28: 0 | FP28: 0 | FQ28: 0 | FR28: 0 | FS28: 0 | FT28: 0 | FU28: 0 | FV28: 0 | FW28: 0 | FX28: 0 | FY28: 1 | FZ28: 0 | GA28: 0 | GB28: 0 | GC28: 0 | GD28: 0 | GE28: 0 | GF28: 0 | GG28: 0 | GH28: 0 | GI28: 0 | GJ28: 0 | GK28: 0 | GL28: 0 | GM28: 0 | GN28: 0 | GO28: 0 | GP28: 0 | GQ28: 0 | GR28: 0 | GS28: 0 | GT28: 0 | GU28: 0 | GV28: 0 | GW28: 0 | GX28: 0 | GY28: 0 | GZ28: 0 | HA28: 0 | HB28: 0 | HC28: 1 | HD28: 0 | HE28: 0 | HF28: 1 | HG28: 0 | HH28: 0 | HI28: 0 | HJ28: 0 | HK28: 0 | HL28: 0 | HM28: 0 | HN28: 0 | HO28: 1 | HP28: 0 | HQ28: 1 | HR28: 0 | HS28: 2 | HT28: 0 | HU28: 0 | HV28: 0 | HW28: 2 | HX28: 0 | HY28: 0 | HZ28: 0 | IA28: 2 | IB28: 0 | IC28: 0 | ID28: 0 | IE28: 0 | IF28: 0 | IG28: 0 | IH28: 0 | II28: 0 | IJ28: 0 | IK28: 0 | IL28: 0 | IM28: 0 | IN28: 0 | IO28: 0 | IP28: 0 | IQ28: 0 | IR28: 0 | IS28: 0 | IT28: 0 | IU28: 0 | IV28: 0 | IW28: 0 | IX28: 0 | IY28: 0 | IZ28: 0 | JA28: 0 | JB28: 0 | JC28: 0 | JD28: 0 | JE28: 0 | JF28: 0 | JG28: 0 | JH28: 0 | JI28: 0 | JJ28: 0 | JK28: 0 | JL28: 0 | JM28: 0 | JN28: 0 | JO28: 0 | JP28: 0 | JQ28: 0 | JR28: 0 | JS28: 0 | JT28: 0 | JU28: 0 | JV28: 0 | JW28: 0 | JX28: 0 | JY28: 5 | JZ28: 9 | KA28: 0 | KB28: 0 | KC28: 0 | KD28: 0
A29: LUCIANO CASTILLO COLONNA | B29: AYABACA | C29: 200201 | D29: 1912 | E29: TAPAL | F29: AYABACA | G29: NINGUN CLAS | H29: AYABACA | I29: AYABACA | J29: SALUD LUCIANO CASTILLO COLONNA | K29: 5 | L29: 0 | M29: 0 | N29: 0 | O29: 1 | P29: 0 | Q29: 1 | R29: 0 | S29: 1 | T29: 0 | U29: 0 | V29: 0 | W29: 0 | X29: 0 | Y29: 0 | Z29: 0 | AA29: 2 | AB29: 1 | AC29: 2 | AD29: 1 | AE29: 7 | AF29: 0 | AG29: 0 | AH29: 1 | AI29: 3 | AJ29: 0 | AK29: 0 | AL29: 0 | AM29: 0 | AN29: 0 | AO29: 0 | AP29: 1 | AQ29: 2 | AR29: 0 | AS29: 0 | AT29: 0 | AU29: 0 | AV29: 0 | AW29: 0 | AX29: 0 | AY29: 0 | AZ29: 1 | BA29: 3 | BB29: 0 | BC29: 0 | BD29: 1 | BE29: 2 | BF29: 0 | BG29: 1 | BH29: 0 | BI29: 0 | BJ29: 0 | BK29: 0 | BL29: 0 | BM29: 0 | BN29: 0 | BO29: 0 | BP29: 0 | BQ29: 0 | BR29: 0 | BS29: 0 | BT29: 0 | BU29: 0 | BV29: 0 | BW29: 0 | BX29: 0 | BY29: 0 | BZ29: 0 | CA29: 0 | CB29: 4 | CC29: 0 | CD29: 0 | CE29: 0 | CF29: 0 | CG29: 0 | CH29: 0 | CI29: 0 | CJ29: 0 | CK29: 0 | CL29: 0 | CM29: 0 | CN29: 0 | CO29: 0 | CP29: 0 | CQ29: 3 | CR29: 6 | CS29: 3 | CT29: 6 | CU29: 0 | CV29: 24 | CW29: 0 | CX29: 24 | CY29: 0 | CZ29: 1 | DA29: 0 | DB29: 1 | DC29: 0 | DD29: 0 | DE29: 0 | DF29: 0 | DG29: 1 | DH29: 0 | DI29: 1 | DJ29: 0 | DK29: 0 | DL29: 0 | DM29: 0 | DN29: 0 | DO29: 0 | DP29: 0 | DQ29: 0 | DR29: 0 | DS29: 0 | DT29: 0 | DU29: 0 | DV29: 0 | DW29: 0 | DX29: 0 | DY29: 0 | DZ29: 0 | EA29: 0 | EB29: 0 | EC29: 0 | ED29: 0 | EE29: 0 | EF29: 3 | EG29: 1 | EH29: 3 | EI29: 0 | EJ29: 0 | EK29: 0 | EL29: 0 | EM29: 0 | EN29: 0 | EO29: 0 | EP29: 0 | EQ29: 0 | ER29: 0 | ES29: 0 | ET29: 0 | EU29: 0 | EV29: 0 | EW29: 0 | EX29: 0 | EY29: 0 | EZ29: 0 | FA29: 0 | FB29: 0 | FC29: 0 | FD29: 0 | FE29: 0 | FF29: 0 | FG29: 0 | FH29: 0 | FI29: 0 | FJ29: 0 | FK29: 0 | FL29: 0 | FM29: 0 | FN29: 0 | FO29: 0 | FP29: 0 | FQ29: 0 | FR29: 0 | FS29: 0 | FT29: 0 | FU29: 0 | FV29: 0 | FW29: 0 | FX29: 0 | FY29: 0 | FZ29: 0 | GA29: 0 | GB29: 0 | GC29: 0 | GD29: 0 | GE29: 0 | GF29: 0 | GG29: 1 | GH29: 3 | GI29: 0 | GJ29: 0 | GK29: 0 | GL29: 0 | GM29: 0 | GN29: 0 | GO29: 0 | GP29: 0 | GQ29: 0 | GR29: 0 | GS29: 0 | GT29: 0 | GU29: 0 | GV29: 0 | GW29: 0 | GX29: 0 | GY29: 0 | GZ29: 0 | HA29: 0 | HB29: 0 | HC29: 0 | HD29: 0 | HE29: 0 | HF29: 1 | HG29: 0 | HH29: 0 | HI29: 0 | HJ29: 0 | HK29: 0 | HL29: 0 | HM29: 0 | HN29: 0 | HO29: 0 | HP29: 0 | HQ29: 0 | HR29: 0 | HS29: 0 | HT29: 0 | HU29: 0 | HV29: 0 | HW29: 0 | HX29: 0 | HY29: 0 | HZ29: 0 | IA29: 0 | IB29: 0 | IC29: 0 | ID29: 0 | IE29: 0 | IF29: 0 | IG29: 0 | IH29: 0 | II29: 0 | IJ29: 0 | IK29: 0 | IL29: 0 | IM29: 0 | IN29: 0 | IO29: 0 | IP29: 0 | IQ29: 0 | IR29: 0 | IS29: 0 | IT29: 0 | IU29: 0 | IV29: 0 | IW29: 0 | IX29: 0 | IY29: 0 | IZ29: 0 | JA29: 0 | JB29: 0 | JC29: 0 | JD29: 0 | JE29: 0 | JF29: 0 | JG29: 0 | JH29: 0 | JI29: 0 | JJ29: 0 | JK29: 0 | JL29: 0 | JM29: 0 | JN29: 0 | JO29: 0 | JP29: 0 | JQ29: 0 | JR29: 0 | JS29: 0 | JT29: 0 | JU29: 0 | JV29: 0 | JW29: 0 | JX29: 0 | JY29: 6 | JZ29: 8 | KA29: 0 | KB29: 0 | KC29: 0 | KD29: 0
A30: LUCIANO CASTILLO COLONNA | B30: AYABACA | C30: 200201 | D30: 1912 | E30: TAPAL | F30: AYABACA | G30: NINGUN CLAS | H30: AYABACA | I30: AYABACA | J30: SALUD LUCIANO CASTILLO COLONNA | K30: 4 | L30: 0 | M30: 0 | N30: 2 | O30: 2 | P30: 1 | Q30: 0 | R30: 0 | S30: 2 | T30: 0 | U30: 0 | V30: 0 | W30: 0 | X30: 0 | Y30: 0 | Z30: 0 | AA30: 0 | AB30: 0 | AC30: 3 | AD30: 1 | AE30: 2 | AF30: 0 | AG30: 0 | AH30: 0 | AI30: 0 | AJ30: 0 | AK30: 0 | AL30: 0 | AM30: 0 | AN30: 0 | AO30: 0 | AP30: 2 | AQ30: 1 | AR30: 0 | AS30: 0 | AT30: 0 | AU30: 0 | AV30: 0 | AW30: 0 | AX30: 0 | AY30: 0 | AZ30: 4 | BA30: 3 | BB30: 0 | BC30: 0 | BD30: 2 | BE30: 1 | BF30: 2 | BG30: 2 | BH30: 0 | BI30: 0 | BJ30: 0 | BK30: 1 | BL30: 0 | BM30: 0 | BN30: 0 | BO30: 0 | BP30: 0 | BQ30: 0 | BR30: 0 | BS30: 0 | BT30: 0 | BU30: 0 | BV30: 0 | BW30: 0 | BX30: 0 | BY30: 0 | BZ30: 0 | CA30: 3 | CB30: 1 | CC30: 0 | CD30: 0 | CE30: 0 | CF30: 0 | CG30: 0 | CH30: 0 | CI30: 0 | CJ30: 0 | CK30: 0 | CL30: 0 | CM30: 0 | CN30: 0 | CO30: 0 | CP30: 0 | CQ30: 0 | CR30: 2 | CS30: 0 | CT30: 2 | CU30: 0 | CV30: 9 | CW30: 0 | CX30: 9 | CY30: 0 | CZ30: 0 | DA30: 0 | DB30: 0 | DC30: 2 | DD30: 0 | DE30: 2 | DF30: 0 | DG30: 2 | DH30: 3 | DI30: 2 | DJ30: 3 | DK30: 0 | DL30: 0 | DM30: 0 | DN30: 0 | DO30: 0 | DP30: 0 | DQ30: 0 | DR30: 0 | DS30: 0 | DT30: 0 | DU30: 0 | DV30: 0 | DW30: 0 | DX30: 0 | DY30: 0 | DZ30: 0 | EA30: 0 | EB30: 0 | EC30: 0 | ED30: 0 | EE30: 0 | EF30: 6 | EG30: 0 | EH30: 11 | EI30: 0 | EJ30: 0 | EK30: 0 | EL30: 0 | EM30: 0 | EN30: 0 | EO30: 0 | EP30: 0 | EQ30: 0 | ER30: 0 | ES30: 0 | ET30: 0 | EU30: 0 | EV30: 0 | EW30: 0 | EX30: 0 | EY30: 0 | EZ30: 0 | FA30: 0 | FB30: 0 | FC30: 0 | FD30: 0 | FE30: 0 | FF30: 0 | FG30: 0 | FH30: 0 | FI30: 0 | FJ30: 0 | FK30: 0 | FL30: 0 | FM30: 0 | FN30: 0 | FO30: 0 | FP30: 0 | FQ30: 0 | FR30: 0 | FS30: 0 | FT30: 0 | FU30: 0 | FV30: 0 | FW30: 0 | FX30: 0 | FY30: 7 | FZ30: 0 | GA30: 0 | GB30: 0 | GC30: 0 | GD30: 0 | GE30: 0 | GF30: 0 | GG30: 0 | GH30: 0 | GI30: 0 | GJ30: 0 | GK30: 0 | GL30: 0 | GM30: 0 | GN30: 0 | GO30: 0 | GP30: 0 | GQ30: 0 | GR30: 0 | GS30: 0 | GT30: 0 | GU30: 0 | GV30: 0 | GW30: 0 | GX30: 0 | GY30: 0 | GZ30: 0 | HA30: 0 | HB30: 0 | HC30: 0 | HD30: 0 | HE30: 0 | HF30: 0 | HG30: 0 | HH30: 0 | HI30: 1 | HJ30: 0 | HK30: 0 | HL30: 0 | HM30: 0 | HN30: 0 | HO30: 0 | HP30: 0 | HQ30: 1 | HR30: 0 | HS30: 1 | HT30: 0 | HU30: 0 | HV30: 0 | HW30: 1 | HX30: 0 | HY30: 0 | HZ30: 0 | IA30: 1 | IB30: 0 | IC30: 0 | ID30: 0 | IE30: 0 | IF30: 0 | IG30: 0 | IH30: 0 | II30: 0 | IJ30: 0 | IK30: 0 | IL30: 0 | IM30: 0 | IN30: 0 | IO30: 0 | IP30: 0 | IQ30: 0 | IR30: 0 | IS30: 0 | IT30: 0 | IU30: 0 | IV30: 0 | IW30: 0 | IX30: 0 | IY30: 0 | IZ30: 0 | JA30: 0 | JB30: 0 | JC30: 0 | JD30: 0 | JE30: 0 | JF30: 0 | JG30: 0 | JH30: 0 | JI30: 0 | JJ30: 0 | JK30: 1 | JL30: 1 | JM30: 0 | JN30: 0 | JO30: 0 | JP30: 0 | JQ30: 0 | JR30: 0 | JS30: 0 | JT30: 0 | JU30: 0 | JV30: 0 | JW30: 0 | JX30: 0 | JY30: 29 | JZ30: 18 | KA30: 0 | KB30: 0 | KC30: 0 | KD30: 0
A31: LUCIANO CASTILLO COLONNA | B31: AYABACA | C31: 200201 | D31: 1912 | E31: TAPAL | F31: AYABACA | G31: NINGUN CLAS | H31: AYABACA | I31: AYABACA | J31: SALUD LUCIANO CASTILLO COLONNA | K31: 6 | L31: 0 | M31: 0 | N31: 0 | O31: 1 | P31: 2 | Q31: 4 | R31: 0 | S31: 1 | T31: 0 | U31: 0 | V31: 0 | W31: 0 | X31: 0 | Y31: 0 | Z31: 0 | AA31: 1 | AB31: 1 | AC31: 2 | AD31: 1 | AE31: 0 | AF31: 0 | AG31: 0 | AH31: 0 | AI31: 0 | AJ31: 0 | AK31: 0 | AL31: 0 | AM31: 0 | AN31: 0 | AO31: 0 | AP31: 0 | AQ31: 0 | AR31: 0 | AS31: 1 | AT31: 0 | AU31: 0 | AV31: 0 | AW31: 0 | AX31: 0 | AY31: 0 | AZ31: 0 | BA31: 0 | BB31: 0 | BC31: 0 | BD31: 0 | BE31: 0 | BF31: 0 | BG31: 0 | BH31: 0 | BI31: 0 | BJ31: 0 | BK31: 0 | BL31: 0 | BM31: 0 | BN31: 0 | BO31: 0 | BP31: 0 | BQ31: 0 | BR31: 0 | BS31: 0 | BT31: 0 | BU31: 0 | BV31: 0 | BW31: 0 | BX31: 0 | BY31: 0 | BZ31: 0 | CA31: 0 | CB31: 5 | CC31: 0 | CD31: 0 | CE31: 0 | CF31: 0 | CG31: 0 | CH31: 0 | CI31: 0 | CJ31: 0 | CK31: 0 | CL31: 0 | CM31: 0 | CN31: 0 | CO31: 0 | CP31: 0 | CQ31: 2 | CR31: 2 | CS31: 2 | CT31: 2 | CU31: 0 | CV31: 16 | CW31: 0 | CX31: 16 | CY31: 0 | CZ31: 2 | DA31: 0 | DB31: 2 | DC31: 0 | DD31: 0 | DE31: 0 | DF31: 0 | DG31: 0 | DH31: 0 | DI31: 0 | DJ31: 0 | DK31: 0 | DL31: 0 | DM31: 0 | DN31: 0 | DO31: 0 | DP31: 0 | DQ31: 0 | DR31: 0 | DS31: 0 | DT31: 0 | DU31: 0 | DV31: 0 | DW31: 0 | DX31: 0 | DY31: 0 | DZ31: 0 | EA31: 0 | EB31: 0 | EC31: 0 | ED31: 0 | EE31: 0 | EF31: 3 | EG31: 0 | EH31: 3 | EI31: 0 | EJ31: 0 | EK31: 0 | EL31: 0 | EM31: 0 | EN31: 0 | EO31: 0 | EP31: 0 | EQ31: 0 | ER31: 0 | ES31: 0 | ET31: 0 | EU31: 0 | EV31: 0 | EW31: 0 | EX31: 0 | EY31: 0 | EZ31: 0 | FA31: 0 | FB31: 0 | FC31: 0 | FD31: 0 | FE31: 0 | FF31: 0 | FG31: 0 | FH31: 0 | FI31: 0 | FJ31: 0 | FK31: 0 | FL31: 0 | FM31: 0 | FN31: 0 | FO31: 0 | FP31: 0 | FQ31: 0 | FR31: 0 | FS31: 0 | FT31: 0 | FU31: 0 | FV31: 0 | FW31: 0 | FX31: 0 | FY31: 0 | FZ31: 0 | GA31: 0 | GB31: 0 | GC31: 0 | GD31: 0 | GE31: 0 | GF31: 0 | GG31: 0 | GH31: 0 | GI31: 0 | GJ31: 1 | GK31: 0 | GL31: 0 | GM31: 0 | GN31: 0 | GO31: 0 | GP31: 0 | GQ31: 0 | GR31: 0 | GS31: 0 | GT31: 0 | GU31: 0 | GV31: 0 | GW31: 0 | GX31: 0 | GY31: 0 | GZ31: 0 | HA31: 0 | HB31: 0 | HC31: 1 | HD31: 0 | HE31: 0 | HF31: 1 | HG31: 0 | HH31: 0 | HI31: 0 | HJ31: 1 | HK31: 0 | HL31: 0 | HM31: 0 | HN31: 0 | HO31: 1 | HP31: 0 | HQ31: 1 | HR31: 0 | HS31: 2 | HT31: 0 | HU31: 0 | HV31: 0 | HW31: 2 | HX31: 0 | HY31: 0 | HZ31: 0 | IA31: 2 | IB31: 0 | IC31: 0 | ID31: 0 | IE31: 0 | IF31: 0 | IG31: 0 | IH31: 0 | II31: 0 | IJ31: 0 | IK31: 0 | IL31: 0 | IM31: 0 | IN31: 0 | IO31: 0 | IP31: 0 | IQ31: 0 | IR31: 0 | IS31: 0 | IT31: 0 | IU31: 0 | IV31: 0 | IW31: 0 | IX31: 0 | IY31: 0 | IZ31: 0 | JA31: 0 | JB31: 0 | JC31: 0 | JD31: 0 | JE31: 0 | JF31: 0 | JG31: 0 | JH31: 0 | JI31: 0 | JJ31: 1 | JK31: 0 | JL31: 0 | JM31: 0 | JN31: 0 | JO31: 0 | JP31: 0 | JQ31: 0 | JR31: 0 | JS31: 0 | JT31: 0 | JU31: 0 | JV31: 0 | JW31: 0 | JX31: 0 | JY31: 10 | JZ31: 6 | KA31: 0 | KB31: 0 | KC31: 0 | KD31: 0
A32: LUCIANO CASTILLO COLONNA | B32: AYABACA | C32: 200201 | D32: 1912 | E32: TAPAL | F32: AYABACA | G32: NINGUN CLAS | H32: AYABACA | I32: AYABACA | J32: SALUD LUCIANO CASTILLO COLONNA | K32: 7 | L32: 0 | M32: 0 | N32: 0 | O32: 1 | P32: 3 | Q32: 0 | R32: 0 | S32: 3 | T32: 0 | U32: 0 | V32: 0 | W32: 0 | X32: 0 | Y32: 0 | Z32: 1 | AA32: 0 | AB32: 3 | AC32: 1 | AD32: 3 | AE32: 7 | AF32: 0 | AG32: 0 | AH32: 0 | AI32: 0 | AJ32: 0 | AK32: 0 | AL32: 0 | AM32: 0 | AN32: 0 | AO32: 0 | AP32: 0 | AQ32: 1 | AR32: 0 | AS32: 1 | AT32: 0 | AU32: 0 | AV32: 0 | AW32: 0 | AX32: 0 | AY32: 0 | AZ32: 1 | BA32: 2 | BB32: 0 | BC32: 0 | BD32: 1 | BE32: 1 | BF32: 0 | BG32: 1 | BH32: 0 | BI32: 0 | BJ32: 0 | BK32: 0 | BL32: 0 | BM32: 0 | BN32: 0 | BO32: 0 | BP32: 0 | BQ32: 0 | BR32: 0 | BS32: 0 | BT32: 0 | BU32: 0 | BV32: 0 | BW32: 0 | BX32: 0 | BY32: 0 | BZ32: 0 | CA32: 0 | CB32: 6 | CC32: 0 | CD32: 0 | CE32: 0 | CF32: 0 | CG32: 0 | CH32: 0 | CI32: 0 | CJ32: 0 | CK32: 0 | CL32: 0 | CM32: 0 | CN32: 0 | CO32: 0 | CP32: 0 | CQ32: 2 | CR32: 5 | CS32: 2 | CT32: 5 | CU32: 0 | CV32: 5 | CW32: 0 | CX32: 5 | CY32: 0 | CZ32: 12 | DA32: 0 | DB32: 12 | DC32: 0 | DD32: 0 | DE32: 0 | DF32: 0 | DG32: 0 | DH32: 1 | DI32: 0 | DJ32: 1 | DK32: 0 | DL32: 0 | DM32: 0 | DN32: 0 | DO32: 0 | DP32: 0 | DQ32: 0 | DR32: 0 | DS32: 0 | DT32: 0 | DU32: 0 | DV32: 0 | DW32: 0 | DX32: 0 | DY32: 0 | DZ32: 0 | EA32: 0 | EB32: 0 | EC32: 0 | ED32: 0 | EE32: 0 | EF32: 0 | EG32: 2 | EH32: 8 | EI32: 0 | EJ32: 0 | EK32: 0 | EL32: 0 | EM32: 0 | EN32: 0 | EO32: 0 | EP32: 0 | EQ32: 0 | ER32: 0 | ES32: 0 | ET32: 0 | EU32: 0 | EV32: 0 | EW32: 0 | EX32: 0 | EY32: 0 | EZ32: 0 | FA32: 0 | FB32: 0 | FC32: 0 | FD32: 0 | FE32: 0 | FF32: 0 | FG32: 0 | FH32: 0 | FI32: 0 | FJ32: 0 | FK32: 0 | FL32: 0 | FM32: 0 | FN32: 0 | FO32: 0 | FP32: 0 | FQ32: 0 | FR32: 0 | FS32: 0 | FT32: 0 | FU32: 0 | FV32: 0 | FW32: 0 | FX32: 0 | FY32: 0 | FZ32: 0 | GA32: 0 | GB32: 0 | GC32: 0 | GD32: 0 | GE32: 0 | GF32: 0 | GG32: 0 | GH32: 0 | GI32: 0 | GJ32: 0 | GK32: 0 | GL32: 0 | GM32: 0 | GN32: 0 | GO32: 0 | GP32: 0 | GQ32: 0 | GR32: 0 | GS32: 0 | GT32: 0 | GU32: 0 | GV32: 0 | GW32: 0 | GX32: 2 | GY32: 0 | GZ32: 0 | HA32: 0 | HB32: 0 | HC32: 0 | HD32: 0 | HE32: 0 | HF32: 3 | HG32: 0 | HH32: 0 | HI32: 0 | HJ32: 0 | HK32: 0 | HL32: 0 | HM32: 0 | HN32: 0 | HO32: 0 | HP32: 0 | HQ32: 2 | HR32: 0 | HS32: 2 | HT32: 0 | HU32: 0 | HV32: 0 | HW32: 2 | HX32: 0 | HY32: 0 | HZ32: 0 | IA32: 2 | IB32: 0 | IC32: 2 | ID32: 0 | IE32: 2 | IF32: 0 | IG32: 0 | IH32: 0 | II32: 0 | IJ32: 0 | IK32: 2 | IL32: 0 | IM32: 0 | IN32: 0 | IO32: 0 | IP32: 0 | IQ32: 0 | IR32: 0 | IS32: 0 | IT32: 0 | IU32: 0 | IV32: 0 | IW32: 0 | IX32: 0 | IY32: 0 | IZ32: 0 | JA32: 0 | JB32: 0 | JC32: 0 | JD32: 0 | JE32: 0 | JF32: 0 | JG32: 0 | JH32: 0 | JI32: 0 | JJ32: 0 | JK32: 0 | JL32: 0 | JM32: 0 | JN32: 0 | JO32: 0 | JP32: 0 | JQ32: 0 | JR32: 0 | JS32: 0 | JT32: 0 | JU32: 0 | JV32: 0 | JW32: 0 | JX32: 0 | JY32: 8 | JZ32: 12 | KA32: 0 | KB32: 0 | KC32: 2 | KD32: 0
A33: LUCIANO CASTILLO COLONNA | B33: AYABACA | C33: 200201 | D33: 1912 | E33: TAPAL | F33: AYABACA | G33: NINGUN CLAS | H33: AYABACA | I33: AYABACA | J33: SALUD LUCIANO CASTILLO COLONNA | K33: 8 | L33: 0 | M33: 0 | N33: 0 | O33: 5 | P33: 1 | Q33: 8 | R33: 0 | S33: 1 | T33: 0 | U33: 0 | V33: 0 | W33: 0 | X33: 0 | Y33: 0 | Z33: 1 | AA33: 0 | AB33: 2 | AC33: 2 | AD33: 2 | AE33: 12 | AF33: 0 | AG33: 0 | AH33: 0 | AI33: 0 | AJ33: 0 | AK33: 0 | AL33: 0 | AM33: 0 | AN33: 0 | AO33: 0 | AP33: 1 | AQ33: 5 | AR33: 0 | AS33: 0 | AT33: 0 | AU33: 0 | AV33: 0 | AW33: 0 | AX33: 0 | AY33: 0 | AZ33: 1 | BA33: 9 | BB33: 0 | BC33: 1 | BD33: 0 | BE33: 5 | BF33: 0 | BG33: 4 | BH33: 0 | BI33: 0 | BJ33: 0 | BK33: 0 | BL33: 0 | BM33: 0 | BN33: 0 | BO33: 0 | BP33: 0 | BQ33: 0 | BR33: 0 | BS33: 0 | BT33: 0 | BU33: 0 | BV33: 0 | BW33: 0 | BX33: 0 | BY33: 0 | BZ33: 0 | CA33: 0 | CB33: 8 | CC33: 0 | CD33: 0 | CE33: 0 | CF33: 0 | CG33: 0 | CH33: 0 | CI33: 0 | CJ33: 0 | CK33: 0 | CL33: 0 | CM33: 0 | CN33: 0 | CO33: 0 | CP33: 0 | CQ33: 0 | CR33: 7 | CS33: 0 | CT33: 7 | CU33: 0 | CV33: 21 | CW33: 0 | CX33: 21 | CY33: 0 | CZ33: 11 | DA33: 0 | DB33: 11 | DC33: 0 | DD33: 0 | DE33: 0 | DF33: 0 | DG33: 1 | DH33: 1 | DI33: 1 | DJ33: 1 | DK33: 0 | DL33: 0 | DM33: 0 | DN33: 0 | DO33: 0 | DP33: 0 | DQ33: 0 | DR33: 0 | DS33: 0 | DT33: 0 | DU33: 0 | DV33: 0 | DW33: 0 | DX33: 0 | DY33: 0 | DZ33: 0 | EA33: 0 | EB33: 0 | EC33: 0 | ED33: 0 | EE33: 0 | EF33: 1 | EG33: 0 | EH33: 0 | EI33: 0 | EJ33: 0 | EK33: 0 | EL33: 0 | EM33: 0 | EN33: 0 | EO33: 0 | EP33: 0 | EQ33: 0 | ER33: 0 | ES33: 0 | ET33: 0 | EU33: 0 | EV33: 0 | EW33: 0 | EX33: 0 | EY33: 0 | EZ33: 0 | FA33: 0 | FB33: 0 | FC33: 0 | FD33: 0 | FE33: 0 | FF33: 0 | FG33: 0 | FH33: 0 | FI33: 0 | FJ33: 0 | FK33: 0 | FL33: 0 | FM33: 0 | FN33: 0 | FO33: 0 | FP33: 0 | FQ33: 0 | FR33: 0 | FS33: 0 | FT33: 0 | FU33: 0 | FV33: 0 | FW33: 0 | FX33: 0 | FY33: 0 | FZ33: 0 | GA33: 0 | GB33: 0 | GC33: 0 | GD33: 0 | GE33: 0 | GF33: 0 | GG33: 2 | GH33: 8 | GI33: 0 | GJ33: 1 | GK33: 0 | GL33: 0 | GM33: 0 | GN33: 0 | GO33: 0 | GP33: 0 | GQ33: 0 | GR33: 0 | GS33: 0 | GT33: 0 | GU33: 0 | GV33: 0 | GW33: 0 | GX33: 0 | GY33: 0 | GZ33: 0 | HA33: 0 | HB33: 0 | HC33: 0 | HD33: 1 | HE33: 0 | HF33: 1 | HG33: 0 | HH33: 0 | HI33: 0 | HJ33: 0 | HK33: 0 | HL33: 0 | HM33: 0 | HN33: 0 | HO33: 1 | HP33: 0 | HQ33: 0 | HR33: 1 | HS33: 2 | HT33: 0 | HU33: 0 | HV33: 1 | HW33: 2 | HX33: 0 | HY33: 0 | HZ33: 1 | IA33: 2 | IB33: 0 | IC33: 1 | ID33: 0 | IE33: 1 | IF33: 0 | IG33: 0 | IH33: 0 | II33: 0 | IJ33: 0 | IK33: 1 | IL33: 0 | IM33: 0 | IN33: 0 | IO33: 0 | IP33: 0 | IQ33: 0 | IR33: 0 | IS33: 0 | IT33: 0 | IU33: 0 | IV33: 0 | IW33: 0 | IX33: 0 | IY33: 0 | IZ33: 0 | JA33: 0 | JB33: 0 | JC33: 0 | JD33: 0 | JE33: 0 | JF33: 0 | JG33: 0 | JH33: 0 | JI33: 0 | JJ33: 0 | JK33: 0 | JL33: 0 | JM33: 0 | JN33: 0 | JO33: 0 | JP33: 0 | JQ33: 0 | JR33: 0 | JS33: 0 | JT33: 0 | JU33: 0 | JV33: 0 | JW33: 0 | JX33: 0 | JY33: 7 | JZ33: 6 | KA33: 0 | KB33: 0 | KC33: 1 | KD33: 0
A34: LUCIANO CASTILLO COLONNA | B34: AYABACA | C34: 200201 | D34: 1912 | E34: TAPAL | F34: AYABACA | G34: NINGUN CLAS | H34: AYABACA | I34: AYABACA | J34: SALUD LUCIANO CASTILLO COLONNA | K34: 10 | L34: 0 | M34: 0 | N34: 0 | O34: 0 | P34: 1 | Q34: 7 | R34: 0 | S34: 0 | T34: 0 | U34: 0 | V34: 0 | W34: 0 | X34: 0 | Y34: 0 | Z34: 0 | AA34: 0 | AB34: 1 | AC34: 2 | AD34: 0 | AE34: 5 | AF34: 0 | AG34: 0 | AH34: 0 | AI34: 0 | AJ34: 0 | AK34: 0 | AL34: 0 | AM34: 0 | AN34: 0 | AO34: 0 | AP34: 0 | AQ34: 0 | AR34: 0 | AS34: 0 | AT34: 0 | AU34: 0 | AV34: 0 | AW34: 0 | AX34: 0 | AY34: 0 | AZ34: 0 | BA34: 0 | BB34: 0 | BC34: 0 | BD34: 0 | BE34: 0 | BF34: 0 | BG34: 0 | BH34: 0 | BI34: 0 | BJ34: 0 | BK34: 0 | BL34: 0 | BM34: 0 | BN34: 0 | BO34: 0 | BP34: 0 | BQ34: 0 | BR34: 0 | BS34: 0 | BT34: 0 | BU34: 0 | BV34: 0 | BW34: 0 | BX34: 0 | BY34: 0 | BZ34: 0 | CA34: 2 | CB34: 5 | CC34: 0 | CD34: 0 | CE34: 0 | CF34: 0 | CG34: 0 | CH34: 0 | CI34: 0 | CJ34: 0 | CK34: 0 | CL34: 0 | CM34: 0 | CN34: 0 | CO34: 0 | CP34: 0 | CQ34: 3 | CR34: 5 | CS34: 3 | CT34: 5 | CU34: 0 | CV34: 9 | CW34: 0 | CX34: 9 | CY34: 0 | CZ34: 4 | DA34: 0 | DB34: 4 | DC34: 0 | DD34: 0 | DE34: 0 | DF34: 0 | DG34: 1 | DH34: 1 | DI34: 1 | DJ34: 1 | DK34: 0 | DL34: 0 | DM34: 0 | DN34: 0 | DO34: 0 | DP34: 0 | DQ34: 0 | DR34: 0 | DS34: 0 | DT34: 0 | DU34: 0 | DV34: 0 | DW34: 0 | DX34: 0 | DY34: 0 | DZ34: 0 | EA34: 0 | EB34: 0 | EC34: 0 | ED34: 0 | EE34: 0 | EF34: 5 | EG34: 0 | EH34: 0 | EI34: 0 | EJ34: 0 | EK34: 0 | EL34: 0 | EM34: 0 | EN34: 0 | EO34: 0 | EP34: 0 | EQ34: 0 | ER34: 0 | ES34: 0 | ET34: 0 | EU34: 0 | EV34: 0 | EW34: 0 | EX34: 0 | EY34: 0 | EZ34: 0 | FA34: 0 | FB34: 0 | FC34: 0 | FD34: 0 | FE34: 0 | FF34: 0 | FG34: 0 | FH34: 0 | FI34: 0 | FJ34: 0 | FK34: 0 | FL34: 0 | FM34: 0 | FN34: 0 | FO34: 0 | FP34: 0 | FQ34: 0 | FR34: 0 | FS34: 0 | FT34: 0 | FU34: 0 | FV34: 0 | FW34: 0 | FX34: 0 | FY34: 2 | FZ34: 0 | GA34: 0 | GB34: 0 | GC34: 0 | GD34: 0 | GE34: 0 | GF34: 0 | GG34: 0 | GH34: 0 | GI34: 0 | GJ34: 2 | GK34: 0 | GL34: 0 | GM34: 0 | GN34: 0 | GO34: 0 | GP34: 0 | GQ34: 0 | GR34: 0 | GS34: 0 | GT34: 0 | GU34: 0 | GV34: 0 | GW34: 0 | GX34: 0 | GY34: 0 | GZ34: 0 | HA34: 0 | HB34: 0 | HC34: 2 | HD34: 0 | HE34: 0 | HF34: 0 | HG34: 0 | HH34: 0 | HI34: 0 | HJ34: 0 | HK34: 0 | HL34: 0 | HM34: 0 | HN34: 0 | HO34: 2 | HP34: 0 | HQ34: 0 | HR34: 0 | HS34: 2 | HT34: 0 | HU34: 0 | HV34: 0 | HW34: 2 | HX34: 0 | HY34: 0 | HZ34: 0 | IA34: 2 | IB34: 0 | IC34: 0 | ID34: 0 | IE34: 0 | IF34: 0 | IG34: 0 | IH34: 0 | II34: 0 | IJ34: 0 | IK34: 0 | IL34: 0 | IM34: 0 | IN34: 0 | IO34: 0 | IP34: 0 | IQ34: 0 | IR34: 0 | IS34: 0 | IT34: 0 | IU34: 0 | IV34: 0 | IW34: 0 | IX34: 0 | IY34: 0 | IZ34: 0 | JA34: 0 | JB34: 0 | JC34: 0 | JD34: 0 | JE34: 0 | JF34: 0 | JG34: 0 | JH34: 0 | JI34: 0 | JJ34: 0 | JK34: 0 | JL34: 0 | JM34: 0 | JN34: 0 | JO34: 0 | JP34: 0 | JQ34: 0 | JR34: 0 | JS34: 0 | JT34: 0 | JU34: 0 | JV34: 0 | JW34: 0 | JX34: 0 | JY34: 8 | JZ34: 5 | KA34: 0 | KB34: 0 | KC34: 0 | KD34: 0
A35: LUCIANO CASTILLO COLONNA | B35: AYABACA | C35: 200201 | D35: 1912 | E35: TAPAL | F35: AYABACA | G35: NINGUN CLAS | H35: AYABACA | I35: AYABACA | J35: SALUD LUCIANO CASTILLO COLONNA | K35: 9 | L35: 0 | M35: 0 | N35: 1 | O35: 5 | P35: 2 | Q35: 6 | R35: 3 | S35: 2 | T35: 0 | U35: 0 | V35: 0 | W35: 0 | X35: 0 | Y35: 0 | Z35: 1 | AA35: 0 | AB35: 1 | AC35: 5 | AD35: 1 | AE35: 10 | AF35: 0 | AG35: 0 | AH35: 0 | AI35: 0 | AJ35: 0 | AK35: 0 | AL35: 0 | AM35: 0 | AN35: 0 | AO35: 0 | AP35: 0 | AQ35: 3 | AR35: 0 | AS35: 2 | AT35: 0 | AU35: 0 | AV35: 0 | AW35: 0 | AX35: 0 | AY35: 0 | AZ35: 1 | BA35: 8 | BB35: 0 | BC35: 0 | BD35: 0 | BE35: 2 | BF35: 1 | BG35: 4 | BH35: 0 | BI35: 0 | BJ35: 0 | BK35: 0 | BL35: 0 | BM35: 0 | BN35: 0 | BO35: 0 | BP35: 0 | BQ35: 0 | BR35: 0 | BS35: 0 | BT35: 0 | BU35: 0 | BV35: 0 | BW35: 0 | BX35: 0 | BY35: 0 | BZ35: 0 | CA35: 0 | CB35: 0 | CC35: 0 | CD35: 0 | CE35: 0 | CF35: 0 | CG35: 0 | CH35: 0 | CI35: 0 | CJ35: 0 | CK35: 0 | CL35: 0 | CM35: 0 | CN35: 0 | CO35: 0 | CP35: 0 | CQ35: 1 | CR35: 6 | CS35: 1 | CT35: 6 | CU35: 3 | CV35: 27 | CW35: 3 | CX35: 27 | CY35: 0 | CZ35: 9 | DA35: 0 | DB35: 9 | DC35: 0 | DD35: 0 | DE35: 0 | DF35: 0 | DG35: 0 | DH35: 0 | DI35: 0 | DJ35: 0 | DK35: 0 | DL35: 0 | DM35: 0 | DN35: 0 | DO35: 0 | DP35: 0 | DQ35: 0 | DR35: 0 | DS35: 0 | DT35: 0 | DU35: 0 | DV35: 0 | DW35: 0 | DX35: 0 | DY35: 0 | DZ35: 0 | EA35: 0 | EB35: 0 | EC35: 0 | ED35: 0 | EE35: 0 | EF35: 1 | EG35: 1 | EH35: 3 | EI35: 0 | EJ35: 0 | EK35: 0 | EL35: 0 | EM35: 0 | EN35: 0 | EO35: 0 | EP35: 0 | EQ35: 0 | ER35: 0 | ES35: 0 | ET35: 0 | EU35: 0 | EV35: 0 | EW35: 0 | EX35: 0 | EY35: 0 | EZ35: 0 | FA35: 0 | FB35: 0 | FC35: 0 | FD35: 0 | FE35: 0 | FF35: 0 | FG35: 0 | FH35: 0 | FI35: 0 | FJ35: 0 | FK35: 0 | FL35: 0 | FM35: 0 | FN35: 0 | FO35: 0 | FP35: 0 | FQ35: 0 | FR35: 0 | FS35: 0 | FT35: 0 | FU35: 0 | FV35: 0 | FW35: 0 | FX35: 0 | FY35: 0 | FZ35: 0 | GA35: 0 | GB35: 0 | GC35: 0 | GD35: 0 | GE35: 0 | GF35: 0 | GG35: 1 | GH35: 3 | GI35: 0 | GJ35: 2 | GK35: 0 | GL35: 0 | GM35: 0 | GN35: 0 | GO35: 0 | GP35: 0 | GQ35: 0 | GR35: 0 | GS35: 0 | GT35: 0 | GU35: 0 | GV35: 0 | GW35: 0 | GX35: 0 | GY35: 0 | GZ35: 0 | HA35: 0 | HB35: 0 | HC35: 1 | HD35: 0 | HE35: 0 | HF35: 0 | HG35: 0 | HH35: 0 | HI35: 0 | HJ35: 0 | HK35: 0 | HL35: 0 | HM35: 0 | HN35: 0 | HO35: 1 | HP35: 0 | HQ35: 1 | HR35: 0 | HS35: 2 | HT35: 0 | HU35: 0 | HV35: 0 | HW35: 2 | HX35: 0 | HY35: 0 | HZ35: 0 | IA35: 2 | IB35: 1 | IC35: 0 | ID35: 1 | IE35: 0 | IF35: 0 | IG35: 0 | IH35: 0 | II35: 0 | IJ35: 1 | IK35: 0 | IL35: 0 | IM35: 0 | IN35: 0 | IO35: 0 | IP35: 0 | IQ35: 0 | IR35: 0 | IS35: 0 | IT35: 0 | IU35: 0 | IV35: 0 | IW35: 0 | IX35: 0 | IY35: 0 | IZ35: 0 | JA35: 0 | JB35: 0 | JC35: 0 | JD35: 0 | JE35: 0 | JF35: 0 | JG35: 0 | JH35: 0 | JI35: 0 | JJ35: 0 | JK35: 0 | JL35: 0 | JM35: 0 | JN35: 0 | JO35: 0 | JP35: 0 | JQ35: 0 | JR35: 0 | JS35: 0 | JT35: 0 | JU35: 0 | JV35: 0 | JW35: 0 | JX35: 0 | JY35: 9 | JZ35: 5 | KA35: 0 | KB35: 0 | KC35: 1 | KD35: 0
A36: LUCIANO CASTILLO COLONNA | B36: AYABACA | C36: 200201 | D36: 1912 | E36: TAPAL | F36: AYABACA | G36: NINGUN CLAS | H36: AYABACA | I36: AYABACA | J36: SALUD LUCIANO CASTILLO COLONNA | K36: 11 | L36: 0 | M36: 0 | N36: 0 | O36: 0 | P36: 3 | Q36: 3 | R36: 1 | S36: 3 | T36: 0 | U36: 0 | V36: 0 | W36: 0 | X36: 0 | Y36: 0 | Z36: 0 | AA36: 0 | AB36: 3 | AC36: 5 | AD36: 1 | AE36: 3 | AF36: 0 | AG36: 0 | AH36: 0 | AI36: 0 | AJ36: 0 | AK36: 0 | AL36: 0 | AM36: 0 | AN36: 0 | AO36: 0 | AP36: 0 | AQ36: 0 | AR36: 0 | AS36: 0 | AT36: 0 | AU36: 0 | AV36: 0 | AW36: 0 | AX36: 0 | AY36: 0 | AZ36: 0 | BA36: 0 | BB36: 0 | BC36: 0 | BD36: 0 | BE36: 0 | BF36: 0 | BG36: 0 | BH36: 0 | BI36: 0 | BJ36: 0 | BK36: 0 | BL36: 0 | BM36: 0 | BN36: 0 | BO36: 0 | BP36: 0 | BQ36: 0 | BR36: 0 | BS36: 0 | BT36: 0 | BU36: 0 | BV36: 0 | BW36: 0 | BX36: 0 | BY36: 0 | BZ36: 0 | CA36: 1 | CB36: 8 | CC36: 0 | CD36: 0 | CE36: 0 | CF36: 0 | CG36: 0 | CH36: 0 | CI36: 0 | CJ36: 0 | CK36: 0 | CL36: 0 | CM36: 0 | CN36: 0 | CO36: 0 | CP36: 0 | CQ36: 0 | CR36: 4 | CS36: 0 | CT36: 4 | CU36: 2 | CV36: 16 | CW36: 2 | CX36: 16 | CY36: 1 | CZ36: 7 | DA36: 1 | DB36: 7 | DC36: 0 | DD36: 0 | DE36: 0 | DF36: 0 | DG36: 1 | DH36: 0 | DI36: 1 | DJ36: 0 | DK36: 0 | DL36: 0 | DM36: 0 | DN36: 0 | DO36: 0 | DP36: 0 | DQ36: 0 | DR36: 0 | DS36: 0 | DT36: 0 | DU36: 0 | DV36: 0 | DW36: 0 | DX36: 0 | DY36: 0 | DZ36: 0 | EA36: 0 | EB36: 0 | EC36: 0 | ED36: 0 | EE36: 0 | EF36: 4 | EG36: 0 | EH36: 0 | EI36: 0 | EJ36: 0 | EK36: 0 | EL36: 0 | EM36: 0 | EN36: 0 | EO36: 0 | EP36: 0 | EQ36: 0 | ER36: 0 | ES36: 0 | ET36: 0 | EU36: 0 | EV36: 0 | EW36: 0 | EX36: 0 | EY36: 0 | EZ36: 0 | FA36: 0 | FB36: 0 | FC36: 0 | FD36: 0 | FE36: 0 | FF36: 0 | FG36: 0 | FH36: 0 | FI36: 0 | FJ36: 0 | FK36: 0 | FL36: 0 | FM36: 0 | FN36: 0 | FO36: 0 | FP36: 0 | FQ36: 0 | FR36: 0 | FS36: 0 | FT36: 0 | FU36: 0 | FV36: 0 | FW36: 0 | FX36: 0 | FY36: 0 | FZ36: 0 | GA36: 0 | GB36: 0 | GC36: 0 | GD36: 0 | GE36: 0 | GF36: 0 | GG36: 0 | GH36: 0 | GI36: 0 | GJ36: 0 | GK36: 0 | GL36: 0 | GM36: 0 | GN36: 0 | GO36: 0 | GP36: 0 | GQ36: 0 | GR36: 0 | GS36: 0 | GT36: 0 | GU36: 0 | GV36: 0 | GW36: 0 | GX36: 0 | GY36: 0 | GZ36: 0 | HA36: 0 | HB36: 0 | HC36: 0 | HD36: 0 | HE36: 0 | HF36: 1 | HG36: 0 | HH36: 0 | HI36: 0 | HJ36: 0 | HK36: 0 | HL36: 0 | HM36: 0 | HN36: 0 | HO36: 0 | HP36: 0 | HQ36: 0 | HR36: 3 | HS36: 0 | HT36: 0 | HU36: 0 | HV36: 3 | HW36: 0 | HX36: 0 | HY36: 0 | HZ36: 0 | IA36: 0 | IB36: 0 | IC36: 0 | ID36: 0 | IE36: 0 | IF36: 0 | IG36: 0 | IH36: 0 | II36: 0 | IJ36: 0 | IK36: 0 | IL36: 0 | IM36: 0 | IN36: 0 | IO36: 0 | IP36: 0 | IQ36: 0 | IR36: 0 | IS36: 0 | IT36: 0 | IU36: 0 | IV36: 0 | IW36: 0 | IX36: 0 | IY36: 0 | IZ36: 0 | JA36: 0 | JB36: 0 | JC36: 0 | JD36: 0 | JE36: 0 | JF36: 0 | JG36: 0 | JH36: 0 | JI36: 0 | JJ36: 0 | JK36: 0 | JL36: 0 | JM36: 0 | JN36: 0 | JO36: 0 | JP36: 0 | JQ36: 0 | JR36: 0 | JS36: 0 | JT36: 0 | JU36: 0 | JV36: 0 | JW36: 0 | JX36: 0 | JY36: 10 | JZ36: 4 | KA36: 0 | KB36: 0 | KC36: 0 | KD36: 0
A37: LUCIANO CASTILLO COLONNA | B37: AYABACA | C37: 200201 | D37: 1912 | E37: TAPAL | F37: AYABACA | G37: NINGUN CLAS | H37: AYABACA | I37: AYABACA | J37: SALUD LUCIANO CASTILLO COLONNA | K37: 12 | L37: 0 | M37: 0 | N37: 0 | O37: 0 | P37: 0 | Q37: 0 | R37: 0 | S37: 0 | T37: 0 | U37: 0 | V37: 0 | W37: 1 | X37: 0 | Y37: 0 | Z37: 0 | AA37: 0 | AB37: 0 | AC37: 0 | AD37: 0 | AE37: 0 | AF37: 0 | AG37: 0 | AH37: 0 | AI37: 0 | AJ37: 0 | AK37: 0 | AL37: 0 | AM37: 0 | AN37: 0 | AO37: 0 | AP37: 0 | AQ37: 0 | AR37: 0 | AS37: 0 | AT37: 0 | AU37: 0 | AV37: 0 | AW37: 0 | AX37: 0 | AY37: 0 | AZ37: 0 | BA37: 0 | BB37: 0 | BC37: 0 | BD37: 0 | BE37: 0 | BF37: 0 | BG37: 0 | BH37: 0 | BI37: 0 | BJ37: 0 | BK37: 1 | BL37: 0 | BM37: 0 | BN37: 0 | BO37: 0 | BP37: 0 | BQ37: 0 | BR37: 0 | BS37: 1 | BT37: 0 | BU37: 0 | BV37: 0 | BW37: 0 | BX37: 0 | BY37: 0 | BZ37: 0 | CA37: 0 | CB37: 2 | CC37: 0 | CD37: 0 | CE37: 0 | CF37: 0 | CG37: 0 | CH37: 0 | CI37: 0 | CJ37: 0 | CK37: 0 | CL37: 0 | CM37: 0 | CN37: 0 | CO37: 0 | CP37: 0 | CQ37: 1 | CR37: 2 | CS37: 1 | CT37: 2 | CU37: 0 | CV37: 6 | CW37: 0 | CX37: 6 | CY37: 1 | CZ37: 2 | DA37: 1 | DB37: 2 | DC37: 0 | DD37: 0 | DE37: 0 | DF37: 0 | DG37: 0 | DH37: 0 | DI37: 0 | DJ37: 0 | DK37: 0 | DL37: 0 | DM37: 0 | DN37: 0 | DO37: 0 | DP37: 0 | DQ37: 0 | DR37: 0 | DS37: 0 | DT37: 0 | DU37: 0 | DV37: 0 | DW37: 0 | DX37: 0 | DY37: 0 | DZ37: 0 | EA37: 0 | EB37: 0 | EC37: 0 | ED37: 0 | EE37: 0 | EF37: 0 | EG37: 0 | EH37: 0 | EI37: 0 | EJ37: 0 | EK37: 0 | EL37: 0 | EM37: 0 | EN37: 0 | EO37: 0 | EP37: 0 | EQ37: 0 | ER37: 0 | ES37: 0 | ET37: 0 | EU37: 0 | EV37: 0 | EW37: 0 | EX37: 0 | EY37: 0 | EZ37: 0 | FA37: 0 | FB37: 0 | FC37: 0 | FD37: 0 | FE37: 0 | FF37: 0 | FG37: 0 | FH37: 0 | FI37: 0 | FJ37: 0 | FK37: 0 | FL37: 0 | FM37: 0 | FN37: 0 | FO37: 0 | FP37: 0 | FQ37: 0 | FR37: 0 | FS37: 0 | FT37: 0 | FU37: 0 | FV37: 0 | FW37: 0 | FX37: 0 | FY37: 0 | FZ37: 0 | GA37: 0 | GB37: 0 | GC37: 0 | GD37: 0 | GE37: 0 | GF37: 0 | GG37: 0 | GH37: 0 | GI37: 0 | GJ37: 0 | GK37: 0 | GL37: 0 | GM37: 0 | GN37: 0 | GO37: 0 | GP37: 0 | GQ37: 0 | GR37: 0 | GS37: 0 | GT37: 0 | GU37: 0 | GV37: 0 | GW37: 0 | GX37: 0 | GY37: 0 | GZ37: 0 | HA37: 0 | HB37: 0 | HC37: 0 | HD37: 0 | HE37: 0 | HF37: 0 | HG37: 0 | HH37: 0 | HI37: 0 | HJ37: 0 | HK37: 0 | HL37: 0 | HM37: 0 | HN37: 0 | HO37: 0 | HP37: 0 | HQ37: 0 | HR37: 0 | HS37: 0 | HT37: 0 | HU37: 0 | HV37: 0 | HW37: 0 | HX37: 0 | HY37: 0 | HZ37: 0 | IA37: 0 | IB37: 0 | IC37: 0 | ID37: 0 | IE37: 0 | IF37: 0 | IG37: 0 | IH37: 0 | II37: 0 | IJ37: 0 | IK37: 0 | IL37: 0 | IM37: 0 | IN37: 0 | IO37: 0 | IP37: 0 | IQ37: 0 | IR37: 0 | IS37: 0 | IT37: 0 | IU37: 0 | IV37: 0 | IW37: 0 | IX37: 0 | IY37: 0 | IZ37: 0 | JA37: 0 | JB37: 0 | JC37: 0 | JD37: 0 | JE37: 0 | JF37: 0 | JG37: 0 | JH37: 0 | JI37: 0 | JJ37: 0 | JK37: 0 | JL37: 0 | JM37: 0 | JN37: 0 | JO37: 0 | JP37: 0 | JQ37: 0 | JR37: 0 | JS37: 0 | JT37: 0 | JU37: 0 | JV37: 0 | JW37: 0 | JX37: 0 | JY37: 1 | JZ37: 0 | KA37: 0 | KB37: 0 | KC37: 0 | KD37: 0
A38: LUCIANO CASTILLO COLONNA | B38: AYABACA | C38: 200201 | D38: 1913 | E38: CHINCHIN | F38: AYABACA | G38: NINGUN CLAS | H38: AYABACA | I38: AYABACA | J38: SALUD LUCIANO CASTILLO COLONNA | K38: 12 | L38: 0 | M38: 0 | N38: 0 | O38: 0 | P38: 0 | Q38: 0 | R38: 0 | S38: 0 | T38: 0 | U38: 0 | V38: 0 | W38: 0 | X38: 0 | Y38: 0 | Z38: 0 | AA38: 0 | AB38: 0 | AC38: 0 | AD38: 0 | AE38: 0 | AF38: 0 | AG38: 0 | AH38: 0 | AI38: 0 | AJ38: 0 | AK38: 0 | AL38: 0 | AM38: 0 | AN38: 0 | AO38: 0 | AP38: 0 | AQ38: 0 | AR38: 0 | AS38: 0 | AT38: 0 | AU38: 0 | AV38: 0 | AW38: 0 | AX38: 0 | AY38: 0 | AZ38: 0 | BA38: 0 | BB38: 0 | BC38: 0 | BD38: 0 | BE38: 0 | BF38: 0 | BG38: 0 | BH38: 0 | BI38: 0 | BJ38: 0 | BK38: 0 | BL38: 0 | BM38: 0 | BN38: 0 | BO38: 0 | BP38: 0 | BQ38: 0 | BR38: 0 | BS38: 0 | BT38: 0 | BU38: 0 | BV38: 0 | BW38: 0 | BX38: 0 | BY38: 0 | BZ38: 0 | CA38: 0 | CB38: 4 | CC38: 0 | CD38: 4 | CE38: 0 | CF38: 1 | CG38: 0 | CH38: 3 | CI38: 0 | CJ38: 0 | CK38: 0 | CL38: 0 | CM38: 0 | CN38: 0 | CO38: 0 | CP38: 0 | CQ38: 0 | CR38: 0 | CS38: 0 | CT38: 0 | CU38: 0 | CV38: 3 | CW38: 0 | CX38: 3 | CY38: 0 | CZ38: 5 | DA38: 0 | DB38: 5 | DC38: 0 | DD38: 0 | DE38: 0 | DF38: 0 | DG38: 0 | DH38: 0 | DI38: 0 | DJ38: 0 | DK38: 0 | DL38: 0 | DM38: 0 | DN38: 0 | DO38: 0 | DP38: 0 | DQ38: 0 | DR38: 0 | DS38: 0 | DT38: 0 | DU38: 0 | DV38: 0 | DW38: 0 | DX38: 0 | DY38: 0 | DZ38: 0 | EA38: 0 | EB38: 0 | EC38: 0 | ED38: 0 | EE38: 0 | EF38: 0 | EG38: 0 | EH38: 0 | EI38: 0 | EJ38: 0 | EK38: 0 | EL38: 0 | EM38: 0 | EN38: 0 | EO38: 0 | EP38: 0 | EQ38: 0 | ER38: 0 | ES38: 0 | ET38: 0 | EU38: 0 | EV38: 0 | EW38: 0 | EX38: 0 | EY38: 0 | EZ38: 0 | FA38: 0 | FB38: 0 | FC38: 0 | FD38: 0 | FE38: 0 | FF38: 0 | FG38: 0 | FH38: 0 | FI38: 0 | FJ38: 0 | FK38: 0 | FL38: 0 | FM38: 0 | FN38: 0 | FO38: 0 | FP38: 0 | FQ38: 0 | FR38: 0 | FS38: 0 | FT38: 0 | FU38: 0 | FV38: 0 | FW38: 0 | FX38: 0 | FY38: 0 | FZ38: 0 | GA38: 0 | GB38: 0 | GC38: 0 | GD38: 0 | GE38: 0 | GF38: 0 | GG38: 0 | GH38: 0 | GI38: 0 | GJ38: 0 | GK38: 0 | GL38: 0 | GM38: 0 | GN38: 0 | GO38: 0 | GP38: 0 | GQ38: 0 | GR38: 0 | GS38: 0 | GT38: 0 | GU38: 0 | GV38: 0 | GW38: 0 | GX38: 0 | GY38: 0 | GZ38: 0 | HA38: 0 | HB38: 0 | HC38: 0 | HD38: 0 | HE38: 0 | HF38: 0 | HG38: 0 | HH38: 0 | HI38: 0 | HJ38: 0 | HK38: 0 | HL38: 0 | HM38: 0 | HN38: 0 | HO38: 0 | HP38: 0 | HQ38: 0 | HR38: 0 | HS38: 0 | HT38: 0 | HU38: 0 | HV38: 0 | HW38: 0 | HX38: 0 | HY38: 0 | HZ38: 0 | IA38: 0 | IB38: 0 | IC38: 0 | ID38: 0 | IE38: 0 | IF38: 0 | IG38: 0 | IH38: 0 | II38: 0 | IJ38: 0 | IK38: 0 | IL38: 0 | IM38: 0 | IN38: 0 | IO38: 0 | IP38: 0 | IQ38: 0 | IR38: 0 | IS38: 0 | IT38: 0 | IU38: 0 | IV38: 0 | IW38: 0 | IX38: 0 | IY38: 0 | IZ38: 0 | JA38: 0 | JB38: 0 | JC38: 0 | JD38: 0 | JE38: 0 | JF38: 0 | JG38: 0 | JH38: 0 | JI38: 0 | JJ38: 0 | JK38: 0 | JL38: 0 | JM38: 0 | JN38: 0 | JO38: 0 | JP38: 0 | JQ38: 0 | JR38: 0 | JS38: 0 | JT38: 0 | JU38: 0 | JV38: 0 | JW38: 0 | JX38: 0 | JY38: 7 | JZ38: 0 | KA38: 0 | KB38: 0 | KC38: 0 | KD38: 0
A39: LUCIANO CASTILLO COLONNA | B39: AYABACA | C39: 200201 | D39: 1913 | E39: CHINCHIN | F39: AYABACA | G39: NINGUN CLAS | H39: AYABACA | I39: AYABACA | J39: SALUD LUCIANO CASTILLO COLONNA | K39: 11 | L39: 0 | M39: 0 | N39: 0 | O39: 0 | P39: 0 | Q39: 0 | R39: 0 | S39: 0 | T39: 0 | U39: 0 | V39: 0 | W39: 0 | X39: 0 | Y39: 0 | Z39: 0 | AA39: 0 | AB39: 0 | AC39: 0 | AD39: 0 | AE39: 0 | AF39: 0 | AG39: 0 | AH39: 0 | AI39: 0 | AJ39: 0 | AK39: 0 | AL39: 0 | AM39: 0 | AN39: 0 | AO39: 0 | AP39: 0 | AQ39: 0 | AR39: 0 | AS39: 0 | AT39: 0 | AU39: 0 | AV39: 0 | AW39: 0 | AX39: 0 | AY39: 0 | AZ39: 0 | BA39: 0 | BB39: 0 | BC39: 0 | BD39: 0 | BE39: 0 | BF39: 0 | BG39: 0 | BH39: 0 | BI39: 0 | BJ39: 0 | BK39: 0 | BL39: 0 | BM39: 0 | BN39: 0 | BO39: 0 | BP39: 0 | BQ39: 0 | BR39: 0 | BS39: 0 | BT39: 0 | BU39: 0 | BV39: 0 | BW39: 0 | BX39: 0 | BY39: 0 | BZ39: 0 | CA39: 0 | CB39: 2 | CC39: 0 | CD39: 2 | CE39: 0 | CF39: 2 | CG39: 0 | CH39: 0 | CI39: 0 | CJ39: 0 | CK39: 0 | CL39: 0 | CM39: 0 | CN39: 0 | CO39: 0 | CP39: 0 | CQ39: 0 | CR39: 0 | CS39: 0 | CT39: 0 | CU39: 0 | CV39: 0 | CW39: 0 | CX39: 0 | CY39: 0 | CZ39: 4 | DA39: 0 | DB39: 4 | DC39: 0 | DD39: 0 | DE39: 0 | DF39: 0 | DG39: 0 | DH39: 0 | DI39: 0 | DJ39: 0 | DK39: 0 | DL39: 0 | DM39: 0 | DN39: 0 | DO39: 0 | DP39: 0 | DQ39: 0 | DR39: 0 | DS39: 0 | DT39: 0 | DU39: 0 | DV39: 0 | DW39: 0 | DX39: 0 | DY39: 0 | DZ39: 0 | EA39: 0 | EB39: 0 | EC39: 0 | ED39: 0 | EE39: 0 | EF39: 0 | EG39: 0 | EH39: 0 | EI39: 0 | EJ39: 0 | EK39: 0 | EL39: 0 | EM39: 0 | EN39: 0 | EO39: 0 | EP39: 0 | EQ39: 0 | ER39: 0 | ES39: 0 | ET39: 0 | EU39: 0 | EV39: 0 | EW39: 0 | EX39: 0 | EY39: 0 | EZ39: 0 | FA39: 0 | FB39: 0 | FC39: 0 | FD39: 0 | FE39: 0 | FF39: 0 | FG39: 0 | FH39: 0 | FI39: 0 | FJ39: 0 | FK39: 0 | FL39: 0 | FM39: 0 | FN39: 0 | FO39: 0 | FP39: 0 | FQ39: 0 | FR39: 0 | FS39: 0 | FT39: 0 | FU39: 0 | FV39: 0 | FW39: 0 | FX39: 0 | FY39: 0 | FZ39: 0 | GA39: 0 | GB39: 0 | GC39: 0 | GD39: 0 | GE39: 0 | GF39: 0 | GG39: 0 | GH39: 0 | GI39: 0 | GJ39: 0 | GK39: 0 | GL39: 0 | GM39: 0 | GN39: 0 | GO39: 0 | GP39: 0 | GQ39: 0 | GR39: 0 | GS39: 0 | GT39: 0 | GU39: 0 | GV39: 0 | GW39: 0 | GX39: 0 | GY39: 0 | GZ39: 0 | HA39: 0 | HB39: 0 | HC39: 0 | HD39: 0 | HE39: 0 | HF39: 0 | HG39: 0 | HH39: 0 | HI39: 0 | HJ39: 0 | HK39: 0 | HL39: 0 | HM39: 0 | HN39: 0 | HO39: 0 | HP39: 0 | HQ39: 0 | HR39: 0 | HS39: 0 | HT39: 0 | HU39: 0 | HV39: 0 | HW39: 0 | HX39: 0 | HY39: 0 | HZ39: 0 | IA39: 0 | IB39: 0 | IC39: 0 | ID39: 0 | IE39: 0 | IF39: 0 | IG39: 0 | IH39: 0 | II39: 0 | IJ39: 0 | IK39: 0 | IL39: 0 | IM39: 0 | IN39: 0 | IO39: 0 | IP39: 0 | IQ39: 0 | IR39: 0 | IS39: 0 | IT39: 0 | IU39: 0 | IV39: 0 | IW39: 0 | IX39: 0 | IY39: 0 | IZ39: 0 | JA39: 0 | JB39: 0 | JC39: 0 | JD39: 0 | JE39: 0 | JF39: 0 | JG39: 0 | JH39: 0 | JI39: 0 | JJ39: 0 | JK39: 0 | JL39: 1 | JM39: 0 | JN39: 0 | JO39: 0 | JP39: 0 | JQ39: 0 | JR39: 0 | JS39: 0 | JT39: 0 | JU39: 0 | JV39: 0 | JW39: 0 | JX39: 0 | JY39: 6 | JZ39: 0 | KA39: 0 | KB39: 0 | KC39: 0 | KD39: 0
A40: LUCIANO CASTILLO COLONNA | B40: AYABACA | C40: 200201 | D40: 1913 | E40: CHINCHIN | F40: AYABACA | G40: NINGUN CLAS | H40: AYABACA | I40: AYABACA | J40: SALUD LUCIANO CASTILLO COLONNA | K40: 10 | L40: 0 | M40: 0 | N40: 0 | O40: 0 | P40: 0 | Q40: 0 | R40: 0 | S40: 0 | T40: 0 | U40: 0 | V40: 0 | W40: 0 | X40: 0 | Y40: 0 | Z40: 0 | AA40: 0 | AB40: 0 | AC40: 0 | AD40: 0 | AE40: 0 | AF40: 0 | AG40: 0 | AH40: 0 | AI40: 0 | AJ40: 0 | AK40: 0 | AL40: 0 | AM40: 0 | AN40: 0 | AO40: 0 | AP40: 0 | AQ40: 0 | AR40: 0 | AS40: 0 | AT40: 0 | AU40: 0 | AV40: 0 | AW40: 0 | AX40: 0 | AY40: 0 | AZ40: 0 | BA40: 0 | BB40: 0 | BC40: 0 | BD40: 0 | BE40: 0 | BF40: 0 | BG40: 0 | BH40: 0 | BI40: 0 | BJ40: 0 | BK40: 0 | BL40: 0 | BM40: 0 | BN40: 0 | BO40: 0 | BP40: 0 | BQ40: 0 | BR40: 1 | BS40: 0 | BT40: 0 | BU40: 0 | BV40: 0 | BW40: 0 | BX40: 0 | BY40: 0 | BZ40: 0 | CA40: 0 | CB40: 6 | CC40: 0 | CD40: 0 | CE40: 0 | CF40: 3 | CG40: 0 | CH40: 0 | CI40: 0 | CJ40: 0 | CK40: 0 | CL40: 0 | CM40: 0 | CN40: 0 | CO40: 0 | CP40: 0 | CQ40: 0 | CR40: 1 | CS40: 0 | CT40: 1 | CU40: 0 | CV40: 0 | CW40: 0 | CX40: 0 | CY40: 0 | CZ40: 2 | DA40: 0 | DB40: 2 | DC40: 0 | DD40: 0 | DE40: 0 | DF40: 0 | DG40: 0 | DH40: 1 | DI40: 0 | DJ40: 1 | DK40: 0 | DL40: 0 | DM40: 0 | DN40: 0 | DO40: 0 | DP40: 0 | DQ40: 0 | DR40: 0 | DS40: 0 | DT40: 0 | DU40: 0 | DV40: 0 | DW40: 0 | DX40: 0 | DY40: 0 | DZ40: 0 | EA40: 0 | EB40: 0 | EC40: 0 | ED40: 0 | EE40: 0 | EF40: 0 | EG40: 0 | EH40: 0 | EI40: 0 | EJ40: 0 | EK40: 0 | EL40: 0 | EM40: 0 | EN40: 0 | EO40: 0 | EP40: 0 | EQ40: 0 | ER40: 0 | ES40: 0 | ET40: 0 | EU40: 0 | EV40: 0 | EW40: 0 | EX40: 0 | EY40: 0 | EZ40: 0 | FA40: 0 | FB40: 0 | FC40: 0 | FD40: 0 | FE40: 0 | FF40: 0 | FG40: 0 | FH40: 0 | FI40: 0 | FJ40: 0 | FK40: 0 | FL40: 0 | FM40: 0 | FN40: 0 | FO40: 0 | FP40: 0 | FQ40: 0 | FR40: 0 | FS40: 0 | FT40: 0 | FU40: 0 | FV40: 0 | FW40: 0 | FX40: 0 | FY40: 0 | FZ40: 0 | GA40: 0 | GB40: 0 | GC40: 0 | GD40: 0 | GE40: 0 | GF40: 0 | GG40: 0 | GH40: 0 | GI40: 0 | GJ40: 1 | GK40: 0 | GL40: 0 | GM40: 0 | GN40: 0 | GO40: 0 | GP40: 0 | GQ40: 0 | GR40: 0 | GS40: 0 | GT40: 0 | GU40: 0 | GV40: 0 | GW40: 0 | GX40: 0 | GY40: 0 | GZ40: 0 | HA40: 0 | HB40: 0 | HC40: 1 | HD40: 0 | HE40: 0 | HF40: 0 | HG40: 0 | HH40: 0 | HI40: 0 | HJ40: 0 | HK40: 0 | HL40: 0 | HM40: 0 | HN40: 0 | HO40: 1 | HP40: 0 | HQ40: 0 | HR40: 0 | HS40: 1 | HT40: 0 | HU40: 0 | HV40: 0 | HW40: 1 | HX40: 0 | HY40: 0 | HZ40: 0 | IA40: 1 | IB40: 0 | IC40: 0 | ID40: 0 | IE40: 0 | IF40: 0 | IG40: 0 | IH40: 0 | II40: 0 | IJ40: 0 | IK40: 0 | IL40: 0 | IM40: 0 | IN40: 0 | IO40: 0 | IP40: 0 | IQ40: 0 | IR40: 0 | IS40: 0 | IT40: 0 | IU40: 0 | IV40: 0 | IW40: 0 | IX40: 0 | IY40: 0 | IZ40: 0 | JA40: 0 | JB40: 0 | JC40: 0 | JD40: 0 | JE40: 0 | JF40: 0 | JG40: 0 | JH40: 0 | JI40: 0 | JJ40: 0 | JK40: 0 | JL40: 0 | JM40: 0 | JN40: 0 | JO40: 0 | JP40: 0 | JQ40: 0 | JR40: 0 | JS40: 0 | JT40: 0 | JU40: 0 | JV40: 0 | JW40: 0 | JX40: 0 | JY40: 5 | JZ40: 0 | KA40: 0 | KB40: 0 | KC40: 0 | KD40: 0
A41: LUCIANO CASTILLO COLONNA | B41: AYABACA | C41: 200201 | D41: 1913 | E41: CHINCHIN | F41: AYABACA | G41: NINGUN CLAS | H41: AYABACA | I41: AYABACA | J41: SALUD LUCIANO CASTILLO COLONNA | K41: 9 | L41: 0 | M41: 0 | N41: 0 | O41: 0 | P41: 0 | Q41: 0 | R41: 0 | S41: 0 | T41: 0 | U41: 0 | V41: 0 | W41: 0 | X41: 0 | Y41: 0 | Z41: 0 | AA41: 0 | AB41: 0 | AC41: 0 | AD41: 0 | AE41: 0 | AF41: 0 | AG41: 0 | AH41: 0 | AI41: 0 | AJ41: 0 | AK41: 0 | AL41: 0 | AM41: 0 | AN41: 0 | AO41: 0 | AP41: 0 | AQ41: 0 | AR41: 0 | AS41: 0 | AT41: 0 | AU41: 0 | AV41: 0 | AW41: 0 | AX41: 0 | AY41: 0 | AZ41: 0 | BA41: 0 | BB41: 0 | BC41: 0 | BD41: 0 | BE41: 0 | BF41: 0 | BG41: 0 | BH41: 0 | BI41: 0 | BJ41: 0 | BK41: 0 | BL41: 0 | BM41: 0 | BN41: 0 | BO41: 0 | BP41: 0 | BQ41: 0 | BR41: 0 | BS41: 0 | BT41: 0 | BU41: 0 | BV41: 0 | BW41: 0 | BX41: 0 | BY41: 0 | BZ41: 0 | CA41: 2 | CB41: 4 | CC41: 0 | CD41: 1 | CE41: 0 | CF41: 3 | CG41: 0 | CH41: 0 | CI41: 0 | CJ41: 0 | CK41: 0 | CL41: 0 | CM41: 0 | CN41: 0 | CO41: 0 | CP41: 0 | CQ41: 0 | CR41: 0 | CS41: 0 | CT41: 0 | CU41: 0 | CV41: 3 | CW41: 0 | CX41: 3 | CY41: 0 | CZ41: 4 | DA41: 0 | DB41: 4 | DC41: 0 | DD41: 0 | DE41: 0 | DF41: 0 | DG41: 1 | DH41: 0 | DI41: 1 | DJ41: 0 | DK41: 0 | DL41: 0 | DM41: 0 | DN41: 0 | DO41: 0 | DP41: 0 | DQ41: 0 | DR41: 0 | DS41: 0 | DT41: 0 | DU41: 0 | DV41: 0 | DW41: 0 | DX41: 0 | DY41: 0 | DZ41: 0 | EA41: 0 | EB41: 0 | EC41: 0 | ED41: 0 | EE41: 0 | EF41: 0 | EG41: 0 | EH41: 0 | EI41: 0 | EJ41: 0 | EK41: 0 | EL41: 0 | EM41: 0 | EN41: 0 | EO41: 0 | EP41: 0 | EQ41: 0 | ER41: 0 | ES41: 0 | ET41: 0 | EU41: 0 | EV41: 0 | EW41: 0 | EX41: 0 | EY41: 0 | EZ41: 0 | FA41: 0 | FB41: 0 | FC41: 0 | FD41: 0 | FE41: 0 | FF41: 0 | FG41: 0 | FH41: 0 | FI41: 0 | FJ41: 0 | FK41: 0 | FL41: 0 | FM41: 0 | FN41: 0 | FO41: 0 | FP41: 0 | FQ41: 0 | FR41: 0 | FS41: 0 | FT41: 0 | FU41: 0 | FV41: 0 | FW41: 0 | FX41: 0 | FY41: 0 | FZ41: 0 | GA41: 0 | GB41: 0 | GC41: 0 | GD41: 0 | GE41: 0 | GF41: 0 | GG41: 0 | GH41: 0 | GI41: 0 | GJ41: 0 | GK41: 0 | GL41: 0 | GM41: 0 | GN41: 0 | GO41: 0 | GP41: 0 | GQ41: 0 | GR41: 0 | GS41: 0 | GT41: 0 | GU41: 0 | GV41: 0 | GW41: 0 | GX41: 0 | GY41: 0 | GZ41: 0 | HA41: 0 | HB41: 0 | HC41: 0 | HD41: 0 | HE41: 0 | HF41: 0 | HG41: 0 | HH41: 0 | HI41: 0 | HJ41: 0 | HK41: 0 | HL41: 0 | HM41: 0 | HN41: 0 | HO41: 0 | HP41: 0 | HQ41: 0 | HR41: 0 | HS41: 0 | HT41: 0 | HU41: 0 | HV41: 0 | HW41: 0 | HX41: 0 | HY41: 0 | HZ41: 0 | IA41: 0 | IB41: 0 | IC41: 0 | ID41: 0 | IE41: 0 | IF41: 0 | IG41: 0 | IH41: 0 | II41: 0 | IJ41: 0 | IK41: 0 | IL41: 0 | IM41: 0 | IN41: 0 | IO41: 0 | IP41: 0 | IQ41: 0 | IR41: 0 | IS41: 0 | IT41: 0 | IU41: 0 | IV41: 0 | IW41: 0 | IX41: 0 | IY41: 0 | IZ41: 0 | JA41: 0 | JB41: 0 | JC41: 0 | JD41: 0 | JE41: 0 | JF41: 0 | JG41: 0 | JH41: 0 | JI41: 0 | JJ41: 0 | JK41: 0 | JL41: 0 | JM41: 0 | JN41: 0 | JO41: 0 | JP41: 0 | JQ41: 0 | JR41: 0 | JS41: 0 | JT41: 0 | JU41: 0 | JV41: 0 | JW41: 0 | JX41: 0 | JY41: 2 | JZ41: 0 | KA41: 0 | KB41: 0 | KC41: 0 | KD41: 0
A42: LUCIANO CASTILLO COLONNA | B42: AYABACA | C42: 200201 | D42: 1913 | E42: CHINCHIN | F42: AYABACA | G42: NINGUN CLAS | H42: AYABACA | I42: AYABACA | J42: SALUD LUCIANO CASTILLO COLONNA | K42: 8 | L42: 0 | M42: 0 | N42: 0 | O42: 0 | P42: 0 | Q42: 0 | R42: 0 | S42: 0 | T42: 0 | U42: 0 | V42: 0 | W42: 0 | X42: 0 | Y42: 0 | Z42: 0 | AA42: 0 | AB42: 0 | AC42: 0 | AD42: 0 | AE42: 0 | AF42: 0 | AG42: 0 | AH42: 0 | AI42: 0 | AJ42: 0 | AK42: 0 | AL42: 0 | AM42: 0 | AN42: 0 | AO42: 0 | AP42: 0 | AQ42: 0 | AR42: 0 | AS42: 0 | AT42: 0 | AU42: 0 | AV42: 0 | AW42: 0 | AX42: 0 | AY42: 0 | AZ42: 0 | BA42: 0 | BB42: 0 | BC42: 0 | BD42: 0 | BE42: 0 | BF42: 0 | BG42: 0 | BH42: 0 | BI42: 0 | BJ42: 0 | BK42: 0 | BL42: 0 | BM42: 0 | BN42: 0 | BO42: 0 | BP42: 0 | BQ42: 0 | BR42: 0 | BS42: 0 | BT42: 0 | BU42: 0 | BV42: 0 | BW42: 0 | BX42: 0 | BY42: 0 | BZ42: 0 | CA42: 0 | CB42: 4 | CC42: 0 | CD42: 0 | CE42: 0 | CF42: 5 | CG42: 0 | CH42: 0 | CI42: 0 | CJ42: 0 | CK42: 0 | CL42: 0 | CM42: 0 | CN42: 0 | CO42: 0 | CP42: 0 | CQ42: 0 | CR42: 0 | CS42: 0 | CT42: 0 | CU42: 0 | CV42: 2 | CW42: 0 | CX42: 2 | CY42: 0 | CZ42: 6 | DA42: 0 | DB42: 6 | DC42: 0 | DD42: 0 | DE42: 0 | DF42: 0 | DG42: 0 | DH42: 0 | DI42: 0 | DJ42: 0 | DK42: 0 | DL42: 0 | DM42: 0 | DN42: 0 | DO42: 0 | DP42: 0 | DQ42: 0 | DR42: 0 | DS42: 0 | DT42: 0 | DU42: 0 | DV42: 0 | DW42: 0 | DX42: 0 | DY42: 0 | DZ42: 0 | EA42: 0 | EB42: 0 | EC42: 0 | ED42: 0 | EE42: 0 | EF42: 0 | EG42: 0 | EH42: 6 | EI42: 0 | EJ42: 0 | EK42: 0 | EL42: 0 | EM42: 0 | EN42: 0 | EO42: 0 | EP42: 0 | EQ42: 0 | ER42: 0 | ES42: 0 | ET42: 0 | EU42: 0 | EV42: 0 | EW42: 0 | EX42: 0 | EY42: 0 | EZ42: 0 | FA42: 0 | FB42: 0 | FC42: 0 | FD42: 0 | FE42: 0 | FF42: 0 | FG42: 0 | FH42: 0 | FI42: 0 | FJ42: 0 | FK42: 0 | FL42: 0 | FM42: 0 | FN42: 0 | FO42: 0 | FP42: 0 | FQ42: 0 | FR42: 0 | FS42: 0 | FT42: 0 | FU42: 0 | FV42: 0 | FW42: 0 | FX42: 0 | FY42: 0 | FZ42: 0 | GA42: 0 | GB42: 0 | GC42: 0 | GD42: 0 | GE42: 0 | GF42: 0 | GG42: 0 | GH42: 0 | GI42: 0 | GJ42: 0 | GK42: 0 | GL42: 0 | GM42: 0 | GN42: 0 | GO42: 0 | GP42: 0 | GQ42: 0 | GR42: 0 | GS42: 0 | GT42: 0 | GU42: 0 | GV42: 0 | GW42: 0 | GX42: 0 | GY42: 0 | GZ42: 0 | HA42: 0 | HB42: 0 | HC42: 0 | HD42: 0 | HE42: 0 | HF42: 0 | HG42: 0 | HH42: 0 | HI42: 0 | HJ42: 0 | HK42: 0 | HL42: 0 | HM42: 0 | HN42: 0 | HO42: 0 | HP42: 0 | HQ42: 0 | HR42: 14 | HS42: 0 | HT42: 0 | HU42: 0 | HV42: 14 | HW42: 0 | HX42: 0 | HY42: 0 | HZ42: 14 | IA42: 0 | IB42: 0 | IC42: 0 | ID42: 0 | IE42: 0 | IF42: 0 | IG42: 0 | IH42: 0 | II42: 0 | IJ42: 0 | IK42: 0 | IL42: 0 | IM42: 0 | IN42: 0 | IO42: 0 | IP42: 0 | IQ42: 0 | IR42: 0 | IS42: 0 | IT42: 0 | IU42: 0 | IV42: 0 | IW42: 0 | IX42: 0 | IY42: 0 | IZ42: 0 | JA42: 0 | JB42: 0 | JC42: 0 | JD42: 0 | JE42: 0 | JF42: 0 | JG42: 0 | JH42: 0 | JI42: 0 | JJ42: 0 | JK42: 0 | JL42: 0 | JM42: 0 | JN42: 0 | JO42: 0 | JP42: 0 | JQ42: 0 | JR42: 0 | JS42: 0 | JT42: 0 | JU42: 0 | JV42: 0 | JW42: 0 | JX42: 0 | JY42: 3 | JZ42: 6 | KA42: 0 | KB42: 0 | KC42: 0 | KD42: 0
A43: LUCIANO CASTILLO COLONNA | B43: AYABACA | C43: 200201 | D43: 1913 | E43: CHINCHIN | F43: AYABACA | G43: NINGUN CLAS | H43: AYABACA | I43: AYABACA | J43: SALUD LUCIANO CASTILLO COLONNA | K43: 7 | L43: 0 | M43: 0 | N43: 0 | O43: 0 | P43: 0 | Q43: 0 | R43: 0 | S43: 0 | T43: 0 | U43: 0 | V43: 0 | W43: 0 | X43: 0 | Y43: 0 | Z43: 0 | AA43: 0 | AB43: 0 | AC43: 0 | AD43: 0 | AE43: 0 | AF43: 0 | AG43: 0 | AH43: 0 | AI43: 0 | AJ43: 0 | AK43: 0 | AL43: 0 | AM43: 0 | AN43: 0 | AO43: 0 | AP43: 0 | AQ43: 0 | AR43: 0 | AS43: 0 | AT43: 0 | AU43: 0 | AV43: 0 | AW43: 0 | AX43: 0 | AY43: 0 | AZ43: 0 | BA43: 0 | BB43: 0 | BC43: 0 | BD43: 0 | BE43: 0 | BF43: 0 | BG43: 0 | BH43: 0 | BI43: 0 | BJ43: 0 | BK43: 0 | BL43: 0 | BM43: 0 | BN43: 0 | BO43: 0 | BP43: 0 | BQ43: 0 | BR43: 0 | BS43: 0 | BT43: 0 | BU43: 0 | BV43: 0 | BW43: 0 | BX43: 0 | BY43: 0 | BZ43: 0 | CA43: 0 | CB43: 0 | CC43: 0 | CD43: 0 | CE43: 0 | CF43: 0 | CG43: 0 | CH43: 0 | CI43: 0 | CJ43: 0 | CK43: 0 | CL43: 0 | CM43: 0 | CN43: 0 | CO43: 0 | CP43: 0 | CQ43: 0 | CR43: 1 | CS43: 0 | CT43: 1 | CU43: 0 | CV43: 0 | CW43: 0 | CX43: 0 | CY43: 0 | CZ43: 6 | DA43: 0 | DB43: 6 | DC43: 0 | DD43: 0 | DE43: 0 | DF43: 0 | DG43: 0 | DH43: 0 | DI43: 0 | DJ43: 0 | DK43: 0 | DL43: 0 | DM43: 0 | DN43: 0 | DO43: 0 | DP43: 0 | DQ43: 0 | DR43: 0 | DS43: 0 | DT43: 0 | DU43: 0 | DV43: 0 | DW43: 0 | DX43: 0 | DY43: 0 | DZ43: 0 | EA43: 0 | EB43: 0 | EC43: 0 | ED43: 0 | EE43: 0 | EF43: 0 | EG43: 0 | EH43: 0 | EI43: 0 | EJ43: 0 | EK43: 0 | EL43: 0 | EM43: 0 | EN43: 0 | EO43: 0 | EP43: 0 | EQ43: 0 | ER43: 0 | ES43: 0 | ET43: 0 | EU43: 0 | EV43: 0 | EW43: 0 | EX43: 0 | EY43: 0 | EZ43: 0 | FA43: 0 | FB43: 0 | FC43: 0 | FD43: 0 | FE43: 0 | FF43: 0 | FG43: 0 | FH43: 0 | FI43: 0 | FJ43: 0 | FK43: 0 | FL43: 0 | FM43: 0 | FN43: 0 | FO43: 0 | FP43: 0 | FQ43: 0 | FR43: 0 | FS43: 0 | FT43: 0 | FU43: 0 | FV43: 0 | FW43: 0 | FX43: 0 | FY43: 0 | FZ43: 0 | GA43: 0 | GB43: 0 | GC43: 0 | GD43: 0 | GE43: 0 | GF43: 0 | GG43: 0 | GH43: 0 | GI43: 0 | GJ43: 0 | GK43: 0 | GL43: 0 | GM43: 0 | GN43: 0 | GO43: 0 | GP43: 0 | GQ43: 0 | GR43: 0 | GS43: 0 | GT43: 0 | GU43: 0 | GV43: 0 | GW43: 0 | GX43: 0 | GY43: 0 | GZ43: 0 | HA43: 0 | HB43: 0 | HC43: 0 | HD43: 0 | HE43: 0 | HF43: 0 | HG43: 0 | HH43: 0 | HI43: 0 | HJ43: 0 | HK43: 0 | HL43: 0 | HM43: 0 | HN43: 0 | HO43: 0 | HP43: 0 | HQ43: 0 | HR43: 0 | HS43: 0 | HT43: 0 | HU43: 0 | HV43: 0 | HW43: 0 | HX43: 0 | HY43: 0 | HZ43: 0 | IA43: 0 | IB43: 0 | IC43: 0 | ID43: 0 | IE43: 0 | IF43: 0 | IG43: 0 | IH43: 0 | II43: 0 | IJ43: 0 | IK43: 0 | IL43: 0 | IM43: 0 | IN43: 0 | IO43: 0 | IP43: 0 | IQ43: 0 | IR43: 0 | IS43: 0 | IT43: 0 | IU43: 0 | IV43: 0 | IW43: 0 | IX43: 0 | IY43: 0 | IZ43: 0 | JA43: 0 | JB43: 0 | JC43: 0 | JD43: 0 | JE43: 0 | JF43: 0 | JG43: 0 | JH43: 0 | JI43: 0 | JJ43: 0 | JK43: 0 | JL43: 0 | JM43: 0 | JN43: 0 | JO43: 0 | JP43: 0 | JQ43: 0 | JR43: 0 | JS43: 0 | JT43: 0 | JU43: 0 | JV43: 0 | JW43: 0 | JX43: 0 | JY43: 0 | JZ43: 0 | KA43: 0 | KB43: 0 | KC43: 0 | KD43: 0
A44: LUCIANO CASTILLO COLONNA | B44: AYABACA | C44: 200201 | D44: 1913 | E44: CHINCHIN | F44: AYABACA | G44: NINGUN CLAS | H44: AYABACA | I44: AYABACA | J44: SALUD LUCIANO CASTILLO COLONNA | K44: 6 | L44: 0 | M44: 0 | N44: 0 | O44: 0 | P44: 0 | Q44: 0 | R44: 0 | S44: 0 | T44: 0 | U44: 0 | V44: 0 | W44: 0 | X44: 0 | Y44: 0 | Z44: 0 | AA44: 0 | AB44: 0 | AC44: 0 | AD44: 0 | AE44: 0 | AF44: 0 | AG44: 0 | AH44: 0 | AI44: 0 | AJ44: 0 | AK44: 0 | AL44: 0 | AM44: 0 | AN44: 0 | AO44: 0 | AP44: 0 | AQ44: 1 | AR44: 0 | AS44: 0 | AT44: 0 | AU44: 0 | AV44: 0 | AW44: 0 | AX44: 0 | AY44: 0 | AZ44: 0 | BA44: 1 | BB44: 0 | BC44: 0 | BD44: 0 | BE44: 1 | BF44: 0 | BG44: 0 | BH44: 0 | BI44: 0 | BJ44: 0 | BK44: 0 | BL44: 0 | BM44: 0 | BN44: 0 | BO44: 0 | BP44: 0 | BQ44: 0 | BR44: 0 | BS44: 0 | BT44: 0 | BU44: 0 | BV44: 0 | BW44: 0 | BX44: 0 | BY44: 0 | BZ44: 0 | CA44: 0 | CB44: 0 | CC44: 0 | CD44: 0 | CE44: 0 | CF44: 0 | CG44: 0 | CH44: 0 | CI44: 0 | CJ44: 0 | CK44: 0 | CL44: 0 | CM44: 0 | CN44: 0 | CO44: 0 | CP44: 0 | CQ44: 0 | CR44: 1 | CS44: 0 | CT44: 1 | CU44: 0 | CV44: 1 | CW44: 0 | CX44: 1 | CY44: 0 | CZ44: 5 | DA44: 0 | DB44: 5 | DC44: 0 | DD44: 0 | DE44: 0 | DF44: 0 | DG44: 0 | DH44: 1 | DI44: 0 | DJ44: 1 | DK44: 0 | DL44: 0 | DM44: 0 | DN44: 0 | DO44: 0 | DP44: 0 | DQ44: 0 | DR44: 0 | DS44: 0 | DT44: 0 | DU44: 0 | DV44: 0 | DW44: 0 | DX44: 0 | DY44: 0 | DZ44: 0 | EA44: 0 | EB44: 0 | EC44: 0 | ED44: 0 | EE44: 0 | EF44: 1 | EG44: 0 | EH44: 0 | EI44: 0 | EJ44: 0 | EK44: 0 | EL44: 0 | EM44: 0 | EN44: 0 | EO44: 0 | EP44: 0 | EQ44: 0 | ER44: 0 | ES44: 0 | ET44: 0 | EU44: 0 | EV44: 0 | EW44: 0 | EX44: 0 | EY44: 0 | EZ44: 0 | FA44: 0 | FB44: 0 | FC44: 0 | FD44: 0 | FE44: 0 | FF44: 0 | FG44: 0 | FH44: 0 | FI44: 0 | FJ44: 0 | FK44: 0 | FL44: 0 | FM44: 0 | FN44: 0 | FO44: 0 | FP44: 0 | FQ44: 0 | FR44: 0 | FS44: 0 | FT44: 0 | FU44: 0 | FV44: 0 | FW44: 0 | FX44: 0 | FY44: 0 | FZ44: 0 | GA44: 0 | GB44: 0 | GC44: 0 | GD44: 0 | GE44: 0 | GF44: 0 | GG44: 0 | GH44: 0 | GI44: 0 | GJ44: 0 | GK44: 0 | GL44: 0 | GM44: 0 | GN44: 0 | GO44: 0 | GP44: 0 | GQ44: 0 | GR44: 0 | GS44: 0 | GT44: 0 | GU44: 0 | GV44: 0 | GW44: 2 | GX44: 0 | GY44: 0 | GZ44: 0 | HA44: 0 | HB44: 0 | HC44: 0 | HD44: 0 | HE44: 0 | HF44: 0 | HG44: 0 | HH44: 0 | HI44: 0 | HJ44: 0 | HK44: 0 | HL44: 0 | HM44: 0 | HN44: 0 | HO44: 0 | HP44: 0 | HQ44: 0 | HR44: 0 | HS44: 0 | HT44: 0 | HU44: 0 | HV44: 0 | HW44: 0 | HX44: 0 | HY44: 0 | HZ44: 0 | IA44: 0 | IB44: 0 | IC44: 0 | ID44: 0 | IE44: 0 | IF44: 0 | IG44: 0 | IH44: 0 | II44: 0 | IJ44: 0 | IK44: 0 | IL44: 0 | IM44: 0 | IN44: 0 | IO44: 0 | IP44: 0 | IQ44: 0 | IR44: 0 | IS44: 0 | IT44: 0 | IU44: 0 | IV44: 0 | IW44: 0 | IX44: 0 | IY44: 0 | IZ44: 0 | JA44: 0 | JB44: 0 | JC44: 0 | JD44: 0 | JE44: 0 | JF44: 0 | JG44: 0 | JH44: 0 | JI44: 0 | JJ44: 0 | JK44: 0 | JL44: 2 | JM44: 0 | JN44: 0 | JO44: 0 | JP44: 0 | JQ44: 0 | JR44: 0 | JS44: 0 | JT44: 0 | JU44: 0 | JV44: 0 | JW44: 0 | JX44: 0 | JY44: 2 | JZ44: 1 | KA44: 0 | KB44: 0 | KC44: 0 | KD44: 0
A45: LUCIANO CASTILLO COLONNA | B45: AYABACA | C45: 200201 | D45: 1913 | E45: CHINCHIN | F45: AYABACA | G45: NINGUN CLAS | H45: AYABACA | I45: AYABACA | J45: SALUD LUCIANO CASTILLO COLONNA | K45: 5 | L45: 0 | M45: 0 | N45: 0 | O45: 0 | P45: 0 | Q45: 0 | R45: 0 | S45: 0 | T45: 0 | U45: 0 | V45: 0 | W45: 0 | X45: 0 | Y45: 0 | Z45: 0 | AA45: 0 | AB45: 0 | AC45: 0 | AD45: 0 | AE45: 0 | AF45: 0 | AG45: 0 | AH45: 0 | AI45: 0 | AJ45: 0 | AK45: 0 | AL45: 0 | AM45: 0 | AN45: 0 | AO45: 0 | AP45: 0 | AQ45: 0 | AR45: 0 | AS45: 0 | AT45: 0 | AU45: 0 | AV45: 0 | AW45: 0 | AX45: 0 | AY45: 0 | AZ45: 0 | BA45: 0 | BB45: 0 | BC45: 0 | BD45: 0 | BE45: 0 | BF45: 0 | BG45: 0 | BH45: 0 | BI45: 0 | BJ45: 0 | BK45: 0 | BL45: 0 | BM45: 0 | BN45: 0 | BO45: 0 | BP45: 0 | BQ45: 0 | BR45: 0 | BS45: 0 | BT45: 0 | BU45: 0 | BV45: 0 | BW45: 0 | BX45: 0 | BY45: 0 | BZ45: 0 | CA45: 0 | CB45: 0 | CC45: 0 | CD45: 0 | CE45: 0 | CF45: 0 | CG45: 0 | CH45: 0 | CI45: 0 | CJ45: 0 | CK45: 0 | CL45: 0 | CM45: 0 | CN45: 0 | CO45: 0 | CP45: 0 | CQ45: 0 | CR45: 0 | CS45: 0 | CT45: 0 | CU45: 0 | CV45: 3 | CW45: 0 | CX45: 3 | CY45: 0 | CZ45: 4 | DA45: 0 | DB45: 4 | DC45: 0 | DD45: 0 | DE45: 0 | DF45: 0 | DG45: 0 | DH45: 0 | DI45: 0 | DJ45: 0 | DK45: 0 | DL45: 0 | DM45: 0 | DN45: 0 | DO45: 0 | DP45: 0 | DQ45: 0 | DR45: 0 | DS45: 0 | DT45: 0 | DU45: 0 | DV45: 0 | DW45: 0 | DX45: 0 | DY45: 0 | DZ45: 0 | EA45: 0 | EB45: 0 | EC45: 0 | ED45: 0 | EE45: 0 | EF45: 11 | EG45: 0 | EH45: 0 | EI45: 0 | EJ45: 0 | EK45: 0 | EL45: 0 | EM45: 0 | EN45: 0 | EO45: 0 | EP45: 0 | EQ45: 0 | ER45: 0 | ES45: 0 | ET45: 0 | EU45: 0 | EV45: 0 | EW45: 0 | EX45: 0 | EY45: 0 | EZ45: 0 | FA45: 0 | FB45: 0 | FC45: 0 | FD45: 0 | FE45: 0 | FF45: 0 | FG45: 0 | FH45: 0 | FI45: 0 | FJ45: 0 | FK45: 0 | FL45: 0 | FM45: 0 | FN45: 0 | FO45: 0 | FP45: 0 | FQ45: 0 | FR45: 0 | FS45: 0 | FT45: 0 | FU45: 0 | FV45: 0 | FW45: 0 | FX45: 0 | FY45: 0 | FZ45: 0 | GA45: 0 | GB45: 0 | GC45: 0 | GD45: 0 | GE45: 0 | GF45: 0 | GG45: 0 | GH45: 0 | GI45: 0 | GJ45: 0 | GK45: 0 | GL45: 0 | GM45: 0 | GN45: 0 | GO45: 0 | GP45: 0 | GQ45: 0 | GR45: 0 | GS45: 0 | GT45: 0 | GU45: 0 | GV45: 0 | GW45: 0 | GX45: 0 | GY45: 0 | GZ45: 0 | HA45: 0 | HB45: 0 | HC45: 0 | HD45: 0 | HE45: 0 | HF45: 1 | HG45: 0 | HH45: 0 | HI45: 0 | HJ45: 0 | HK45: 0 | HL45: 0 | HM45: 0 | HN45: 0 | HO45: 0 | HP45: 0 | HQ45: 0 | HR45: 0 | HS45: 0 | HT45: 0 | HU45: 0 | HV45: 0 | HW45: 0 | HX45: 0 | HY45: 0 | HZ45: 0 | IA45: 0 | IB45: 0 | IC45: 0 | ID45: 0 | IE45: 0 | IF45: 0 | IG45: 0 | IH45: 0 | II45: 0 | IJ45: 0 | IK45: 0 | IL45: 0 | IM45: 0 | IN45: 0 | IO45: 0 | IP45: 0 | IQ45: 0 | IR45: 0 | IS45: 0 | IT45: 0 | IU45: 0 | IV45: 0 | IW45: 0 | IX45: 0 | IY45: 0 | IZ45: 0 | JA45: 0 | JB45: 0 | JC45: 0 | JD45: 0 | JE45: 0 | JF45: 0 | JG45: 0 | JH45: 0 | JI45: 0 | JJ45: 1 | JK45: 0 | JL45: 0 | JM45: 0 | JN45: 0 | JO45: 0 | JP45: 0 | JQ45: 0 | JR45: 0 | JS45: 0 | JT45: 0 | JU45: 0 | JV45: 0 | JW45: 0 | JX45: 0 | JY45: 1 | JZ45: 11 | KA45: 0 | KB45: 0 | KC45: 0 | KD45: 0
A46: LUCIANO CASTILLO COLONNA | B46: AYABACA | C46: 200201 | D46: 1913 | E46: CHINCHIN | F46: AYABACA | G46: NINGUN CLAS | H46: AYABACA | I46: AYABACA | J46: SALUD LUCIANO CASTILLO COLONNA | K46: 4 | L46: 0 | M46: 0 | N46: 0 | O46: 0 | P46: 0 | Q46: 0 | R46: 0 | S46: 0 | T46: 0 | U46: 0 | V46: 0 | W46: 0 | X46: 0 | Y46: 0 | Z46: 0 | AA46: 0 | AB46: 0 | AC46: 0 | AD46: 0 | AE46: 0 | AF46: 0 | AG46: 0 | AH46: 0 | AI46: 0 | AJ46: 0 | AK46: 0 | AL46: 0 | AM46: 0 | AN46: 0 | AO46: 0 | AP46: 0 | AQ46: 0 | AR46: 0 | AS46: 0 | AT46: 0 | AU46: 0 | AV46: 0 | AW46: 0 | AX46: 0 | AY46: 0 | AZ46: 0 | BA46: 0 | BB46: 0 | BC46: 0 | BD46: 0 | BE46: 0 | BF46: 0 | BG46: 0 | BH46: 0 | BI46: 0 | BJ46: 0 | BK46: 0 | BL46: 0 | BM46: 0 | BN46: 0 | BO46: 0 | BP46: 0 | BQ46: 0 | BR46: 0 | BS46: 0 | BT46: 0 | BU46: 0 | BV46: 0 | BW46: 0 | BX46: 0 | BY46: 0 | BZ46: 0 | CA46: 0 | CB46: 0 | CC46: 0 | CD46: 0 | CE46: 0 | CF46: 0 | CG46: 0 | CH46: 0 | CI46: 0 | CJ46: 0 | CK46: 0 | CL46: 0 | CM46: 0 | CN46: 0 | CO46: 0 | CP46: 0 | CQ46: 0 | CR46: 0 | CS46: 0 | CT46: 0 | CU46: 0 | CV46: 4 | CW46: 0 | CX46: 4 | CY46: 0 | CZ46: 2 | DA46: 0 | DB46: 2 | DC46: 0 | DD46: 0 | DE46: 0 | DF46: 0 | DG46: 0 | DH46: 0 | DI46: 0 | DJ46: 0 | DK46: 0 | DL46: 0 | DM46: 0 | DN46: 0 | DO46: 0 | DP46: 0 | DQ46: 0 | DR46: 0 | DS46: 0 | DT46: 0 | DU46: 0 | DV46: 0 | DW46: 0 | DX46: 0 | DY46: 0 | DZ46: 0 | EA46: 0 | EB46: 0 | EC46: 0 | ED46: 0 | EE46: 0 | EF46: 0 | EG46: 0 | EH46: 0 | EI46: 0 | EJ46: 0 | EK46: 0 | EL46: 0 | EM46: 0 | EN46: 0 | EO46: 0 | EP46: 0 | EQ46: 0 | ER46: 0 | ES46: 0 | ET46: 0 | EU46: 0 | EV46: 0 | EW46: 0 | EX46: 0 | EY46: 0 | EZ46: 0 | FA46: 0 | FB46: 0 | FC46: 0 | FD46: 0 | FE46: 0 | FF46: 0 | FG46: 0 | FH46: 0 | FI46: 0 | FJ46: 0 | FK46: 0 | FL46: 0 | FM46: 0 | FN46: 0 | FO46: 0 | FP46: 0 | FQ46: 0 | FR46: 0 | FS46: 0 | FT46: 0 | FU46: 0 | FV46: 0 | FW46: 0 | FX46: 0 | FY46: 0 | FZ46: 0 | GA46: 0 | GB46: 0 | GC46: 0 | GD46: 0 | GE46: 0 | GF46: 0 | GG46: 0 | GH46: 0 | GI46: 0 | GJ46: 0 | GK46: 0 | GL46: 0 | GM46: 0 | GN46: 0 | GO46: 0 | GP46: 0 | GQ46: 0 | GR46: 0 | GS46: 0 | GT46: 0 | GU46: 0 | GV46: 0 | GW46: 0 | GX46: 0 | GY46: 0 | GZ46: 0 | HA46: 0 | HB46: 0 | HC46: 0 | HD46: 0 | HE46: 0 | HF46: 0 | HG46: 0 | HH46: 0 | HI46: 0 | HJ46: 0 | HK46: 0 | HL46: 0 | HM46: 0 | HN46: 0 | HO46: 0 | HP46: 0 | HQ46: 0 | HR46: 0 | HS46: 0 | HT46: 0 | HU46: 0 | HV46: 0 | HW46: 0 | HX46: 0 | HY46: 0 | HZ46: 0 | IA46: 0 | IB46: 0 | IC46: 0 | ID46: 0 | IE46: 0 | IF46: 0 | IG46: 0 | IH46: 0 | II46: 0 | IJ46: 0 | IK46: 0 | IL46: 0 | IM46: 0 | IN46: 0 | IO46: 0 | IP46: 0 | IQ46: 0 | IR46: 0 | IS46: 0 | IT46: 0 | IU46: 0 | IV46: 0 | IW46: 0 | IX46: 0 | IY46: 0 | IZ46: 0 | JA46: 0 | JB46: 0 | JC46: 0 | JD46: 0 | JE46: 0 | JF46: 0 | JG46: 0 | JH46: 0 | JI46: 0 | JJ46: 0 | JK46: 0 | JL46: 0 | JM46: 0 | JN46: 0 | JO46: 0 | JP46: 0 | JQ46: 0 | JR46: 0 | JS46: 0 | JT46: 0 | JU46: 0 | JV46: 0 | JW46: 0 | JX46: 0 | JY46: 1 | JZ46: 0 | KA46: 0 | KB46: 0 | KC46: 0 | KD46: 0
A47: LUCIANO CASTILLO COLONNA | B47: AYABACA | C47: 200201 | D47: 1913 | E47: CHINCHIN | F47: AYABACA | G47: NINGUN CLAS | H47: AYABACA | I47: AYABACA | J47: SALUD LUCIANO CASTILLO COLONNA | K47: 3 | L47: 0 | M47: 0 | N47: 0 | O47: 0 | P47: 0 | Q47: 0 | R47: 0 | S47: 0 | T47: 0 | U47: 0 | V47: 0 | W47: 0 | X47: 0 | Y47: 0 | Z47: 0 | AA47: 0 | AB47: 0 | AC47: 0 | AD47: 0 | AE47: 0 | AF47: 0 | AG47: 0 | AH47: 0 | AI47: 0 | AJ47: 0 | AK47: 0 | AL47: 0 | AM47: 0 | AN47: 0 | AO47: 0 | AP47: 0 | AQ47: 0 | AR47: 0 | AS47: 0 | AT47: 0 | AU47: 0 | AV47: 0 | AW47: 0 | AX47: 0 | AY47: 0 | AZ47: 0 | BA47: 0 | BB47: 0 | BC47: 0 | BD47: 0 | BE47: 0 | BF47: 0 | BG47: 0 | BH47: 0 | BI47: 0 | BJ47: 0 | BK47: 0 | BL47: 0 | BM47: 0 | BN47: 0 | BO47: 0 | BP47: 0 | BQ47: 0 | BR47: 0 | BS47: 0 | BT47: 0 | BU47: 0 | BV47: 0 | BW47: 0 | BX47: 0 | BY47: 0 | BZ47: 0 | CA47: 0 | CB47: 0 | CC47: 0 | CD47: 0 | CE47: 0 | CF47: 0 | CG47: 0 | CH47: 0 | CI47: 0 | CJ47: 0 | CK47: 0 | CL47: 0 | CM47: 0 | CN47: 0 | CO47: 0 | CP47: 0 | CQ47: 0 | CR47: 0 | CS47: 0 | CT47: 0 | CU47: 0 | CV47: 1 | CW47: 0 | CX47: 1 | CY47: 0 | CZ47: 0 | DA47: 0 | DB47: 0 | DC47: 0 | DD47: 0 | DE47: 0 | DF47: 0 | DG47: 0 | DH47: 0 | DI47: 0 | DJ47: 0 | DK47: 0 | DL47: 0 | DM47: 0 | DN47: 0 | DO47: 0 | DP47: 0 | DQ47: 0 | DR47: 0 | DS47: 0 | DT47: 0 | DU47: 0 | DV47: 0 | DW47: 0 | DX47: 0 | DY47: 0 | DZ47: 0 | EA47: 0 | EB47: 0 | EC47: 0 | ED47: 0 | EE47: 0 | EF47: 0 | EG47: 0 | EH47: 0 | EI47: 0 | EJ47: 0 | EK47: 0 | EL47: 0 | EM47: 0 | EN47: 0 | EO47: 0 | EP47: 0 | EQ47: 0 | ER47: 0 | ES47: 0 | ET47: 0 | EU47: 0 | EV47: 0 | EW47: 0 | EX47: 0 | EY47: 0 | EZ47: 0 | FA47: 0 | FB47: 0 | FC47: 0 | FD47: 0 | FE47: 0 | FF47: 0 | FG47: 0 | FH47: 0 | FI47: 0 | FJ47: 0 | FK47: 0 | FL47: 0 | FM47: 0 | FN47: 0 | FO47: 0 | FP47: 0 | FQ47: 0 | FR47: 0 | FS47: 0 | FT47: 0 | FU47: 0 | FV47: 0 | FW47: 0 | FX47: 0 | FY47: 0 | FZ47: 0 | GA47: 0 | GB47: 0 | GC47: 0 | GD47: 0 | GE47: 0 | GF47: 0 | GG47: 0 | GH47: 0 | GI47: 0 | GJ47: 0 | GK47: 0 | GL47: 0 | GM47: 0 | GN47: 0 | GO47: 0 | GP47: 0 | GQ47: 0 | GR47: 0 | GS47: 0 | GT47: 0 | GU47: 0 | GV47: 0 | GW47: 0 | GX47: 0 | GY47: 0 | GZ47: 0 | HA47: 0 | HB47: 0 | HC47: 0 | HD47: 0 | HE47: 0 | HF47: 0 | HG47: 0 | HH47: 0 | HI47: 0 | HJ47: 0 | HK47: 0 | HL47: 0 | HM47: 0 | HN47: 0 | HO47: 0 | HP47: 0 | HQ47: 0 | HR47: 0 | HS47: 0 | HT47: 0 | HU47: 0 | HV47: 0 | HW47: 0 | HX47: 0 | HY47: 0 | HZ47: 0 | IA47: 0 | IB47: 0 | IC47: 0 | ID47: 0 | IE47: 0 | IF47: 0 | IG47: 0 | IH47: 0 | II47: 0 | IJ47: 0 | IK47: 0 | IL47: 0 | IM47: 0 | IN47: 0 | IO47: 0 | IP47: 0 | IQ47: 0 | IR47: 0 | IS47: 0 | IT47: 0 | IU47: 0 | IV47: 0 | IW47: 0 | IX47: 0 | IY47: 0 | IZ47: 0 | JA47: 0 | JB47: 0 | JC47: 0 | JD47: 0 | JE47: 1 | JF47: 0 | JG47: 0 | JH47: 0 | JI47: 0 | JJ47: 0 | JK47: 0 | JL47: 0 | JM47: 0 | JN47: 0 | JO47: 0 | JP47: 0 | JQ47: 0 | JR47: 0 | JS47: 0 | JT47: 0 | JU47: 0 | JV47: 0 | JW47: 0 | JX47: 0 | JY47: 1 | JZ47: 0 | KA47: 0 | KB47: 0 | KC47: 0 | KD47: 0
A48: LUCIANO CASTILLO COLONNA | B48: AYABACA | C48: 200201 | D48: 1913 | E48: CHINCHIN | F48: AYABACA | G48: NINGUN CLAS | H48: AYABACA | I48: AYABACA | J48: SALUD LUCIANO CASTILLO COLONNA | K48: 1 | L48: 0 | M48: 0 | N48: 0 | O48: 0 | P48: 0 | Q48: 0 | R48: 0 | S48: 0 | T48: 0 | U48: 0 | V48: 0 | W48: 0 | X48: 0 | Y48: 0 | Z48: 0 | AA48: 0 | AB48: 0 | AC48: 0 | AD48: 0 | AE48: 0 | AF48: 0 | AG48: 0 | AH48: 0 | AI48: 0 | AJ48: 0 | AK48: 0 | AL48: 0 | AM48: 0 | AN48: 0 | AO48: 0 | AP48: 0 | AQ48: 0 | AR48: 0 | AS48: 0 | AT48: 0 | AU48: 0 | AV48: 0 | AW48: 0 | AX48: 0 | AY48: 0 | AZ48: 0 | BA48: 0 | BB48: 0 | BC48: 0 | BD48: 0 | BE48: 0 | BF48: 0 | BG48: 0 | BH48: 0 | BI48: 0 | BJ48: 0 | BK48: 0 | BL48: 0 | BM48: 0 | BN48: 0 | BO48: 0 | BP48: 0 | BQ48: 0 | BR48: 0 | BS48: 0 | BT48: 0 | BU48: 0 | BV48: 0 | BW48: 0 | BX48: 0 | BY48: 0 | BZ48: 0 | CA48: 0 | CB48: 0 | CC48: 0 | CD48: 0 | CE48: 0 | CF48: 0 | CG48: 0 | CH48: 0 | CI48: 0 | CJ48: 0 | CK48: 0 | CL48: 0 | CM48: 0 | CN48: 0 | CO48: 0 | CP48: 0 | CQ48: 0 | CR48: 0 | CS48: 0 | CT48: 0 | CU48: 0 | CV48: 0 | CW48: 0 | CX48: 0 | CY48: 0 | CZ48: 3 | DA48: 0 | DB48: 3 | DC48: 0 | DD48: 0 | DE48: 0 | DF48: 0 | DG48: 0 | DH48: 0 | DI48: 0 | DJ48: 0 | DK48: 0 | DL48: 0 | DM48: 0 | DN48: 0 | DO48: 0 | DP48: 0 | DQ48: 0 | DR48: 0 | DS48: 0 | DT48: 0 | DU48: 0 | DV48: 0 | DW48: 0 | DX48: 0 | DY48: 0 | DZ48: 0 | EA48: 0 | EB48: 0 | EC48: 0 | ED48: 0 | EE48: 0 | EF48: 0 | EG48: 0 | EH48: 0 | EI48: 0 | EJ48: 0 | EK48: 0 | EL48: 0 | EM48: 0 | EN48: 0 | EO48: 0 | EP48: 0 | EQ48: 0 | ER48: 0 | ES48: 0 | ET48: 0 | EU48: 0 | EV48: 0 | EW48: 0 | EX48: 0 | EY48: 0 | EZ48: 0 | FA48: 0 | FB48: 0 | FC48: 0 | FD48: 0 | FE48: 0 | FF48: 0 | FG48: 0 | FH48: 0 | FI48: 0 | FJ48: 0 | FK48: 0 | FL48: 0 | FM48: 0 | FN48: 0 | FO48: 0 | FP48: 0 | FQ48: 0 | FR48: 0 | FS48: 0 | FT48: 0 | FU48: 0 | FV48: 0 | FW48: 0 | FX48: 0 | FY48: 0 | FZ48: 0 | GA48: 0 | GB48: 0 | GC48: 0 | GD48: 0 | GE48: 0 | GF48: 0 | GG48: 0 | GH48: 0 | GI48: 0 | GJ48: 0 | GK48: 0 | GL48: 0 | GM48: 0 | GN48: 0 | GO48: 0 | GP48: 0 | GQ48: 0 | GR48: 0 | GS48: 0 | GT48: 0 | GU48: 0 | GV48: 0 | GW48: 0 | GX48: 0 | GY48: 0 | GZ48: 0 | HA48: 0 | HB48: 0 | HC48: 0 | HD48: 0 | HE48: 0 | HF48: 0 | HG48: 0 | HH48: 0 | HI48: 0 | HJ48: 0 | HK48: 0 | HL48: 0 | HM48: 0 | HN48: 0 | HO48: 0 | HP48: 0 | HQ48: 0 | HR48: 0 | HS48: 0 | HT48: 0 | HU48: 0 | HV48: 0 | HW48: 0 | HX48: 0 | HY48: 0 | HZ48: 0 | IA48: 0 | IB48: 0 | IC48: 0 | ID48: 0 | IE48: 0 | IF48: 0 | IG48: 0 | IH48: 0 | II48: 0 | IJ48: 0 | IK48: 0 | IL48: 0 | IM48: 0 | IN48: 0 | IO48: 0 | IP48: 0 | IQ48: 0 | IR48: 0 | IS48: 0 | IT48: 0 | IU48: 0 | IV48: 0 | IW48: 0 | IX48: 0 | IY48: 0 | IZ48: 0 | JA48: 0 | JB48: 0 | JC48: 0 | JD48: 0 | JE48: 0 | JF48: 0 | JG48: 0 | JH48: 0 | JI48: 0 | JJ48: 0 | JK48: 0 | JL48: 0 | JM48: 0 | JN48: 0 | JO48: 1 | JP48: 2 | JQ48: 0 | JR48: 0 | JS48: 0 | JT48: 0 | JU48: 0 | JV48: 0 | JW48: 0 | JX48: 0 | JY48: 1 | JZ48: 0 | KA48: 0 | KB48: 0 | KC48: 0 | KD48: 0
A49: LUCIANO CASTILLO COLONNA | B49: AYABACA | C49: 200201 | D49: 1913 | E49: CHINCHIN | F49: AYABACA | G49: NINGUN CLAS | H49: AYABACA | I49: AYABACA | J49: SALUD LUCIANO CASTILLO COLONNA | K49: 2 | L49: 0 | M49: 0 | N49: 0 | O49: 0 | P49: 0 | Q49: 0 | R49: 0 | S49: 0 | T49: 0 | U49: 0 | V49: 0 | W49: 0 | X49: 0 | Y49: 0 | Z49: 0 | AA49: 0 | AB49: 0 | AC49: 0 | AD49: 0 | AE49: 0 | AF49: 0 | AG49: 0 | AH49: 0 | AI49: 0 | AJ49: 0 | AK49: 0 | AL49: 0 | AM49: 0 | AN49: 0 | AO49: 0 | AP49: 0 | AQ49: 0 | AR49: 0 | AS49: 0 | AT49: 0 | AU49: 0 | AV49: 0 | AW49: 0 | AX49: 0 | AY49: 0 | AZ49: 0 | BA49: 0 | BB49: 0 | BC49: 0 | BD49: 0 | BE49: 0 | BF49: 0 | BG49: 0 | BH49: 0 | BI49: 0 | BJ49: 0 | BK49: 0 | BL49: 0 | BM49: 0 | BN49: 0 | BO49: 0 | BP49: 0 | BQ49: 0 | BR49: 0 | BS49: 0 | BT49: 0 | BU49: 0 | BV49: 0 | BW49: 0 | BX49: 0 | BY49: 0 | BZ49: 0 | CA49: 0 | CB49: 0 | CC49: 0 | CD49: 0 | CE49: 0 | CF49: 0 | CG49: 0 | CH49: 0 | CI49: 0 | CJ49: 0 | CK49: 0 | CL49: 0 | CM49: 0 | CN49: 0 | CO49: 0 | CP49: 0 | CQ49: 0 | CR49: 0 | CS49: 0 | CT49: 0 | CU49: 0 | CV49: 0 | CW49: 0 | CX49: 0 | CY49: 0 | CZ49: 4 | DA49: 0 | DB49: 4 | DC49: 0 | DD49: 0 | DE49: 0 | DF49: 0 | DG49: 0 | DH49: 0 | DI49: 0 | DJ49: 0 | DK49: 0 | DL49: 0 | DM49: 0 | DN49: 0 | DO49: 0 | DP49: 0 | DQ49: 0 | DR49: 0 | DS49: 0 | DT49: 0 | DU49: 0 | DV49: 0 | DW49: 0 | DX49: 0 | DY49: 0 | DZ49: 0 | EA49: 0 | EB49: 0 | EC49: 0 | ED49: 0 | EE49: 0 | EF49: 0 | EG49: 0 | EH49: 0 | EI49: 0 | EJ49: 0 | EK49: 0 | EL49: 0 | EM49: 0 | EN49: 0 | EO49: 0 | EP49: 0 | EQ49: 0 | ER49: 0 | ES49: 0 | ET49: 0 | EU49: 0 | EV49: 0 | EW49: 0 | EX49: 0 | EY49: 0 | EZ49: 0 | FA49: 0 | FB49: 0 | FC49: 0 | FD49: 0 | FE49: 0 | FF49: 0 | FG49: 0 | FH49: 0 | FI49: 0 | FJ49: 0 | FK49: 0 | FL49: 0 | FM49: 0 | FN49: 0 | FO49: 0 | FP49: 0 | FQ49: 0 | FR49: 0 | FS49: 0 | FT49: 0 | FU49: 0 | FV49: 0 | FW49: 0 | FX49: 0 | FY49: 1 | FZ49: 0 | GA49: 0 | GB49: 0 | GC49: 0 | GD49: 0 | GE49: 0 | GF49: 0 | GG49: 0 | GH49: 0 | GI49: 0 | GJ49: 0 | GK49: 0 | GL49: 0 | GM49: 0 | GN49: 0 | GO49: 0 | GP49: 0 | GQ49: 0 | GR49: 0 | GS49: 0 | GT49: 0 | GU49: 0 | GV49: 0 | GW49: 0 | GX49: 0 | GY49: 0 | GZ49: 0 | HA49: 0 | HB49: 0 | HC49: 0 | HD49: 0 | HE49: 0 | HF49: 0 | HG49: 0 | HH49: 0 | HI49: 0 | HJ49: 0 | HK49: 0 | HL49: 0 | HM49: 0 | HN49: 0 | HO49: 0 | HP49: 0 | HQ49: 0 | HR49: 0 | HS49: 0 | HT49: 0 | HU49: 0 | HV49: 0 | HW49: 0 | HX49: 0 | HY49: 0 | HZ49: 0 | IA49: 0 | IB49: 0 | IC49: 0 | ID49: 0 | IE49: 0 | IF49: 0 | IG49: 0 | IH49: 0 | II49: 0 | IJ49: 0 | IK49: 0 | IL49: 0 | IM49: 0 | IN49: 0 | IO49: 0 | IP49: 0 | IQ49: 0 | IR49: 0 | IS49: 0 | IT49: 0 | IU49: 0 | IV49: 0 | IW49: 0 | IX49: 0 | IY49: 0 | IZ49: 0 | JA49: 0 | JB49: 0 | JC49: 0 | JD49: 0 | JE49: 0 | JF49: 0 | JG49: 0 | JH49: 0 | JI49: 0 | JJ49: 0 | JK49: 0 | JL49: 0 | JM49: 0 | JN49: 0 | JO49: 0 | JP49: 0 | JQ49: 0 | JR49: 0 | JS49: 0 | JT49: 0 | JU49: 0 | JV49: 0 | JW49: 0 | JX49: 0 | JY49: 1 | JZ49: 0 | KA49: 0 | KB49: 0 | KC49: 0 | KD49: 0
A50: LUCIANO CASTILLO COLONNA | B50: AYABACA | C50: 200201 | D50: 1914 | E50: OLLEROS | F50: AYABACA | G50: NINGUN CLAS | H50: AYABACA | I50: AYABACA | J50: SALUD LUCIANO CASTILLO COLONNA | K50: 1 | L50: 0 | M50: 0 | N50: 0 | O50: 0 | P50: 1 | Q50: 1 | R50: 0 | S50: 0 | T50: 0 | U50: 0 | V50: 0 | W50: 0 | X50: 0 | Y50: 0 | Z50: 1 | AA50: 4 | AB50: 0 | AC50: 3 | AD50: 4 | AE50: 5 | AF50: 0 | AG50: 0 | AH50: 0 | AI50: 0 | AJ50: 0 | AK50: 0 | AL50: 0 | AM50: 0 | AN50: 0 | AO50: 0 | AP50: 0 | AQ50: 2 | AR50: 0 | AS50: 0 | AT50: 0 | AU50: 0 | AV50: 0 | AW50: 0 | AX50: 0 | AY50: 0 | AZ50: 1 | BA50: 5 | BB50: 0 | BC50: 2 | BD50: 1 | BE50: 7 | BF50: 0 | BG50: 0 | BH50: 0 | BI50: 0 | BJ50: 0 | BK50: 0 | BL50: 0 | BM50: 0 | BN50: 0 | BO50: 0 | BP50: 0 | BQ50: 0 | BR50: 0 | BS50: 0 | BT50: 0 | BU50: 0 | BV50: 0 | BW50: 0 | BX50: 0 | BY50: 0 | BZ50: 0 | CA50: 1 | CB50: 3 | CC50: 0 | CD50: 0 | CE50: 0 | CF50: 0 | CG50: 0 | CH50: 0 | CI50: 0 | CJ50: 0 | CK50: 0 | CL50: 0 | CM50: 1 | CN50: 0 | CO50: 1 | CP50: 0 | CQ50: 0 | CR50: 7 | CS50: 0 | CT50: 7 | CU50: 0 | CV50: 16 | CW50: 0 | CX50: 16 | CY50: 1 | CZ50: 17 | DA50: 0 | DB50: 17 | DC50: 0 | DD50: 0 | DE50: 0 | DF50: 0 | DG50: 0 | DH50: 4 | DI50: 0 | DJ50: 4 | DK50: 0 | DL50: 0 | DM50: 0 | DN50: 0 | DO50: 0 | DP50: 0 | DQ50: 0 | DR50: 0 | DS50: 0 | DT50: 0 | DU50: 0 | DV50: 0 | DW50: 0 | DX50: 0 | DY50: 0 | DZ50: 0 | EA50: 0 | EB50: 0 | EC50: 0 | ED50: 0 | EE50: 0 | EF50: 39 | EG50: 0 | EH50: 0 | EI50: 0 | EJ50: 0 | EK50: 0 | EL50: 0 | EM50: 0 | EN50: 0 | EO50: 0 | EP50: 0 | EQ50: 0 | ER50: 0 | ES50: 0 | ET50: 0 | EU50: 0 | EV50: 0 | EW50: 0 | EX50: 0 | EY50: 0 | EZ50: 0 | FA50: 0 | FB50: 0 | FC50: 0 | FD50: 0 | FE50: 0 | FF50: 0 | FG50: 0 | FH50: 0 | FI50: 0 | FJ50: 0 | FK50: 0 | FL50: 0 | FM50: 0 | FN50: 0 | FO50: 0 | FP50: 0 | FQ50: 0 | FR50: 0 | FS50: 0 | FT50: 0 | FU50: 0 | FV50: 0 | FW50: 0 | FX50: 0 | FY50: 1 | FZ50: 0 | GA50: 0 | GB50: 0 | GC50: 0 | GD50: 0 | GE50: 0 | GF50: 0 | GG50: 0 | GH50: 0 | GI50: 0 | GJ50: 1 | GK50: 0 | GL50: 0 | GM50: 0 | GN50: 0 | GO50: 0 | GP50: 0 | GQ50: 0 | GR50: 0 | GS50: 0 | GT50: 0 | GU50: 0 | GV50: 0 | GW50: 0 | GX50: 0 | GY50: 0 | GZ50: 0 | HA50: 0 | HB50: 0 | HC50: 1 | HD50: 0 | HE50: 0 | HF50: 0 | HG50: 0 | HH50: 0 | HI50: 0 | HJ50: 0 | HK50: 0 | HL50: 0 | HM50: 0 | HN50: 0 | HO50: 1 | HP50: 0 | HQ50: 0 | HR50: 1 | HS50: 1 | HT50: 0 | HU50: 0 | HV50: 1 | HW50: 1 | HX50: 0 | HY50: 0 | HZ50: 1 | IA50: 1 | IB50: 0 | IC50: 0 | ID50: 1 | IE50: 1 | IF50: 0 | IG50: 0 | IH50: 0 | II50: 0 | IJ50: 1 | IK50: 1 | IL50: 0 | IM50: 0 | IN50: 0 | IO50: 0 | IP50: 0 | IQ50: 0 | IR50: 0 | IS50: 0 | IT50: 0 | IU50: 0 | IV50: 0 | IW50: 0 | IX50: 0 | IY50: 0 | IZ50: 1 | JA50: 1 | JB50: 0 | JC50: 0 | JD50: 0 | JE50: 0 | JF50: 0 | JG50: 0 | JH50: 0 | JI50: 0 | JJ50: 1 | JK50: 0 | JL50: 0 | JM50: 0 | JN50: 0 | JO50: 0 | JP50: 0 | JQ50: 0 | JR50: 0 | JS50: 0 | JT50: 0 | JU50: 0 | JV50: 0 | JW50: 0 | JX50: 0 | JY50: 7 | JZ50: 39 | KA50: 0 | KB50: 0 | KC50: 2 | KD50: 0
A51: LUCIANO CASTILLO COLONNA | B51: AYABACA | C51: 200201 | D51: 1914 | E51: OLLEROS | F51: AYABACA | G51: NINGUN CLAS | H51: AYABACA | I51: AYABACA | J51: SALUD LUCIANO CASTILLO COLONNA | K51: 2 | L51: 0 | M51: 0 | N51: 0 | O51: 1 | P51: 1 | Q51: 4 | R51: 0 | S51: 2 | T51: 0 | U51: 0 | V51: 0 | W51: 0 | X51: 0 | Y51: 0 | Z51: 0 | AA51: 0 | AB51: 1 | AC51: 7 | AD51: 2 | AE51: 9 | AF51: 0 | AG51: 0 | AH51: 0 | AI51: 0 | AJ51: 0 | AK51: 0 | AL51: 0 | AM51: 0 | AN51: 0 | AO51: 0 | AP51: 4 | AQ51: 0 | AR51: 0 | AS51: 0 | AT51: 0 | AU51: 0 | AV51: 0 | AW51: 0 | AX51: 0 | AY51: 0 | AZ51: 6 | BA51: 0 | BB51: 0 | BC51: 1 | BD51: 6 | BE51: 0 | BF51: 0 | BG51: 1 | BH51: 0 | BI51: 0 | BJ51: 0 | BK51: 0 | BL51: 0 | BM51: 0 | BN51: 0 | BO51: 0 | BP51: 0 | BQ51: 0 | BR51: 0 | BS51: 0 | BT51: 0 | BU51: 0 | BV51: 0 | BW51: 0 | BX51: 0 | BY51: 0 | BZ51: 0 | CA51: 3 | CB51: 1 | CC51: 0 | CD51: 0 | CE51: 0 | CF51: 0 | CG51: 0 | CH51: 0 | CI51: 0 | CJ51: 0 | CK51: 0 | CL51: 0 | CM51: 1 | CN51: 0 | CO51: 1 | CP51: 0 | CQ51: 0 | CR51: 3 | CS51: 0 | CT51: 3 | CU51: 0 | CV51: 13 | CW51: 0 | CX51: 13 | CY51: 1 | CZ51: 18 | DA51: 0 | DB51: 18 | DC51: 0 | DD51: 0 | DE51: 0 | DF51: 0 | DG51: 0 | DH51: 5 | DI51: 0 | DJ51: 5 | DK51: 0 | DL51: 0 | DM51: 0 | DN51: 0 | DO51: 0 | DP51: 0 | DQ51: 0 | DR51: 0 | DS51: 0 | DT51: 0 | DU51: 0 | DV51: 0 | DW51: 0 | DX51: 0 | DY51: 0 | DZ51: 0 | EA51: 0 | EB51: 0 | EC51: 0 | ED51: 0 | EE51: 0 | EF51: 16 | EG51: 0 | EH51: 0 | EI51: 0 | EJ51: 0 | EK51: 0 | EL51: 0 | EM51: 0 | EN51: 0 | EO51: 0 | EP51: 0 | EQ51: 0 | ER51: 0 | ES51: 0 | ET51: 0 | EU51: 0 | EV51: 0 | EW51: 0 | EX51: 0 | EY51: 0 | EZ51: 0 | FA51: 0 | FB51: 0 | FC51: 0 | FD51: 0 | FE51: 0 | FF51: 0 | FG51: 0 | FH51: 0 | FI51: 0 | FJ51: 0 | FK51: 0 | FL51: 0 | FM51: 0 | FN51: 0 | FO51: 0 | FP51: 0 | FQ51: 0 | FR51: 0 | FS51: 0 | FT51: 0 | FU51: 0 | FV51: 0 | FW51: 0 | FX51: 0 | FY51: 5 | FZ51: 0 | GA51: 0 | GB51: 0 | GC51: 0 | GD51: 0 | GE51: 0 | GF51: 0 | GG51: 0 | GH51: 0 | GI51: 0 | GJ51: 0 | GK51: 0 | GL51: 0 | GM51: 0 | GN51: 0 | GO51: 0 | GP51: 0 | GQ51: 0 | GR51: 0 | GS51: 0 | GT51: 0 | GU51: 0 | GV51: 0 | GW51: 0 | GX51: 0 | GY51: 0 | GZ51: 0 | HA51: 0 | HB51: 0 | HC51: 0 | HD51: 0 | HE51: 0 | HF51: 2 | HG51: 0 | HH51: 0 | HI51: 0 | HJ51: 0 | HK51: 0 | HL51: 0 | HM51: 0 | HN51: 0 | HO51: 0 | HP51: 0 | HQ51: 0 | HR51: 3 | HS51: 0 | HT51: 0 | HU51: 0 | HV51: 3 | HW51: 0 | HX51: 0 | HY51: 0 | HZ51: 3 | IA51: 0 | IB51: 0 | IC51: 0 | ID51: 0 | IE51: 0 | IF51: 0 | IG51: 0 | IH51: 0 | II51: 0 | IJ51: 0 | IK51: 0 | IL51: 0 | IM51: 0 | IN51: 0 | IO51: 0 | IP51: 0 | IQ51: 0 | IR51: 0 | IS51: 0 | IT51: 0 | IU51: 0 | IV51: 0 | IW51: 0 | IX51: 0 | IY51: 0 | IZ51: 0 | JA51: 0 | JB51: 0 | JC51: 1 | JD51: 0 | JE51: 0 | JF51: 0 | JG51: 1 | JH51: 0 | JI51: 0 | JJ51: 1 | JK51: 0 | JL51: 0 | JM51: 0 | JN51: 0 | JO51: 0 | JP51: 0 | JQ51: 0 | JR51: 0 | JS51: 0 | JT51: 0 | JU51: 0 | JV51: 0 | JW51: 0 | JX51: 0 | JY51: 9 | JZ51: 16 | KA51: 0 | KB51: 0 | KC51: 0 | KD51: 0
A52: LUCIANO CASTILLO COLONNA | B52: AYABACA | C52: 200201 | D52: 1914 | E52: OLLEROS | F52: AYABACA | G52: NINGUN CLAS | H52: AYABACA | I52: AYABACA | J52: SALUD LUCIANO CASTILLO COLONNA | K52: 3 | L52: 0 | M52: 0 | N52: 2 | O52: 2 | P52: 1 | Q52: 2 | R52: 1 | S52: 3 | T52: 0 | U52: 0 | V52: 0 | W52: 0 | X52: 0 | Y52: 0 | Z52: 0 | AA52: 1 | AB52: 1 | AC52: 3 | AD52: 2 | AE52: 8 | AF52: 0 | AG52: 0 | AH52: 0 | AI52: 0 | AJ52: 0 | AK52: 0 | AL52: 0 | AM52: 0 | AN52: 0 | AO52: 0 | AP52: 4 | AQ52: 3 | AR52: 0 | AS52: 1 | AT52: 0 | AU52: 0 | AV52: 0 | AW52: 0 | AX52: 0 | AY52: 0 | AZ52: 6 | BA52: 6 | BB52: 0 | BC52: 0 | BD52: 4 | BE52: 4 | BF52: 2 | BG52: 2 | BH52: 0 | BI52: 0 | BJ52: 0 | BK52: 1 | BL52: 0 | BM52: 0 | BN52: 0 | BO52: 0 | BP52: 0 | BQ52: 0 | BR52: 0 | BS52: 0 | BT52: 0 | BU52: 0 | BV52: 0 | BW52: 0 | BX52: 0 | BY52: 0 | BZ52: 0 | CA52: 1 | CB52: 2 | CC52: 0 | CD52: 0 | CE52: 0 | CF52: 0 | CG52: 0 | CH52: 0 | CI52: 0 | CJ52: 0 | CK52: 0 | CL52: 0 | CM52: 0 | CN52: 0 | CO52: 0 | CP52: 0 | CQ52: 0 | CR52: 8 | CS52: 0 | CT52: 8 | CU52: 0 | CV52: 5 | CW52: 0 | CX52: 5 | CY52: 0 | CZ52: 18 | DA52: 0 | DB52: 18 | DC52: 0 | DD52: 0 | DE52: 0 | DF52: 0 | DG52: 0 | DH52: 2 | DI52: 0 | DJ52: 2 | DK52: 0 | DL52: 0 | DM52: 0 | DN52: 0 | DO52: 0 | DP52: 0 | DQ52: 0 | DR52: 0 | DS52: 0 | DT52: 0 | DU52: 0 | DV52: 0 | DW52: 1 | DX52: 0 | DY52: 0 | DZ52: 0 | EA52: 0 | EB52: 0 | EC52: 0 | ED52: 0 | EE52: 0 | EF52: 10 | EG52: 0 | EH52: 27 | EI52: 0 | EJ52: 0 | EK52: 0 | EL52: 0 | EM52: 0 | EN52: 0 | EO52: 0 | EP52: 0 | EQ52: 0 | ER52: 0 | ES52: 0 | ET52: 0 | EU52: 0 | EV52: 0 | EW52: 0 | EX52: 0 | EY52: 0 | EZ52: 0 | FA52: 0 | FB52: 0 | FC52: 0 | FD52: 0 | FE52: 0 | FF52: 0 | FG52: 0 | FH52: 0 | FI52: 0 | FJ52: 0 | FK52: 0 | FL52: 0 | FM52: 0 | FN52: 0 | FO52: 0 | FP52: 0 | FQ52: 0 | FR52: 0 | FS52: 0 | FT52: 0 | FU52: 0 | FV52: 0 | FW52: 0 | FX52: 0 | FY52: 6 | FZ52: 0 | GA52: 0 | GB52: 0 | GC52: 0 | GD52: 0 | GE52: 0 | GF52: 0 | GG52: 1 | GH52: 0 | GI52: 0 | GJ52: 3 | GK52: 0 | GL52: 0 | GM52: 0 | GN52: 0 | GO52: 0 | GP52: 0 | GQ52: 0 | GR52: 0 | GS52: 0 | GT52: 0 | GU52: 0 | GV52: 0 | GW52: 0 | GX52: 0 | GY52: 0 | GZ52: 0 | HA52: 0 | HB52: 0 | HC52: 2 | HD52: 0 | HE52: 0 | HF52: 1 | HG52: 0 | HH52: 0 | HI52: 0 | HJ52: 0 | HK52: 0 | HL52: 0 | HM52: 0 | HN52: 1 | HO52: 2 | HP52: 0 | HQ52: 1 | HR52: 7 | HS52: 3 | HT52: 0 | HU52: 0 | HV52: 7 | HW52: 3 | HX52: 0 | HY52: 0 | HZ52: 7 | IA52: 3 | IB52: 0 | IC52: 0 | ID52: 0 | IE52: 0 | IF52: 0 | IG52: 0 | IH52: 0 | II52: 0 | IJ52: 0 | IK52: 0 | IL52: 0 | IM52: 0 | IN52: 0 | IO52: 0 | IP52: 0 | IQ52: 0 | IR52: 0 | IS52: 0 | IT52: 0 | IU52: 0 | IV52: 0 | IW52: 0 | IX52: 0 | IY52: 0 | IZ52: 0 | JA52: 0 | JB52: 0 | JC52: 0 | JD52: 0 | JE52: 0 | JF52: 0 | JG52: 0 | JH52: 0 | JI52: 0 | JJ52: 0 | JK52: 0 | JL52: 0 | JM52: 0 | JN52: 0 | JO52: 0 | JP52: 0 | JQ52: 0 | JR52: 0 | JS52: 0 | JT52: 0 | JU52: 0 | JV52: 0 | JW52: 0 | JX52: 0 | JY52: 11 | JZ52: 37 | KA52: 0 | KB52: 0 | KC52: 0 | KD52: 0
A53: LUCIANO CASTILLO COLONNA | B53: AYABACA | C53: 200201 | D53: 1914 | E53: OLLEROS | F53: AYABACA | G53: NINGUN CLAS | H53: AYABACA | I53: AYABACA | J53: SALUD LUCIANO CASTILLO COLONNA | K53: 4 | L53: 0 | M53: 0 | N53: 1 | O53: 2 | P53: 1 | Q53: 5 | R53: 0 | S53: 5 | T53: 0 | U53: 0 | V53: 0 | W53: 0 | X53: 0 | Y53: 0 | Z53: 0 | AA53: 1 | AB53: 1 | AC53: 1 | AD53: 2 | AE53: 8 | AF53: 0 | AG53: 0 | AH53: 0 | AI53: 0 | AJ53: 0 | AK53: 0 | AL53: 0 | AM53: 0 | AN53: 0 | AO53: 0 | AP53: 3 | AQ53: 1 | AR53: 0 | AS53: 1 | AT53: 0 | AU53: 0 | AV53: 0 | AW53: 0 | AX53: 0 | AY53: 0 | AZ53: 6 | BA53: 1 | BB53: 0 | BC53: 2 | BD53: 4 | BE53: 1 | BF53: 2 | BG53: 2 | BH53: 0 | BI53: 0 | BJ53: 0 | BK53: 0 | BL53: 0 | BM53: 0 | BN53: 0 | BO53: 0 | BP53: 0 | BQ53: 0 | BR53: 0 | BS53: 0 | BT53: 0 | BU53: 0 | BV53: 0 | BW53: 0 | BX53: 0 | BY53: 0 | BZ53: 0 | CA53: 5 | CB53: 4 | CC53: 0 | CD53: 0 | CE53: 0 | CF53: 0 | CG53: 0 | CH53: 0 | CI53: 0 | CJ53: 0 | CK53: 0 | CL53: 0 | CM53: 0 | CN53: 0 | CO53: 0 | CP53: 0 | CQ53: 0 | CR53: 7 | CS53: 0 | CT53: 7 | CU53: 0 | CV53: 15 | CW53: 0 | CX53: 15 | CY53: 1 | CZ53: 16 | DA53: 1 | DB53: 16 | DC53: 0 | DD53: 0 | DE53: 0 | DF53: 0 | DG53: 0 | DH53: 6 | DI53: 0 | DJ53: 6 | DK53: 0 | DL53: 0 | DM53: 0 | DN53: 0 | DO53: 0 | DP53: 0 | DQ53: 0 | DR53: 0 | DS53: 0 | DT53: 0 | DU53: 0 | DV53: 0 | DW53: 0 | DX53: 0 | DY53: 0 | DZ53: 0 | EA53: 0 | EB53: 0 | EC53: 0 | ED53: 0 | EE53: 0 | EF53: 6 | EG53: 0 | EH53: 30 | EI53: 0 | EJ53: 0 | EK53: 0 | EL53: 0 | EM53: 0 | EN53: 0 | EO53: 0 | EP53: 0 | EQ53: 0 | ER53: 0 | ES53: 0 | ET53: 0 | EU53: 0 | EV53: 0 | EW53: 0 | EX53: 0 | EY53: 0 | EZ53: 0 | FA53: 0 | FB53: 0 | FC53: 0 | FD53: 0 | FE53: 0 | FF53: 0 | FG53: 0 | FH53: 0 | FI53: 0 | FJ53: 0 | FK53: 0 | FL53: 0 | FM53: 0 | FN53: 0 | FO53: 0 | FP53: 0 | FQ53: 0 | FR53: 0 | FS53: 0 | FT53: 0 | FU53: 0 | FV53: 0 | FW53: 0 | FX53: 0 | FY53: 4 | FZ53: 0 | GA53: 0 | GB53: 0 | GC53: 0 | GD53: 0 | GE53: 1 | GF53: 0 | GG53: 0 | GH53: 0 | GI53: 0 | GJ53: 1 | GK53: 0 | GL53: 0 | GM53: 1 | GN53: 0 | GO53: 0 | GP53: 0 | GQ53: 0 | GR53: 0 | GS53: 0 | GT53: 0 | GU53: 0 | GV53: 0 | GW53: 0 | GX53: 0 | GY53: 0 | GZ53: 0 | HA53: 0 | HB53: 0 | HC53: 1 | HD53: 0 | HE53: 0 | HF53: 1 | HG53: 0 | HH53: 0 | HI53: 0 | HJ53: 0 | HK53: 0 | HL53: 0 | HM53: 0 | HN53: 0 | HO53: 1 | HP53: 0 | HQ53: 0 | HR53: 5 | HS53: 2 | HT53: 0 | HU53: 0 | HV53: 5 | HW53: 2 | HX53: 0 | HY53: 0 | HZ53: 5 | IA53: 2 | IB53: 0 | IC53: 0 | ID53: 0 | IE53: 0 | IF53: 0 | IG53: 0 | IH53: 0 | II53: 0 | IJ53: 0 | IK53: 0 | IL53: 0 | IM53: 0 | IN53: 0 | IO53: 0 | IP53: 0 | IQ53: 0 | IR53: 0 | IS53: 0 | IT53: 0 | IU53: 0 | IV53: 0 | IW53: 0 | IX53: 0 | IY53: 0 | IZ53: 0 | JA53: 0 | JB53: 0 | JC53: 0 | JD53: 0 | JE53: 0 | JF53: 0 | JG53: 0 | JH53: 0 | JI53: 0 | JJ53: 0 | JK53: 1 | JL53: 0 | JM53: 0 | JN53: 0 | JO53: 0 | JP53: 0 | JQ53: 0 | JR53: 0 | JS53: 0 | JT53: 0 | JU53: 0 | JV53: 0 | JW53: 0 | JX53: 0 | JY53: 13 | JZ53: 36 | KA53: 0 | KB53: 2 | KC53: 0 | KD53: 0
A54: LUCIANO CASTILLO COLONNA | B54: AYABACA | C54: 200201 | D54: 1914 | E54: OLLEROS | F54: AYABACA | G54: NINGUN CLAS | H54: AYABACA | I54: AYABACA | J54: SALUD LUCIANO CASTILLO COLONNA | K54: 5 | L54: 0 | M54: 0 | N54: 0 | O54: 0 | P54: 0 | Q54: 0 | R54: 1 | S54: 1 | T54: 0 | U54: 0 | V54: 0 | W54: 0 | X54: 0 | Y54: 0 | Z54: 1 | AA54: 6 | AB54: 1 | AC54: 0 | AD54: 2 | AE54: 3 | AF54: 0 | AG54: 0 | AH54: 0 | AI54: 0 | AJ54: 0 | AK54: 0 | AL54: 0 | AM54: 0 | AN54: 0 | AO54: 0 | AP54: 0 | AQ54: 0 | AR54: 0 | AS54: 0 | AT54: 0 | AU54: 0 | AV54: 0 | AW54: 0 | AX54: 0 | AY54: 0 | AZ54: 0 | BA54: 0 | BB54: 0 | BC54: 0 | BD54: 0 | BE54: 0 | BF54: 0 | BG54: 0 | BH54: 0 | BI54: 0 | BJ54: 1 | BK54: 0 | BL54: 0 | BM54: 0 | BN54: 0 | BO54: 0 | BP54: 0 | BQ54: 0 | BR54: 0 | BS54: 0 | BT54: 0 | BU54: 0 | BV54: 0 | BW54: 0 | BX54: 0 | BY54: 0 | BZ54: 0 | CA54: 8 | CB54: 1 | CC54: 0 | CD54: 0 | CE54: 0 | CF54: 0 | CG54: 0 | CH54: 0 | CI54: 0 | CJ54: 0 | CK54: 0 | CL54: 0 | CM54: 0 | CN54: 0 | CO54: 0 | CP54: 0 | CQ54: 0 | CR54: 6 | CS54: 0 | CT54: 6 | CU54: 0 | CV54: 14 | CW54: 0 | CX54: 14 | CY54: 0 | CZ54: 16 | DA54: 0 | DB54: 16 | DC54: 0 | DD54: 0 | DE54: 0 | DF54: 0 | DG54: 0 | DH54: 3 | DI54: 0 | DJ54: 3 | DK54: 0 | DL54: 0 | DM54: 0 | DN54: 0 | DO54: 0 | DP54: 0 | DQ54: 0 | DR54: 0 | DS54: 0 | DT54: 0 | DU54: 0 | DV54: 0 | DW54: 0 | DX54: 0 | DY54: 0 | DZ54: 0 | EA54: 0 | EB54: 0 | EC54: 0 | ED54: 0 | EE54: 0 | EF54: 2 | EG54: 0 | EH54: 29 | EI54: 0 | EJ54: 0 | EK54: 0 | EL54: 0 | EM54: 0 | EN54: 0 | EO54: 0 | EP54: 0 | EQ54: 0 | ER54: 0 | ES54: 0 | ET54: 0 | EU54: 0 | EV54: 0 | EW54: 0 | EX54: 0 | EY54: 0 | EZ54: 0 | FA54: 0 | FB54: 0 | FC54: 0 | FD54: 0 | FE54: 0 | FF54: 0 | FG54: 0 | FH54: 0 | FI54: 0 | FJ54: 0 | FK54: 0 | FL54: 0 | FM54: 0 | FN54: 0 | FO54: 0 | FP54: 0 | FQ54: 0 | FR54: 0 | FS54: 0 | FT54: 0 | FU54: 0 | FV54: 0 | FW54: 0 | FX54: 0 | FY54: 0 | FZ54: 0 | GA54: 0 | GB54: 0 | GC54: 0 | GD54: 0 | GE54: 0 | GF54: 0 | GG54: 0 | GH54: 0 | GI54: 0 | GJ54: 0 | GK54: 0 | GL54: 0 | GM54: 0 | GN54: 0 | GO54: 0 | GP54: 0 | GQ54: 0 | GR54: 0 | GS54: 0 | GT54: 0 | GU54: 0 | GV54: 0 | GW54: 0 | GX54: 2 | GY54: 0 | GZ54: 0 | HA54: 0 | HB54: 0 | HC54: 0 | HD54: 0 | HE54: 0 | HF54: 0 | HG54: 0 | HH54: 0 | HI54: 0 | HJ54: 1 | HK54: 0 | HL54: 0 | HM54: 0 | HN54: 0 | HO54: 0 | HP54: 0 | HQ54: 0 | HR54: 7 | HS54: 3 | HT54: 0 | HU54: 0 | HV54: 7 | HW54: 3 | HX54: 0 | HY54: 0 | HZ54: 0 | IA54: 0 | IB54: 0 | IC54: 0 | ID54: 0 | IE54: 0 | IF54: 0 | IG54: 0 | IH54: 0 | II54: 0 | IJ54: 0 | IK54: 0 | IL54: 0 | IM54: 0 | IN54: 0 | IO54: 0 | IP54: 0 | IQ54: 0 | IR54: 0 | IS54: 0 | IT54: 0 | IU54: 0 | IV54: 0 | IW54: 0 | IX54: 0 | IY54: 0 | IZ54: 0 | JA54: 0 | JB54: 0 | JC54: 0 | JD54: 0 | JE54: 0 | JF54: 0 | JG54: 0 | JH54: 0 | JI54: 0 | JJ54: 0 | JK54: 0 | JL54: 0 | JM54: 0 | JN54: 0 | JO54: 0 | JP54: 0 | JQ54: 0 | JR54: 0 | JS54: 0 | JT54: 0 | JU54: 0 | JV54: 0 | JW54: 0 | JX54: 0 | JY54: 16 | JZ54: 31 | KA54: 0 | KB54: 0 | KC54: 0 | KD54: 0
A55: LUCIANO CASTILLO COLONNA | B55: AYABACA | C55: 200201 | D55: 1914 | E55: OLLEROS | F55: AYABACA | G55: NINGUN CLAS | H55: AYABACA | I55: AYABACA | J55: SALUD LUCIANO CASTILLO COLONNA | K55: 6 | L55: 0 | M55: 0 | N55: 0 | O55: 0 | P55: 0 | Q55: 0 | R55: 1 | S55: 2 | T55: 0 | U55: 0 | V55: 0 | W55: 0 | X55: 0 | Y55: 0 | Z55: 1 | AA55: 3 | AB55: 0 | AC55: 0 | AD55: 0 | AE55: 10 | AF55: 0 | AG55: 0 | AH55: 0 | AI55: 0 | AJ55: 0 | AK55: 0 | AL55: 0 | AM55: 0 | AN55: 0 | AO55: 0 | AP55: 2 | AQ55: 2 | AR55: 0 | AS55: 0 | AT55: 0 | AU55: 0 | AV55: 0 | AW55: 0 | AX55: 0 | AY55: 0 | AZ55: 4 | BA55: 2 | BB55: 0 | BC55: 0 | BD55: 4 | BE55: 2 | BF55: 0 | BG55: 0 | BH55: 0 | BI55: 0 | BJ55: 0 | BK55: 0 | BL55: 0 | BM55: 0 | BN55: 0 | BO55: 0 | BP55: 0 | BQ55: 0 | BR55: 0 | BS55: 0 | BT55: 0 | BU55: 0 | BV55: 0 | BW55: 0 | BX55: 0 | BY55: 0 | BZ55: 0 | CA55: 3 | CB55: 3 | CC55: 0 | CD55: 0 | CE55: 0 | CF55: 0 | CG55: 0 | CH55: 0 | CI55: 0 | CJ55: 0 | CK55: 0 | CL55: 0 | CM55: 0 | CN55: 0 | CO55: 0 | CP55: 0 | CQ55: 0 | CR55: 6 | CS55: 0 | CT55: 6 | CU55: 0 | CV55: 5 | CW55: 0 | CX55: 5 | CY55: 0 | CZ55: 14 | DA55: 0 | DB55: 14 | DC55: 0 | DD55: 1 | DE55: 0 | DF55: 1 | DG55: 0 | DH55: 5 | DI55: 0 | DJ55: 5 | DK55: 0 | DL55: 1 | DM55: 0 | DN55: 1 | DO55: 0 | DP55: 0 | DQ55: 0 | DR55: 0 | DS55: 0 | DT55: 0 | DU55: 0 | DV55: 0 | DW55: 0 | DX55: 0 | DY55: 0 | DZ55: 0 | EA55: 0 | EB55: 0 | EC55: 0 | ED55: 0 | EE55: 0 | EF55: 7 | EG55: 0 | EH55: 8 | EI55: 0 | EJ55: 0 | EK55: 0 | EL55: 0 | EM55: 0 | EN55: 0 | EO55: 0 | EP55: 0 | EQ55: 0 | ER55: 0 | ES55: 0 | ET55: 0 | EU55: 0 | EV55: 0 | EW55: 0 | EX55: 0 | EY55: 0 | EZ55: 0 | FA55: 0 | FB55: 0 | FC55: 0 | FD55: 0 | FE55: 0 | FF55: 0 | FG55: 0 | FH55: 0 | FI55: 0 | FJ55: 0 | FK55: 0 | FL55: 0 | FM55: 0 | FN55: 0 | FO55: 0 | FP55: 0 | FQ55: 0 | FR55: 0 | FS55: 0 | FT55: 0 | FU55: 0 | FV55: 0 | FW55: 0 | FX55: 0 | FY55: 4 | FZ55: 0 | GA55: 0 | GB55: 0 | GC55: 0 | GD55: 0 | GE55: 0 | GF55: 0 | GG55: 0 | GH55: 0 | GI55: 0 | GJ55: 0 | GK55: 0 | GL55: 0 | GM55: 0 | GN55: 0 | GO55: 0 | GP55: 0 | GQ55: 0 | GR55: 0 | GS55: 0 | GT55: 0 | GU55: 0 | GV55: 0 | GW55: 0 | GX55: 0 | GY55: 0 | GZ55: 0 | HA55: 0 | HB55: 0 | HC55: 0 | HD55: 0 | HE55: 0 | HF55: 1 | HG55: 0 | HH55: 0 | HI55: 0 | HJ55: 0 | HK55: 0 | HL55: 0 | HM55: 0 | HN55: 0 | HO55: 0 | HP55: 0 | HQ55: 0 | HR55: 3 | HS55: 1 | HT55: 0 | HU55: 0 | HV55: 3 | HW55: 1 | HX55: 0 | HY55: 0 | HZ55: 3 | IA55: 1 | IB55: 0 | IC55: 0 | ID55: 0 | IE55: 0 | IF55: 0 | IG55: 0 | IH55: 0 | II55: 0 | IJ55: 0 | IK55: 0 | IL55: 0 | IM55: 0 | IN55: 0 | IO55: 0 | IP55: 0 | IQ55: 0 | IR55: 0 | IS55: 0 | IT55: 0 | IU55: 0 | IV55: 0 | IW55: 0 | IX55: 0 | IY55: 0 | IZ55: 0 | JA55: 1 | JB55: 0 | JC55: 0 | JD55: 0 | JE55: 0 | JF55: 1 | JG55: 0 | JH55: 0 | JI55: 0 | JJ55: 0 | JK55: 0 | JL55: 0 | JM55: 0 | JN55: 0 | JO55: 0 | JP55: 0 | JQ55: 0 | JR55: 0 | JS55: 0 | JT55: 0 | JU55: 0 | JV55: 0 | JW55: 0 | JX55: 0 | JY55: 14 | JZ55: 15 | KA55: 0 | KB55: 0 | KC55: 0 | KD55: 0
A56: LUCIANO CASTILLO COLONNA | B56: AYABACA | C56: 200201 | D56: 1914 | E56: OLLEROS | F56: AYABACA | G56: NINGUN CLAS | H56: AYABACA | I56: AYABACA | J56: SALUD LUCIANO CASTILLO COLONNA | K56: 7 | L56: 0 | M56: 0 | N56: 2 | O56: 2 | P56: 0 | Q56: 1 | R56: 1 | S56: 7 | T56: 0 | U56: 1 | V56: 0 | W56: 0 | X56: 0 | Y56: 0 | Z56: 1 | AA56: 0 | AB56: 0 | AC56: 1 | AD56: 0 | AE56: 7 | AF56: 0 | AG56: 0 | AH56: 0 | AI56: 0 | AJ56: 0 | AK56: 0 | AL56: 0 | AM56: 0 | AN56: 0 | AO56: 0 | AP56: 3 | AQ56: 5 | AR56: 1 | AS56: 1 | AT56: 0 | AU56: 0 | AV56: 0 | AW56: 0 | AX56: 0 | AY56: 0 | AZ56: 5 | BA56: 6 | BB56: 0 | BC56: 0 | BD56: 3 | BE56: 4 | BF56: 2 | BG56: 2 | BH56: 0 | BI56: 0 | BJ56: 0 | BK56: 0 | BL56: 0 | BM56: 0 | BN56: 0 | BO56: 0 | BP56: 0 | BQ56: 0 | BR56: 0 | BS56: 0 | BT56: 0 | BU56: 0 | BV56: 0 | BW56: 0 | BX56: 0 | BY56: 0 | BZ56: 0 | CA56: 2 | CB56: 4 | CC56: 0 | CD56: 1 | CE56: 0 | CF56: 0 | CG56: 0 | CH56: 0 | CI56: 0 | CJ56: 0 | CK56: 0 | CL56: 0 | CM56: 0 | CN56: 0 | CO56: 0 | CP56: 0 | CQ56: 0 | CR56: 5 | CS56: 0 | CT56: 5 | CU56: 0 | CV56: 13 | CW56: 0 | CX56: 13 | CY56: 0 | CZ56: 14 | DA56: 0 | DB56: 14 | DC56: 0 | DD56: 0 | DE56: 0 | DF56: 0 | DG56: 0 | DH56: 7 | DI56: 0 | DJ56: 7 | DK56: 0 | DL56: 0 | DM56: 0 | DN56: 0 | DO56: 0 | DP56: 0 | DQ56: 0 | DR56: 0 | DS56: 0 | DT56: 0 | DU56: 0 | DV56: 0 | DW56: 0 | DX56: 0 | DY56: 0 | DZ56: 0 | EA56: 0 | EB56: 0 | EC56: 0 | ED56: 0 | EE56: 0 | EF56: 2 | EG56: 0 | EH56: 7 | EI56: 0 | EJ56: 0 | EK56: 0 | EL56: 0 | EM56: 0 | EN56: 0 | EO56: 0 | EP56: 0 | EQ56: 0 | ER56: 0 | ES56: 0 | ET56: 0 | EU56: 0 | EV56: 0 | EW56: 0 | EX56: 0 | EY56: 0 | EZ56: 0 | FA56: 0 | FB56: 0 | FC56: 0 | FD56: 0 | FE56: 0 | FF56: 0 | FG56: 0 | FH56: 0 | FI56: 0 | FJ56: 0 | FK56: 0 | FL56: 0 | FM56: 0 | FN56: 0 | FO56: 0 | FP56: 0 | FQ56: 0 | FR56: 0 | FS56: 0 | FT56: 0 | FU56: 0 | FV56: 0 | FW56: 0 | FX56: 0 | FY56: 5 | FZ56: 0 | GA56: 0 | GB56: 0 | GC56: 0 | GD56: 0 | GE56: 0 | GF56: 0 | GG56: 0 | GH56: 0 | GI56: 0 | GJ56: 2 | GK56: 0 | GL56: 0 | GM56: 0 | GN56: 0 | GO56: 0 | GP56: 0 | GQ56: 0 | GR56: 0 | GS56: 0 | GT56: 0 | GU56: 0 | GV56: 0 | GW56: 0 | GX56: 2 | GY56: 0 | GZ56: 0 | HA56: 0 | HB56: 0 | HC56: 1 | HD56: 1 | HE56: 0 | HF56: 0 | HG56: 0 | HH56: 0 | HI56: 0 | HJ56: 0 | HK56: 0 | HL56: 0 | HM56: 0 | HN56: 0 | HO56: 3 | HP56: 0 | HQ56: 2 | HR56: 4 | HS56: 5 | HT56: 0 | HU56: 0 | HV56: 4 | HW56: 5 | HX56: 0 | HY56: 0 | HZ56: 0 | IA56: 5 | IB56: 0 | IC56: 0 | ID56: 0 | IE56: 0 | IF56: 0 | IG56: 0 | IH56: 0 | II56: 0 | IJ56: 0 | IK56: 0 | IL56: 0 | IM56: 0 | IN56: 0 | IO56: 0 | IP56: 0 | IQ56: 0 | IR56: 0 | IS56: 0 | IT56: 0 | IU56: 0 | IV56: 0 | IW56: 0 | IX56: 0 | IY56: 0 | IZ56: 1 | JA56: 3 | JB56: 0 | JC56: 0 | JD56: 0 | JE56: 0 | JF56: 2 | JG56: 0 | JH56: 0 | JI56: 0 | JJ56: 0 | JK56: 0 | JL56: 0 | JM56: 0 | JN56: 0 | JO56: 0 | JP56: 0 | JQ56: 0 | JR56: 0 | JS56: 0 | JT56: 0 | JU56: 0 | JV56: 0 | JW56: 0 | JX56: 0 | JY56: 12 | JZ56: 9 | KA56: 0 | KB56: 0 | KC56: 0 | KD56: 0
A57: LUCIANO CASTILLO COLONNA | B57: AYABACA | C57: 200201 | D57: 1914 | E57: OLLEROS | F57: AYABACA | G57: NINGUN CLAS | H57: AYABACA | I57: AYABACA | J57: SALUD LUCIANO CASTILLO COLONNA | K57: 8 | L57: 0 | M57: 0 | N57: 0 | O57: 3 | P57: 0 | Q57: 1 | R57: 1 | S57: 5 | T57: 0 | U57: 0 | V57: 0 | W57: 0 | X57: 0 | Y57: 0 | Z57: 0 | AA57: 4 | AB57: 0 | AC57: 0 | AD57: 2 | AE57: 8 | AF57: 0 | AG57: 0 | AH57: 0 | AI57: 0 | AJ57: 0 | AK57: 0 | AL57: 0 | AM57: 0 | AN57: 0 | AO57: 0 | AP57: 1 | AQ57: 2 | AR57: 0 | AS57: 3 | AT57: 0 | AU57: 0 | AV57: 0 | AW57: 0 | AX57: 0 | AY57: 0 | AZ57: 1 | BA57: 4 | BB57: 0 | BC57: 0 | BD57: 1 | BE57: 1 | BF57: 0 | BG57: 3 | BH57: 0 | BI57: 0 | BJ57: 0 | BK57: 0 | BL57: 0 | BM57: 0 | BN57: 0 | BO57: 0 | BP57: 0 | BQ57: 0 | BR57: 0 | BS57: 0 | BT57: 0 | BU57: 0 | BV57: 0 | BW57: 0 | BX57: 0 | BY57: 0 | BZ57: 0 | CA57: 21 | CB57: 4 | CC57: 0 | CD57: 0 | CE57: 0 | CF57: 0 | CG57: 0 | CH57: 0 | CI57: 0 | CJ57: 0 | CK57: 0 | CL57: 0 | CM57: 0 | CN57: 0 | CO57: 0 | CP57: 0 | CQ57: 0 | CR57: 6 | CS57: 0 | CT57: 6 | CU57: 0 | CV57: 10 | CW57: 0 | CX57: 10 | CY57: 1 | CZ57: 17 | DA57: 1 | DB57: 17 | DC57: 0 | DD57: 0 | DE57: 0 | DF57: 0 | DG57: 0 | DH57: 5 | DI57: 0 | DJ57: 5 | DK57: 0 | DL57: 0 | DM57: 0 | DN57: 0 | DO57: 0 | DP57: 0 | DQ57: 0 | DR57: 0 | DS57: 0 | DT57: 0 | DU57: 0 | DV57: 0 | DW57: 0 | DX57: 0 | DY57: 0 | DZ57: 0 | EA57: 0 | EB57: 0 | EC57: 0 | ED57: 0 | EE57: 0 | EF57: 2 | EG57: 0 | EH57: 4 | EI57: 0 | EJ57: 0 | EK57: 0 | EL57: 0 | EM57: 0 | EN57: 0 | EO57: 0 | EP57: 0 | EQ57: 0 | ER57: 0 | ES57: 0 | ET57: 0 | EU57: 0 | EV57: 0 | EW57: 0 | EX57: 0 | EY57: 0 | EZ57: 0 | FA57: 0 | FB57: 0 | FC57: 0 | FD57: 0 | FE57: 0 | FF57: 0 | FG57: 0 | FH57: 0 | FI57: 0 | FJ57: 0 | FK57: 0 | FL57: 0 | FM57: 0 | FN57: 0 | FO57: 0 | FP57: 0 | FQ57: 0 | FR57: 0 | FS57: 0 | FT57: 0 | FU57: 0 | FV57: 0 | FW57: 0 | FX57: 0 | FY57: 1 | FZ57: 0 | GA57: 0 | GB57: 0 | GC57: 0 | GD57: 0 | GE57: 0 | GF57: 0 | GG57: 0 | GH57: 0 | GI57: 0 | GJ57: 2 | GK57: 0 | GL57: 0 | GM57: 0 | GN57: 0 | GO57: 0 | GP57: 0 | GQ57: 0 | GR57: 0 | GS57: 0 | GT57: 0 | GU57: 0 | GV57: 0 | GW57: 2 | GX57: 2 | GY57: 0 | GZ57: 0 | HA57: 0 | HB57: 0 | HC57: 3 | HD57: 0 | HE57: 0 | HF57: 2 | HG57: 0 | HH57: 0 | HI57: 0 | HJ57: 1 | HK57: 0 | HL57: 0 | HM57: 0 | HN57: 0 | HO57: 3 | HP57: 0 | HQ57: 0 | HR57: 26 | HS57: 6 | HT57: 0 | HU57: 0 | HV57: 26 | HW57: 6 | HX57: 0 | HY57: 0 | HZ57: 0 | IA57: 4 | IB57: 0 | IC57: 0 | ID57: 0 | IE57: 0 | IF57: 0 | IG57: 0 | IH57: 0 | II57: 0 | IJ57: 0 | IK57: 0 | IL57: 0 | IM57: 0 | IN57: 0 | IO57: 0 | IP57: 0 | IQ57: 0 | IR57: 0 | IS57: 0 | IT57: 0 | IU57: 0 | IV57: 0 | IW57: 0 | IX57: 0 | IY57: 0 | IZ57: 2 | JA57: 2 | JB57: 0 | JC57: 1 | JD57: 0 | JE57: 3 | JF57: 0 | JG57: 1 | JH57: 0 | JI57: 0 | JJ57: 3 | JK57: 0 | JL57: 0 | JM57: 0 | JN57: 0 | JO57: 0 | JP57: 0 | JQ57: 0 | JR57: 0 | JS57: 0 | JT57: 0 | JU57: 0 | JV57: 0 | JW57: 0 | JX57: 0 | JY57: 12 | JZ57: 6 | KA57: 0 | KB57: 0 | KC57: 0 | KD57: 0
A58: LUCIANO CASTILLO COLONNA | B58: AYABACA | C58: 200201 | D58: 1914 | E58: OLLEROS | F58: AYABACA | G58: NINGUN CLAS | H58: AYABACA | I58: AYABACA | J58: SALUD LUCIANO CASTILLO COLONNA | K58: 10 | L58: 0 | M58: 0 | N58: 1 | O58: 2 | P58: 0 | Q58: 2 | R58: 0 | S58: 3 | T58: 0 | U58: 0 | V58: 0 | W58: 0 | X58: 0 | Y58: 0 | Z58: 2 | AA58: 2 | AB58: 0 | AC58: 0 | AD58: 0 | AE58: 7 | AF58: 0 | AG58: 0 | AH58: 0 | AI58: 0 | AJ58: 0 | AK58: 0 | AL58: 0 | AM58: 0 | AN58: 0 | AO58: 0 | AP58: 0 | AQ58: 5 | AR58: 1 | AS58: 2 | AT58: 0 | AU58: 0 | AV58: 0 | AW58: 0 | AX58: 0 | AY58: 0 | AZ58: 1 | BA58: 9 | BB58: 0 | BC58: 0 | BD58: 0 | BE58: 7 | BF58: 1 | BG58: 2 | BH58: 0 | BI58: 0 | BJ58: 0 | BK58: 0 | BL58: 0 | BM58: 0 | BN58: 0 | BO58: 0 | BP58: 0 | BQ58: 0 | BR58: 0 | BS58: 0 | BT58: 0 | BU58: 0 | BV58: 0 | BW58: 0 | BX58: 0 | BY58: 0 | BZ58: 0 | CA58: 1 | CB58: 3 | CC58: 0 | CD58: 0 | CE58: 0 | CF58: 0 | CG58: 0 | CH58: 0 | CI58: 0 | CJ58: 0 | CK58: 0 | CL58: 0 | CM58: 0 | CN58: 0 | CO58: 0 | CP58: 0 | CQ58: 0 | CR58: 6 | CS58: 0 | CT58: 6 | CU58: 0 | CV58: 24 | CW58: 0 | CX58: 24 | CY58: 0 | CZ58: 5 | DA58: 0 | DB58: 5 | DC58: 0 | DD58: 0 | DE58: 0 | DF58: 0 | DG58: 0 | DH58: 6 | DI58: 0 | DJ58: 6 | DK58: 0 | DL58: 0 | DM58: 0 | DN58: 0 | DO58: 0 | DP58: 0 | DQ58: 0 | DR58: 0 | DS58: 0 | DT58: 0 | DU58: 0 | DV58: 0 | DW58: 0 | DX58: 0 | DY58: 0 | DZ58: 0 | EA58: 0 | EB58: 0 | EC58: 0 | ED58: 0 | EE58: 0 | EF58: 2 | EG58: 0 | EH58: 3 | EI58: 0 | EJ58: 0 | EK58: 0 | EL58: 0 | EM58: 0 | EN58: 0 | EO58: 0 | EP58: 0 | EQ58: 0 | ER58: 0 | ES58: 0 | ET58: 0 | EU58: 0 | EV58: 0 | EW58: 0 | EX58: 0 | EY58: 0 | EZ58: 0 | FA58: 0 | FB58: 0 | FC58: 0 | FD58: 0 | FE58: 0 | FF58: 0 | FG58: 0 | FH58: 0 | FI58: 0 | FJ58: 0 | FK58: 0 | FL58: 0 | FM58: 0 | FN58: 0 | FO58: 0 | FP58: 0 | FQ58: 0 | FR58: 0 | FS58: 0 | FT58: 0 | FU58: 0 | FV58: 0 | FW58: 0 | FX58: 0 | FY58: 1 | FZ58: 0 | GA58: 0 | GB58: 0 | GC58: 0 | GD58: 0 | GE58: 0 | GF58: 0 | GG58: 0 | GH58: 0 | GI58: 0 | GJ58: 1 | GK58: 0 | GL58: 0 | GM58: 0 | GN58: 0 | GO58: 0 | GP58: 0 | GQ58: 0 | GR58: 0 | GS58: 0 | GT58: 0 | GU58: 0 | GV58: 0 | GW58: 0 | GX58: 0 | GY58: 0 | GZ58: 0 | HA58: 0 | HB58: 0 | HC58: 0 | HD58: 1 | HE58: 0 | HF58: 0 | HG58: 0 | HH58: 0 | HI58: 0 | HJ58: 1 | HK58: 0 | HL58: 0 | HM58: 0 | HN58: 0 | HO58: 1 | HP58: 0 | HQ58: 2 | HR58: 1 | HS58: 6 | HT58: 0 | HU58: 0 | HV58: 1 | HW58: 6 | HX58: 0 | HY58: 0 | HZ58: 0 | IA58: 4 | IB58: 0 | IC58: 0 | ID58: 0 | IE58: 0 | IF58: 0 | IG58: 0 | IH58: 0 | II58: 0 | IJ58: 0 | IK58: 0 | IL58: 0 | IM58: 0 | IN58: 0 | IO58: 0 | IP58: 0 | IQ58: 0 | IR58: 0 | IS58: 0 | IT58: 0 | IU58: 0 | IV58: 0 | IW58: 0 | IX58: 0 | IY58: 0 | IZ58: 0 | JA58: 0 | JB58: 0 | JC58: 3 | JD58: 0 | JE58: 0 | JF58: 0 | JG58: 1 | JH58: 0 | JI58: 0 | JJ58: 0 | JK58: 0 | JL58: 1 | JM58: 0 | JN58: 0 | JO58: 0 | JP58: 0 | JQ58: 0 | JR58: 0 | JS58: 0 | JT58: 0 | JU58: 0 | JV58: 0 | JW58: 0 | JX58: 0 | JY58: 21 | JZ58: 5 | KA58: 0 | KB58: 0 | KC58: 0 | KD58: 0
A59: LUCIANO CASTILLO COLONNA | B59: AYABACA | C59: 200201 | D59: 1914 | E59: OLLEROS | F59: AYABACA | G59: NINGUN CLAS | H59: AYABACA | I59: AYABACA | J59: SALUD LUCIANO CASTILLO COLONNA | K59: 9 | L59: 0 | M59: 0 | N59: 3 | O59: 1 | P59: 0 | Q59: 2 | R59: 2 | S59: 1 | T59: 0 | U59: 0 | V59: 0 | W59: 1 | X59: 0 | Y59: 1 | Z59: 2 | AA59: 5 | AB59: 2 | AC59: 5 | AD59: 2 | AE59: 8 | AF59: 0 | AG59: 0 | AH59: 0 | AI59: 0 | AJ59: 0 | AK59: 0 | AL59: 0 | AM59: 0 | AN59: 0 | AO59: 0 | AP59: 4 | AQ59: 1 | AR59: 2 | AS59: 1 | AT59: 0 | AU59: 0 | AV59: 0 | AW59: 0 | AX59: 0 | AY59: 0 | AZ59: 7 | BA59: 2 | BB59: 0 | BC59: 0 | BD59: 4 | BE59: 1 | BF59: 3 | BG59: 1 | BH59: 0 | BI59: 0 | BJ59: 0 | BK59: 0 | BL59: 0 | BM59: 0 | BN59: 0 | BO59: 0 | BP59: 0 | BQ59: 0 | BR59: 0 | BS59: 0 | BT59: 0 | BU59: 0 | BV59: 0 | BW59: 0 | BX59: 0 | BY59: 0 | BZ59: 0 | CA59: 2 | CB59: 3 | CC59: 0 | CD59: 0 | CE59: 0 | CF59: 0 | CG59: 0 | CH59: 0 | CI59: 0 | CJ59: 0 | CK59: 0 | CL59: 0 | CM59: 0 | CN59: 0 | CO59: 0 | CP59: 0 | CQ59: 0 | CR59: 1 | CS59: 0 | CT59: 1 | CU59: 0 | CV59: 4 | CW59: 0 | CX59: 4 | CY59: 0 | CZ59: 20 | DA59: 0 | DB59: 20 | DC59: 0 | DD59: 0 | DE59: 0 | DF59: 0 | DG59: 0 | DH59: 7 | DI59: 0 | DJ59: 7 | DK59: 0 | DL59: 0 | DM59: 0 | DN59: 0 | DO59: 0 | DP59: 0 | DQ59: 0 | DR59: 0 | DS59: 0 | DT59: 0 | DU59: 0 | DV59: 0 | DW59: 0 | DX59: 0 | DY59: 0 | DZ59: 0 | EA59: 0 | EB59: 0 | EC59: 3 | ED59: 3 | EE59: 0 | EF59: 2 | EG59: 0 | EH59: 4 | EI59: 0 | EJ59: 2 | EK59: 0 | EL59: 2 | EM59: 0 | EN59: 0 | EO59: 0 | EP59: 2 | EQ59: 0 | ER59: 0 | ES59: 0 | ET59: 0 | EU59: 0 | EV59: 2 | EW59: 0 | EX59: 0 | EY59: 0 | EZ59: 0 | FA59: 0 | FB59: 0 | FC59: 0 | FD59: 0 | FE59: 0 | FF59: 0 | FG59: 0 | FH59: 0 | FI59: 0 | FJ59: 0 | FK59: 0 | FL59: 0 | FM59: 0 | FN59: 0 | FO59: 0 | FP59: 0 | FQ59: 0 | FR59: 0 | FS59: 0 | FT59: 0 | FU59: 0 | FV59: 0 | FW59: 0 | FX59: 0 | FY59: 8 | FZ59: 0 | GA59: 0 | GB59: 0 | GC59: 0 | GD59: 0 | GE59: 1 | GF59: 0 | GG59: 1 | GH59: 0 | GI59: 0 | GJ59: 1 | GK59: 0 | GL59: 0 | GM59: 0 | GN59: 0 | GO59: 0 | GP59: 0 | GQ59: 0 | GR59: 1 | GS59: 0 | GT59: 1 | GU59: 0 | GV59: 0 | GW59: 0 | GX59: 2 | GY59: 0 | GZ59: 0 | HA59: 0 | HB59: 0 | HC59: 1 | HD59: 0 | HE59: 0 | HF59: 0 | HG59: 0 | HH59: 0 | HI59: 0 | HJ59: 0 | HK59: 0 | HL59: 0 | HM59: 0 | HN59: 0 | HO59: 1 | HP59: 0 | HQ59: 0 | HR59: 3 | HS59: 2 | HT59: 0 | HU59: 0 | HV59: 3 | HW59: 2 | HX59: 0 | HY59: 0 | HZ59: 0 | IA59: 2 | IB59: 0 | IC59: 0 | ID59: 0 | IE59: 0 | IF59: 0 | IG59: 0 | IH59: 0 | II59: 0 | IJ59: 0 | IK59: 0 | IL59: 0 | IM59: 0 | IN59: 0 | IO59: 0 | IP59: 0 | IQ59: 0 | IR59: 0 | IS59: 0 | IT59: 0 | IU59: 0 | IV59: 0 | IW59: 0 | IX59: 0 | IY59: 0 | IZ59: 1 | JA59: 0 | JB59: 0 | JC59: 0 | JD59: 1 | JE59: 0 | JF59: 0 | JG59: 0 | JH59: 0 | JI59: 0 | JJ59: 0 | JK59: 0 | JL59: 0 | JM59: 0 | JN59: 0 | JO59: 0 | JP59: 0 | JQ59: 0 | JR59: 0 | JS59: 0 | JT59: 0 | JU59: 0 | JV59: 0 | JW59: 0 | JX59: 0 | JY59: 23 | JZ59: 6 | KA59: 0 | KB59: 0 | KC59: 0 | KD59: 0
A60: LUCIANO CASTILLO COLONNA | B60: AYABACA | C60: 200201 | D60: 1914 | E60: OLLEROS | F60: AYABACA | G60: NINGUN CLAS | H60: AYABACA | I60: AYABACA | J60: SALUD LUCIANO CASTILLO COLONNA | K60: 11 | L60: 0 | M60: 0 | N60: 2 | O60: 1 | P60: 1 | Q60: 0 | R60: 2 | S60: 6 | T60: 0 | U60: 0 | V60: 0 | W60: 0 | X60: 0 | Y60: 0 | Z60: 0 | AA60: 3 | AB60: 0 | AC60: 0 | AD60: 1 | AE60: 3 | AF60: 0 | AG60: 0 | AH60: 0 | AI60: 0 | AJ60: 0 | AK60: 0 | AL60: 0 | AM60: 0 | AN60: 0 | AO60: 0 | AP60: 2 | AQ60: 3 | AR60: 2 | AS60: 1 | AT60: 0 | AU60: 0 | AV60: 0 | AW60: 0 | AX60: 0 | AY60: 0 | AZ60: 4 | BA60: 4 | BB60: 0 | BC60: 0 | BD60: 2 | BE60: 3 | BF60: 2 | BG60: 1 | BH60: 0 | BI60: 0 | BJ60: 0 | BK60: 0 | BL60: 0 | BM60: 0 | BN60: 0 | BO60: 0 | BP60: 0 | BQ60: 0 | BR60: 0 | BS60: 0 | BT60: 0 | BU60: 0 | BV60: 0 | BW60: 0 | BX60: 0 | BY60: 0 | BZ60: 0 | CA60: 5 | CB60: 3 | CC60: 0 | CD60: 1 | CE60: 0 | CF60: 5 | CG60: 0 | CH60: 0 | CI60: 0 | CJ60: 0 | CK60: 0 | CL60: 0 | CM60: 0 | CN60: 0 | CO60: 0 | CP60: 0 | CQ60: 0 | CR60: 4 | CS60: 0 | CT60: 4 | CU60: 0 | CV60: 10 | CW60: 0 | CX60: 10 | CY60: 0 | CZ60: 9 | DA60: 0 | DB60: 9 | DC60: 0 | DD60: 0 | DE60: 0 | DF60: 0 | DG60: 1 | DH60: 5 | DI60: 1 | DJ60: 5 | DK60: 0 | DL60: 0 | DM60: 0 | DN60: 0 | DO60: 0 | DP60: 0 | DQ60: 0 | DR60: 0 | DS60: 0 | DT60: 0 | DU60: 0 | DV60: 0 | DW60: 0 | DX60: 0 | DY60: 0 | DZ60: 0 | EA60: 0 | EB60: 0 | EC60: 1 | ED60: 1 | EE60: 0 | EF60: 1 | EG60: 0 | EH60: 5 | EI60: 0 | EJ60: 0 | EK60: 0 | EL60: 0 | EM60: 0 | EN60: 0 | EO60: 0 | EP60: 0 | EQ60: 0 | ER60: 0 | ES60: 0 | ET60: 0 | EU60: 0 | EV60: 0 | EW60: 0 | EX60: 0 | EY60: 0 | EZ60: 0 | FA60: 0 | FB60: 0 | FC60: 0 | FD60: 0 | FE60: 0 | FF60: 0 | FG60: 0 | FH60: 0 | FI60: 0 | FJ60: 0 | FK60: 0 | FL60: 0 | FM60: 0 | FN60: 0 | FO60: 0 | FP60: 0 | FQ60: 0 | FR60: 0 | FS60: 0 | FT60: 0 | FU60: 0 | FV60: 0 | FW60: 0 | FX60: 0 | FY60: 4 | FZ60: 0 | GA60: 0 | GB60: 0 | GC60: 0 | GD60: 0 | GE60: 0 | GF60: 0 | GG60: 0 | GH60: 0 | GI60: 0 | GJ60: 0 | GK60: 0 | GL60: 0 | GM60: 0 | GN60: 0 | GO60: 0 | GP60: 0 | GQ60: 0 | GR60: 0 | GS60: 0 | GT60: 0 | GU60: 0 | GV60: 0 | GW60: 0 | GX60: 0 | GY60: 0 | GZ60: 0 | HA60: 0 | HB60: 0 | HC60: 0 | HD60: 0 | HE60: 0 | HF60: 0 | HG60: 0 | HH60: 0 | HI60: 0 | HJ60: 0 | HK60: 0 | HL60: 0 | HM60: 0 | HN60: 0 | HO60: 0 | HP60: 0 | HQ60: 0 | HR60: 3 | HS60: 9 | HT60: 0 | HU60: 0 | HV60: 3 | HW60: 9 | HX60: 0 | HY60: 0 | HZ60: 0 | IA60: 0 | IB60: 0 | IC60: 0 | ID60: 0 | IE60: 0 | IF60: 0 | IG60: 0 | IH60: 0 | II60: 0 | IJ60: 0 | IK60: 0 | IL60: 0 | IM60: 0 | IN60: 0 | IO60: 0 | IP60: 0 | IQ60: 0 | IR60: 0 | IS60: 0 | IT60: 0 | IU60: 0 | IV60: 0 | IW60: 0 | IX60: 0 | IY60: 0 | IZ60: 1 | JA60: 1 | JB60: 0 | JC60: 0 | JD60: 0 | JE60: 0 | JF60: 1 | JG60: 0 | JH60: 0 | JI60: 0 | JJ60: 2 | JK60: 0 | JL60: 0 | JM60: 0 | JN60: 0 | JO60: 0 | JP60: 0 | JQ60: 0 | JR60: 0 | JS60: 0 | JT60: 0 | JU60: 0 | JV60: 0 | JW60: 0 | JX60: 0 | JY60: 13 | JZ60: 6 | KA60: 0 | KB60: 0 | KC60: 0 | KD60: 0
A61: LUCIANO CASTILLO COLONNA | B61: AYABACA | C61: 200201 | D61: 1914 | E61: OLLEROS | F61: AYABACA | G61: NINGUN CLAS | H61: AYABACA | I61: AYABACA | J61: SALUD LUCIANO CASTILLO COLONNA | K61: 12 | L61: 0 | M61: 0 | N61: 2 | O61: 1 | P61: 0 | Q61: 0 | R61: 0 | S61: 0 | T61: 0 | U61: 0 | V61: 0 | W61: 0 | X61: 0 | Y61: 0 | Z61: 0 | AA61: 4 | AB61: 0 | AC61: 0 | AD61: 1 | AE61: 6 | AF61: 0 | AG61: 0 | AH61: 0 | AI61: 0 | AJ61: 0 | AK61: 0 | AL61: 0 | AM61: 0 | AN61: 0 | AO61: 0 | AP61: 1 | AQ61: 4 | AR61: 2 | AS61: 0 | AT61: 0 | AU61: 0 | AV61: 0 | AW61: 0 | AX61: 0 | AY61: 0 | AZ61: 3 | BA61: 4 | BB61: 0 | BC61: 0 | BD61: 1 | BE61: 3 | BF61: 2 | BG61: 1 | BH61: 0 | BI61: 0 | BJ61: 0 | BK61: 0 | BL61: 0 | BM61: 0 | BN61: 0 | BO61: 0 | BP61: 0 | BQ61: 0 | BR61: 0 | BS61: 0 | BT61: 0 | BU61: 0 | BV61: 0 | BW61: 0 | BX61: 0 | BY61: 0 | BZ61: 0 | CA61: 0 | CB61: 3 | CC61: 0 | CD61: 0 | CE61: 0 | CF61: 0 | CG61: 0 | CH61: 2 | CI61: 0 | CJ61: 0 | CK61: 0 | CL61: 0 | CM61: 0 | CN61: 0 | CO61: 0 | CP61: 0 | CQ61: 0 | CR61: 5 | CS61: 0 | CT61: 5 | CU61: 0 | CV61: 7 | CW61: 0 | CX61: 7 | CY61: 1 | CZ61: 7 | DA61: 1 | DB61: 7 | DC61: 0 | DD61: 1 | DE61: 0 | DF61: 1 | DG61: 1 | DH61: 1 | DI61: 1 | DJ61: 1 | DK61: 0 | DL61: 0 | DM61: 0 | DN61: 0 | DO61: 0 | DP61: 0 | DQ61: 0 | DR61: 0 | DS61: 0 | DT61: 0 | DU61: 0 | DV61: 0 | DW61: 0 | DX61: 0 | DY61: 0 | DZ61: 0 | EA61: 0 | EB61: 0 | EC61: 0 | ED61: 0 | EE61: 0 | EF61: 1 | EG61: 0 | EH61: 7 | EI61: 0 | EJ61: 0 | EK61: 0 | EL61: 0 | EM61: 0 | EN61: 0 | EO61: 0 | EP61: 0 | EQ61: 0 | ER61: 0 | ES61: 0 | ET61: 0 | EU61: 0 | EV61: 0 | EW61: 0 | EX61: 0 | EY61: 0 | EZ61: 0 | FA61: 0 | FB61: 0 | FC61: 0 | FD61: 0 | FE61: 0 | FF61: 0 | FG61: 0 | FH61: 0 | FI61: 0 | FJ61: 0 | FK61: 0 | FL61: 0 | FM61: 0 | FN61: 0 | FO61: 0 | FP61: 0 | FQ61: 0 | FR61: 0 | FS61: 0 | FT61: 0 | FU61: 0 | FV61: 0 | FW61: 0 | FX61: 0 | FY61: 3 | FZ61: 0 | GA61: 0 | GB61: 0 | GC61: 0 | GD61: 0 | GE61: 0 | GF61: 0 | GG61: 0 | GH61: 0 | GI61: 0 | GJ61: 0 | GK61: 0 | GL61: 0 | GM61: 0 | GN61: 0 | GO61: 0 | GP61: 0 | GQ61: 0 | GR61: 0 | GS61: 0 | GT61: 0 | GU61: 0 | GV61: 0 | GW61: 0 | GX61: 0 | GY61: 0 | GZ61: 1 | HA61: 0 | HB61: 0 | HC61: 2 | HD61: 0 | HE61: 0 | HF61: 1 | HG61: 0 | HH61: 0 | HI61: 0 | HJ61: 0 | HK61: 0 | HL61: 0 | HM61: 0 | HN61: 0 | HO61: 2 | HP61: 0 | HQ61: 0 | HR61: 0 | HS61: 4 | HT61: 0 | HU61: 0 | HV61: 0 | HW61: 6 | HX61: 0 | HY61: 0 | HZ61: 0 | IA61: 3 | IB61: 0 | IC61: 0 | ID61: 0 | IE61: 0 | IF61: 0 | IG61: 0 | IH61: 0 | II61: 0 | IJ61: 0 | IK61: 0 | IL61: 0 | IM61: 0 | IN61: 0 | IO61: 0 | IP61: 0 | IQ61: 0 | IR61: 0 | IS61: 0 | IT61: 0 | IU61: 0 | IV61: 0 | IW61: 0 | IX61: 0 | IY61: 0 | IZ61: 0 | JA61: 1 | JB61: 0 | JC61: 0 | JD61: 0 | JE61: 0 | JF61: 1 | JG61: 0 | JH61: 0 | JI61: 0 | JJ61: 1 | JK61: 0 | JL61: 2 | JM61: 0 | JN61: 0 | JO61: 0 | JP61: 0 | JQ61: 0 | JR61: 0 | JS61: 0 | JT61: 0 | JU61: 0 | JV61: 0 | JW61: 0 | JX61: 0 | JY61: 8 | JZ61: 8 | KA61: 0 | KB61: 0 | KC61: 0 | KD61: 0
A62: LUCIANO CASTILLO COLONNA | B62: AYABACA | C62: 200201 | D62: 1915 | E62: ARAGOTO | F62: AYABACA | G62: NINGUN CLAS | H62: AYABACA | I62: AYABACA | J62: SALUD LUCIANO CASTILLO COLONNA | K62: 12 | L62: 0 | M62: 0 | N62: 0 | O62: 0 | P62: 1 | Q62: 5 | R62: 3 | S62: 1 | T62: 0 | U62: 0 | V62: 0 | W62: 0 | X62: 0 | Y62: 0 | Z62: 0 | AA62: 1 | AB62: 0 | AC62: 1 | AD62: 0 | AE62: 5 | AF62: 0 | AG62: 0 | AH62: 0 | AI62: 0 | AJ62: 0 | AK62: 0 | AL62: 0 | AM62: 0 | AN62: 0 | AO62: 0 | AP62: 0 | AQ62: 0 | AR62: 0 | AS62: 0 | AT62: 0 | AU62: 0 | AV62: 0 | AW62: 0 | AX62: 0 | AY62: 0 | AZ62: 0 | BA62: 0 | BB62: 0 | BC62: 0 | BD62: 0 | BE62: 0 | BF62: 0 | BG62: 0 | BH62: 0 | BI62: 0 | BJ62: 0 | BK62: 0 | BL62: 0 | BM62: 0 | BN62: 0 | BO62: 0 | BP62: 0 | BQ62: 0 | BR62: 0 | BS62: 1 | BT62: 0 | BU62: 0 | BV62: 0 | BW62: 0 | BX62: 0 | BY62: 0 | BZ62: 0 | CA62: 0 | CB62: 0 | CC62: 0 | CD62: 1 | CE62: 0 | CF62: 0 | CG62: 0 | CH62: 0 | CI62: 0 | CJ62: 0 | CK62: 0 | CL62: 0 | CM62: 0 | CN62: 0 | CO62: 0 | CP62: 0 | CQ62: 0 | CR62: 0 | CS62: 0 | CT62: 0 | CU62: 0 | CV62: 4 | CW62: 0 | CX62: 4 | CY62: 0 | CZ62: 1 | DA62: 0 | DB62: 1 | DC62: 0 | DD62: 0 | DE62: 0 | DF62: 0 | DG62: 0 | DH62: 1 | DI62: 0 | DJ62: 1 | DK62: 0 | DL62: 0 | DM62: 0 | DN62: 0 | DO62: 0 | DP62: 0 | DQ62: 0 | DR62: 0 | DS62: 0 | DT62: 1 | DU62: 0 | DV62: 0 | DW62: 0 | DX62: 0 | DY62: 0 | DZ62: 0 | EA62: 0 | EB62: 0 | EC62: 0 | ED62: 0 | EE62: 2 | EF62: 0 | EG62: 1 | EH62: 2 | EI62: 0 | EJ62: 0 | EK62: 0 | EL62: 0 | EM62: 0 | EN62: 0 | EO62: 0 | EP62: 0 | EQ62: 0 | ER62: 0 | ES62: 0 | ET62: 0 | EU62: 0 | EV62: 0 | EW62: 0 | EX62: 0 | EY62: 0 | EZ62: 0 | FA62: 0 | FB62: 0 | FC62: 0 | FD62: 0 | FE62: 0 | FF62: 0 | FG62: 0 | FH62: 0 | FI62: 0 | FJ62: 0 | FK62: 0 | FL62: 0 | FM62: 0 | FN62: 0 | FO62: 0 | FP62: 0 | FQ62: 0 | FR62: 0 | FS62: 0 | FT62: 0 | FU62: 0 | FV62: 0 | FW62: 0 | FX62: 0 | FY62: 1 | FZ62: 0 | GA62: 0 | GB62: 0 | GC62: 0 | GD62: 0 | GE62: 0 | GF62: 0 | GG62: 0 | GH62: 0 | GI62: 0 | GJ62: 0 | GK62: 0 | GL62: 0 | GM62: 0 | GN62: 0 | GO62: 0 | GP62: 0 | GQ62: 0 | GR62: 0 | GS62: 0 | GT62: 0 | GU62: 0 | GV62: 0 | GW62: 0 | GX62: 0 | GY62: 0 | GZ62: 0 | HA62: 0 | HB62: 0 | HC62: 0 | HD62: 0 | HE62: 0 | HF62: 0 | HG62: 0 | HH62: 0 | HI62: 0 | HJ62: 0 | HK62: 0 | HL62: 0 | HM62: 0 | HN62: 0 | HO62: 0 | HP62: 0 | HQ62: 0 | HR62: 2 | HS62: 5 | HT62: 0 | HU62: 0 | HV62: 2 | HW62: 5 | HX62: 0 | HY62: 0 | HZ62: 0 | IA62: 0 | IB62: 0 | IC62: 0 | ID62: 0 | IE62: 0 | IF62: 0 | IG62: 0 | IH62: 0 | II62: 0 | IJ62: 0 | IK62: 0 | IL62: 0 | IM62: 0 | IN62: 0 | IO62: 0 | IP62: 0 | IQ62: 0 | IR62: 0 | IS62: 0 | IT62: 0 | IU62: 0 | IV62: 0 | IW62: 0 | IX62: 0 | IY62: 0 | IZ62: 0 | JA62: 0 | JB62: 0 | JC62: 0 | JD62: 0 | JE62: 0 | JF62: 0 | JG62: 0 | JH62: 0 | JI62: 0 | JJ62: 0 | JK62: 0 | JL62: 0 | JM62: 0 | JN62: 0 | JO62: 0 | JP62: 0 | JQ62: 0 | JR62: 0 | JS62: 0 | JT62: 0 | JU62: 0 | JV62: 0 | JW62: 0 | JX62: 0 | JY62: 5 | JZ62: 5 | KA62: 0 | KB62: 0 | KC62: 0 | KD62: 0
A63: LUCIANO CASTILLO COLONNA | B63: AYABACA | C63: 200201 | D63: 1915 | E63: ARAGOTO | F63: AYABACA | G63: NINGUN CLAS | H63: AYABACA | I63: AYABACA | J63: SALUD LUCIANO CASTILLO COLONNA | K63: 11 | L63: 0 | M63: 0 | N63: 0 | O63: 0 | P63: 1 | Q63: 6 | R63: 0 | S63: 1 | T63: 0 | U63: 0 | V63: 0 | W63: 0 | X63: 0 | Y63: 0 | Z63: 0 | AA63: 3 | AB63: 0 | AC63: 0 | AD63: 0 | AE63: 3 | AF63: 0 | AG63: 0 | AH63: 0 | AI63: 0 | AJ63: 0 | AK63: 0 | AL63: 0 | AM63: 0 | AN63: 0 | AO63: 0 | AP63: 0 | AQ63: 1 | AR63: 0 | AS63: 0 | AT63: 0 | AU63: 0 | AV63: 0 | AW63: 0 | AX63: 0 | AY63: 0 | AZ63: 0 | BA63: 0 | BB63: 0 | BC63: 0 | BD63: 0 | BE63: 0 | BF63: 0 | BG63: 0 | BH63: 0 | BI63: 0 | BJ63: 0 | BK63: 1 | BL63: 0 | BM63: 0 | BN63: 0 | BO63: 0 | BP63: 0 | BQ63: 0 | BR63: 0 | BS63: 0 | BT63: 0 | BU63: 0 | BV63: 0 | BW63: 0 | BX63: 0 | BY63: 0 | BZ63: 0 | CA63: 0 | CB63: 2 | CC63: 0 | CD63: 1 | CE63: 0 | CF63: 1 | CG63: 0 | CH63: 1 | CI63: 0 | CJ63: 0 | CK63: 0 | CL63: 0 | CM63: 0 | CN63: 0 | CO63: 0 | CP63: 0 | CQ63: 1 | CR63: 2 | CS63: 1 | CT63: 2 | CU63: 0 | CV63: 3 | CW63: 0 | CX63: 3 | CY63: 0 | CZ63: 10 | DA63: 0 | DB63: 10 | DC63: 0 | DD63: 0 | DE63: 0 | DF63: 0 | DG63: 0 | DH63: 0 | DI63: 0 | DJ63: 0 | DK63: 0 | DL63: 0 | DM63: 0 | DN63: 0 | DO63: 0 | DP63: 0 | DQ63: 0 | DR63: 0 | DS63: 0 | DT63: 0 | DU63: 0 | DV63: 0 | DW63: 0 | DX63: 0 | DY63: 0 | DZ63: 0 | EA63: 0 | EB63: 0 | EC63: 0 | ED63: 0 | EE63: 1 | EF63: 6 | EG63: 1 | EH63: 8 | EI63: 0 | EJ63: 0 | EK63: 0 | EL63: 0 | EM63: 0 | EN63: 0 | EO63: 0 | EP63: 0 | EQ63: 0 | ER63: 0 | ES63: 0 | ET63: 0 | EU63: 0 | EV63: 0 | EW63: 0 | EX63: 0 | EY63: 0 | EZ63: 0 | FA63: 0 | FB63: 0 | FC63: 0 | FD63: 0 | FE63: 0 | FF63: 0 | FG63: 0 | FH63: 0 | FI63: 0 | FJ63: 0 | FK63: 0 | FL63: 0 | FM63: 0 | FN63: 0 | FO63: 0 | FP63: 0 | FQ63: 0 | FR63: 0 | FS63: 0 | FT63: 0 | FU63: 0 | FV63: 0 | FW63: 0 | FX63: 0 | FY63: 0 | FZ63: 0 | GA63: 0 | GB63: 0 | GC63: 0 | GD63: 0 | GE63: 0 | GF63: 0 | GG63: 0 | GH63: 0 | GI63: 0 | GJ63: 0 | GK63: 0 | GL63: 0 | GM63: 0 | GN63: 0 | GO63: 0 | GP63: 0 | GQ63: 0 | GR63: 0 | GS63: 0 | GT63: 0 | GU63: 0 | GV63: 0 | GW63: 0 | GX63: 0 | GY63: 0 | GZ63: 0 | HA63: 0 | HB63: 0 | HC63: 1 | HD63: 0 | HE63: 0 | HF63: 1 | HG63: 0 | HH63: 0 | HI63: 0 | HJ63: 0 | HK63: 0 | HL63: 0 | HM63: 0 | HN63: 0 | HO63: 1 | HP63: 0 | HQ63: 2 | HR63: 0 | HS63: 3 | HT63: 0 | HU63: 0 | HV63: 0 | HW63: 3 | HX63: 0 | HY63: 0 | HZ63: 0 | IA63: 2 | IB63: 0 | IC63: 0 | ID63: 0 | IE63: 0 | IF63: 0 | IG63: 0 | IH63: 0 | II63: 0 | IJ63: 0 | IK63: 0 | IL63: 0 | IM63: 0 | IN63: 0 | IO63: 0 | IP63: 0 | IQ63: 0 | IR63: 0 | IS63: 0 | IT63: 0 | IU63: 0 | IV63: 0 | IW63: 0 | IX63: 0 | IY63: 0 | IZ63: 0 | JA63: 0 | JB63: 0 | JC63: 0 | JD63: 0 | JE63: 0 | JF63: 0 | JG63: 0 | JH63: 0 | JI63: 0 | JJ63: 0 | JK63: 0 | JL63: 0 | JM63: 0 | JN63: 0 | JO63: 0 | JP63: 0 | JQ63: 0 | JR63: 0 | JS63: 0 | JT63: 0 | JU63: 0 | JV63: 0 | JW63: 0 | JX63: 0 | JY63: 3 | JZ63: 16 | KA63: 0 | KB63: 0 | KC63: 0 | KD63: 0
A64: LUCIANO CASTILLO COLONNA | B64: AYABACA | C64: 200201 | D64: 1915 | E64: ARAGOTO | F64: AYABACA | G64: NINGUN CLAS | H64: AYABACA | I64: AYABACA | J64: SALUD LUCIANO CASTILLO COLONNA | K64: 10 | L64: 0 | M64: 0 | N64: 0 | O64: 1 | P64: 0 | Q64: 2 | R64: 0 | S64: 0 | T64: 0 | U64: 0 | V64: 0 | W64: 0 | X64: 0 | Y64: 0 | Z64: 1 | AA64: 1 | AB64: 0 | AC64: 0 | AD64: 0 | AE64: 1 | AF64: 0 | AG64: 0 | AH64: 0 | AI64: 0 | AJ64: 0 | AK64: 0 | AL64: 0 | AM64: 0 | AN64: 0 | AO64: 0 | AP64: 0 | AQ64: 0 | AR64: 0 | AS64: 0 | AT64: 0 | AU64: 0 | AV64: 0 | AW64: 0 | AX64: 0 | AY64: 0 | AZ64: 0 | BA64: 1 | BB64: 0 | BC64: 0 | BD64: 0 | BE64: 0 | BF64: 0 | BG64: 1 | BH64: 0 | BI64: 0 | BJ64: 0 | BK64: 0 | BL64: 0 | BM64: 0 | BN64: 0 | BO64: 0 | BP64: 0 | BQ64: 0 | BR64: 0 | BS64: 1 | BT64: 0 | BU64: 0 | BV64: 0 | BW64: 0 | BX64: 0 | BY64: 0 | BZ64: 0 | CA64: 0 | CB64: 1 | CC64: 0 | CD64: 0 | CE64: 0 | CF64: 0 | CG64: 0 | CH64: 0 | CI64: 0 | CJ64: 0 | CK64: 0 | CL64: 0 | CM64: 0 | CN64: 0 | CO64: 0 | CP64: 0 | CQ64: 0 | CR64: 1 | CS64: 0 | CT64: 1 | CU64: 0 | CV64: 8 | CW64: 0 | CX64: 8 | CY64: 0 | CZ64: 10 | DA64: 0 | DB64: 10 | DC64: 0 | DD64: 0 | DE64: 0 | DF64: 0 | DG64: 0 | DH64: 4 | DI64: 0 | DJ64: 4 | DK64: 0 | DL64: 0 | DM64: 0 | DN64: 0 | DO64: 0 | DP64: 0 | DQ64: 0 | DR64: 0 | DS64: 0 | DT64: 0 | DU64: 0 | DV64: 0 | DW64: 0 | DX64: 0 | DY64: 0 | DZ64: 0 | EA64: 0 | EB64: 0 | EC64: 0 | ED64: 0 | EE64: 3 | EF64: 4 | EG64: 1 | EH64: 3 | EI64: 0 | EJ64: 0 | EK64: 0 | EL64: 0 | EM64: 0 | EN64: 0 | EO64: 0 | EP64: 0 | EQ64: 0 | ER64: 0 | ES64: 0 | ET64: 0 | EU64: 0 | EV64: 0 | EW64: 0 | EX64: 0 | EY64: 0 | EZ64: 0 | FA64: 0 | FB64: 0 | FC64: 0 | FD64: 0 | FE64: 0 | FF64: 0 | FG64: 0 | FH64: 0 | FI64: 0 | FJ64: 0 | FK64: 0 | FL64: 0 | FM64: 0 | FN64: 0 | FO64: 0 | FP64: 0 | FQ64: 0 | FR64: 0 | FS64: 0 | FT64: 0 | FU64: 0 | FV64: 0 | FW64: 0 | FX64: 0 | FY64: 2 | FZ64: 0 | GA64: 0 | GB64: 0 | GC64: 0 | GD64: 0 | GE64: 0 | GF64: 0 | GG64: 0 | GH64: 0 | GI64: 0 | GJ64: 0 | GK64: 0 | GL64: 0 | GM64: 0 | GN64: 0 | GO64: 0 | GP64: 0 | GQ64: 0 | GR64: 0 | GS64: 0 | GT64: 0 | GU64: 0 | GV64: 0 | GW64: 0 | GX64: 0 | GY64: 0 | GZ64: 0 | HA64: 0 | HB64: 0 | HC64: 0 | HD64: 0 | HE64: 0 | HF64: 0 | HG64: 0 | HH64: 0 | HI64: 0 | HJ64: 0 | HK64: 0 | HL64: 0 | HM64: 0 | HN64: 0 | HO64: 4 | HP64: 0 | HQ64: 0 | HR64: 3 | HS64: 4 | HT64: 0 | HU64: 0 | HV64: 3 | HW64: 4 | HX64: 0 | HY64: 0 | HZ64: 0 | IA64: 0 | IB64: 0 | IC64: 0 | ID64: 0 | IE64: 0 | IF64: 0 | IG64: 0 | IH64: 0 | II64: 0 | IJ64: 0 | IK64: 0 | IL64: 0 | IM64: 0 | IN64: 0 | IO64: 0 | IP64: 0 | IQ64: 0 | IR64: 0 | IS64: 0 | IT64: 0 | IU64: 0 | IV64: 0 | IW64: 0 | IX64: 0 | IY64: 0 | IZ64: 0 | JA64: 0 | JB64: 0 | JC64: 0 | JD64: 0 | JE64: 0 | JF64: 0 | JG64: 0 | JH64: 0 | JI64: 0 | JJ64: 0 | JK64: 0 | JL64: 0 | JM64: 0 | JN64: 0 | JO64: 0 | JP64: 0 | JQ64: 0 | JR64: 0 | JS64: 0 | JT64: 0 | JU64: 0 | JV64: 0 | JW64: 0 | JX64: 0 | JY64: 2 | JZ64: 11 | KA64: 0 | KB64: 0 | KC64: 0 | KD64: 0
A65: LUCIANO CASTILLO COLONNA | B65: AYABACA | C65: 200201 | D65: 1915 | E65: ARAGOTO | F65: AYABACA | G65: NINGUN CLAS | H65: AYABACA | I65: AYABACA | J65: SALUD LUCIANO CASTILLO COLONNA | K65: 9 | L65: 0 | M65: 0 | N65: 0 | O65: 2 | P65: 1 | Q65: 6 | R65: 2 | S65: 1 | T65: 0 | U65: 0 | V65: 0 | W65: 0 | X65: 0 | Y65: 0 | Z65: 1 | AA65: 0 | AB65: 3 | AC65: 0 | AD65: 0 | AE65: 1 | AF65: 0 | AG65: 0 | AH65: 0 | AI65: 0 | AJ65: 0 | AK65: 0 | AL65: 0 | AM65: 0 | AN65: 0 | AO65: 0 | AP65: 1 | AQ65: 1 | AR65: 0 | AS65: 2 | AT65: 0 | AU65: 0 | AV65: 0 | AW65: 0 | AX65: 0 | AY65: 0 | AZ65: 1 | BA65: 1 | BB65: 0 | BC65: 0 | BD65: 1 | BE65: 0 | BF65: 0 | BG65: 1 | BH65: 0 | BI65: 0 | BJ65: 0 | BK65: 0 | BL65: 0 | BM65: 0 | BN65: 0 | BO65: 0 | BP65: 1 | BQ65: 0 | BR65: 0 | BS65: 0 | BT65: 0 | BU65: 0 | BV65: 0 | BW65: 0 | BX65: 0 | BY65: 0 | BZ65: 0 | CA65: 0 | CB65: 4 | CC65: 0 | CD65: 1 | CE65: 0 | CF65: 1 | CG65: 0 | CH65: 0 | CI65: 0 | CJ65: 0 | CK65: 0 | CL65: 0 | CM65: 0 | CN65: 0 | CO65: 0 | CP65: 0 | CQ65: 0 | CR65: 3 | CS65: 0 | CT65: 3 | CU65: 0 | CV65: 1 | CW65: 0 | CX65: 1 | CY65: 0 | CZ65: 14 | DA65: 0 | DB65: 14 | DC65: 0 | DD65: 2 | DE65: 0 | DF65: 0 | DG65: 0 | DH65: 2 | DI65: 0 | DJ65: 2 | DK65: 0 | DL65: 0 | DM65: 0 | DN65: 0 | DO65: 0 | DP65: 0 | DQ65: 0 | DR65: 0 | DS65: 0 | DT65: 0 | DU65: 0 | DV65: 0 | DW65: 0 | DX65: 0 | DY65: 0 | DZ65: 0 | EA65: 0 | EB65: 0 | EC65: 0 | ED65: 0 | EE65: 1 | EF65: 5 | EG65: 3 | EH65: 10 | EI65: 0 | EJ65: 0 | EK65: 0 | EL65: 0 | EM65: 0 | EN65: 0 | EO65: 0 | EP65: 0 | EQ65: 0 | ER65: 0 | ES65: 0 | ET65: 0 | EU65: 0 | EV65: 0 | EW65: 0 | EX65: 0 | EY65: 0 | EZ65: 0 | FA65: 0 | FB65: 0 | FC65: 0 | FD65: 0 | FE65: 0 | FF65: 0 | FG65: 0 | FH65: 0 | FI65: 0 | FJ65: 0 | FK65: 0 | FL65: 0 | FM65: 0 | FN65: 0 | FO65: 0 | FP65: 0 | FQ65: 0 | FR65: 0 | FS65: 0 | FT65: 0 | FU65: 0 | FV65: 0 | FW65: 0 | FX65: 0 | FY65: 0 | FZ65: 0 | GA65: 0 | GB65: 0 | GC65: 0 | GD65: 0 | GE65: 0 | GF65: 0 | GG65: 0 | GH65: 0 | GI65: 0 | GJ65: 1 | GK65: 0 | GL65: 0 | GM65: 0 | GN65: 0 | GO65: 0 | GP65: 0 | GQ65: 0 | GR65: 0 | GS65: 0 | GT65: 0 | GU65: 0 | GV65: 0 | GW65: 0 | GX65: 0 | GY65: 0 | GZ65: 0 | HA65: 0 | HB65: 0 | HC65: 1 | HD65: 0 | HE65: 0 | HF65: 0 | HG65: 0 | HH65: 0 | HI65: 0 | HJ65: 1 | HK65: 0 | HL65: 0 | HM65: 0 | HN65: 0 | HO65: 6 | HP65: 0 | HQ65: 0 | HR65: 0 | HS65: 1 | HT65: 0 | HU65: 0 | HV65: 0 | HW65: 1 | HX65: 0 | HY65: 0 | HZ65: 0 | IA65: 1 | IB65: 0 | IC65: 0 | ID65: 0 | IE65: 0 | IF65: 0 | IG65: 0 | IH65: 0 | II65: 0 | IJ65: 0 | IK65: 0 | IL65: 0 | IM65: 0 | IN65: 0 | IO65: 0 | IP65: 0 | IQ65: 0 | IR65: 0 | IS65: 0 | IT65: 0 | IU65: 0 | IV65: 0 | IW65: 0 | IX65: 0 | IY65: 0 | IZ65: 0 | JA65: 0 | JB65: 0 | JC65: 0 | JD65: 0 | JE65: 0 | JF65: 0 | JG65: 0 | JH65: 0 | JI65: 0 | JJ65: 0 | JK65: 0 | JL65: 0 | JM65: 0 | JN65: 0 | JO65: 0 | JP65: 0 | JQ65: 0 | JR65: 0 | JS65: 0 | JT65: 0 | JU65: 0 | JV65: 0 | JW65: 0 | JX65: 0 | JY65: 2 | JZ65: 19 | KA65: 0 | KB65: 0 | KC65: 0 | KD65: 0
A66: LUCIANO CASTILLO COLONNA | B66: AYABACA | C66: 200201 | D66: 1915 | E66: ARAGOTO | F66: AYABACA | G66: NINGUN CLAS | H66: AYABACA | I66: AYABACA | J66: SALUD LUCIANO CASTILLO COLONNA | K66: 8 | L66: 0 | M66: 0 | N66: 0 | O66: 3 | P66: 1 | Q66: 1 | R66: 2 | S66: 0 | T66: 0 | U66: 0 | V66: 0 | W66: 0 | X66: 0 | Y66: 0 | Z66: 2 | AA66: 6 | AB66: 0 | AC66: 3 | AD66: 0 | AE66: 2 | AF66: 0 | AG66: 1 | AH66: 0 | AI66: 0 | AJ66: 0 | AK66: 0 | AL66: 0 | AM66: 0 | AN66: 0 | AO66: 0 | AP66: 0 | AQ66: 1 | AR66: 0 | AS66: 2 | AT66: 0 | AU66: 0 | AV66: 0 | AW66: 0 | AX66: 0 | AY66: 0 | AZ66: 0 | BA66: 4 | BB66: 0 | BC66: 0 | BD66: 0 | BE66: 1 | BF66: 0 | BG66: 3 | BH66: 0 | BI66: 0 | BJ66: 0 | BK66: 0 | BL66: 0 | BM66: 0 | BN66: 0 | BO66: 0 | BP66: 0 | BQ66: 0 | BR66: 0 | BS66: 0 | BT66: 0 | BU66: 0 | BV66: 0 | BW66: 0 | BX66: 0 | BY66: 0 | BZ66: 0 | CA66: 15 | CB66: 3 | CC66: 0 | CD66: 1 | CE66: 0 | CF66: 0 | CG66: 0 | CH66: 0 | CI66: 0 | CJ66: 0 | CK66: 0 | CL66: 0 | CM66: 0 | CN66: 0 | CO66: 0 | CP66: 0 | CQ66: 0 | CR66: 2 | CS66: 0 | CT66: 2 | CU66: 1 | CV66: 5 | CW66: 1 | CX66: 5 | CY66: 0 | CZ66: 8 | DA66: 0 | DB66: 8 | DC66: 0 | DD66: 1 | DE66: 0 | DF66: 1 | DG66: 0 | DH66: 0 | DI66: 0 | DJ66: 0 | DK66: 0 | DL66: 0 | DM66: 0 | DN66: 0 | DO66: 0 | DP66: 0 | DQ66: 0 | DR66: 0 | DS66: 0 | DT66: 0 | DU66: 0 | DV66: 0 | DW66: 0 | DX66: 0 | DY66: 0 | DZ66: 0 | EA66: 0 | EB66: 0 | EC66: 0 | ED66: 0 | EE66: 0 | EF66: 2 | EG66: 0 | EH66: 4 | EI66: 0 | EJ66: 0 | EK66: 0 | EL66: 0 | EM66: 0 | EN66: 0 | EO66: 0 | EP66: 0 | EQ66: 0 | ER66: 0 | ES66: 0 | ET66: 0 | EU66: 0 | EV66: 0 | EW66: 0 | EX66: 0 | EY66: 0 | EZ66: 0 | FA66: 0 | FB66: 0 | FC66: 0 | FD66: 0 | FE66: 0 | FF66: 0 | FG66: 0 | FH66: 0 | FI66: 0 | FJ66: 0 | FK66: 0 | FL66: 0 | FM66: 0 | FN66: 0 | FO66: 0 | FP66: 0 | FQ66: 0 | FR66: 0 | FS66: 0 | FT66: 0 | FU66: 0 | FV66: 0 | FW66: 0 | FX66: 0 | FY66: 0 | FZ66: 0 | GA66: 0 | GB66: 0 | GC66: 0 | GD66: 0 | GE66: 0 | GF66: 0 | GG66: 0 | GH66: 0 | GI66: 0 | GJ66: 0 | GK66: 0 | GL66: 0 | GM66: 0 | GN66: 0 | GO66: 0 | GP66: 0 | GQ66: 0 | GR66: 0 | GS66: 0 | GT66: 0 | GU66: 0 | GV66: 0 | GW66: 0 | GX66: 0 | GY66: 0 | GZ66: 0 | HA66: 0 | HB66: 0 | HC66: 0 | HD66: 0 | HE66: 0 | HF66: 0 | HG66: 0 | HH66: 0 | HI66: 0 | HJ66: 0 | HK66: 0 | HL66: 0 | HM66: 0 | HN66: 0 | HO66: 0 | HP66: 0 | HQ66: 0 | HR66: 18 | HS66: 0 | HT66: 0 | HU66: 0 | HV66: 18 | HW66: 0 | HX66: 0 | HY66: 0 | HZ66: 17 | IA66: 0 | IB66: 0 | IC66: 1 | ID66: 0 | IE66: 1 | IF66: 0 | IG66: 0 | IH66: 0 | II66: 0 | IJ66: 0 | IK66: 1 | IL66: 0 | IM66: 0 | IN66: 0 | IO66: 0 | IP66: 0 | IQ66: 0 | IR66: 0 | IS66: 0 | IT66: 0 | IU66: 0 | IV66: 0 | IW66: 0 | IX66: 0 | IY66: 0 | IZ66: 0 | JA66: 0 | JB66: 0 | JC66: 0 | JD66: 0 | JE66: 0 | JF66: 0 | JG66: 0 | JH66: 0 | JI66: 0 | JJ66: 0 | JK66: 0 | JL66: 0 | JM66: 0 | JN66: 0 | JO66: 0 | JP66: 0 | JQ66: 0 | JR66: 0 | JS66: 0 | JT66: 0 | JU66: 0 | JV66: 0 | JW66: 0 | JX66: 0 | JY66: 2 | JZ66: 6 | KA66: 0 | KB66: 0 | KC66: 1 | KD66: 0
A67: LUCIANO CASTILLO COLONNA | B67: AYABACA | C67: 200201 | D67: 1915 | E67: ARAGOTO | F67: AYABACA | G67: NINGUN CLAS | H67: AYABACA | I67: AYABACA | J67: SALUD LUCIANO CASTILLO COLONNA | K67: 7 | L67: 0 | M67: 0 | N67: 2 | O67: 1 | P67: 0 | Q67: 4 | R67: 0 | S67: 1 | T67: 0 | U67: 0 | V67: 0 | W67: 0 | X67: 0 | Y67: 0 | Z67: 1 | AA67: 1 | AB67: 1 | AC67: 6 | AD67: 0 | AE67: 1 | AF67: 0 | AG67: 0 | AH67: 0 | AI67: 0 | AJ67: 0 | AK67: 0 | AL67: 0 | AM67: 0 | AN67: 0 | AO67: 0 | AP67: 0 | AQ67: 1 | AR67: 2 | AS67: 0 | AT67: 0 | AU67: 0 | AV67: 0 | AW67: 1 | AX67: 0 | AY67: 0 | AZ67: 2 | BA67: 2 | BB67: 0 | BC67: 0 | BD67: 0 | BE67: 1 | BF67: 2 | BG67: 1 | BH67: 0 | BI67: 0 | BJ67: 0 | BK67: 1 | BL67: 0 | BM67: 0 | BN67: 0 | BO67: 0 | BP67: 0 | BQ67: 0 | BR67: 1 | BS67: 1 | BT67: 0 | BU67: 0 | BV67: 0 | BW67: 0 | BX67: 0 | BY67: 0 | BZ67: 0 | CA67: 1 | CB67: 5 | CC67: 1 | CD67: 1 | CE67: 0 | CF67: 2 | CG67: 0 | CH67: 1 | CI67: 0 | CJ67: 0 | CK67: 0 | CL67: 0 | CM67: 0 | CN67: 0 | CO67: 0 | CP67: 0 | CQ67: 0 | CR67: 1 | CS67: 0 | CT67: 1 | CU67: 0 | CV67: 3 | CW67: 0 | CX67: 3 | CY67: 0 | CZ67: 9 | DA67: 0 | DB67: 9 | DC67: 1 | DD67: 0 | DE67: 1 | DF67: 0 | DG67: 0 | DH67: 3 | DI67: 0 | DJ67: 3 | DK67: 0 | DL67: 0 | DM67: 0 | DN67: 0 | DO67: 0 | DP67: 0 | DQ67: 0 | DR67: 0 | DS67: 0 | DT67: 0 | DU67: 0 | DV67: 0 | DW67: 0 | DX67: 0 | DY67: 0 | DZ67: 0 | EA67: 0 | EB67: 0 | EC67: 2 | ED67: 2 | EE67: 1 | EF67: 6 | EG67: 2 | EH67: 3 | EI67: 0 | EJ67: 0 | EK67: 0 | EL67: 0 | EM67: 0 | EN67: 0 | EO67: 0 | EP67: 0 | EQ67: 0 | ER67: 0 | ES67: 0 | ET67: 0 | EU67: 0 | EV67: 0 | EW67: 0 | EX67: 0 | EY67: 0 | EZ67: 0 | FA67: 0 | FB67: 0 | FC67: 0 | FD67: 0 | FE67: 0 | FF67: 0 | FG67: 0 | FH67: 0 | FI67: 0 | FJ67: 0 | FK67: 0 | FL67: 0 | FM67: 0 | FN67: 0 | FO67: 0 | FP67: 0 | FQ67: 0 | FR67: 0 | FS67: 0 | FT67: 0 | FU67: 0 | FV67: 0 | FW67: 0 | FX67: 0 | FY67: 1 | FZ67: 0 | GA67: 0 | GB67: 0 | GC67: 0 | GD67: 0 | GE67: 0 | GF67: 0 | GG67: 0 | GH67: 0 | GI67: 0 | GJ67: 0 | GK67: 0 | GL67: 0 | GM67: 0 | GN67: 0 | GO67: 0 | GP67: 0 | GQ67: 0 | GR67: 0 | GS67: 0 | GT67: 0 | GU67: 0 | GV67: 0 | GW67: 0 | GX67: 0 | GY67: 0 | GZ67: 0 | HA67: 0 | HB67: 0 | HC67: 0 | HD67: 0 | HE67: 0 | HF67: 0 | HG67: 0 | HH67: 0 | HI67: 0 | HJ67: 0 | HK67: 0 | HL67: 0 | HM67: 0 | HN67: 0 | HO67: 2 | HP67: 0 | HQ67: 0 | HR67: 1 | HS67: 0 | HT67: 0 | HU67: 0 | HV67: 1 | HW67: 0 | HX67: 0 | HY67: 0 | HZ67: 0 | IA67: 0 | IB67: 0 | IC67: 0 | ID67: 0 | IE67: 0 | IF67: 0 | IG67: 0 | IH67: 0 | II67: 0 | IJ67: 0 | IK67: 0 | IL67: 0 | IM67: 0 | IN67: 0 | IO67: 0 | IP67: 0 | IQ67: 0 | IR67: 0 | IS67: 0 | IT67: 0 | IU67: 0 | IV67: 0 | IW67: 0 | IX67: 0 | IY67: 0 | IZ67: 0 | JA67: 0 | JB67: 0 | JC67: 0 | JD67: 0 | JE67: 0 | JF67: 0 | JG67: 0 | JH67: 0 | JI67: 0 | JJ67: 0 | JK67: 0 | JL67: 0 | JM67: 0 | JN67: 0 | JO67: 0 | JP67: 0 | JQ67: 0 | JR67: 0 | JS67: 0 | JT67: 0 | JU67: 0 | JV67: 0 | JW67: 0 | JX67: 0 | JY67: 3 | JZ67: 12 | KA67: 0 | KB67: 0 | KC67: 0 | KD67: 0
A68: LUCIANO CASTILLO COLONNA | B68: AYABACA | C68: 200201 | D68: 1915 | E68: ARAGOTO | F68: AYABACA | G68: NINGUN CLAS | H68: AYABACA | I68: AYABACA | J68: SALUD LUCIANO CASTILLO COLONNA | K68: 6 | L68: 0 | M68: 0 | N68: 0 | O68: 3 | P68: 0 | Q68: 2 | R68: 0 | S68: 2 | T68: 0 | U68: 0 | V68: 0 | W68: 0 | X68: 0 | Y68: 0 | Z68: 0 | AA68: 4 | AB68: 1 | AC68: 2 | AD68: 0 | AE68: 2 | AF68: 0 | AG68: 0 | AH68: 0 | AI68: 0 | AJ68: 0 | AK68: 0 | AL68: 0 | AM68: 0 | AN68: 0 | AO68: 0 | AP68: 0 | AQ68: 0 | AR68: 0 | AS68: 3 | AT68: 0 | AU68: 0 | AV68: 0 | AW68: 0 | AX68: 0 | AY68: 0 | AZ68: 0 | BA68: 2 | BB68: 0 | BC68: 0 | BD68: 0 | BE68: 1 | BF68: 0 | BG68: 1 | BH68: 0 | BI68: 0 | BJ68: 0 | BK68: 0 | BL68: 0 | BM68: 0 | BN68: 0 | BO68: 0 | BP68: 0 | BQ68: 0 | BR68: 0 | BS68: 0 | BT68: 0 | BU68: 0 | BV68: 0 | BW68: 0 | BX68: 0 | BY68: 0 | BZ68: 0 | CA68: 1 | CB68: 5 | CC68: 0 | CD68: 1 | CE68: 0 | CF68: 0 | CG68: 0 | CH68: 0 | CI68: 0 | CJ68: 0 | CK68: 0 | CL68: 0 | CM68: 0 | CN68: 0 | CO68: 0 | CP68: 0 | CQ68: 0 | CR68: 1 | CS68: 0 | CT68: 1 | CU68: 1 | CV68: 2 | CW68: 1 | CX68: 2 | CY68: 2 | CZ68: 6 | DA68: 1 | DB68: 6 | DC68: 0 | DD68: 0 | DE68: 0 | DF68: 0 | DG68: 2 | DH68: 6 | DI68: 2 | DJ68: 6 | DK68: 0 | DL68: 0 | DM68: 0 | DN68: 0 | DO68: 0 | DP68: 0 | DQ68: 0 | DR68: 0 | DS68: 1 | DT68: 0 | DU68: 0 | DV68: 0 | DW68: 0 | DX68: 0 | DY68: 0 | DZ68: 0 | EA68: 0 | EB68: 0 | EC68: 0 | ED68: 0 | EE68: 3 | EF68: 6 | EG68: 0 | EH68: 2 | EI68: 0 | EJ68: 0 | EK68: 0 | EL68: 0 | EM68: 0 | EN68: 0 | EO68: 0 | EP68: 0 | EQ68: 0 | ER68: 0 | ES68: 0 | ET68: 0 | EU68: 0 | EV68: 0 | EW68: 0 | EX68: 0 | EY68: 0 | EZ68: 0 | FA68: 0 | FB68: 0 | FC68: 0 | FD68: 0 | FE68: 0 | FF68: 0 | FG68: 0 | FH68: 0 | FI68: 0 | FJ68: 0 | FK68: 0 | FL68: 0 | FM68: 0 | FN68: 0 | FO68: 0 | FP68: 0 | FQ68: 0 | FR68: 0 | FS68: 0 | FT68: 0 | FU68: 0 | FV68: 0 | FW68: 0 | FX68: 0 | FY68: 2 | FZ68: 0 | GA68: 0 | GB68: 0 | GC68: 0 | GD68: 0 | GE68: 0 | GF68: 0 | GG68: 0 | GH68: 0 | GI68: 0 | GJ68: 1 | GK68: 0 | GL68: 0 | GM68: 0 | GN68: 0 | GO68: 0 | GP68: 0 | GQ68: 0 | GR68: 0 | GS68: 0 | GT68: 0 | GU68: 0 | GV68: 0 | GW68: 0 | GX68: 0 | GY68: 0 | GZ68: 0 | HA68: 0 | HB68: 0 | HC68: 1 | HD68: 0 | HE68: 0 | HF68: 0 | HG68: 0 | HH68: 0 | HI68: 0 | HJ68: 0 | HK68: 0 | HL68: 0 | HM68: 0 | HN68: 0 | HO68: 2 | HP68: 0 | HQ68: 0 | HR68: 4 | HS68: 1 | HT68: 0 | HU68: 0 | HV68: 4 | HW68: 1 | HX68: 0 | HY68: 0 | HZ68: 3 | IA68: 1 | IB68: 0 | IC68: 0 | ID68: 0 | IE68: 0 | IF68: 0 | IG68: 0 | IH68: 0 | II68: 0 | IJ68: 0 | IK68: 0 | IL68: 0 | IM68: 0 | IN68: 0 | IO68: 0 | IP68: 0 | IQ68: 0 | IR68: 0 | IS68: 0 | IT68: 0 | IU68: 0 | IV68: 0 | IW68: 0 | IX68: 0 | IY68: 0 | IZ68: 0 | JA68: 0 | JB68: 0 | JC68: 0 | JD68: 0 | JE68: 0 | JF68: 0 | JG68: 0 | JH68: 0 | JI68: 0 | JJ68: 0 | JK68: 0 | JL68: 0 | JM68: 0 | JN68: 0 | JO68: 0 | JP68: 0 | JQ68: 0 | JR68: 0 | JS68: 0 | JT68: 0 | JU68: 0 | JV68: 0 | JW68: 0 | JX68: 0 | JY68: 6 | JZ68: 12 | KA68: 0 | KB68: 0 | KC68: 0 | KD68: 0
A69: LUCIANO CASTILLO COLONNA | B69: AYABACA | C69: 200201 | D69: 1915 | E69: ARAGOTO | F69: AYABACA | G69: NINGUN CLAS | H69: AYABACA | I69: AYABACA | J69: SALUD LUCIANO CASTILLO COLONNA | K69: 5 | L69: 0 | M69: 0 | N69: 0 | O69: 1 | P69: 0 | Q69: 1 | R69: 1 | S69: 1 | T69: 0 | U69: 0 | V69: 0 | W69: 0 | X69: 0 | Y69: 0 | Z69: 0 | AA69: 3 | AB69: 0 | AC69: 2 | AD69: 0 | AE69: 1 | AF69: 0 | AG69: 0 | AH69: 0 | AI69: 0 | AJ69: 0 | AK69: 0 | AL69: 0 | AM69: 0 | AN69: 0 | AO69: 0 | AP69: 0 | AQ69: 0 | AR69: 0 | AS69: 0 | AT69: 0 | AU69: 0 | AV69: 0 | AW69: 0 | AX69: 0 | AY69: 0 | AZ69: 0 | BA69: 1 | BB69: 0 | BC69: 0 | BD69: 0 | BE69: 0 | BF69: 0 | BG69: 1 | BH69: 0 | BI69: 0 | BJ69: 0 | BK69: 0 | BL69: 0 | BM69: 0 | BN69: 0 | BO69: 0 | BP69: 0 | BQ69: 0 | BR69: 0 | BS69: 0 | BT69: 0 | BU69: 0 | BV69: 0 | BW69: 0 | BX69: 0 | BY69: 0 | BZ69: 0 | CA69: 2 | CB69: 1 | CC69: 0 | CD69: 0 | CE69: 0 | CF69: 0 | CG69: 0 | CH69: 1 | CI69: 0 | CJ69: 0 | CK69: 0 | CL69: 0 | CM69: 0 | CN69: 0 | CO69: 0 | CP69: 0 | CQ69: 0 | CR69: 1 | CS69: 0 | CT69: 1 | CU69: 0 | CV69: 2 | CW69: 0 | CX69: 2 | CY69: 1 | CZ69: 8 | DA69: 1 | DB69: 8 | DC69: 0 | DD69: 0 | DE69: 0 | DF69: 0 | DG69: 0 | DH69: 1 | DI69: 0 | DJ69: 1 | DK69: 0 | DL69: 0 | DM69: 0 | DN69: 0 | DO69: 0 | DP69: 0 | DQ69: 0 | DR69: 0 | DS69: 0 | DT69: 0 | DU69: 0 | DV69: 0 | DW69: 0 | DX69: 0 | DY69: 0 | DZ69: 0 | EA69: 0 | EB69: 0 | EC69: 0 | ED69: 0 | EE69: 1 | EF69: 3 | EG69: 1 | EH69: 8 | EI69: 0 | EJ69: 0 | EK69: 0 | EL69: 0 | EM69: 0 | EN69: 0 | EO69: 0 | EP69: 0 | EQ69: 0 | ER69: 0 | ES69: 0 | ET69: 0 | EU69: 0 | EV69: 0 | EW69: 0 | EX69: 0 | EY69: 0 | EZ69: 0 | FA69: 0 | FB69: 0 | FC69: 0 | FD69: 0 | FE69: 0 | FF69: 0 | FG69: 0 | FH69: 0 | FI69: 0 | FJ69: 0 | FK69: 0 | FL69: 0 | FM69: 0 | FN69: 0 | FO69: 0 | FP69: 0 | FQ69: 0 | FR69: 0 | FS69: 0 | FT69: 0 | FU69: 0 | FV69: 0 | FW69: 0 | FX69: 0 | FY69: 2 | FZ69: 0 | GA69: 0 | GB69: 0 | GC69: 0 | GD69: 0 | GE69: 0 | GF69: 0 | GG69: 0 | GH69: 0 | GI69: 0 | GJ69: 0 | GK69: 0 | GL69: 0 | GM69: 0 | GN69: 0 | GO69: 0 | GP69: 0 | GQ69: 0 | GR69: 0 | GS69: 0 | GT69: 0 | GU69: 0 | GV69: 0 | GW69: 0 | GX69: 0 | GY69: 0 | GZ69: 0 | HA69: 0 | HB69: 0 | HC69: 0 | HD69: 0 | HE69: 0 | HF69: 0 | HG69: 0 | HH69: 0 | HI69: 0 | HJ69: 0 | HK69: 0 | HL69: 0 | HM69: 0 | HN69: 1 | HO69: 0 | HP69: 0 | HQ69: 1 | HR69: 2 | HS69: 6 | HT69: 0 | HU69: 0 | HV69: 2 | HW69: 6 | HX69: 0 | HY69: 0 | HZ69: 1 | IA69: 4 | IB69: 0 | IC69: 0 | ID69: 0 | IE69: 0 | IF69: 0 | IG69: 0 | IH69: 0 | II69: 0 | IJ69: 0 | IK69: 0 | IL69: 0 | IM69: 0 | IN69: 0 | IO69: 0 | IP69: 0 | IQ69: 0 | IR69: 0 | IS69: 0 | IT69: 0 | IU69: 0 | IV69: 0 | IW69: 0 | IX69: 0 | IY69: 0 | IZ69: 0 | JA69: 0 | JB69: 0 | JC69: 0 | JD69: 0 | JE69: 0 | JF69: 0 | JG69: 0 | JH69: 0 | JI69: 0 | JJ69: 0 | JK69: 0 | JL69: 0 | JM69: 0 | JN69: 0 | JO69: 0 | JP69: 0 | JQ69: 0 | JR69: 0 | JS69: 0 | JT69: 0 | JU69: 0 | JV69: 0 | JW69: 0 | JX69: 0 | JY69: 3 | JZ69: 13 | KA69: 0 | KB69: 0 | KC69: 0 | KD69: 0
A70: LUCIANO CASTILLO COLONNA | B70: AYABACA | C70: 200201 | D70: 1915 | E70: ARAGOTO | F70: AYABACA | G70: NINGUN CLAS | H70: AYABACA | I70: AYABACA | J70: SALUD LUCIANO CASTILLO COLONNA | K70: 4 | L70: 0 | M70: 0 | N70: 0 | O70: 2 | P70: 2 | Q70: 1 | R70: 0 | S70: 2 | T70: 0 | U70: 0 | V70: 0 | W70: 0 | X70: 0 | Y70: 0 | Z70: 0 | AA70: 3 | AB70: 1 | AC70: 6 | AD70: 0 | AE70: 2 | AF70: 0 | AG70: 0 | AH70: 0 | AI70: 0 | AJ70: 0 | AK70: 0 | AL70: 0 | AM70: 0 | AN70: 0 | AO70: 0 | AP70: 1 | AQ70: 1 | AR70: 0 | AS70: 0 | AT70: 0 | AU70: 1 | AV70: 0 | AW70: 0 | AX70: 0 | AY70: 0 | AZ70: 1 | BA70: 3 | BB70: 0 | BC70: 0 | BD70: 1 | BE70: 1 | BF70: 0 | BG70: 2 | BH70: 0 | BI70: 0 | BJ70: 0 | BK70: 1 | BL70: 0 | BM70: 0 | BN70: 0 | BO70: 0 | BP70: 0 | BQ70: 0 | BR70: 0 | BS70: 0 | BT70: 0 | BU70: 0 | BV70: 0 | BW70: 0 | BX70: 0 | BY70: 0 | BZ70: 0 | CA70: 0 | CB70: 1 | CC70: 0 | CD70: 1 | CE70: 0 | CF70: 0 | CG70: 0 | CH70: 1 | CI70: 0 | CJ70: 0 | CK70: 0 | CL70: 0 | CM70: 0 | CN70: 0 | CO70: 0 | CP70: 0 | CQ70: 0 | CR70: 3 | CS70: 0 | CT70: 3 | CU70: 1 | CV70: 8 | CW70: 1 | CX70: 8 | CY70: 0 | CZ70: 5 | DA70: 0 | DB70: 5 | DC70: 0 | DD70: 1 | DE70: 0 | DF70: 0 | DG70: 0 | DH70: 0 | DI70: 0 | DJ70: 0 | DK70: 0 | DL70: 0 | DM70: 0 | DN70: 0 | DO70: 0 | DP70: 0 | DQ70: 0 | DR70: 0 | DS70: 0 | DT70: 0 | DU70: 0 | DV70: 0 | DW70: 0 | DX70: 0 | DY70: 0 | DZ70: 0 | EA70: 0 | EB70: 0 | EC70: 0 | ED70: 0 | EE70: 2 | EF70: 3 | EG70: 0 | EH70: 1 | EI70: 0 | EJ70: 0 | EK70: 0 | EL70: 0 | EM70: 0 | EN70: 0 | EO70: 0 | EP70: 0 | EQ70: 0 | ER70: 0 | ES70: 0 | ET70: 0 | EU70: 0 | EV70: 0 | EW70: 0 | EX70: 0 | EY70: 0 | EZ70: 0 | FA70: 0 | FB70: 0 | FC70: 0 | FD70: 0 | FE70: 0 | FF70: 0 | FG70: 0 | FH70: 0 | FI70: 0 | FJ70: 0 | FK70: 0 | FL70: 0 | FM70: 0 | FN70: 0 | FO70: 0 | FP70: 0 | FQ70: 0 | FR70: 0 | FS70: 0 | FT70: 0 | FU70: 0 | FV70: 0 | FW70: 0 | FX70: 0 | FY70: 0 | FZ70: 0 | GA70: 0 | GB70: 0 | GC70: 0 | GD70: 0 | GE70: 0 | GF70: 0 | GG70: 0 | GH70: 0 | GI70: 0 | GJ70: 0 | GK70: 0 | GL70: 0 | GM70: 0 | GN70: 0 | GO70: 0 | GP70: 0 | GQ70: 0 | GR70: 0 | GS70: 0 | GT70: 0 | GU70: 0 | GV70: 0 | GW70: 0 | GX70: 0 | GY70: 0 | GZ70: 0 | HA70: 0 | HB70: 0 | HC70: 0 | HD70: 0 | HE70: 0 | HF70: 2 | HG70: 0 | HH70: 1 | HI70: 0 | HJ70: 0 | HK70: 0 | HL70: 0 | HM70: 0 | HN70: 0 | HO70: 0 | HP70: 0 | HQ70: 0 | HR70: 4 | HS70: 7 | HT70: 0 | HU70: 0 | HV70: 4 | HW70: 7 | HX70: 0 | HY70: 0 | HZ70: 4 | IA70: 7 | IB70: 0 | IC70: 0 | ID70: 0 | IE70: 0 | IF70: 0 | IG70: 0 | IH70: 0 | II70: 0 | IJ70: 0 | IK70: 0 | IL70: 0 | IM70: 0 | IN70: 0 | IO70: 0 | IP70: 0 | IQ70: 0 | IR70: 0 | IS70: 0 | IT70: 0 | IU70: 0 | IV70: 0 | IW70: 0 | IX70: 0 | IY70: 0 | IZ70: 0 | JA70: 0 | JB70: 0 | JC70: 0 | JD70: 0 | JE70: 0 | JF70: 0 | JG70: 0 | JH70: 0 | JI70: 0 | JJ70: 0 | JK70: 0 | JL70: 0 | JM70: 1 | JN70: 0 | JO70: 0 | JP70: 0 | JQ70: 0 | JR70: 0 | JS70: 0 | JT70: 0 | JU70: 0 | JV70: 0 | JW70: 0 | JX70: 0 | JY70: 5 | JZ70: 6 | KA70: 0 | KB70: 0 | KC70: 0 | KD70: 0
A71: LUCIANO CASTILLO COLONNA | B71: AYABACA | C71: 200201 | D71: 1915 | E71: ARAGOTO | F71: AYABACA | G71: NINGUN CLAS | H71: AYABACA | I71: AYABACA | J71: SALUD LUCIANO CASTILLO COLONNA | K71: 3 | L71: 0 | M71: 0 | N71: 0 | O71: 7 | P71: 0 | Q71: 5 | R71: 0 | S71: 5 | T71: 0 | U71: 0 | V71: 1 | W71: 0 | X71: 0 | Y71: 0 | Z71: 0 | AA71: 2 | AB71: 0 | AC71: 5 | AD71: 0 | AE71: 2 | AF71: 0 | AG71: 0 | AH71: 0 | AI71: 0 | AJ71: 0 | AK71: 0 | AL71: 0 | AM71: 0 | AN71: 0 | AO71: 0 | AP71: 0 | AQ71: 0 | AR71: 0 | AS71: 4 | AT71: 0 | AU71: 1 | AV71: 0 | AW71: 1 | AX71: 0 | AY71: 1 | AZ71: 0 | BA71: 7 | BB71: 0 | BC71: 0 | BD71: 0 | BE71: 0 | BF71: 0 | BG71: 7 | BH71: 0 | BI71: 0 | BJ71: 0 | BK71: 2 | BL71: 0 | BM71: 0 | BN71: 0 | BO71: 0 | BP71: 0 | BQ71: 0 | BR71: 1 | BS71: 0 | BT71: 0 | BU71: 0 | BV71: 0 | BW71: 0 | BX71: 0 | BY71: 0 | BZ71: 0 | CA71: 0 | CB71: 6 | CC71: 0 | CD71: 0 | CE71: 0 | CF71: 1 | CG71: 0 | CH71: 1 | CI71: 0 | CJ71: 0 | CK71: 0 | CL71: 0 | CM71: 0 | CN71: 0 | CO71: 0 | CP71: 0 | CQ71: 3 | CR71: 1 | CS71: 3 | CT71: 1 | CU71: 0 | CV71: 0 | CW71: 0 | CX71: 0 | CY71: 0 | CZ71: 2 | DA71: 0 | DB71: 2 | DC71: 0 | DD71: 0 | DE71: 0 | DF71: 0 | DG71: 0 | DH71: 0 | DI71: 0 | DJ71: 0 | DK71: 0 | DL71: 0 | DM71: 0 | DN71: 0 | DO71: 0 | DP71: 0 | DQ71: 0 | DR71: 0 | DS71: 0 | DT71: 0 | DU71: 0 | DV71: 0 | DW71: 0 | DX71: 0 | DY71: 0 | DZ71: 0 | EA71: 0 | EB71: 0 | EC71: 0 | ED71: 0 | EE71: 3 | EF71: 14 | EG71: 0 | EH71: 8 | EI71: 0 | EJ71: 0 | EK71: 0 | EL71: 0 | EM71: 0 | EN71: 0 | EO71: 0 | EP71: 0 | EQ71: 0 | ER71: 0 | ES71: 0 | ET71: 0 | EU71: 0 | EV71: 0 | EW71: 0 | EX71: 0 | EY71: 0 | EZ71: 0 | FA71: 0 | FB71: 0 | FC71: 0 | FD71: 0 | FE71: 0 | FF71: 0 | FG71: 0 | FH71: 0 | FI71: 0 | FJ71: 0 | FK71: 0 | FL71: 0 | FM71: 0 | FN71: 0 | FO71: 0 | FP71: 0 | FQ71: 0 | FR71: 0 | FS71: 0 | FT71: 0 | FU71: 0 | FV71: 0 | FW71: 0 | FX71: 0 | FY71: 2 | FZ71: 0 | GA71: 0 | GB71: 0 | GC71: 0 | GD71: 0 | GE71: 0 | GF71: 0 | GG71: 1 | GH71: 1 | GI71: 0 | GJ71: 0 | GK71: 0 | GL71: 0 | GM71: 0 | GN71: 0 | GO71: 0 | GP71: 0 | GQ71: 1 | GR71: 1 | GS71: 0 | GT71: 1 | GU71: 0 | GV71: 0 | GW71: 0 | GX71: 0 | GY71: 0 | GZ71: 0 | HA71: 0 | HB71: 0 | HC71: 0 | HD71: 0 | HE71: 0 | HF71: 0 | HG71: 0 | HH71: 0 | HI71: 0 | HJ71: 0 | HK71: 0 | HL71: 0 | HM71: 0 | HN71: 0 | HO71: 2 | HP71: 0 | HQ71: 1 | HR71: 3 | HS71: 3 | HT71: 0 | HU71: 0 | HV71: 3 | HW71: 3 | HX71: 0 | HY71: 0 | HZ71: 3 | IA71: 3 | IB71: 0 | IC71: 0 | ID71: 0 | IE71: 0 | IF71: 0 | IG71: 0 | IH71: 0 | II71: 0 | IJ71: 0 | IK71: 0 | IL71: 0 | IM71: 0 | IN71: 0 | IO71: 0 | IP71: 0 | IQ71: 0 | IR71: 0 | IS71: 0 | IT71: 0 | IU71: 0 | IV71: 0 | IW71: 0 | IX71: 0 | IY71: 0 | IZ71: 0 | JA71: 0 | JB71: 0 | JC71: 0 | JD71: 0 | JE71: 0 | JF71: 0 | JG71: 0 | JH71: 0 | JI71: 0 | JJ71: 0 | JK71: 0 | JL71: 0 | JM71: 0 | JN71: 0 | JO71: 0 | JP71: 0 | JQ71: 0 | JR71: 0 | JS71: 0 | JT71: 0 | JU71: 0 | JV71: 0 | JW71: 0 | JX71: 0 | JY71: 2 | JZ71: 25 | KA71: 0 | KB71: 0 | KC71: 0 | KD71: 0
A72: LUCIANO CASTILLO COLONNA | B72: AYABACA | C72: 200201 | D72: 1915 | E72: ARAGOTO | F72: AYABACA | G72: NINGUN CLAS | H72: AYABACA | I72: AYABACA | J72: SALUD LUCIANO CASTILLO COLONNA | K72: 2 | L72: 0 | M72: 0 | N72: 3 | O72: 5 | P72: 0 | Q72: 1 | R72: 0 | S72: 1 | T72: 0 | U72: 0 | V72: 0 | W72: 1 | X72: 0 | Y72: 0 | Z72: 0 | AA72: 5 | AB72: 0 | AC72: 4 | AD72: 0 | AE72: 0 | AF72: 0 | AG72: 0 | AH72: 0 | AI72: 0 | AJ72: 0 | AK72: 0 | AL72: 0 | AM72: 0 | AN72: 0 | AO72: 0 | AP72: 0 | AQ72: 0 | AR72: 2 | AS72: 1 | AT72: 0 | AU72: 0 | AV72: 0 | AW72: 0 | AX72: 0 | AY72: 0 | AZ72: 3 | BA72: 5 | BB72: 0 | BC72: 0 | BD72: 0 | BE72: 0 | BF72: 3 | BG72: 5 | BH72: 0 | BI72: 0 | BJ72: 0 | BK72: 0 | BL72: 0 | BM72: 0 | BN72: 0 | BO72: 0 | BP72: 0 | BQ72: 0 | BR72: 0 | BS72: 1 | BT72: 0 | BU72: 0 | BV72: 0 | BW72: 0 | BX72: 0 | BY72: 0 | BZ72: 0 | CA72: 0 | CB72: 0 | CC72: 0 | CD72: 0 | CE72: 0 | CF72: 0 | CG72: 0 | CH72: 1 | CI72: 0 | CJ72: 0 | CK72: 0 | CL72: 0 | CM72: 0 | CN72: 0 | CO72: 0 | CP72: 0 | CQ72: 0 | CR72: 4 | CS72: 0 | CT72: 4 | CU72: 0 | CV72: 3 | CW72: 0 | CX72: 3 | CY72: 0 | CZ72: 5 | DA72: 0 | DB72: 5 | DC72: 0 | DD72: 0 | DE72: 0 | DF72: 0 | DG72: 1 | DH72: 2 | DI72: 1 | DJ72: 2 | DK72: 0 | DL72: 0 | DM72: 0 | DN72: 0 | DO72: 0 | DP72: 0 | DQ72: 0 | DR72: 0 | DS72: 0 | DT72: 0 | DU72: 0 | DV72: 0 | DW72: 0 | DX72: 0 | DY72: 0 | DZ72: 0 | EA72: 0 | EB72: 0 | EC72: 0 | ED72: 0 | EE72: 3 | EF72: 15 | EG72: 1 | EH72: 2 | EI72: 0 | EJ72: 0 | EK72: 0 | EL72: 0 | EM72: 0 | EN72: 0 | EO72: 0 | EP72: 0 | EQ72: 0 | ER72: 0 | ES72: 0 | ET72: 0 | EU72: 0 | EV72: 0 | EW72: 0 | EX72: 0 | EY72: 0 | EZ72: 0 | FA72: 0 | FB72: 0 | FC72: 0 | FD72: 0 | FE72: 0 | FF72: 0 | FG72: 0 | FH72: 0 | FI72: 0 | FJ72: 0 | FK72: 0 | FL72: 0 | FM72: 0 | FN72: 0 | FO72: 0 | FP72: 0 | FQ72: 0 | FR72: 0 | FS72: 0 | FT72: 0 | FU72: 0 | FV72: 0 | FW72: 0 | FX72: 0 | FY72: 2 | FZ72: 0 | GA72: 0 | GB72: 0 | GC72: 0 | GD72: 0 | GE72: 1 | GF72: 0 | GG72: 2 | GH72: 6 | GI72: 0 | GJ72: 0 | GK72: 0 | GL72: 0 | GM72: 0 | GN72: 0 | GO72: 0 | GP72: 0 | GQ72: 2 | GR72: 4 | GS72: 1 | GT72: 2 | GU72: 0 | GV72: 0 | GW72: 0 | GX72: 0 | GY72: 0 | GZ72: 0 | HA72: 0 | HB72: 0 | HC72: 0 | HD72: 0 | HE72: 0 | HF72: 0 | HG72: 0 | HH72: 0 | HI72: 0 | HJ72: 0 | HK72: 0 | HL72: 0 | HM72: 0 | HN72: 0 | HO72: 3 | HP72: 0 | HQ72: 2 | HR72: 6 | HS72: 5 | HT72: 0 | HU72: 1 | HV72: 5 | HW72: 5 | HX72: 0 | HY72: 0 | HZ72: 1 | IA72: 3 | IB72: 0 | IC72: 0 | ID72: 1 | IE72: 3 | IF72: 0 | IG72: 0 | IH72: 0 | II72: 0 | IJ72: 1 | IK72: 3 | IL72: 0 | IM72: 0 | IN72: 0 | IO72: 0 | IP72: 0 | IQ72: 0 | IR72: 0 | IS72: 0 | IT72: 0 | IU72: 0 | IV72: 0 | IW72: 0 | IX72: 0 | IY72: 0 | IZ72: 0 | JA72: 0 | JB72: 0 | JC72: 0 | JD72: 0 | JE72: 0 | JF72: 0 | JG72: 0 | JH72: 0 | JI72: 0 | JJ72: 0 | JK72: 2 | JL72: 0 | JM72: 0 | JN72: 0 | JO72: 0 | JP72: 0 | JQ72: 0 | JR72: 0 | JS72: 0 | JT72: 0 | JU72: 0 | JV72: 0 | JW72: 0 | JX72: 0 | JY72: 5 | JZ72: 21 | KA72: 0 | KB72: 0 | KC72: 4 | KD72: 0
A73: LUCIANO CASTILLO COLONNA | B73: AYABACA | C73: 200201 | D73: 1915 | E73: ARAGOTO | F73: AYABACA | G73: NINGUN CLAS | H73: AYABACA | I73: AYABACA | J73: SALUD LUCIANO CASTILLO COLONNA | K73: 1 | L73: 0 | M73: 0 | N73: 3 | O73: 8 | P73: 0 | Q73: 2 | R73: 0 | S73: 1 | T73: 0 | U73: 0 | V73: 0 | W73: 0 | X73: 0 | Y73: 0 | Z73: 0 | AA73: 0 | AB73: 1 | AC73: 2 | AD73: 0 | AE73: 0 | AF73: 0 | AG73: 0 | AH73: 1 | AI73: 0 | AJ73: 0 | AK73: 0 | AL73: 0 | AM73: 0 | AN73: 0 | AO73: 0 | AP73: 1 | AQ73: 2 | AR73: 0 | AS73: 6 | AT73: 1 | AU73: 1 | AV73: 0 | AW73: 0 | AX73: 0 | AY73: 0 | AZ73: 4 | BA73: 11 | BB73: 0 | BC73: 0 | BD73: 1 | BE73: 3 | BF73: 3 | BG73: 8 | BH73: 0 | BI73: 0 | BJ73: 0 | BK73: 0 | BL73: 0 | BM73: 0 | BN73: 0 | BO73: 0 | BP73: 0 | BQ73: 0 | BR73: 0 | BS73: 0 | BT73: 0 | BU73: 0 | BV73: 0 | BW73: 0 | BX73: 0 | BY73: 0 | BZ73: 0 | CA73: 0 | CB73: 8 | CC73: 0 | CD73: 0 | CE73: 0 | CF73: 5 | CG73: 0 | CH73: 0 | CI73: 0 | CJ73: 0 | CK73: 0 | CL73: 0 | CM73: 0 | CN73: 0 | CO73: 0 | CP73: 0 | CQ73: 0 | CR73: 0 | CS73: 0 | CT73: 0 | CU73: 1 | CV73: 6 | CW73: 0 | CX73: 6 | CY73: 1 | CZ73: 3 | DA73: 1 | DB73: 3 | DC73: 0 | DD73: 0 | DE73: 0 | DF73: 0 | DG73: 1 | DH73: 4 | DI73: 1 | DJ73: 4 | DK73: 0 | DL73: 0 | DM73: 0 | DN73: 0 | DO73: 0 | DP73: 0 | DQ73: 0 | DR73: 0 | DS73: 0 | DT73: 0 | DU73: 0 | DV73: 0 | DW73: 0 | DX73: 0 | DY73: 0 | DZ73: 0 | EA73: 0 | EB73: 0 | EC73: 0 | ED73: 0 | EE73: 4 | EF73: 13 | EG73: 0 | EH73: 0 | EI73: 0 | EJ73: 0 | EK73: 0 | EL73: 0 | EM73: 0 | EN73: 0 | EO73: 0 | EP73: 0 | EQ73: 0 | ER73: 0 | ES73: 0 | ET73: 0 | EU73: 0 | EV73: 0 | EW73: 0 | EX73: 0 | EY73: 0 | EZ73: 0 | FA73: 0 | FB73: 0 | FC73: 0 | FD73: 0 | FE73: 0 | FF73: 0 | FG73: 0 | FH73: 0 | FI73: 0 | FJ73: 0 | FK73: 0 | FL73: 0 | FM73: 0 | FN73: 0 | FO73: 0 | FP73: 0 | FQ73: 0 | FR73: 0 | FS73: 0 | FT73: 0 | FU73: 0 | FV73: 0 | FW73: 0 | FX73: 0 | FY73: 1 | FZ73: 0 | GA73: 0 | GB73: 0 | GC73: 0 | GD73: 0 | GE73: 0 | GF73: 0 | GG73: 0 | GH73: 1 | GI73: 0 | GJ73: 1 | GK73: 0 | GL73: 0 | GM73: 0 | GN73: 0 | GO73: 0 | GP73: 0 | GQ73: 0 | GR73: 1 | GS73: 0 | GT73: 0 | GU73: 0 | GV73: 0 | GW73: 0 | GX73: 0 | GY73: 0 | GZ73: 0 | HA73: 0 | HB73: 0 | HC73: 0 | HD73: 0 | HE73: 0 | HF73: 1 | HG73: 0 | HH73: 0 | HI73: 0 | HJ73: 0 | HK73: 0 | HL73: 0 | HM73: 0 | HN73: 0 | HO73: 6 | HP73: 0 | HQ73: 0 | HR73: 1 | HS73: 2 | HT73: 1 | HU73: 0 | HV73: 1 | HW73: 2 | HX73: 0 | HY73: 0 | HZ73: 1 | IA73: 0 | IB73: 0 | IC73: 0 | ID73: 0 | IE73: 0 | IF73: 0 | IG73: 0 | IH73: 0 | II73: 0 | IJ73: 0 | IK73: 0 | IL73: 0 | IM73: 0 | IN73: 0 | IO73: 0 | IP73: 0 | IQ73: 0 | IR73: 0 | IS73: 0 | IT73: 0 | IU73: 0 | IV73: 0 | IW73: 0 | IX73: 0 | IY73: 0 | IZ73: 0 | JA73: 0 | JB73: 0 | JC73: 0 | JD73: 0 | JE73: 0 | JF73: 0 | JG73: 0 | JH73: 0 | JI73: 0 | JJ73: 0 | JK73: 1 | JL73: 1 | JM73: 0 | JN73: 0 | JO73: 0 | JP73: 0 | JQ73: 0 | JR73: 0 | JS73: 0 | JT73: 0 | JU73: 0 | JV73: 0 | JW73: 0 | JX73: 0 | JY73: 2 | JZ73: 18 | KA73: 0 | KB73: 0 | KC73: 0 | KD73: 0
A74: LUCIANO CASTILLO COLONNA | B74: AYABACA | C74: 200201 | D74: 1916 | E74: CHOCAN | F74: AYABACA | G74: NINGUN CLAS | H74: AYABACA | I74: AYABACA | J74: SALUD LUCIANO CASTILLO COLONNA | K74: 1 | L74: 0 | M74: 0 | N74: 0 | O74: 0 | P74: 0 | Q74: 3 | R74: 0 | S74: 0 | T74: 0 | U74: 0 | V74: 1 | W74: 0 | X74: 0 | Y74: 0 | Z74: 0 | AA74: 0 | AB74: 2 | AC74: 0 | AD74: 0 | AE74: 0 | AF74: 0 | AG74: 0 | AH74: 0 | AI74: 0 | AJ74: 0 | AK74: 0 | AL74: 0 | AM74: 0 | AN74: 0 | AO74: 0 | AP74: 0 | AQ74: 0 | AR74: 0 | AS74: 0 | AT74: 0 | AU74: 0 | AV74: 0 | AW74: 0 | AX74: 0 | AY74: 0 | AZ74: 0 | BA74: 0 | BB74: 0 | BC74: 0 | BD74: 0 | BE74: 0 | BF74: 0 | BG74: 0 | BH74: 0 | BI74: 0 | BJ74: 0 | BK74: 0 | BL74: 0 | BM74: 0 | BN74: 0 | BO74: 0 | BP74: 0 | BQ74: 0 | BR74: 0 | BS74: 0 | BT74: 0 | BU74: 0 | BV74: 0 | BW74: 0 | BX74: 0 | BY74: 0 | BZ74: 0 | CA74: 0 | CB74: 2 | CC74: 0 | CD74: 0 | CE74: 0 | CF74: 0 | CG74: 0 | CH74: 0 | CI74: 0 | CJ74: 0 | CK74: 0 | CL74: 0 | CM74: 0 | CN74: 0 | CO74: 0 | CP74: 0 | CQ74: 0 | CR74: 1 | CS74: 0 | CT74: 1 | CU74: 0 | CV74: 0 | CW74: 0 | CX74: 0 | CY74: 0 | CZ74: 2 | DA74: 0 | DB74: 2 | DC74: 0 | DD74: 0 | DE74: 0 | DF74: 0 | DG74: 1 | DH74: 0 | DI74: 1 | DJ74: 0 | DK74: 0 | DL74: 0 | DM74: 0 | DN74: 0 | DO74: 0 | DP74: 0 | DQ74: 0 | DR74: 0 | DS74: 0 | DT74: 0 | DU74: 0 | DV74: 0 | DW74: 0 | DX74: 0 | DY74: 0 | DZ74: 0 | EA74: 0 | EB74: 0 | EC74: 0 | ED74: 0 | EE74: 1 | EF74: 1 | EG74: 0 | EH74: 0 | EI74: 0 | EJ74: 0 | EK74: 0 | EL74: 0 | EM74: 0 | EN74: 0 | EO74: 0 | EP74: 0 | EQ74: 0 | ER74: 0 | ES74: 0 | ET74: 0 | EU74: 0 | EV74: 0 | EW74: 0 | EX74: 0 | EY74: 0 | EZ74: 0 | FA74: 0 | FB74: 0 | FC74: 0 | FD74: 0 | FE74: 0 | FF74: 0 | FG74: 0 | FH74: 0 | FI74: 0 | FJ74: 0 | FK74: 0 | FL74: 0 | FM74: 0 | FN74: 0 | FO74: 0 | FP74: 0 | FQ74: 0 | FR74: 0 | FS74: 0 | FT74: 0 | FU74: 0 | FV74: 0 | FW74: 0 | FX74: 0 | FY74: 0 | FZ74: 0 | GA74: 0 | GB74: 0 | GC74: 0 | GD74: 0 | GE74: 0 | GF74: 0 | GG74: 0 | GH74: 0 | GI74: 0 | GJ74: 0 | GK74: 0 | GL74: 0 | GM74: 0 | GN74: 0 | GO74: 0 | GP74: 0 | GQ74: 0 | GR74: 0 | GS74: 0 | GT74: 0 | GU74: 0 | GV74: 0 | GW74: 0 | GX74: 0 | GY74: 0 | GZ74: 0 | HA74: 0 | HB74: 0 | HC74: 0 | HD74: 0 | HE74: 0 | HF74: 0 | HG74: 0 | HH74: 0 | HI74: 0 | HJ74: 0 | HK74: 0 | HL74: 0 | HM74: 0 | HN74: 0 | HO74: 0 | HP74: 0 | HQ74: 0 | HR74: 1 | HS74: 2 | HT74: 0 | HU74: 0 | HV74: 1 | HW74: 2 | HX74: 0 | HY74: 0 | HZ74: 1 | IA74: 2 | IB74: 0 | IC74: 0 | ID74: 0 | IE74: 0 | IF74: 0 | IG74: 0 | IH74: 0 | II74: 0 | IJ74: 0 | IK74: 0 | IL74: 0 | IM74: 0 | IN74: 0 | IO74: 0 | IP74: 0 | IQ74: 0 | IR74: 0 | IS74: 0 | IT74: 0 | IU74: 0 | IV74: 0 | IW74: 0 | IX74: 0 | IY74: 0 | IZ74: 0 | JA74: 0 | JB74: 0 | JC74: 0 | JD74: 0 | JE74: 0 | JF74: 0 | JG74: 0 | JH74: 0 | JI74: 0 | JJ74: 0 | JK74: 0 | JL74: 0 | JM74: 0 | JN74: 0 | JO74: 0 | JP74: 1 | JQ74: 0 | JR74: 0 | JS74: 0 | JT74: 0 | JU74: 0 | JV74: 0 | JW74: 0 | JX74: 0 | JY74: 1 | JZ74: 5 | KA74: 0 | KB74: 0 | KC74: 0 | KD74: 0
A75: LUCIANO CASTILLO COLONNA | B75: AYABACA | C75: 200201 | D75: 1916 | E75: CHOCAN | F75: AYABACA | G75: NINGUN CLAS | H75: AYABACA | I75: AYABACA | J75: SALUD LUCIANO CASTILLO COLONNA | K75: 2 | L75: 0 | M75: 0 | N75: 0 | O75: 0 | P75: 0 | Q75: 2 | R75: 0 | S75: 0 | T75: 0 | U75: 0 | V75: 0 | W75: 1 | X75: 0 | Y75: 1 | Z75: 0 | AA75: 0 | AB75: 0 | AC75: 2 | AD75: 0 | AE75: 0 | AF75: 0 | AG75: 0 | AH75: 0 | AI75: 0 | AJ75: 0 | AK75: 0 | AL75: 0 | AM75: 0 | AN75: 0 | AO75: 0 | AP75: 0 | AQ75: 0 | AR75: 0 | AS75: 0 | AT75: 0 | AU75: 0 | AV75: 0 | AW75: 0 | AX75: 0 | AY75: 0 | AZ75: 0 | BA75: 0 | BB75: 0 | BC75: 0 | BD75: 0 | BE75: 0 | BF75: 0 | BG75: 0 | BH75: 0 | BI75: 0 | BJ75: 1 | BK75: 0 | BL75: 0 | BM75: 0 | BN75: 0 | BO75: 0 | BP75: 0 | BQ75: 0 | BR75: 0 | BS75: 0 | BT75: 0 | BU75: 0 | BV75: 0 | BW75: 0 | BX75: 0 | BY75: 0 | BZ75: 0 | CA75: 0 | CB75: 0 | CC75: 0 | CD75: 0 | CE75: 0 | CF75: 0 | CG75: 0 | CH75: 0 | CI75: 0 | CJ75: 0 | CK75: 0 | CL75: 0 | CM75: 0 | CN75: 0 | CO75: 0 | CP75: 0 | CQ75: 0 | CR75: 0 | CS75: 0 | CT75: 0 | CU75: 0 | CV75: 2 | CW75: 0 | CX75: 2 | CY75: 0 | CZ75: 3 | DA75: 0 | DB75: 3 | DC75: 0 | DD75: 0 | DE75: 0 | DF75: 0 | DG75: 0 | DH75: 2 | DI75: 0 | DJ75: 2 | DK75: 0 | DL75: 0 | DM75: 0 | DN75: 0 | DO75: 0 | DP75: 0 | DQ75: 0 | DR75: 0 | DS75: 0 | DT75: 0 | DU75: 0 | DV75: 0 | DW75: 0 | DX75: 0 | DY75: 0 | DZ75: 0 | EA75: 0 | EB75: 0 | EC75: 0 | ED75: 0 | EE75: 2 | EF75: 12 | EG75: 0 | EH75: 0 | EI75: 0 | EJ75: 1 | EK75: 0 | EL75: 1 | EM75: 0 | EN75: 0 | EO75: 0 | EP75: 1 | EQ75: 0 | ER75: 0 | ES75: 0 | ET75: 0 | EU75: 0 | EV75: 1 | EW75: 0 | EX75: 0 | EY75: 0 | EZ75: 0 | FA75: 0 | FB75: 0 | FC75: 0 | FD75: 0 | FE75: 0 | FF75: 0 | FG75: 0 | FH75: 1 | FI75: 0 | FJ75: 1 | FK75: 0 | FL75: 0 | FM75: 0 | FN75: 1 | FO75: 0 | FP75: 1 | FQ75: 0 | FR75: 0 | FS75: 0 | FT75: 0 | FU75: 0 | FV75: 0 | FW75: 0 | FX75: 0 | FY75: 1 | FZ75: 0 | GA75: 0 | GB75: 0 | GC75: 0 | GD75: 0 | GE75: 0 | GF75: 0 | GG75: 0 | GH75: 0 | GI75: 0 | GJ75: 1 | GK75: 0 | GL75: 0 | GM75: 0 | GN75: 0 | GO75: 0 | GP75: 0 | GQ75: 0 | GR75: 1 | GS75: 0 | GT75: 1 | GU75: 0 | GV75: 0 | GW75: 0 | GX75: 0 | GY75: 0 | GZ75: 0 | HA75: 0 | HB75: 0 | HC75: 0 | HD75: 0 | HE75: 0 | HF75: 0 | HG75: 0 | HH75: 0 | HI75: 0 | HJ75: 0 | HK75: 0 | HL75: 0 | HM75: 0 | HN75: 0 | HO75: 0 | HP75: 0 | HQ75: 0 | HR75: 11 | HS75: 5 | HT75: 0 | HU75: 0 | HV75: 11 | HW75: 5 | HX75: 0 | HY75: 0 | HZ75: 11 | IA75: 5 | IB75: 0 | IC75: 0 | ID75: 0 | IE75: 0 | IF75: 0 | IG75: 0 | IH75: 0 | II75: 0 | IJ75: 0 | IK75: 0 | IL75: 0 | IM75: 0 | IN75: 0 | IO75: 0 | IP75: 0 | IQ75: 0 | IR75: 0 | IS75: 0 | IT75: 0 | IU75: 0 | IV75: 0 | IW75: 0 | IX75: 0 | IY75: 0 | IZ75: 0 | JA75: 1 | JB75: 0 | JC75: 0 | JD75: 0 | JE75: 0 | JF75: 0 | JG75: 0 | JH75: 0 | JI75: 0 | JJ75: 0 | JK75: 0 | JL75: 0 | JM75: 0 | JN75: 0 | JO75: 0 | JP75: 0 | JQ75: 0 | JR75: 0 | JS75: 0 | JT75: 0 | JU75: 0 | JV75: 0 | JW75: 0 | JX75: 0 | JY75: 1 | JZ75: 15 | KA75: 0 | KB75: 0 | KC75: 0 | KD75: 0
A76: LUCIANO CASTILLO COLONNA | B76: AYABACA | C76: 200201 | D76: 1916 | E76: CHOCAN | F76: AYABACA | G76: NINGUN CLAS | H76: AYABACA | I76: AYABACA | J76: SALUD LUCIANO CASTILLO COLONNA | K76: 3 | L76: 0 | M76: 0 | N76: 0 | O76: 3 | P76: 0 | Q76: 0 | R76: 0 | S76: 1 | T76: 0 | U76: 0 | V76: 0 | W76: 0 | X76: 0 | Y76: 0 | Z76: 0 | AA76: 0 | AB76: 1 | AC76: 1 | AD76: 0 | AE76: 1 | AF76: 0 | AG76: 0 | AH76: 0 | AI76: 0 | AJ76: 0 | AK76: 0 | AL76: 0 | AM76: 0 | AN76: 0 | AO76: 0 | AP76: 0 | AQ76: 4 | AR76: 0 | AS76: 1 | AT76: 0 | AU76: 0 | AV76: 0 | AW76: 0 | AX76: 0 | AY76: 0 | AZ76: 0 | BA76: 7 | BB76: 0 | BC76: 0 | BD76: 0 | BE76: 6 | BF76: 0 | BG76: 0 | BH76: 0 | BI76: 0 | BJ76: 0 | BK76: 0 | BL76: 0 | BM76: 0 | BN76: 0 | BO76: 0 | BP76: 0 | BQ76: 0 | BR76: 0 | BS76: 0 | BT76: 0 | BU76: 0 | BV76: 0 | BW76: 0 | BX76: 0 | BY76: 0 | BZ76: 0 | CA76: 0 | CB76: 0 | CC76: 0 | CD76: 0 | CE76: 0 | CF76: 1 | CG76: 0 | CH76: 0 | CI76: 0 | CJ76: 0 | CK76: 0 | CL76: 0 | CM76: 0 | CN76: 0 | CO76: 0 | CP76: 0 | CQ76: 0 | CR76: 1 | CS76: 0 | CT76: 1 | CU76: 0 | CV76: 5 | CW76: 0 | CX76: 5 | CY76: 1 | CZ76: 3 | DA76: 1 | DB76: 3 | DC76: 0 | DD76: 0 | DE76: 0 | DF76: 0 | DG76: 0 | DH76: 0 | DI76: 0 | DJ76: 0 | DK76: 0 | DL76: 0 | DM76: 0 | DN76: 0 | DO76: 0 | DP76: 0 | DQ76: 0 | DR76: 0 | DS76: 0 | DT76: 0 | DU76: 0 | DV76: 0 | DW76: 0 | DX76: 0 | DY76: 0 | DZ76: 0 | EA76: 0 | EB76: 0 | EC76: 0 | ED76: 0 | EE76: 0 | EF76: 14 | EG76: 2 | EH76: 13 | EI76: 0 | EJ76: 0 | EK76: 0 | EL76: 0 | EM76: 0 | EN76: 0 | EO76: 0 | EP76: 0 | EQ76: 0 | ER76: 0 | ES76: 0 | ET76: 0 | EU76: 0 | EV76: 0 | EW76: 0 | EX76: 0 | EY76: 0 | EZ76: 0 | FA76: 0 | FB76: 0 | FC76: 0 | FD76: 0 | FE76: 0 | FF76: 0 | FG76: 0 | FH76: 0 | FI76: 0 | FJ76: 0 | FK76: 0 | FL76: 0 | FM76: 0 | FN76: 0 | FO76: 0 | FP76: 0 | FQ76: 0 | FR76: 0 | FS76: 0 | FT76: 0 | FU76: 0 | FV76: 0 | FW76: 0 | FX76: 0 | FY76: 1 | FZ76: 0 | GA76: 0 | GB76: 0 | GC76: 0 | GD76: 0 | GE76: 0 | GF76: 3 | GG76: 0 | GH76: 6 | GI76: 0 | GJ76: 1 | GK76: 0 | GL76: 0 | GM76: 0 | GN76: 0 | GO76: 0 | GP76: 0 | GQ76: 0 | GR76: 0 | GS76: 0 | GT76: 0 | GU76: 0 | GV76: 0 | GW76: 0 | GX76: 0 | GY76: 0 | GZ76: 0 | HA76: 0 | HB76: 0 | HC76: 1 | HD76: 0 | HE76: 0 | HF76: 0 | HG76: 0 | HH76: 0 | HI76: 0 | HJ76: 0 | HK76: 0 | HL76: 0 | HM76: 0 | HN76: 0 | HO76: 1 | HP76: 0 | HQ76: 0 | HR76: 2 | HS76: 6 | HT76: 0 | HU76: 0 | HV76: 2 | HW76: 6 | HX76: 0 | HY76: 0 | HZ76: 2 | IA76: 6 | IB76: 0 | IC76: 0 | ID76: 0 | IE76: 0 | IF76: 0 | IG76: 0 | IH76: 0 | II76: 0 | IJ76: 0 | IK76: 0 | IL76: 0 | IM76: 0 | IN76: 0 | IO76: 0 | IP76: 0 | IQ76: 0 | IR76: 0 | IS76: 0 | IT76: 0 | IU76: 0 | IV76: 0 | IW76: 0 | IX76: 0 | IY76: 0 | IZ76: 0 | JA76: 0 | JB76: 0 | JC76: 0 | JD76: 0 | JE76: 0 | JF76: 0 | JG76: 0 | JH76: 0 | JI76: 0 | JJ76: 0 | JK76: 0 | JL76: 0 | JM76: 0 | JN76: 0 | JO76: 0 | JP76: 0 | JQ76: 0 | JR76: 0 | JS76: 0 | JT76: 0 | JU76: 0 | JV76: 0 | JW76: 0 | JX76: 0 | JY76: 8 | JZ76: 31 | KA76: 0 | KB76: 0 | KC76: 0 | KD76: 0
A77: LUCIANO CASTILLO COLONNA | B77: AYABACA | C77: 200201 | D77: 1916 | E77: CHOCAN | F77: AYABACA | G77: NINGUN CLAS | H77: AYABACA | I77: AYABACA | J77: SALUD LUCIANO CASTILLO COLONNA | K77: 5 | L77: 0 | M77: 0 | N77: 1 | O77: 3 | P77: 0 | Q77: 1 | R77: 0 | S77: 0 | T77: 0 | U77: 0 | V77: 1 | W77: 0 | X77: 0 | Y77: 0 | Z77: 0 | AA77: 2 | AB77: 0 | AC77: 0 | AD77: 0 | AE77: 0 | AF77: 0 | AG77: 0 | AH77: 0 | AI77: 0 | AJ77: 0 | AK77: 0 | AL77: 0 | AM77: 0 | AN77: 0 | AO77: 0 | AP77: 1 | AQ77: 1 | AR77: 1 | AS77: 3 | AT77: 0 | AU77: 0 | AV77: 0 | AW77: 0 | AX77: 0 | AY77: 0 | AZ77: 2 | BA77: 4 | BB77: 0 | BC77: 0 | BD77: 1 | BE77: 2 | BF77: 1 | BG77: 2 | BH77: 0 | BI77: 0 | BJ77: 0 | BK77: 0 | BL77: 0 | BM77: 0 | BN77: 0 | BO77: 0 | BP77: 0 | BQ77: 0 | BR77: 0 | BS77: 0 | BT77: 0 | BU77: 0 | BV77: 0 | BW77: 0 | BX77: 0 | BY77: 0 | BZ77: 0 | CA77: 0 | CB77: 1 | CC77: 0 | CD77: 0 | CE77: 0 | CF77: 0 | CG77: 0 | CH77: 0 | CI77: 0 | CJ77: 0 | CK77: 0 | CL77: 0 | CM77: 0 | CN77: 0 | CO77: 0 | CP77: 0 | CQ77: 0 | CR77: 1 | CS77: 0 | CT77: 1 | CU77: 0 | CV77: 1 | CW77: 0 | CX77: 1 | CY77: 0 | CZ77: 0 | DA77: 0 | DB77: 0 | DC77: 0 | DD77: 0 | DE77: 0 | DF77: 0 | DG77: 0 | DH77: 0 | DI77: 0 | DJ77: 0 | DK77: 0 | DL77: 0 | DM77: 0 | DN77: 0 | DO77: 0 | DP77: 0 | DQ77: 0 | DR77: 0 | DS77: 0 | DT77: 0 | DU77: 0 | DV77: 0 | DW77: 0 | DX77: 0 | DY77: 0 | DZ77: 0 | EA77: 0 | EB77: 0 | EC77: 0 | ED77: 0 | EE77: 0 | EF77: 1 | EG77: 0 | EH77: 0 | EI77: 0 | EJ77: 0 | EK77: 0 | EL77: 0 | EM77: 0 | EN77: 0 | EO77: 0 | EP77: 0 | EQ77: 0 | ER77: 0 | ES77: 0 | ET77: 0 | EU77: 0 | EV77: 0 | EW77: 0 | EX77: 0 | EY77: 0 | EZ77: 0 | FA77: 0 | FB77: 0 | FC77: 0 | FD77: 0 | FE77: 0 | FF77: 0 | FG77: 0 | FH77: 0 | FI77: 0 | FJ77: 0 | FK77: 0 | FL77: 0 | FM77: 0 | FN77: 0 | FO77: 0 | FP77: 0 | FQ77: 0 | FR77: 0 | FS77: 0 | FT77: 0 | FU77: 0 | FV77: 0 | FW77: 0 | FX77: 0 | FY77: 0 | FZ77: 0 | GA77: 0 | GB77: 0 | GC77: 0 | GD77: 0 | GE77: 0 | GF77: 0 | GG77: 0 | GH77: 0 | GI77: 0 | GJ77: 0 | GK77: 0 | GL77: 0 | GM77: 0 | GN77: 0 | GO77: 0 | GP77: 0 | GQ77: 0 | GR77: 0 | GS77: 0 | GT77: 0 | GU77: 0 | GV77: 0 | GW77: 0 | GX77: 0 | GY77: 0 | GZ77: 0 | HA77: 0 | HB77: 0 | HC77: 0 | HD77: 0 | HE77: 0 | HF77: 0 | HG77: 0 | HH77: 0 | HI77: 0 | HJ77: 0 | HK77: 0 | HL77: 0 | HM77: 0 | HN77: 0 | HO77: 0 | HP77: 0 | HQ77: 0 | HR77: 0 | HS77: 0 | HT77: 0 | HU77: 0 | HV77: 0 | HW77: 0 | HX77: 0 | HY77: 0 | HZ77: 0 | IA77: 0 | IB77: 0 | IC77: 0 | ID77: 0 | IE77: 0 | IF77: 0 | IG77: 0 | IH77: 0 | II77: 0 | IJ77: 0 | IK77: 0 | IL77: 0 | IM77: 0 | IN77: 0 | IO77: 0 | IP77: 0 | IQ77: 0 | IR77: 0 | IS77: 0 | IT77: 0 | IU77: 0 | IV77: 0 | IW77: 0 | IX77: 0 | IY77: 0 | IZ77: 0 | JA77: 0 | JB77: 0 | JC77: 0 | JD77: 0 | JE77: 0 | JF77: 0 | JG77: 0 | JH77: 0 | JI77: 0 | JJ77: 0 | JK77: 0 | JL77: 0 | JM77: 0 | JN77: 0 | JO77: 0 | JP77: 0 | JQ77: 0 | JR77: 0 | JS77: 0 | JT77: 0 | JU77: 0 | JV77: 0 | JW77: 0 | JX77: 0 | JY77: 3 | JZ77: 1 | KA77: 0 | KB77: 0 | KC77: 0 | KD77: 0
A78: LUCIANO CASTILLO COLONNA | B78: AYABACA | C78: 200201 | D78: 1916 | E78: CHOCAN | F78: AYABACA | G78: NINGUN CLAS | H78: AYABACA | I78: AYABACA | J78: SALUD LUCIANO CASTILLO COLONNA | K78: 4 | L78: 0 | M78: 0 | N78: 0 | O78: 0 | P78: 0 | Q78: 0 | R78: 1 | S78: 0 | T78: 0 | U78: 0 | V78: 0 | W78: 0 | X78: 0 | Y78: 0 | Z78: 0 | AA78: 0 | AB78: 0 | AC78: 1 | AD78: 2 | AE78: 0 | AF78: 0 | AG78: 0 | AH78: 0 | AI78: 0 | AJ78: 0 | AK78: 0 | AL78: 0 | AM78: 0 | AN78: 0 | AO78: 0 | AP78: 0 | AQ78: 0 | AR78: 0 | AS78: 0 | AT78: 0 | AU78: 0 | AV78: 0 | AW78: 0 | AX78: 0 | AY78: 0 | AZ78: 0 | BA78: 0 | BB78: 0 | BC78: 0 | BD78: 0 | BE78: 0 | BF78: 0 | BG78: 0 | BH78: 0 | BI78: 0 | BJ78: 0 | BK78: 0 | BL78: 0 | BM78: 0 | BN78: 0 | BO78: 0 | BP78: 0 | BQ78: 0 | BR78: 0 | BS78: 0 | BT78: 0 | BU78: 0 | BV78: 0 | BW78: 0 | BX78: 0 | BY78: 0 | BZ78: 0 | CA78: 0 | CB78: 0 | CC78: 0 | CD78: 0 | CE78: 0 | CF78: 3 | CG78: 0 | CH78: 0 | CI78: 0 | CJ78: 0 | CK78: 0 | CL78: 0 | CM78: 0 | CN78: 0 | CO78: 0 | CP78: 0 | CQ78: 0 | CR78: 0 | CS78: 0 | CT78: 0 | CU78: 0 | CV78: 2 | CW78: 0 | CX78: 2 | CY78: 1 | CZ78: 3 | DA78: 0 | DB78: 3 | DC78: 0 | DD78: 0 | DE78: 0 | DF78: 0 | DG78: 1 | DH78: 5 | DI78: 1 | DJ78: 5 | DK78: 0 | DL78: 0 | DM78: 0 | DN78: 0 | DO78: 0 | DP78: 0 | DQ78: 0 | DR78: 0 | DS78: 0 | DT78: 0 | DU78: 0 | DV78: 0 | DW78: 1 | DX78: 0 | DY78: 0 | DZ78: 0 | EA78: 0 | EB78: 0 | EC78: 0 | ED78: 0 | EE78: 4 | EF78: 5 | EG78: 0 | EH78: 14 | EI78: 0 | EJ78: 0 | EK78: 0 | EL78: 0 | EM78: 0 | EN78: 0 | EO78: 0 | EP78: 0 | EQ78: 0 | ER78: 0 | ES78: 0 | ET78: 0 | EU78: 0 | EV78: 0 | EW78: 0 | EX78: 0 | EY78: 0 | EZ78: 0 | FA78: 0 | FB78: 0 | FC78: 0 | FD78: 0 | FE78: 0 | FF78: 0 | FG78: 0 | FH78: 0 | FI78: 0 | FJ78: 0 | FK78: 0 | FL78: 0 | FM78: 0 | FN78: 0 | FO78: 0 | FP78: 0 | FQ78: 0 | FR78: 0 | FS78: 0 | FT78: 0 | FU78: 0 | FV78: 0 | FW78: 0 | FX78: 0 | FY78: 0 | FZ78: 0 | GA78: 0 | GB78: 0 | GC78: 0 | GD78: 0 | GE78: 0 | GF78: 0 | GG78: 0 | GH78: 0 | GI78: 0 | GJ78: 0 | GK78: 0 | GL78: 0 | GM78: 0 | GN78: 0 | GO78: 0 | GP78: 0 | GQ78: 1 | GR78: 1 | GS78: 1 | GT78: 1 | GU78: 0 | GV78: 0 | GW78: 0 | GX78: 0 | GY78: 0 | GZ78: 0 | HA78: 0 | HB78: 0 | HC78: 0 | HD78: 0 | HE78: 0 | HF78: 0 | HG78: 0 | HH78: 0 | HI78: 0 | HJ78: 0 | HK78: 0 | HL78: 0 | HM78: 0 | HN78: 0 | HO78: 0 | HP78: 0 | HQ78: 0 | HR78: 11 | HS78: 4 | HT78: 0 | HU78: 0 | HV78: 11 | HW78: 4 | HX78: 0 | HY78: 0 | HZ78: 11 | IA78: 4 | IB78: 0 | IC78: 0 | ID78: 0 | IE78: 0 | IF78: 0 | IG78: 0 | IH78: 0 | II78: 0 | IJ78: 0 | IK78: 0 | IL78: 0 | IM78: 0 | IN78: 0 | IO78: 0 | IP78: 0 | IQ78: 0 | IR78: 0 | IS78: 0 | IT78: 0 | IU78: 0 | IV78: 0 | IW78: 0 | IX78: 0 | IY78: 0 | IZ78: 0 | JA78: 0 | JB78: 0 | JC78: 0 | JD78: 0 | JE78: 0 | JF78: 0 | JG78: 0 | JH78: 0 | JI78: 1 | JJ78: 0 | JK78: 0 | JL78: 0 | JM78: 0 | JN78: 0 | JO78: 0 | JP78: 0 | JQ78: 0 | JR78: 0 | JS78: 0 | JT78: 0 | JU78: 0 | JV78: 0 | JW78: 0 | JX78: 0 | JY78: 1 | JZ78: 23 | KA78: 0 | KB78: 0 | KC78: 0 | KD78: 0
A79: LUCIANO CASTILLO COLONNA | B79: AYABACA | C79: 200201 | D79: 1916 | E79: CHOCAN | F79: AYABACA | G79: NINGUN CLAS | H79: AYABACA | I79: AYABACA | J79: SALUD LUCIANO CASTILLO COLONNA | K79: 6 | L79: 0 | M79: 0 | N79: 1 | O79: 6 | P79: 1 | Q79: 0 | R79: 0 | S79: 0 | T79: 0 | U79: 0 | V79: 1 | W79: 0 | X79: 0 | Y79: 0 | Z79: 1 | AA79: 0 | AB79: 0 | AC79: 4 | AD79: 0 | AE79: 0 | AF79: 0 | AG79: 0 | AH79: 0 | AI79: 0 | AJ79: 0 | AK79: 0 | AL79: 0 | AM79: 0 | AN79: 0 | AO79: 0 | AP79: 2 | AQ79: 3 | AR79: 1 | AS79: 5 | AT79: 0 | AU79: 0 | AV79: 0 | AW79: 0 | AX79: 0 | AY79: 0 | AZ79: 3 | BA79: 10 | BB79: 0 | BC79: 0 | BD79: 2 | BE79: 4 | BF79: 1 | BG79: 5 | BH79: 0 | BI79: 0 | BJ79: 0 | BK79: 0 | BL79: 0 | BM79: 0 | BN79: 0 | BO79: 0 | BP79: 0 | BQ79: 0 | BR79: 0 | BS79: 0 | BT79: 0 | BU79: 0 | BV79: 0 | BW79: 0 | BX79: 0 | BY79: 0 | BZ79: 0 | CA79: 0 | CB79: 1 | CC79: 0 | CD79: 0 | CE79: 0 | CF79: 0 | CG79: 0 | CH79: 0 | CI79: 0 | CJ79: 0 | CK79: 0 | CL79: 0 | CM79: 0 | CN79: 0 | CO79: 0 | CP79: 0 | CQ79: 0 | CR79: 0 | CS79: 0 | CT79: 0 | CU79: 0 | CV79: 2 | CW79: 0 | CX79: 2 | CY79: 0 | CZ79: 0 | DA79: 0 | DB79: 0 | DC79: 0 | DD79: 0 | DE79: 0 | DF79: 0 | DG79: 1 | DH79: 0 | DI79: 1 | DJ79: 0 | DK79: 0 | DL79: 0 | DM79: 0 | DN79: 0 | DO79: 0 | DP79: 0 | DQ79: 0 | DR79: 0 | DS79: 0 | DT79: 0 | DU79: 0 | DV79: 0 | DW79: 0 | DX79: 0 | DY79: 0 | DZ79: 0 | EA79: 0 | EB79: 0 | EC79: 0 | ED79: 0 | EE79: 0 | EF79: 0 | EG79: 0 | EH79: 3 | EI79: 0 | EJ79: 0 | EK79: 0 | EL79: 0 | EM79: 0 | EN79: 0 | EO79: 0 | EP79: 0 | EQ79: 0 | ER79: 0 | ES79: 0 | ET79: 0 | EU79: 0 | EV79: 0 | EW79: 0 | EX79: 0 | EY79: 0 | EZ79: 0 | FA79: 0 | FB79: 0 | FC79: 0 | FD79: 0 | FE79: 0 | FF79: 0 | FG79: 0 | FH79: 0 | FI79: 0 | FJ79: 0 | FK79: 0 | FL79: 0 | FM79: 0 | FN79: 0 | FO79: 0 | FP79: 0 | FQ79: 0 | FR79: 0 | FS79: 0 | FT79: 0 | FU79: 0 | FV79: 0 | FW79: 0 | FX79: 0 | FY79: 0 | FZ79: 0 | GA79: 0 | GB79: 0 | GC79: 0 | GD79: 0 | GE79: 0 | GF79: 0 | GG79: 0 | GH79: 0 | GI79: 0 | GJ79: 1 | GK79: 0 | GL79: 0 | GM79: 0 | GN79: 0 | GO79: 0 | GP79: 0 | GQ79: 0 | GR79: 0 | GS79: 0 | GT79: 0 | GU79: 0 | GV79: 0 | GW79: 0 | GX79: 0 | GY79: 0 | GZ79: 0 | HA79: 0 | HB79: 0 | HC79: 1 | HD79: 0 | HE79: 0 | HF79: 0 | HG79: 0 | HH79: 0 | HI79: 0 | HJ79: 0 | HK79: 0 | HL79: 0 | HM79: 0 | HN79: 0 | HO79: 0 | HP79: 0 | HQ79: 0 | HR79: 0 | HS79: 1 | HT79: 0 | HU79: 0 | HV79: 0 | HW79: 1 | HX79: 0 | HY79: 0 | HZ79: 0 | IA79: 1 | IB79: 0 | IC79: 0 | ID79: 0 | IE79: 0 | IF79: 0 | IG79: 0 | IH79: 0 | II79: 0 | IJ79: 0 | IK79: 0 | IL79: 0 | IM79: 0 | IN79: 0 | IO79: 0 | IP79: 0 | IQ79: 0 | IR79: 0 | IS79: 0 | IT79: 0 | IU79: 0 | IV79: 0 | IW79: 0 | IX79: 0 | IY79: 0 | IZ79: 0 | JA79: 0 | JB79: 0 | JC79: 0 | JD79: 0 | JE79: 0 | JF79: 0 | JG79: 0 | JH79: 0 | JI79: 0 | JJ79: 0 | JK79: 0 | JL79: 0 | JM79: 0 | JN79: 0 | JO79: 0 | JP79: 0 | JQ79: 0 | JR79: 0 | JS79: 0 | JT79: 0 | JU79: 0 | JV79: 0 | JW79: 0 | JX79: 0 | JY79: 5 | JZ79: 4 | KA79: 0 | KB79: 0 | KC79: 0 | KD79: 0
A80: LUCIANO CASTILLO COLONNA | B80: AYABACA | C80: 200201 | D80: 1916 | E80: CHOCAN | F80: AYABACA | G80: NINGUN CLAS | H80: AYABACA | I80: AYABACA | J80: SALUD LUCIANO CASTILLO COLONNA | K80: 7 | L80: 0 | M80: 0 | N80: 1 | O80: 1 | P80: 0 | Q80: 1 | R80: 2 | S80: 2 | T80: 0 | U80: 0 | V80: 0 | W80: 0 | X80: 0 | Y80: 0 | Z80: 0 | AA80: 0 | AB80: 1 | AC80: 5 | AD80: 1 | AE80: 1 | AF80: 0 | AG80: 0 | AH80: 0 | AI80: 0 | AJ80: 0 | AK80: 0 | AL80: 0 | AM80: 0 | AN80: 0 | AO80: 0 | AP80: 0 | AQ80: 0 | AR80: 0 | AS80: 0 | AT80: 0 | AU80: 0 | AV80: 0 | AW80: 0 | AX80: 0 | AY80: 0 | AZ80: 5 | BA80: 2 | BB80: 0 | BC80: 0 | BD80: 5 | BE80: 2 | BF80: 0 | BG80: 0 | BH80: 0 | BI80: 0 | BJ80: 0 | BK80: 0 | BL80: 0 | BM80: 0 | BN80: 0 | BO80: 0 | BP80: 0 | BQ80: 0 | BR80: 0 | BS80: 0 | BT80: 0 | BU80: 0 | BV80: 0 | BW80: 0 | BX80: 0 | BY80: 0 | BZ80: 0 | CA80: 1 | CB80: 4 | CC80: 0 | CD80: 1 | CE80: 0 | CF80: 1 | CG80: 0 | CH80: 0 | CI80: 0 | CJ80: 0 | CK80: 0 | CL80: 0 | CM80: 0 | CN80: 0 | CO80: 0 | CP80: 0 | CQ80: 1 | CR80: 0 | CS80: 1 | CT80: 0 | CU80: 0 | CV80: 1 | CW80: 0 | CX80: 1 | CY80: 0 | CZ80: 0 | DA80: 0 | DB80: 0 | DC80: 1 | DD80: 0 | DE80: 1 | DF80: 0 | DG80: 0 | DH80: 0 | DI80: 0 | DJ80: 0 | DK80: 0 | DL80: 0 | DM80: 0 | DN80: 0 | DO80: 0 | DP80: 0 | DQ80: 0 | DR80: 0 | DS80: 0 | DT80: 0 | DU80: 0 | DV80: 0 | DW80: 0 | DX80: 0 | DY80: 0 | DZ80: 0 | EA80: 0 | EB80: 0 | EC80: 0 | ED80: 0 | EE80: 0 | EF80: 5 | EG80: 0 | EH80: 0 | EI80: 0 | EJ80: 0 | EK80: 0 | EL80: 0 | EM80: 0 | EN80: 0 | EO80: 0 | EP80: 0 | EQ80: 0 | ER80: 0 | ES80: 0 | ET80: 0 | EU80: 0 | EV80: 0 | EW80: 0 | EX80: 0 | EY80: 0 | EZ80: 0 | FA80: 0 | FB80: 0 | FC80: 0 | FD80: 0 | FE80: 0 | FF80: 0 | FG80: 0 | FH80: 0 | FI80: 0 | FJ80: 0 | FK80: 0 | FL80: 0 | FM80: 0 | FN80: 0 | FO80: 0 | FP80: 0 | FQ80: 0 | FR80: 0 | FS80: 0 | FT80: 0 | FU80: 0 | FV80: 0 | FW80: 0 | FX80: 0 | FY80: 0 | FZ80: 0 | GA80: 0 | GB80: 0 | GC80: 0 | GD80: 0 | GE80: 0 | GF80: 0 | GG80: 0 | GH80: 0 | GI80: 0 | GJ80: 0 | GK80: 0 | GL80: 0 | GM80: 0 | GN80: 0 | GO80: 0 | GP80: 0 | GQ80: 0 | GR80: 0 | GS80: 0 | GT80: 0 | GU80: 0 | GV80: 0 | GW80: 0 | GX80: 0 | GY80: 0 | GZ80: 0 | HA80: 0 | HB80: 0 | HC80: 0 | HD80: 0 | HE80: 0 | HF80: 0 | HG80: 0 | HH80: 0 | HI80: 0 | HJ80: 0 | HK80: 0 | HL80: 0 | HM80: 0 | HN80: 0 | HO80: 0 | HP80: 0 | HQ80: 0 | HR80: 1 | HS80: 0 | HT80: 0 | HU80: 0 | HV80: 1 | HW80: 0 | HX80: 0 | HY80: 0 | HZ80: 1 | IA80: 0 | IB80: 0 | IC80: 0 | ID80: 0 | IE80: 0 | IF80: 0 | IG80: 0 | IH80: 0 | II80: 0 | IJ80: 0 | IK80: 0 | IL80: 0 | IM80: 0 | IN80: 0 | IO80: 0 | IP80: 0 | IQ80: 0 | IR80: 0 | IS80: 0 | IT80: 0 | IU80: 0 | IV80: 0 | IW80: 0 | IX80: 0 | IY80: 0 | IZ80: 0 | JA80: 0 | JB80: 0 | JC80: 0 | JD80: 0 | JE80: 0 | JF80: 0 | JG80: 0 | JH80: 0 | JI80: 1 | JJ80: 0 | JK80: 3 | JL80: 0 | JM80: 0 | JN80: 4 | JO80: 0 | JP80: 0 | JQ80: 0 | JR80: 0 | JS80: 0 | JT80: 0 | JU80: 0 | JV80: 0 | JW80: 0 | JX80: 0 | JY80: 3 | JZ80: 5 | KA80: 0 | KB80: 0 | KC80: 0 | KD80: 0
A81: LUCIANO CASTILLO COLONNA | B81: AYABACA | C81: 200201 | D81: 1916 | E81: CHOCAN | F81: AYABACA | G81: NINGUN CLAS | H81: AYABACA | I81: AYABACA | J81: SALUD LUCIANO CASTILLO COLONNA | K81: 8 | L81: 0 | M81: 0 | N81: 0 | O81: 1 | P81: 0 | Q81: 1 | R81: 0 | S81: 4 | T81: 0 | U81: 0 | V81: 0 | W81: 0 | X81: 0 | Y81: 0 | Z81: 0 | AA81: 0 | AB81: 0 | AC81: 3 | AD81: 0 | AE81: 2 | AF81: 0 | AG81: 0 | AH81: 0 | AI81: 0 | AJ81: 0 | AK81: 0 | AL81: 0 | AM81: 0 | AN81: 0 | AO81: 0 | AP81: 0 | AQ81: 0 | AR81: 0 | AS81: 1 | AT81: 0 | AU81: 0 | AV81: 0 | AW81: 0 | AX81: 0 | AY81: 0 | AZ81: 1 | BA81: 2 | BB81: 0 | BC81: 0 | BD81: 1 | BE81: 1 | BF81: 0 | BG81: 1 | BH81: 0 | BI81: 0 | BJ81: 0 | BK81: 0 | BL81: 0 | BM81: 0 | BN81: 0 | BO81: 0 | BP81: 0 | BQ81: 0 | BR81: 0 | BS81: 0 | BT81: 0 | BU81: 0 | BV81: 0 | BW81: 0 | BX81: 0 | BY81: 0 | BZ81: 0 | CA81: 2 | CB81: 2 | CC81: 0 | CD81: 0 | CE81: 0 | CF81: 0 | CG81: 0 | CH81: 0 | CI81: 0 | CJ81: 0 | CK81: 0 | CL81: 0 | CM81: 0 | CN81: 0 | CO81: 0 | CP81: 0 | CQ81: 0 | CR81: 1 | CS81: 0 | CT81: 1 | CU81: 1 | CV81: 2 | CW81: 1 | CX81: 2 | CY81: 0 | CZ81: 1 | DA81: 0 | DB81: 1 | DC81: 0 | DD81: 0 | DE81: 0 | DF81: 0 | DG81: 2 | DH81: 1 | DI81: 2 | DJ81: 1 | DK81: 0 | DL81: 0 | DM81: 0 | DN81: 0 | DO81: 0 | DP81: 0 | DQ81: 0 | DR81: 0 | DS81: 0 | DT81: 0 | DU81: 0 | DV81: 0 | DW81: 0 | DX81: 0 | DY81: 0 | DZ81: 0 | EA81: 0 | EB81: 0 | EC81: 0 | ED81: 0 | EE81: 0 | EF81: 1 | EG81: 0 | EH81: 3 | EI81: 0 | EJ81: 0 | EK81: 0 | EL81: 0 | EM81: 0 | EN81: 0 | EO81: 0 | EP81: 0 | EQ81: 0 | ER81: 0 | ES81: 0 | ET81: 0 | EU81: 0 | EV81: 0 | EW81: 0 | EX81: 0 | EY81: 0 | EZ81: 0 | FA81: 0 | FB81: 0 | FC81: 0 | FD81: 0 | FE81: 0 | FF81: 0 | FG81: 0 | FH81: 0 | FI81: 0 | FJ81: 0 | FK81: 0 | FL81: 0 | FM81: 0 | FN81: 0 | FO81: 0 | FP81: 0 | FQ81: 0 | FR81: 0 | FS81: 0 | FT81: 0 | FU81: 0 | FV81: 0 | FW81: 0 | FX81: 0 | FY81: 2 | FZ81: 0 | GA81: 0 | GB81: 0 | GC81: 0 | GD81: 0 | GE81: 0 | GF81: 0 | GG81: 0 | GH81: 0 | GI81: 0 | GJ81: 0 | GK81: 0 | GL81: 0 | GM81: 0 | GN81: 0 | GO81: 0 | GP81: 0 | GQ81: 0 | GR81: 0 | GS81: 0 | GT81: 0 | GU81: 0 | GV81: 0 | GW81: 0 | GX81: 0 | GY81: 0 | GZ81: 0 | HA81: 0 | HB81: 0 | HC81: 0 | HD81: 0 | HE81: 0 | HF81: 1 | HG81: 0 | HH81: 0 | HI81: 0 | HJ81: 0 | HK81: 0 | HL81: 0 | HM81: 0 | HN81: 0 | HO81: 0 | HP81: 0 | HQ81: 0 | HR81: 5 | HS81: 1 | HT81: 0 | HU81: 0 | HV81: 5 | HW81: 1 | HX81: 0 | HY81: 0 | HZ81: 5 | IA81: 0 | IB81: 0 | IC81: 0 | ID81: 0 | IE81: 0 | IF81: 0 | IG81: 0 | IH81: 0 | II81: 0 | IJ81: 0 | IK81: 0 | IL81: 0 | IM81: 0 | IN81: 0 | IO81: 0 | IP81: 0 | IQ81: 0 | IR81: 0 | IS81: 0 | IT81: 0 | IU81: 0 | IV81: 0 | IW81: 0 | IX81: 0 | IY81: 0 | IZ81: 0 | JA81: 0 | JB81: 0 | JC81: 0 | JD81: 0 | JE81: 0 | JF81: 0 | JG81: 0 | JH81: 0 | JI81: 0 | JJ81: 0 | JK81: 0 | JL81: 0 | JM81: 0 | JN81: 0 | JO81: 0 | JP81: 0 | JQ81: 0 | JR81: 0 | JS81: 0 | JT81: 0 | JU81: 0 | JV81: 0 | JW81: 0 | JX81: 0 | JY81: 2 | JZ81: 4 | KA81: 0 | KB81: 0 | KC81: 0 | KD81: 0
